Workbook

Sheet Sample Report (hidden)
A2: Date
A3: Hen
A4: Program
A5: Start at 999999
A6: Sequence component 1 | B6: Time 1 | C6: Seqeunce Component 2 | D6: Time 2 | E6: Seqeunce Component 3 | F6: Time 3 | G6: Correct 0 = No 1=Yes | J6: Seqeunce | K6: Time
A7: 12 | B7: 7 | C7: 12 | D7: 42 | E7: 13 | F7: 18 | G7: if 77 new line, if 31 or 41 = yes new line on 77, | J7: =string of Seqeunce compponent 1, 2 & 3 | K7: =time 3
A8: This continues until ther is a 1 on its own to indicate start of summary data
J9: 10-19 =1
A10: Summary Data | J10: 20-29 =2
A11: Correct | B11: Incorrect | C11: Rft | D11: total | E11: Av Correct | F11: Av Incorrect | G11: Percent correct | H11: Time | J11: in this example the seqeunce would be 111
A12: 40 | B12: 33 | C12: 40 | D12: 73 | E12: 23.95 | F12: 15 | G12: 54 | H12: 806

Sheet Summary
A2: Day | B2: Date | C2: Average Response Rate | D2: Target % | E2: RF for non correct sequence | F2: U Value | K2: Block 1 | L2: Block 2 | M2: Block 3 | N2: Block 4 | O2: Block 5 | P2: Block 6
A3: 1 | B3: ='!M729B10.010'!B2:C2 -> <date> | C3: =('!M729B10.010'!F158/60)/'!M729B10.010'!Q3 -> 2.619078947 | D3: ='!M729B10.010'!N20/'!M729B10.010'!Q3 -> 0 | E3: =SUM('!M729B10.010'!L20:Q20)/'!M729B10.010'!Q3 -> 1.065789474 | F3: ='!M729B10.010'!Q16 -> 0.03663565959 | J3: Average Response Rate | K3: =AVERAGE(C3:C7) -> 2.52045022 | L3: =AVERAGE(C8:C12) -> 2.468829099 | M3: =AVERAGE(C13:C17) -> 2.431733513 | N3: =AVERAGE(C18:C22) -> 2.478390407 | O3: =AVERAGE(C23:C27) -> 2.478421262 | P3: =AVERAGE(C28:C32) -> 2.361592979
A4: 2 | B4: ='!M730B20.010'!B2:C2 -> <date> | C4: =('!M730B20.010'!F161/60)/'!M730B20.010'!Q3 -> 2.549893162 | D4: ='!M730B20.010'!N20/'!M730B20.010'!Q3 -> 0 | E4: =SUM('!M730B20.010'!L20:Q20)/'!M730B20.010'!Q3 -> 1.044871795 | F4: ='!M730B20.010'!Q16 -> 0 | J4: Target % | K4: =AVERAGE(D3:D7) -> 0 | L4: =AVERAGE(D8:D12) -> 0.001219512195 | M4: =AVERAGE(D13:D17) -> 0.001226993865 | N4: =AVERAGE(D18:D22) -> 0.006207512621 | O4: =AVERAGE(D23:D27) -> 0 | P4: =AVERAGE(D28:D32) -> 0
A5: 3 | B5: ='!M731B10.010'!B2:C2 -> <date> | C5: =('!M731B10.010'!F165/60)/'!M731B10.010'!Q3 -> 2.511320755 | D5: ='!M731B10.010'!N20/'!M731B10.010'!Q3 -> 0 | E5: =SUM('!M731B10.010'!L20:Q20)/'!M731B10.010'!Q3 -> 1.031446541 | F5: ='!M731B10.010'!Q16 -> 0 | J5: CCRF | K5: =AVERAGE(E3:E7) -> 1.167046466 | L5: =AVERAGE(E8:E12) -> 1.519682085 | M5: =AVERAGE(E13:E17) -> 1.271406225 | N5: =AVERAGE(E18:E22) -> 1.563824004 | O5: =AVERAGE(E23:E27) -> 1.271044739 | P5: =AVERAGE(E28:E32) -> 1.110361983
A6: 4 | B6: ='!M801C10.010'!B2:C2 -> <date> | C6: =('!M801C10.010'!F160/60)/'!M801C10.010'!Q3 -> 2.58538961 | D6: ='!M801C10.010'!N20/'!M801C10.010'!Q3 -> 0 | E6: =SUM('!M801C10.010'!L20:Q20)/'!M801C10.010'!Q3 -> 1.051948052 | F6: ='!M801C10.010'!Q16 -> 0.04420484465 | J6: U Value | K6: =AVERAGE(F3:F7) -> 0.05248740275 | L6: =AVERAGE(F8:F12) -> 0.1055286368 | M6: =AVERAGE(F13:F17) -> 0.1009143807 | N6: =AVERAGE(F18:F22) -> 0.2085492885 | O6: =AVERAGE(F23:F27) -> 0.06878073909 | P6: =AVERAGE(F28:F32) -> 0.01453275876
A7: 5 | B7: ='!M802A30.010'!B2:C2 -> <date> | C7: =('!M802A30.010'!F175/60)/'!M802A30.010'!Q3 -> 2.336568627 | D7: ='!M802A30.010'!N20/'!M802A30.010'!Q3 -> 0 | E7: =SUM('!M802A30.010'!L20:Q20)/'!M802A30.010'!Q3 -> 1.641176471 | F7: ='!M802A30.010'!Q16 -> 0.1815965095
A8: 6 | B8: ='!M803A30.010'!B2:C2 -> <date> | C8: =('!M803A30.010'!F171/60)/'!M803A30.010'!Q3 -> 2.413737374 | D8: ='!M803A30.010'!N20/'!M803A30.010'!Q3 -> 0 | E8: =SUM('!M803A30.010'!L20:Q20)/'!M803A30.010'!Q3 -> 1.612121212 | F8: ='!M803A30.010'!Q16 -> 0.1325047078
A9: 7 | B9: ='!M804B40.010'!B2:C2 -> <date> | C9: =('!M804B40.010'!F170/60)/'!M804B40.010'!Q3 -> 2.436382114 | D9: ='!M804B40.010'!N20/'!M804B40.010'!Q3 -> 0.006097560976 | E9: =SUM('!M804B40.010'!L20:Q20)/'!M804B40.010'!Q3 -> 1.018292683 | F9: ='!M804B40.010'!Q16 -> 0.1371898487 | G9: =K3 -> 2.52045022 | H9: =L3 -> 2.468829099 | I9: =M3 -> 2.431733513 | J9: =N3 -> 2.478390407 | K9: =O3 -> 2.478421262 | L9: =P3 -> 2.361592979 | M9: =K4 -> 0 | N9: =L4 -> 0.001219512195 | O9: =M4 -> 0.001226993865 | P9: =N4 -> 0.006207512621 | Q9: =O4 -> 0 | R9: =P4 -> 0 | S9: =K6 -> 0.05248740275 | T9: =L6 -> 0.1055286368 | U9: =M6 -> 0.1009143807 | V9: =N6 -> 0.2085492885 | W9: =O6 -> 0.06878073909 | X9: =P6 -> 0.01453275876
A10: 8 | B10: ='!M805A40.010'!B2:C2 -> <date> | C10: =('!M805A40.010'!F162/60)/'!M805A40.010'!Q3 -> 2.535987261 | D10: ='!M805A40.010'!N20/'!M805A40.010'!Q3 -> 0 | E10: =SUM('!M805A40.010'!L20:Q20)/'!M805A40.010'!Q3 -> 1.675159236 | F10: ='!M805A40.010'!Q16 -> 0.1451143717
A11: 9 | B11: ='!M806930.010'!B2:C2 -> <date> | C11: =('!M806930.010'!F164/60)/'!M806930.010'!Q3 -> 2.519725738 | D11: ='!M806930.010'!N20/'!M806930.010'!Q3 -> 0 | E11: =SUM('!M806930.010'!L20:Q20)/'!M806930.010'!Q3 -> 1.670886076 | F11: ='!M806930.010'!Q16 -> 0.05739114075
A12: 10 | B12: ='!M807A40.010'!B2:C2 -> <date> | C12: =('!M807A40.010'!F170/60)/'!M807A40.010'!Q3 -> 2.438313008 | D12: ='!M807A40.010'!N20/'!M807A40.010'!Q3 -> 0 | E12: =SUM('!M807A40.010'!L20:Q20)/'!M807A40.010'!Q3 -> 1.62195122 | F12: ='!M807A40.010'!Q16 -> 0.05544311516
A13: 11 | B13: ='!M808C00.010'!B2:C2 -> <date> | C13: =('!M808C00.010'!F164/60)/'!M808C00.010'!Q3 -> 2.529113924 | D13: ='!M808C00.010'!N20/'!M808C00.010'!Q3 -> 0 | E13: =SUM('!M808C00.010'!L20:Q20)/'!M808C00.010'!Q3 -> 1.037974684 | F13: ='!M808C00.010'!Q16 -> 0.04708957804
A14: 12 | B14: ='!M809A50.010'!B2:C2 -> <date> | C14: =('!M809A50.010'!F169/60)/'!M809A50.010'!Q3 -> 2.451840491 | D14: ='!M809A50.010'!N20/'!M809A50.010'!Q3 -> 0 | E14: =SUM('!M809A50.010'!L20:Q20)/'!M809A50.010'!Q3 -> 1.012269939 | F14: ='!M809A50.010'!Q16 -> 0.07093360373
A15: 13 | B15: ='!M810B20.010'!B2:C2 -> <date> | C15: =('!M810B20.010'!F172/60)/'!M810B20.010'!Q3 -> 2.401204819 | D15: ='!M810B20.010'!N20/'!M810B20.010'!Q3 -> 0 | E15: =SUM('!M810B20.010'!L20:Q20)/'!M810B20.010'!Q3 -> 1.662650602 | F15: ='!M810B20.010'!Q16 -> 0.1169258133
A16: 14 | B16: ='!M811A30.010'!B2:C2 -> <date> | C16: =('!M811A30.010'!F168/60)/'!M811A30.010'!Q3 -> 2.441615542 | D16: ='!M811A30.010'!N20/'!M811A30.010'!Q3 -> 0.006134969325 | E16: =SUM('!M811A30.010'!L20:Q20)/'!M811A30.010'!Q3 -> 1.018404908 | F16: ='!M811A30.010'!Q16 -> 0.1323546343
A17: 15 | B17: ='!M812B10.010'!B2:C2 -> <date> | C17: =('!M812B10.010'!F177/60)/'!M812B10.010'!Q3 -> 2.334892788 | D17: ='!M812B10.010'!N20/'!M812B10.010'!Q3 -> 0 | E17: =SUM('!M812B10.010'!L20:Q20)/'!M812B10.010'!Q3 -> 1.625730994 | F17: ='!M812B10.010'!Q16 -> 0.1372682739
A18: 16 | B18: ='!M813A50.010'!B2:C2 -> <date> | C18: =('!M813A50.010'!F172/60)/'!M813A50.010'!Q3 -> 2.402710843 | D18: ='!M813A50.010'!N20/'!M813A50.010'!Q3 -> 0.01204819277 | E18: =SUM('!M813A50.010'!L20:Q20)/'!M813A50.010'!Q3 -> 1.614457831 | F18: ='!M813A50.010'!Q16 -> 0.2608425897
A19: 17 | B19: ='!M814A00.010'!B2:C2 -> <date> | C19: =('!M814A00.010'!F171/60)/'!M814A00.010'!Q3 -> 2.421313131 | D19: ='!M814A00.010'!N20/'!M814A00.010'!Q3 -> 0 | E19: =SUM('!M814A00.010'!L20:Q20)/'!M814A00.010'!Q3 -> 1.678787879 | F19: ='!M814A00.010'!Q16 -> 0.2695661508
A20: 18 | B20: ='!M815B40.010'!B2:C2 -> <date> | C20: =('!M815B40.010'!F162/60)/'!M815B40.010'!Q3 -> 2.55267094 | D20: ='!M815B40.010'!N20/'!M815B40.010'!Q3 -> 0.00641025641 | E20: =SUM('!M815B40.010'!L20:Q20)/'!M815B40.010'!Q3 -> 1.762820513 | F20: ='!M815B40.010'!Q16 -> 0.2302920103
A21: 19 | B21: ='!M816D20.010'!B2:C2 -> <date> | C21: =('!M816D20.010'!F164/60)/'!M816D20.010'!Q3 -> 2.528902954 | D21: ='!M816D20.010'!N20/'!M816D20.010'!Q3 -> 0.006329113924 | E21: =SUM('!M816D20.010'!L20:Q20)/'!M816D20.010'!Q3 -> 1.044303797 | F21: ='!M816D20.010'!Q16 -> 0.1771964695
A22: 20 | B22: ='!M817B50.010'!B2:C2 -> <date> | C22: =('!M817B50.010'!F166/60)/'!M817B50.010'!Q3 -> 2.486354167 | D22: ='!M817B50.010'!N20/'!M817B50.010'!Q3 -> 0.00625 | E22: =SUM('!M817B50.010'!L20:Q20)/'!M817B50.010'!Q3 -> 1.71875 | F22: ='!M817B50.010'!Q16 -> 0.1048492222
A23: 21 | B23: ='!M818B50.010'!B2:C2 -> <date> | C23: =('!M818B50.010'!F165/60)/'!M818B50.010'!Q3 -> 2.514046122 | D23: ='!M818B50.010'!N20/'!M818B50.010'!Q3 -> 0 | E23: =SUM('!M818B50.010'!L20:Q20)/'!M818B50.010'!Q3 -> 1.031446541 | F23: ='!M818B50.010'!Q16 -> 0.09703829926
A24: 22 | B24: ='!M819A30.010'!B2:C2 -> <date> | C24: =('!M819A30.010'!F166/60)/'!M819A30.010'!Q3 -> 2.497083333 | D24: ='!M819A30.010'!N20/'!M819A30.010'!Q3 -> 0 | E24: =SUM('!M819A30.010'!L20:Q20)/'!M819A30.010'!Q3 -> 1.65 | F24: ='!M819A30.010'!Q16 -> 0.0684116841
A25: 23 | B25: ='!M820A20.010'!B2:C2 -> <date> | C25: =('!M820A20.010'!F164/60)/'!M820A20.010'!Q3 -> 2.526793249 | D25: ='!M820A20.010'!N20/'!M820A20.010'!Q3 -> 0 | E25: =SUM('!M820A20.010'!L20:Q20)/'!M820A20.010'!Q3 -> 1.037974684 | F25: ='!M820A20.010'!Q16 -> 0.05370612008
A26: 24 | B26: ='!M821C10.010'!B2:C2 -> <date> | C26: =('!M821C10.010'!F173/60)/'!M821C10.010'!Q3 -> 2.391117764 | D26: ='!M821C10.010'!N20/'!M821C10.010'!Q3 -> 0 | E26: =SUM('!M821C10.010'!L20:Q20)/'!M821C10.010'!Q3 -> 1 | F26: ='!M821C10.010'!Q16 -> 0.05947438286
A27: 25 | B27: ='!M822B30.010'!B2:C2 -> <date> | C27: =('!M822B30.010'!F168/60)/'!M822B30.010'!Q3 -> 2.463065844 | D27: ='!M822B30.010'!N20/'!M822B30.010'!Q3 -> 0 | E27: =SUM('!M822B30.010'!L20:Q20)/'!M822B30.010'!Q3 -> 1.635802469 | F27: ='!M822B30.010'!Q16 -> 0.06527320914
A28: 26 | B28: ='!M823C00.010'!B2:C2 -> <date> | C28: =('!M823C00.010'!F174/60)/'!M823C00.010'!Q3 -> 2.376785714 | D28: ='!M823C00.010'!N20/'!M823C00.010'!Q3 -> 0 | E28: =SUM('!M823C00.010'!L20:Q20)/'!M823C00.010'!Q3 -> 0.994047619 | F28: ='!M823C00.010'!Q16 -> 0.0197004412
A29: 27 | B29: ='!M824C20.010'!B2:C2 -> <date> | C29: =('!M824C20.010'!F177/60)/'!M824C20.010'!Q3 -> 2.336159844 | D29: ='!M824C20.010'!N20/'!M824C20.010'!Q3 -> 0 | E29: =SUM('!M824C20.010'!L20:Q20)/'!M824C20.010'!Q3 -> 0.9824561404 | F29: ='!M824C20.010'!Q16 -> 0.01934912628
A30: 28 | B30: ='!M825B40.010'!B2:C2 -> <date> | C30: =('!M825B40.010'!F177/60)/'!M825B40.010'!Q3 -> 2.330214425 | D30: ='!M825B40.010'!N20/'!M825B40.010'!Q3 -> 0 | E30: =SUM('!M825B40.010'!L20:Q20)/'!M825B40.010'!Q3 -> 0.9824561404 | F30: ='!M825B40.010'!Q16 -> 0.01934912628
A31: 29 | B31: ='!M826B20.010'!B2:C2 -> <date> | C31: =('!M826B20.010'!F173/60)/'!M826B20.010'!Q3 -> 2.387225549 | D31: ='!M826B20.010'!N20/'!M826B20.010'!Q3 -> 0 | E31: =SUM('!M826B20.010'!L20:Q20)/'!M826B20.010'!Q3 -> 1.598802395 | F31: ='!M826B20.010'!Q16 -> 0.007154508333
A32: 30 | B32: ='!M827B40.010'!B2:C2 -> <date> | C32: =('!M827B40.010'!F174/60)/'!M827B40.010'!Q3 -> 2.377579365 | D32: ='!M827B40.010'!N20/'!M827B40.010'!Q3 -> 0 | E32: =SUM('!M827B40.010'!L20:Q20)/'!M827B40.010'!Q3 -> 0.994047619 | F32: ='!M827B40.010'!Q16 -> 0.007110591725
B33: ='!M828A50.010'!B2:C2 -> <date> | C33: =('!M828A50.010'!F172/60)/'!M828A50.010'!Q3 -> 2.402610442 | D33: ='!M828A50.010'!N20/'!M828A50.010'!Q3 -> 0 | E33: =SUM('!M828A50.010'!L20:Q20)/'!M828A50.010'!Q3 -> 1 | F33: ='!M828A50.010'!Q16 -> 0
B34: ='!M829A00.010'!B2:C2 -> <date> | C34: =('!M829A00.010'!F167/60)/'!M829A00.010'!Q3 -> 2.475569358 | D34: ='!M829A00.010'!N20/'!M829A00.010'!Q3 -> 0 | E34: =SUM('!M829A00.010'!L20:Q20)/'!M829A00.010'!Q3 -> 1.02484472 | F34: ='!M829A00.010'!Q16 -> 0

Sheet Start
F1: Use Folder 51 | H1: Auto Clean Up | J1: Correct sequence
F2: FALSE | H2: TRUE | J2: 122
A4: Working with Folder | G4: Process All/Or Pick A number: ALL or an integer
A5: E:\Hen Data\Raw Data\105_185\phase 2 any\ | G5: ALL
A6: Filenames:
A7: !M729B10.010 | G7: Paint Cells
A8: !M730B20.010 | G8: FALSE
A9: !M731B10.010
A10: !M801C10.010
A11: !M802A30.010
A12: !M803A30.010
A13: !M804B40.010
A14: !M805A40.010
A15: !M806930.010
A16: !M807A40.010
A17: !M808C00.010
A18: !M809A50.010
A19: !M810B20.010
A20: !M811A30.010
A21: !M812B10.010
A22: !M813A50.010
A23: !M814A00.010
A24: !M815B40.010
A25: !M816D20.010
A26: !M817B50.010
A27: !M819A30.010
A28: !M820A20.010
A29: !M821C10.010
A30: !M818B50.010
A31: !M822B30.010
A32: !M823C00.010
A33: !M824C20.010
A34: !M825B40.010
A35: !M826B20.010
A36: !M827B40.010
A37: !M828A50.010
A38: !M829A00.010

Sheet !M729B10.010
A1: Report for:!M729B10.010
A2: Date: | B2: <date>
A3: Hen: | B3: <hen> | F3: Correct Sequence | G3: =Start!J2 -> 122 | P3: Total Sequences in Data | Q3: =4994-COUNTBLANK(L7:L5000) -> 152 | V3: Total Sequences in Block Data | W3: =COUNTA(L7:L31) -> 25 | AA3: Total Sequences in Block Data | AB3: =COUNTA(L32:L57) -> 26 | AF3: Total Sequences in Block Data | AG3: =COUNTA(L58:L82) -> 25 | AK3: Total Sequences in Block Data | AL3: =COUNTA(L83:L107) -> 25 | AP3: Total Sequences in Block Data | AQ3: =COUNTA(L108:L133) -> 26 | AU3: Total Sequences in Block Data | AV3: =COUNTA(L134:L158) -> 25
P4: Total Sequences in Summary | Q4: =SUM(O7:O14) -> 152 | V4: Total Sequences in Block Summary | W4: =SUM(U7:U14) -> 25 | AA4: Total Sequences in Block Summary | AB4: =SUM(Z7:Z14) -> 26 | AF4: Total Sequences in Block Summary | AG4: =SUM(AE7:AE14) -> 25 | AK4: Total Sequences in Block Summary | AL4: =SUM(AJ7:AJ14) -> 25 | AP4: Total Sequences in Block Summary | AQ4: =SUM(AO7:AO14) -> 26 | AU4: Total Sequences in Block Summary | AV4: =SUM(AT7:AT14) -> 25
T5: Block 1 | Y5: Block 2 | AD5: Block 3 | AI5: Block 4 | AN5: Block 5 | AS5: Block 6
A6: Sequence Component 1 | B6: Time 1 | C6: Sequence Component 2 | D6: Time 2 | E6: Sequence Component 3 | F6: Time 3 | G6: Sequence Component 4 | H6: Time 4 | I6: Sequence Component 5 | J6: Time 5 | K6: Correct? 0=No 1=Yes | L6: Sequence | N6: Frequency | P6: Relative Frequency | Q6: Variability | T6: Frequency | V6: Relative Frequency | W6: Variability | Y6: Frequency | AA6: Relative Frequency | AB6: Variability | AD6: Frequency | AF6: Relative Frequency | AG6: Variability | AI6: Frequency | AK6: Relative Frequency | AL6: Variability | AN6: Frequency | AP6: Relative Frequency | AQ6: Variability | AS6: Frequency | AU6: Relative Frequency | AV6: Variability
A7: 11 | B7: 110 | C7: 11 | D7: 136 | E7: 12 | F7: 154 | K7: 0 | L7: 111 | N7: 111 | O7: =COUNTIF($L$7:$L$500,N7) -> 146 | P7: =O7/$Q$4 -> 0.9605263158 | Q7: =IF(P7=0,0,(P7*((LOG(P7))/LOG(2)))) -> -0.05580941688 | T7: =N7 -> 111 | U7: =COUNTIF(L7:L31,T7) -> 20 | V7: =U7/(W4-U10) -> 0.8 | W7: =IF(V7=0,0,(V7*((LOG(V7))/LOG(2)))) -> -0.2575424759 | Y7: =N7 -> 111 | Z7: =COUNTIF(L32:L57,Y7) -> 25 | AA7: =Z7/(AB4-Z10) -> 0.9615384615 | AB7: =IF(AA7=0,0,(AA7*((LOG(AA7))/LOG(2)))) -> -0.05440723881 | AD7: =N7 -> 111 | AE7: =COUNTIF(L58:L82,AD7) -> 25 | AF7: =AE7/(AG4-AE10) -> 1 | AG7: =IF(AF7=0,0,(AF7*((LOG(AF7))/LOG(2)))) -> 0 | AI7: =N7 -> 111 | AJ7: =COUNTIF(L83:L107,AI7) -> 25 | AK7: =AJ7/(AL4-AJ10) -> 1 | AL7: =IF(AK7=0,0,(AK7*((LOG(AK7))/LOG(2)))) -> 0 | AN7: =N7 -> 111 | AO7: =COUNTIF(L108:L133,AN7) -> 26 | AP7: =AO7/(AQ4-AO10) -> 1 | AQ7: =IF(AP7=0,0,(AP7*((LOG(AP7))/LOG(2)))) -> 0 | AS7: =N7 -> 111 | AT7: =COUNTIF(L134:L158,AS7) -> 25 | AU7: =AT7/(AV4-AT10) -> 1 | AV7: =IF(AU7=0,0,(AU7*((LOG(AU7))/LOG(2)))) -> 0
A8: 11 | B8: 300 | C8: 11 | D8: 309 | E8: 12 | F8: 318 | K8: 0 | L8: 111 | N8: 112 | O8: =COUNTIF($L$7:$L$500,N8) -> 0 | P8: =O8/$Q$4 -> 0 | Q8: =IF(P8=0,0,(P8*((LOG(P8))/LOG(2)))) -> 0 | T8: =N8 -> 112 | U8: =COUNTIF(L7:L31,T8) -> 0 | V8: =U8/(W4-U10) -> 0 | W8: =IF(V8=0,0,(V8*((LOG(V8))/LOG(2)))) -> 0 | Y8: =N8 -> 112 | Z8: =COUNTIF(L32:L57,Y8) -> 0 | AA8: =Z8/(AB4-Z10) -> 0 | AB8: =IF(AA8=0,0,(AA8*((LOG(AA8))/LOG(2)))) -> 0 | AD8: =N8 -> 112 | AE8: =COUNTIF(L58:L82,AD8) -> 0 | AF8: =AE8/(AG4-AE10) -> 0 | AG8: =IF(AF8=0,0,(AF8*((LOG(AF8))/LOG(2)))) -> 0 | AI8: =N8 -> 112 | AJ8: =COUNTIF(L83:L107,AI8) -> 0 | AK8: =AJ8/(AL4-AJ10) -> 0 | AL8: =IF(AK8=0,0,(AK8*((LOG(AK8))/LOG(2)))) -> 0 | AN8: =N8 -> 112 | AO8: =COUNTIF(L108:L133,AN8) -> 0 | AP8: =AO8/(AQ4-AO10) -> 0 | AQ8: =IF(AP8=0,0,(AP8*((LOG(AP8))/LOG(2)))) -> 0 | AS8: =N8 -> 112 | AT8: =COUNTIF(L134:L158,AS8) -> 0 | AU8: =AT8/(AV4-AT10) -> 0 | AV8: =IF(AU8=0,0,(AU8*((LOG(AU8))/LOG(2)))) -> 0
A9: 11 | B9: 424 | C9: 11 | D9: 433 | E9: 12 | F9: 442 | K9: 0 | L9: 111 | N9: 121 | O9: =COUNTIF($L$7:$L$500,N9) -> 0 | P9: =O9/$Q$4 -> 0 | Q9: =IF(P9=0,0,(P9*((LOG(P9))/LOG(2)))) -> 0 | T9: =N9 -> 121 | U9: =COUNTIF(L7:L31,T9) -> 0 | V9: =U9/(W4-U10) -> 0 | W9: =IF(V9=0,0,(V9*((LOG(V9))/LOG(2)))) -> 0 | Y9: =N9 -> 121 | Z9: =COUNTIF(L32:L57,Y9) -> 0 | AA9: =Z9/(AB4-Z10) -> 0 | AB9: =IF(AA9=0,0,(AA9*((LOG(AA9))/LOG(2)))) -> 0 | AD9: =N9 -> 121 | AE9: =COUNTIF(L58:L82,AD9) -> 0 | AF9: =AE9/(AG4-AE10) -> 0 | AG9: =IF(AF9=0,0,(AF9*((LOG(AF9))/LOG(2)))) -> 0 | AI9: =N9 -> 121 | AJ9: =COUNTIF(L83:L107,AI9) -> 0 | AK9: =AJ9/(AL4-AJ10) -> 0 | AL9: =IF(AK9=0,0,(AK9*((LOG(AK9))/LOG(2)))) -> 0 | AN9: =N9 -> 121 | AO9: =COUNTIF(L108:L133,AN9) -> 0 | AP9: =AO9/(AQ4-AO10) -> 0 | AQ9: =IF(AP9=0,0,(AP9*((LOG(AP9))/LOG(2)))) -> 0 | AS9: =N9 -> 121 | AT9: =COUNTIF(L134:L158,AS9) -> 0 | AU9: =AT9/(AV4-AT10) -> 0 | AV9: =IF(AU9=0,0,(AU9*((LOG(AU9))/LOG(2)))) -> 0
A10: 11 | B10: 586 | C10: 11 | D10: 596 | E10: 12 | F10: 609 | K10: 0 | L10: 111 | N10: 122 | O10: =COUNTIF($L$7:$L$500,N10) -> 0 | P10: =O10/$Q$4 -> 0 | Q10: =IF(P10=0,0,(P10*((LOG(P10))/LOG(2)))) -> 0 | T10: =N10 -> 122 | U10: =COUNTIF(L7:L31,T10) -> 0 | Y10: =N10 -> 122 | Z10: =COUNTIF(L32:L57,Y10) -> 0 | AD10: =N10 -> 122 | AE10: =COUNTIF(L58:L82,AD10) -> 0 | AI10: =N10 -> 122 | AJ10: =COUNTIF(L83:L107,AI10) -> 0 | AN10: =N10 -> 122 | AO10: =COUNTIF(L108:L133,AN10) -> 0 | AS10: =N10 -> 122 | AT10: =COUNTIF(L134:L158,AS10) -> 0
A11: 22 | B11: 720 | C11: 24 | D11: 729 | E11: 14 | F11: 747 | K11: 0 | L11: 221 | N11: 211 | O11: =COUNTIF($L$7:$L$500,N11) -> 5 | P11: =O11/$Q$4 -> 0.03289473684 | Q11: =IF(P11=0,0,(P11*((LOG(P11))/LOG(2)))) -> -0.1620394546 | T11: =N11 -> 211 | U11: =COUNTIF(L7:L31,T11) -> 4 | V11: =U11/(W4-U10) -> 0.16 | W11: =IF(V11=0,0,(V11*((LOG(V11))/LOG(2)))) -> -0.4230169904 | Y11: =N11 -> 211 | Z11: =COUNTIF(L32:L57,Y11) -> 1 | AA11: =Z11/(AB4-Z10) -> 0.03846153846 | AB11: =IF(AA11=0,0,(AA11*((LOG(AA11))/LOG(2)))) -> -0.180786143 | AD11: =N11 -> 211 | AE11: =COUNTIF(L58:L82,AD11) -> 0 | AF11: =AE11/(AG4-AE10) -> 0 | AG11: =IF(AF11=0,0,(AF11*((LOG(AF11))/LOG(2)))) -> 0 | AI11: =N11 -> 211 | AJ11: =COUNTIF(L83:L107,AI11) -> 0 | AK11: =AJ11/(AL4-AJ10) -> 0 | AL11: =IF(AK11=0,0,(AK11*((LOG(AK11))/LOG(2)))) -> 0 | AN11: =N11 -> 211 | AO11: =COUNTIF(L108:L133,AN11) -> 0 | AP11: =AO11/(AQ4-AO10) -> 0 | AQ11: =IF(AP11=0,0,(AP11*((LOG(AP11))/LOG(2)))) -> 0 | AS11: =N11 -> 211 | AT11: =COUNTIF(L134:L158,AS11) -> 0 | AU11: =AT11/(AV4-AT10) -> 0 | AV11: =IF(AU11=0,0,(AU11*((LOG(AU11))/LOG(2)))) -> 0
A12: 22 | B12: 854 | C12: 13 | D12: 870 | E12: 14 | F12: 879 | K12: 0 | L12: 211 | N12: 212 | O12: =COUNTIF($L$7:$L$500,N12) -> 0 | P12: =O12/$Q$4 -> 0 | Q12: =IF(P12=0,0,(P12*((LOG(P12))/LOG(2)))) -> 0 | T12: =N12 -> 212 | U12: =COUNTIF(L7:L31,T12) -> 0 | V12: =U12/(W4-U10) -> 0 | W12: =IF(V12=0,0,(V12*((LOG(V12))/LOG(2)))) -> 0 | Y12: =N12 -> 212 | Z12: =COUNTIF(L32:L57,Y12) -> 0 | AA12: =Z12/(AB4-Z10) -> 0 | AB12: =IF(AA12=0,0,(AA12*((LOG(AA12))/LOG(2)))) -> 0 | AD12: =N12 -> 212 | AE12: =COUNTIF(L58:L82,AD12) -> 0 | AF12: =AE12/(AG4-AE10) -> 0 | AG12: =IF(AF12=0,0,(AF12*((LOG(AF12))/LOG(2)))) -> 0 | AI12: =N12 -> 212 | AJ12: =COUNTIF(L83:L107,AI12) -> 0 | AK12: =AJ12/(AL4-AJ10) -> 0 | AL12: =IF(AK12=0,0,(AK12*((LOG(AK12))/LOG(2)))) -> 0 | AN12: =N12 -> 212 | AO12: =COUNTIF(L108:L133,AN12) -> 0 | AP12: =AO12/(AQ4-AO10) -> 0 | AQ12: =IF(AP12=0,0,(AP12*((LOG(AP12))/LOG(2)))) -> 0 | AS12: =N12 -> 212 | AT12: =COUNTIF(L134:L158,AS12) -> 0 | AU12: =AT12/(AV4-AT10) -> 0 | AV12: =IF(AU12=0,0,(AU12*((LOG(AU12))/LOG(2)))) -> 0
A13: 22 | B13: 988 | C13: 13 | D13: 1002 | E13: 14 | F13: 1012 | K13: 0 | L13: 211 | N13: 221 | O13: =COUNTIF($L$7:$L$500,N13) -> 1 | P13: =O13/$Q$4 -> 0.006578947368 | Q13: =IF(P13=0,0,(P13*((LOG(P13))/LOG(2)))) -> -0.04768373364 | T13: =N13 -> 221 | U13: =COUNTIF(L7:L31,T13) -> 1 | V13: =U13/(W4-U10) -> 0.04 | W13: =IF(V13=0,0,(V13*((LOG(V13))/LOG(2)))) -> -0.1857542476 | Y13: =N13 -> 221 | Z13: =COUNTIF(L32:L57,Y13) -> 0 | AA13: =Z13/(AB4-Z10) -> 0 | AB13: =IF(AA13=0,0,(AA13*((LOG(AA13))/LOG(2)))) -> 0 | AD13: =N13 -> 221 | AE13: =COUNTIF(L58:L82,AD13) -> 0 | AF13: =AE13/(AG4-AE10) -> 0 | AG13: =IF(AF13=0,0,(AF13*((LOG(AF13))/LOG(2)))) -> 0 | AI13: =N13 -> 221 | AJ13: =COUNTIF(L83:L107,AI13) -> 0 | AK13: =AJ13/(AL4-AJ10) -> 0 | AL13: =IF(AK13=0,0,(AK13*((LOG(AK13))/LOG(2)))) -> 0 | AN13: =N13 -> 221 | AO13: =COUNTIF(L108:L133,AN13) -> 0 | AP13: =AO13/(AQ4-AO10) -> 0 | AQ13: =IF(AP13=0,0,(AP13*((LOG(AP13))/LOG(2)))) -> 0 | AS13: =N13 -> 221 | AT13: =COUNTIF(L134:L158,AS13) -> 0 | AU13: =AT13/(AV4-AT10) -> 0 | AV13: =IF(AU13=0,0,(AU13*((LOG(AU13))/LOG(2)))) -> 0
A14: 22 | B14: 1114 | C14: 13 | D14: 1130 | E14: 14 | F14: 1140 | K14: 0 | L14: 211 | N14: 222 | O14: =COUNTIF($L$7:$L$500,N14) -> 0 | P14: =O14/$Q$4 -> 0 | Q14: =IF(P14=0,0,(P14*((LOG(P14))/LOG(2)))) -> 0 | T14: =N14 -> 222 | U14: =COUNTIF(L7:L31,T14) -> 0 | V14: =U14/(W4-U10) -> 0 | W14: =IF(V14=0,0,(V14*((LOG(V14))/LOG(2)))) -> 0 | Y14: =N14 -> 222 | Z14: =COUNTIF(L32:L57,Y14) -> 0 | AA14: =Z14/(AB4-Z10) -> 0 | AB14: =IF(AA14=0,0,(AA14*((LOG(AA14))/LOG(2)))) -> 0 | AD14: =N14 -> 222 | AE14: =COUNTIF(L58:L82,AD14) -> 0 | AF14: =AE14/(AG4-AE10) -> 0 | AG14: =IF(AF14=0,0,(AF14*((LOG(AF14))/LOG(2)))) -> 0 | AI14: =N14 -> 222 | AJ14: =COUNTIF(L83:L107,AI14) -> 0 | AK14: =AJ14/(AL4-AJ10) -> 0 | AL14: =IF(AK14=0,0,(AK14*((LOG(AK14))/LOG(2)))) -> 0 | AN14: =N14 -> 222 | AO14: =COUNTIF(L108:L133,AN14) -> 0 | AP14: =AO14/(AQ4-AO10) -> 0 | AQ14: =IF(AP14=0,0,(AP14*((LOG(AP14))/LOG(2)))) -> 0 | AS14: =N14 -> 222 | AT14: =COUNTIF(L134:L158,AS14) -> 0 | AU14: =AT14/(AV4-AT10) -> 0 | AV14: =IF(AU14=0,0,(AU14*((LOG(AU14))/LOG(2)))) -> 0
A15: 11 | B15: 1267 | C15: 11 | D15: 1300 | E15: 12 | F15: 1327 | K15: 0 | L15: 111 | P15: =SUM(P7:P14) -> 1 | Q15: =-SUM(Q7:Q14) -> 0.2655326051 | V15: =SUM(V7:V14) -> 1 | W15: =-SUM(W7:W14) -> 0.8663137139 | AA15: =SUM(AA7:AA14) -> 1 | AB15: =-SUM(AB7:AB14) -> 0.2351933818 | AF15: =SUM(AF7:AF14) -> 1 | AG15: =-SUM(AG7:AG14) -> 0 | AK15: =SUM(AK7:AK14) -> 1 | AL15: =-SUM(AL7:AL14) -> 0 | AP15: =SUM(AP7:AP14) -> 1 | AQ15: =-SUM(AQ7:AQ14) -> 0 | AU15: =SUM(AU7:AU14) -> 1 | AV15: =-SUM(AV7:AV14) -> 0
A16: 11 | B16: 1438 | C16: 11 | D16: 1448 | E16: 12 | F16: 1457 | K16: 0 | L16: 111 | P16: U= | Q16: =Q15/(LOG(Q4)/LOG(2)) -> 0.03663565959 | V16: U1= | W16: =W15/(LOG(W4)/LOG(2)) -> 0.1865505042 | AA16: U2= | AB16: =AB15/(LOG(AB4)/LOG(2)) -> 0.0500364638 | AF16: U3= | AG16: =AG15/(LOG(AG4)/LOG(2)) -> 0 | AK16: U4= | AL16: =AL15/(LOG(AL4)/LOG(2)) -> 0 | AP16: U5= | AQ16: =AQ15/(LOG(AQ4)/LOG(2)) -> 0 | AU16: U6= | AV16: =AV15/(LOG(AV4)/LOG(2)) -> 0
A17: 22 | B17: 1568 | C17: 13 | D17: 1583 | E17: 14 | F17: 1593 | K17: 0 | L17: 211
A18: 11 | B18: 1719 | C18: 11 | D18: 1728 | E18: 12 | F18: 1736 | K18: 0 | L18: 111
A19: 11 | B19: 1867 | C19: 11 | D19: 1886 | E19: 12 | F19: 1915 | K19: 0 | L19: 111 | N19: Total Target Seq
A20: 11 | B20: 2040 | C20: 11 | D20: 2049 | E20: 12 | F20: 2068 | K20: 0 | L20: 111 | N20: =COUNTIF(L7:L158,G3) -> 0 | P20: 25 | Q20: 26 | R20: 25 | S20: 25 | T20: 26 | U20: 25
A21: 11 | B21: 2242 | C21: 11 | D21: 2251 | E21: 12 | F21: 2279 | K21: 0 | L21: 111 | P21: % of reinforcement given in 6 equal intervals based on number of trials
A22: 11 | B22: 2393 | C22: 11 | D22: 2401 | E22: 12 | F22: 2411 | K22: 0 | L22: 111 | P22: %_1 | Q22: %_2 | R22: %_3 | S22: %_4 | T22: %_5 | U22: %_6
A23: 11 | B23: 2528 | C23: 11 | D23: 2538 | E23: 12 | F23: 2553 | K23: 0 | L23: 111 | O23: target sequence | P23: =$G$3 -> 122 | Q23: =$G$3 -> 122 | R23: =$G$3 -> 122 | S23: =$G$3 -> 122 | T23: =$G$3 -> 122 | U23: =$G$3 -> 122
A24: 11 | B24: 2670 | C24: 11 | D24: 2689 | E24: 12 | F24: 2706 | K24: 0 | L24: 111 | O24: total reinforcement | P24: =U10 -> 0 | Q24: =Z10 -> 0 | R24: =AE10 -> 0 | S24: =AJ10 -> 0 | T24: =AO10 -> 0 | U24: =AT10 -> 0
A25: 11 | B25: 2820 | C25: 11 | D25: 2829 | E25: 12 | F25: 2848 | K25: 0 | L25: 111 | O25: % target
A26: 11 | B26: 3017 | C26: 11 | D26: 3028 | E26: 12 | F26: 3047 | K26: 0 | L26: 111 | O26: CCRF
A27: 11 | B27: 3161 | C27: 11 | D27: 3169 | E27: 12 | F27: 3187 | K27: 0 | L27: 111 | O27: % CCRf
A28: 11 | B28: 3297 | C28: 11 | D28: 3306 | E28: 12 | F28: 3316 | K28: 0 | L28: 111 | O28: average response rate | P28: =F31/P20 -> 153.92 | Q28: =(F57-F31)/Q20 -> 167.6923077 | R28: =(F82-F57)/R20 -> 155.52 | S28: =(F107-F82)/S20 -> 167.88 | T28: =(F133-F107)/T20 -> 151.2692308 | U28: =(F158-F133)/U20 -> 146.4
A29: 11 | B29: 3429 | C29: 11 | D29: 3439 | E29: 12 | F29: 3457 | K29: 0 | L29: 111
A30: 11 | B30: 3569 | C30: 11 | D30: 3588 | E30: 12 | F30: 3646 | K30: 0 | L30: 111
A31: 11 | B31: 3813 | C31: 11 | D31: 3821 | E31: 12 | F31: 3848 | K31: 0 | L31: 111
A32: 11 | B32: 3978 | C32: 11 | D32: 3986 | E32: 12 | F32: 4034 | K32: 0 | L32: 111
A33: 11 | B33: 4142 | C33: 11 | D33: 4169 | E33: 12 | F33: 4195 | K33: 0 | L33: 111
A34: 11 | B34: 4303 | C34: 11 | D34: 4312 | E34: 12 | F34: 4338 | K34: 0 | L34: 111
A35: 11 | B35: 4447 | C35: 11 | D35: 4457 | E35: 12 | F35: 4482 | K35: 0 | L35: 111
A36: 11 | B36: 4593 | C36: 11 | D36: 4603 | E36: 12 | F36: 4611 | K36: 0 | L36: 111
A37: 11 | B37: 4761 | C37: 11 | D37: 4779 | E37: 12 | F37: 4795 | K37: 0 | L37: 111
A38: 11 | B38: 4903 | C38: 11 | D38: 4911 | E38: 12 | F38: 4920 | K38: 0 | L38: 111
A39: 11 | B39: 5046 | C39: 11 | D39: 5055 | E39: 12 | F39: 5064 | K39: 0 | L39: 111
A40: 11 | B40: 5175 | C40: 11 | D40: 5194 | E40: 12 | F40: 5211 | K40: 0 | L40: 111
A41: 11 | B41: 5320 | C41: 11 | D41: 5328 | E41: 12 | F41: 5337 | K41: 0 | L41: 111
A42: 11 | B42: 5451 | C42: 11 | D42: 5470 | E42: 12 | F42: 5482 | K42: 0 | L42: 111
A43: 11 | B43: 5669 | C43: 11 | D43: 5679 | E43: 12 | F43: 5789 | K43: 0 | L43: 111
A44: 22 | B44: 5889 | C44: 13 | D44: 5909 | E44: 14 | F44: 5926 | K44: 0 | L44: 211
A45: 11 | B45: 6039 | C45: 11 | D45: 6093 | E45: 12 | F45: 6133 | K45: 0 | L45: 111
A46: 11 | B46: 6245 | C46: 11 | D46: 6274 | E46: 12 | F46: 6291 | K46: 0 | L46: 111
A47: 11 | B47: 6499 | C47: 11 | D47: 6517 | E47: 12 | F47: 6578 | K47: 0 | L47: 111
A48: 11 | B48: 6755 | C48: 11 | D48: 6763 | E48: 12 | F48: 6786 | K48: 0 | L48: 111
A49: 11 | B49: 6897 | C49: 11 | D49: 6921 | E49: 12 | F49: 6936 | K49: 0 | L49: 111
A50: 11 | B50: 7051 | C50: 11 | D50: 7059 | E50: 12 | F50: 7100 | K50: 0 | L50: 111
A51: 11 | B51: 7211 | C51: 11 | D51: 7228 | E51: 12 | F51: 7245 | K51: 0 | L51: 111
A52: 11 | B52: 7353 | C52: 11 | D52: 7388 | E52: 12 | F52: 7396 | K52: 0 | L52: 111
A53: 11 | B53: 7509 | C53: 11 | D53: 7519 | E53: 12 | F53: 7532 | K53: 0 | L53: 111
A54: 11 | B54: 7643 | C54: 11 | D54: 7661 | E54: 12 | F54: 7682 | K54: 0 | L54: 111
A55: 11 | B55: 7788 | C55: 11 | D55: 7839 | E55: 12 | F55: 7858 | K55: 0 | L55: 111
A56: 11 | B56: 8061 | C56: 11 | D56: 8077 | E56: 12 | F56: 8085 | K56: 0 | L56: 111
A57: 11 | B57: 8182 | C57: 11 | D57: 8199 | E57: 12 | F57: 8208 | K57: 0 | L57: 111
A58: 11 | B58: 8317 | C58: 11 | D58: 8333 | E58: 12 | F58: 8350 | K58: 0 | L58: 111
A59: 11 | B59: 8474 | C59: 11 | D59: 8491 | E59: 12 | F59: 8501 | K59: 0 | L59: 111
A60: 11 | B60: 8604 | C60: 11 | D60: 8621 | E60: 12 | F60: 8630 | K60: 0 | L60: 111
A61: 11 | B61: 8772 | C61: 11 | D61: 8797 | E61: 12 | F61: 8829 | K61: 0 | L61: 111
A62: 11 | B62: 8936 | C62: 11 | D62: 8945 | E62: 12 | F62: 8962 | K62: 0 | L62: 111
A63: 11 | B63: 9142 | C63: 11 | D63: 9150 | E63: 12 | F63: 9159 | K63: 0 | L63: 111
A64: 11 | B64: 9272 | C64: 11 | D64: 9292 | E64: 12 | F64: 9322 | K64: 0 | L64: 111
A65: 11 | B65: 9435 | C65: 11 | D65: 9443 | E65: 12 | F65: 9500 | K65: 0 | L65: 111
A66: 11 | B66: 9606 | C66: 11 | D66: 9623 | E66: 12 | F66: 9639 | K66: 0 | L66: 111
A67: 11 | B67: 9748 | C67: 11 | D67: 9757 | E67: 12 | F67: 9767 | K67: 0 | L67: 111
A68: 11 | B68: 9874 | C68: 11 | D68: 9948 | E68: 12 | F68: 9956 | K68: 0 | L68: 111
A69: 11 | B69: 10067 | C69: 11 | D69: 10084 | E69: 12 | F69: 10100 | K69: 0 | L69: 111
A70: 11 | B70: 10209 | C70: 11 | D70: 10232 | E70: 12 | F70: 10249 | K70: 0 | L70: 111
A71: 11 | B71: 10355 | C71: 11 | D71: 10379 | E71: 12 | F71: 10392 | K71: 0 | L71: 111
A72: 11 | B72: 10498 | C72: 11 | D72: 10534 | E72: 12 | F72: 10542 | K72: 0 | L72: 111
A73: 11 | B73: 10749 | C73: 11 | D73: 10757 | E73: 12 | F73: 10767 | K73: 0 | L73: 111
A74: 11 | B74: 10878 | C74: 11 | D74: 10903 | E74: 12 | F74: 10928 | K74: 0 | L74: 111
A75: 11 | B75: 11038 | C75: 11 | D75: 11090 | E75: 12 | F75: 11128 | K75: 0 | L75: 111
A76: 11 | B76: 11240 | C76: 11 | D76: 11251 | E76: 12 | F76: 11259 | K76: 0 | L76: 111
A77: 11 | B77: 11367 | C77: 11 | D77: 11376 | E77: 12 | F77: 11384 | K77: 0 | L77: 111
A78: 11 | B78: 11493 | C78: 11 | D78: 11510 | E78: 12 | F78: 11519 | K78: 0 | L78: 111
A79: 11 | B79: 11627 | C79: 11 | D79: 11640 | E79: 12 | F79: 11649 | K79: 0 | L79: 111
A80: 11 | B80: 11777 | C80: 11 | D80: 11790 | E80: 12 | F80: 11807 | K80: 0 | L80: 111
A81: 11 | B81: 11918 | C81: 11 | D81: 11935 | E81: 12 | F81: 11945 | K81: 0 | L81: 111
A82: 11 | B82: 12054 | C82: 11 | D82: 12079 | E82: 12 | F82: 12096 | K82: 0 | L82: 111
A83: 11 | B83: 12340 | C83: 11 | D83: 12356 | E83: 12 | F83: 12363 | K83: 0 | L83: 111
A84: 11 | B84: 12469 | C84: 11 | D84: 12478 | E84: 12 | F84: 12487 | K84: 0 | L84: 111
A85: 11 | B85: 12655 | C85: 11 | D85: 12665 | E85: 12 | F85: 12673 | K85: 0 | L85: 111
A86: 11 | B86: 12782 | C86: 11 | D86: 12793 | E86: 12 | F86: 12816 | K86: 0 | L86: 111
A87: 11 | B87: 12923 | C87: 11 | D87: 12931 | E87: 12 | F87: 12939 | K87: 0 | L87: 111
A88: 11 | B88: 13105 | C88: 11 | D88: 13113 | E88: 12 | F88: 13121 | K88: 0 | L88: 111
A89: 11 | B89: 13230 | C89: 11 | D89: 13238 | E89: 12 | F89: 13263 | K89: 0 | L89: 111
A90: 11 | B90: 13371 | C90: 11 | D90: 13390 | E90: 12 | F90: 13405 | K90: 0 | L90: 111
A91: 11 | B91: 13577 | C91: 11 | D91: 13585 | E91: 12 | F91: 13593 | K91: 0 | L91: 111
A92: 11 | B92: 13702 | C92: 11 | D92: 13719 | E92: 12 | F92: 13734 | K92: 0 | L92: 111
A93: 11 | B93: 13840 | C93: 11 | D93: 13864 | E93: 12 | F93: 13887 | K93: 0 | L93: 111
A94: 11 | B94: 13994 | C94: 11 | D94: 14035 | E94: 12 | F94: 14050 | K94: 0 | L94: 111
A95: 11 | B95: 14160 | C95: 11 | D95: 14168 | E95: 12 | F95: 14187 | K95: 0 | L95: 111
A96: 11 | B96: 14313 | C96: 11 | D96: 14322 | E96: 12 | F96: 14337 | K96: 0 | L96: 111
A97: 11 | B97: 14477 | C97: 11 | D97: 14515 | E97: 12 | F97: 14523 | K97: 0 | L97: 111
A98: 11 | B98: 14706 | C98: 11 | D98: 14729 | E98: 12 | F98: 14737 | K98: 0 | L98: 111
A99: 11 | B99: 14855 | C99: 11 | D99: 14865 | E99: 12 | F99: 14877 | K99: 0 | L99: 111
A100: 11 | B100: 15069 | C100: 11 | D100: 15073 | E100: 12 | F100: 15083 | K100: 0 | L100: 111
A101: 11 | B101: 15225 | C101: 11 | D101: 15239 | E101: 12 | F101: 15271 | K101: 0 | L101: 111
A102: 11 | B102: 15379 | C102: 11 | D102: 15405 | E102: 12 | F102: 15419 | K102: 0 | L102: 111
A103: 11 | B103: 15526 | C103: 11 | D103: 15535 | E103: 12 | F103: 15558 | K103: 0 | L103: 111
A104: 11 | B104: 15670 | C104: 11 | D104: 15682 | E104: 12 | F104: 15690 | K104: 0 | L104: 111
A105: 11 | B105: 15908 | C105: 11 | D105: 15951 | E105: 12 | F105: 15959 | K105: 0 | L105: 111
A106: 11 | B106: 16132 | C106: 11 | D106: 16155 | E106: 12 | F106: 16163 | K106: 0 | L106: 111
A107: 11 | B107: 16269 | C107: 11 | D107: 16285 | E107: 12 | F107: 16293 | K107: 0 | L107: 111
A108: 11 | B108: 16401 | C108: 11 | D108: 16434 | E108: 12 | F108: 16442 | K108: 0 | L108: 111
A109: 11 | B109: 16547 | C109: 11 | D109: 16555 | E109: 12 | F109: 16571 | K109: 0 | L109: 111
A110: 11 | B110: 16766 | C110: 11 | D110: 16781 | E110: 12 | F110: 16788 | K110: 0 | L110: 111
A111: 11 | B111: 16912 | C111: 11 | D111: 16929 | E111: 12 | F111: 16945 | K111: 0 | L111: 111
A112: 11 | B112: 17052 | C112: 11 | D112: 17069 | E112: 12 | F112: 17077 | K112: 0 | L112: 111
A113: 11 | B113: 17186 | C113: 11 | D113: 17195 | E113: 12 | F113: 17211 | K113: 0 | L113: 111
A114: 11 | B114: 17338 | C114: 11 | D114: 17346 | E114: 12 | F114: 17355 | K114: 0 | L114: 111
A115: 11 | B115: 17575 | C115: 11 | D115: 17583 | E115: 12 | F115: 17606 | K115: 0 | L115: 111
A116: 11 | B116: 17726 | C116: 11 | D116: 17736 | E116: 12 | F116: 17744 | K116: 0 | L116: 111
A117: 11 | B117: 17853 | C117: 11 | D117: 17862 | E117: 12 | F117: 17877 | K117: 0 | L117: 111
A118: 11 | B118: 17986 | C118: 11 | D118: 18009 | E118: 12 | F118: 18031 | K118: 0 | L118: 111
A119: 11 | B119: 18136 | C119: 11 | D119: 18144 | E119: 12 | F119: 18152 | K119: 0 | L119: 111
A120: 11 | B120: 18255 | C120: 11 | D120: 18267 | E120: 12 | F120: 18297 | K120: 0 | L120: 111
A121: 11 | B121: 18511 | C121: 11 | D121: 18520 | E121: 12 | F121: 18528 | K121: 0 | L121: 111
A122: 11 | B122: 18636 | C122: 11 | D122: 18644 | E122: 12 | F122: 18659 | K122: 0 | L122: 111
A123: 11 | B123: 18763 | C123: 11 | D123: 18771 | E123: 12 | F123: 18786 | K123: 0 | L123: 111
A124: 11 | B124: 18894 | C124: 11 | D124: 18901 | E124: 12 | F124: 18918 | K124: 0 | L124: 111
A125: 11 | B125: 19061 | C125: 11 | D125: 19069 | E125: 12 | F125: 19090 | K125: 0 | L125: 111
A126: 11 | B126: 19196 | C126: 11 | D126: 19212 | E126: 12 | F126: 19227 | K126: 0 | L126: 111
A127: 11 | B127: 19330 | C127: 11 | D127: 19346 | E127: 12 | F127: 19354 | K127: 0 | L127: 111
A128: 11 | B128: 19461 | C128: 11 | D128: 19477 | E128: 12 | F128: 19493 | K128: 0 | L128: 111
A129: 11 | B129: 19599 | C129: 11 | D129: 19620 | E129: 12 | F129: 19628 | K129: 0 | L129: 111
A130: 11 | B130: 19734 | C130: 11 | D130: 19751 | E130: 12 | F130: 19767 | K130: 0 | L130: 111
A131: 11 | B131: 19916 | C131: 11 | D131: 19939 | E131: 12 | F131: 19948 | K131: 0 | L131: 111
A132: 11 | B132: 20056 | C132: 11 | D132: 20072 | E132: 12 | F132: 20096 | K132: 0 | L132: 111
A133: 11 | B133: 20203 | C133: 11 | D133: 20219 | E133: 12 | F133: 20226 | K133: 0 | L133: 111
A134: 11 | B134: 20333 | C134: 11 | D134: 20342 | E134: 12 | F134: 20358 | K134: 0 | L134: 111
A135: 11 | B135: 20468 | C135: 11 | D135: 20484 | E135: 12 | F135: 20492 | K135: 0 | L135: 111
A136: 11 | B136: 20607 | C136: 11 | D136: 20616 | E136: 12 | F136: 20624 | K136: 0 | L136: 111
A137: 11 | B137: 20730 | C137: 11 | D137: 20738 | E137: 12 | F137: 20754 | K137: 0 | L137: 111
A138: 11 | B138: 20937 | C138: 11 | D138: 20944 | E138: 12 | F138: 20960 | K138: 0 | L138: 111
A139: 11 | B139: 21088 | C139: 11 | D139: 21096 | E139: 12 | F139: 21104 | K139: 0 | L139: 111
A140: 11 | B140: 21196 | C140: 11 | D140: 21214 | E140: 12 | F140: 21222 | K140: 0 | L140: 111
A141: 11 | B141: 21342 | C141: 11 | D141: 21351 | E141: 12 | F141: 21384 | K141: 0 | L141: 111
A142: 11 | B142: 21493 | C142: 11 | D142: 21500 | E142: 12 | F142: 21517 | K142: 0 | L142: 111
A143: 11 | B143: 21637 | C143: 11 | D143: 21652 | E143: 12 | F143: 21660 | K143: 0 | L143: 111
A144: 11 | B144: 21764 | C144: 11 | D144: 21771 | E144: 12 | F144: 21779 | K144: 0 | L144: 111
A145: 11 | B145: 21886 | C145: 11 | D145: 21936 | E145: 12 | F145: 21943 | K145: 0 | L145: 111
A146: 11 | B146: 22131 | C146: 11 | D146: 22138 | E146: 12 | F146: 22163 | K146: 0 | L146: 111
A147: 11 | B147: 22269 | C147: 11 | D147: 22277 | E147: 12 | F147: 22285 | K147: 0 | L147: 111
A148: 11 | B148: 22394 | C148: 11 | D148: 22403 | E148: 12 | F148: 22420 | K148: 0 | L148: 111
A149: 11 | B149: 22531 | C149: 11 | D149: 22558 | E149: 12 | F149: 22569 | K149: 0 | L149: 111
A150: 11 | B150: 22680 | C150: 11 | D150: 22693 | E150: 12 | F150: 22700 | K150: 0 | L150: 111
A151: 11 | B151: 22814 | C151: 11 | D151: 22821 | E151: 12 | F151: 22837 | K151: 0 | L151: 111
A152: 11 | B152: 22956 | C152: 11 | D152: 22964 | E152: 12 | F152: 22987 | K152: 0 | L152: 111
A153: 11 | B153: 23095 | C153: 11 | D153: 23118 | E153: 12 | F153: 23131 | K153: 0 | L153: 111
A154: 11 | B154: 23319 | C154: 11 | D154: 23328 | E154: 12 | F154: 23338 | K154: 0 | L154: 111
A155: 11 | B155: 23447 | C155: 11 | D155: 23455 | E155: 12 | F155: 23463 | K155: 0 | L155: 111
A156: 11 | B156: 23579 | C156: 11 | D156: 23608 | E156: 12 | F156: 23616 | K156: 0 | L156: 111
A157: 11 | B157: 23733 | C157: 11 | D157: 23744 | E157: 12 | F157: 23751 | K157: 0 | L157: 111
A158: 11 | B158: 23869 | C158: 11 | D158: 23878 | E158: 12 | F158: 23886 | K158: 0 | L158: 111

Sheet !M730B20.010
A1: Report for:!M730B20.010
A2: Date: | B2: <date>
A3: Hen: | B3: <hen> | F3: Correct Sequence | G3: =Start!J2 -> 122 | P3: Total Sequences in Data | Q3: =4994-COUNTBLANK(L7:L5000) -> 156 | V3: Total Sequences in Block Data | W3: =COUNTA(L7:L32) -> 26 | AA3: Total Sequences in Block Data | AB3: =COUNTA(L33:L58) -> 26 | AF3: Total Sequences in Block Data | AG3: =COUNTA(L59:L84) -> 26 | AK3: Total Sequences in Block Data | AL3: =COUNTA(L85:L110) -> 26 | AP3: Total Sequences in Block Data | AQ3: =COUNTA(L111:L136) -> 26 | AU3: Total Sequences in Block Data | AV3: =COUNTA(L137:L162) -> 26
P4: Total Sequences in Summary | Q4: =SUM(O7:O14) -> 155 | V4: Total Sequences in Block Summary | W4: =SUM(U7:U14) -> 26 | AA4: Total Sequences in Block Summary | AB4: =SUM(Z7:Z14) -> 26 | AF4: Total Sequences in Block Summary | AG4: =SUM(AE7:AE14) -> 26 | AK4: Total Sequences in Block Summary | AL4: =SUM(AJ7:AJ14) -> 26 | AP4: Total Sequences in Block Summary | AQ4: =SUM(AO7:AO14) -> 26 | AU4: Total Sequences in Block Summary | AV4: =SUM(AT7:AT14) -> 25
T5: Block 1 | Y5: Block 2 | AD5: Block 3 | AI5: Block 4 | AN5: Block 5 | AS5: Block 6
A6: Sequence Component 1 | B6: Time 1 | C6: Sequence Component 2 | D6: Time 2 | E6: Sequence Component 3 | F6: Time 3 | G6: Sequence Component 4 | H6: Time 4 | I6: Sequence Component 5 | J6: Time 5 | K6: Correct? 0=No 1=Yes | L6: Sequence | N6: Frequency | P6: Relative Frequency | Q6: Variability | T6: Frequency | V6: Relative Frequency | W6: Variability | Y6: Frequency | AA6: Relative Frequency | AB6: Variability | AD6: Frequency | AF6: Relative Frequency | AG6: Variability | AI6: Frequency | AK6: Relative Frequency | AL6: Variability | AN6: Frequency | AP6: Relative Frequency | AQ6: Variability | AS6: Frequency | AU6: Relative Frequency | AV6: Variability
A7: 11 | B7: 24 | C7: 11 | D7: 94 | E7: 12 | F7: 103 | K7: 0 | L7: 111 | N7: 111 | O7: =COUNTIF($L$7:$L$500,N7) -> 155 | P7: =O7/$Q$4 -> 1 | Q7: =IF(P7=0,0,(P7*((LOG(P7))/LOG(2)))) -> 0 | T7: =N7 -> 111 | U7: =COUNTIF(L7:L32,T7) -> 26 | V7: =U7/(W4-U10) -> 1 | W7: =IF(V7=0,0,(V7*((LOG(V7))/LOG(2)))) -> 0 | Y7: =N7 -> 111 | Z7: =COUNTIF(L33:L58,Y7) -> 26 | AA7: =Z7/(AB4-Z10) -> 1 | AB7: =IF(AA7=0,0,(AA7*((LOG(AA7))/LOG(2)))) -> 0 | AD7: =N7 -> 111 | AE7: =COUNTIF(L59:L84,AD7) -> 26 | AF7: =AE7/(AG4-AE10) -> 1 | AG7: =IF(AF7=0,0,(AF7*((LOG(AF7))/LOG(2)))) -> 0 | AI7: =N7 -> 111 | AJ7: =COUNTIF(L85:L110,AI7) -> 26 | AK7: =AJ7/(AL4-AJ10) -> 1 | AL7: =IF(AK7=0,0,(AK7*((LOG(AK7))/LOG(2)))) -> 0 | AN7: =N7 -> 111 | AO7: =COUNTIF(L111:L136,AN7) -> 26 | AP7: =AO7/(AQ4-AO10) -> 1 | AQ7: =IF(AP7=0,0,(AP7*((LOG(AP7))/LOG(2)))) -> 0 | AS7: =N7 -> 111 | AT7: =COUNTIF(L137:L162,AS7) -> 25 | AU7: =AT7/(AV4-AT10) -> 1 | AV7: =IF(AU7=0,0,(AU7*((LOG(AU7))/LOG(2)))) -> 0
A8: 11 | B8: 225 | C8: 11 | D8: 235 | E8: 12 | F8: 293 | K8: 0 | L8: 111 | N8: 112 | O8: =COUNTIF($L$7:$L$500,N8) -> 0 | P8: =O8/$Q$4 -> 0 | Q8: =IF(P8=0,0,(P8*((LOG(P8))/LOG(2)))) -> 0 | T8: =N8 -> 112 | U8: =COUNTIF(L7:L32,T8) -> 0 | V8: =U8/(W4-U10) -> 0 | W8: =IF(V8=0,0,(V8*((LOG(V8))/LOG(2)))) -> 0 | Y8: =N8 -> 112 | Z8: =COUNTIF(L33:L58,Y8) -> 0 | AA8: =Z8/(AB4-Z10) -> 0 | AB8: =IF(AA8=0,0,(AA8*((LOG(AA8))/LOG(2)))) -> 0 | AD8: =N8 -> 112 | AE8: =COUNTIF(L59:L84,AD8) -> 0 | AF8: =AE8/(AG4-AE10) -> 0 | AG8: =IF(AF8=0,0,(AF8*((LOG(AF8))/LOG(2)))) -> 0 | AI8: =N8 -> 112 | AJ8: =COUNTIF(L85:L110,AI8) -> 0 | AK8: =AJ8/(AL4-AJ10) -> 0 | AL8: =IF(AK8=0,0,(AK8*((LOG(AK8))/LOG(2)))) -> 0 | AN8: =N8 -> 112 | AO8: =COUNTIF(L111:L136,AN8) -> 0 | AP8: =AO8/(AQ4-AO10) -> 0 | AQ8: =IF(AP8=0,0,(AP8*((LOG(AP8))/LOG(2)))) -> 0 | AS8: =N8 -> 112 | AT8: =COUNTIF(L137:L162,AS8) -> 0 | AU8: =AT8/(AV4-AT10) -> 0 | AV8: =IF(AU8=0,0,(AU8*((LOG(AU8))/LOG(2)))) -> 0
A9: 11 | B9: 411 | C9: 11 | D9: 423 | E9: 12 | F9: 461 | K9: 0 | L9: 111 | N9: 121 | O9: =COUNTIF($L$7:$L$500,N9) -> 0 | P9: =O9/$Q$4 -> 0 | Q9: =IF(P9=0,0,(P9*((LOG(P9))/LOG(2)))) -> 0 | T9: =N9 -> 121 | U9: =COUNTIF(L7:L32,T9) -> 0 | V9: =U9/(W4-U10) -> 0 | W9: =IF(V9=0,0,(V9*((LOG(V9))/LOG(2)))) -> 0 | Y9: =N9 -> 121 | Z9: =COUNTIF(L33:L58,Y9) -> 0 | AA9: =Z9/(AB4-Z10) -> 0 | AB9: =IF(AA9=0,0,(AA9*((LOG(AA9))/LOG(2)))) -> 0 | AD9: =N9 -> 121 | AE9: =COUNTIF(L59:L84,AD9) -> 0 | AF9: =AE9/(AG4-AE10) -> 0 | AG9: =IF(AF9=0,0,(AF9*((LOG(AF9))/LOG(2)))) -> 0 | AI9: =N9 -> 121 | AJ9: =COUNTIF(L85:L110,AI9) -> 0 | AK9: =AJ9/(AL4-AJ10) -> 0 | AL9: =IF(AK9=0,0,(AK9*((LOG(AK9))/LOG(2)))) -> 0 | AN9: =N9 -> 121 | AO9: =COUNTIF(L111:L136,AN9) -> 0 | AP9: =AO9/(AQ4-AO10) -> 0 | AQ9: =IF(AP9=0,0,(AP9*((LOG(AP9))/LOG(2)))) -> 0 | AS9: =N9 -> 121 | AT9: =COUNTIF(L137:L162,AS9) -> 0 | AU9: =AT9/(AV4-AT10) -> 0 | AV9: =IF(AU9=0,0,(AU9*((LOG(AU9))/LOG(2)))) -> 0
A10: 11 | B10: 603 | C10: 11 | D10: 617 | E10: 12 | F10: 633 | K10: 0 | L10: 111 | N10: 122 | O10: =COUNTIF($L$7:$L$500,N10) -> 0 | P10: =O10/$Q$4 -> 0 | Q10: =IF(P10=0,0,(P10*((LOG(P10))/LOG(2)))) -> 0 | T10: =N10 -> 122 | U10: =COUNTIF(L7:L32,T10) -> 0 | Y10: =N10 -> 122 | Z10: =COUNTIF(L33:L58,Y10) -> 0 | AD10: =N10 -> 122 | AE10: =COUNTIF(L59:L84,AD10) -> 0 | AI10: =N10 -> 122 | AJ10: =COUNTIF(L85:L110,AI10) -> 0 | AN10: =N10 -> 122 | AO10: =COUNTIF(L111:L136,AN10) -> 0 | AS10: =N10 -> 122 | AT10: =COUNTIF(L137:L162,AS10) -> 0
A11: 11 | B11: 743 | C11: 11 | D11: 758 | E11: 12 | F11: 767 | K11: 0 | L11: 111 | N11: 211 | O11: =COUNTIF($L$7:$L$500,N11) -> 0 | P11: =O11/$Q$4 -> 0 | Q11: =IF(P11=0,0,(P11*((LOG(P11))/LOG(2)))) -> 0 | T11: =N11 -> 211 | U11: =COUNTIF(L7:L32,T11) -> 0 | V11: =U11/(W4-U10) -> 0 | W11: =IF(V11=0,0,(V11*((LOG(V11))/LOG(2)))) -> 0 | Y11: =N11 -> 211 | Z11: =COUNTIF(L33:L58,Y11) -> 0 | AA11: =Z11/(AB4-Z10) -> 0 | AB11: =IF(AA11=0,0,(AA11*((LOG(AA11))/LOG(2)))) -> 0 | AD11: =N11 -> 211 | AE11: =COUNTIF(L59:L84,AD11) -> 0 | AF11: =AE11/(AG4-AE10) -> 0 | AG11: =IF(AF11=0,0,(AF11*((LOG(AF11))/LOG(2)))) -> 0 | AI11: =N11 -> 211 | AJ11: =COUNTIF(L85:L110,AI11) -> 0 | AK11: =AJ11/(AL4-AJ10) -> 0 | AL11: =IF(AK11=0,0,(AK11*((LOG(AK11))/LOG(2)))) -> 0 | AN11: =N11 -> 211 | AO11: =COUNTIF(L111:L136,AN11) -> 0 | AP11: =AO11/(AQ4-AO10) -> 0 | AQ11: =IF(AP11=0,0,(AP11*((LOG(AP11))/LOG(2)))) -> 0 | AS11: =N11 -> 211 | AT11: =COUNTIF(L137:L162,AS11) -> 0 | AU11: =AT11/(AV4-AT10) -> 0 | AV11: =IF(AU11=0,0,(AU11*((LOG(AU11))/LOG(2)))) -> 0
A12: 11 | B12: 883 | C12: 11 | D12: 892 | E12: 12 | F12: 909 | K12: 0 | L12: 111 | N12: 212 | O12: =COUNTIF($L$7:$L$500,N12) -> 0 | P12: =O12/$Q$4 -> 0 | Q12: =IF(P12=0,0,(P12*((LOG(P12))/LOG(2)))) -> 0 | T12: =N12 -> 212 | U12: =COUNTIF(L7:L32,T12) -> 0 | V12: =U12/(W4-U10) -> 0 | W12: =IF(V12=0,0,(V12*((LOG(V12))/LOG(2)))) -> 0 | Y12: =N12 -> 212 | Z12: =COUNTIF(L33:L58,Y12) -> 0 | AA12: =Z12/(AB4-Z10) -> 0 | AB12: =IF(AA12=0,0,(AA12*((LOG(AA12))/LOG(2)))) -> 0 | AD12: =N12 -> 212 | AE12: =COUNTIF(L59:L84,AD12) -> 0 | AF12: =AE12/(AG4-AE10) -> 0 | AG12: =IF(AF12=0,0,(AF12*((LOG(AF12))/LOG(2)))) -> 0 | AI12: =N12 -> 212 | AJ12: =COUNTIF(L85:L110,AI12) -> 0 | AK12: =AJ12/(AL4-AJ10) -> 0 | AL12: =IF(AK12=0,0,(AK12*((LOG(AK12))/LOG(2)))) -> 0 | AN12: =N12 -> 212 | AO12: =COUNTIF(L111:L136,AN12) -> 0 | AP12: =AO12/(AQ4-AO10) -> 0 | AQ12: =IF(AP12=0,0,(AP12*((LOG(AP12))/LOG(2)))) -> 0 | AS12: =N12 -> 212 | AT12: =COUNTIF(L137:L162,AS12) -> 0 | AU12: =AT12/(AV4-AT10) -> 0 | AV12: =IF(AU12=0,0,(AU12*((LOG(AU12))/LOG(2)))) -> 0
A13: 11 | B13: 1022 | C13: 11 | D13: 1030 | E13: 12 | F13: 1038 | K13: 0 | L13: 111 | N13: 221 | O13: =COUNTIF($L$7:$L$500,N13) -> 0 | P13: =O13/$Q$4 -> 0 | Q13: =IF(P13=0,0,(P13*((LOG(P13))/LOG(2)))) -> 0 | T13: =N13 -> 221 | U13: =COUNTIF(L7:L32,T13) -> 0 | V13: =U13/(W4-U10) -> 0 | W13: =IF(V13=0,0,(V13*((LOG(V13))/LOG(2)))) -> 0 | Y13: =N13 -> 221 | Z13: =COUNTIF(L33:L58,Y13) -> 0 | AA13: =Z13/(AB4-Z10) -> 0 | AB13: =IF(AA13=0,0,(AA13*((LOG(AA13))/LOG(2)))) -> 0 | AD13: =N13 -> 221 | AE13: =COUNTIF(L59:L84,AD13) -> 0 | AF13: =AE13/(AG4-AE10) -> 0 | AG13: =IF(AF13=0,0,(AF13*((LOG(AF13))/LOG(2)))) -> 0 | AI13: =N13 -> 221 | AJ13: =COUNTIF(L85:L110,AI13) -> 0 | AK13: =AJ13/(AL4-AJ10) -> 0 | AL13: =IF(AK13=0,0,(AK13*((LOG(AK13))/LOG(2)))) -> 0 | AN13: =N13 -> 221 | AO13: =COUNTIF(L111:L136,AN13) -> 0 | AP13: =AO13/(AQ4-AO10) -> 0 | AQ13: =IF(AP13=0,0,(AP13*((LOG(AP13))/LOG(2)))) -> 0 | AS13: =N13 -> 221 | AT13: =COUNTIF(L137:L162,AS13) -> 0 | AU13: =AT13/(AV4-AT10) -> 0 | AV13: =IF(AU13=0,0,(AU13*((LOG(AU13))/LOG(2)))) -> 0
A14: 11 | B14: 1150 | C14: 11 | D14: 1158 | E14: 12 | F14: 1178 | K14: 0 | L14: 111 | N14: 222 | O14: =COUNTIF($L$7:$L$500,N14) -> 0 | P14: =O14/$Q$4 -> 0 | Q14: =IF(P14=0,0,(P14*((LOG(P14))/LOG(2)))) -> 0 | T14: =N14 -> 222 | U14: =COUNTIF(L7:L32,T14) -> 0 | V14: =U14/(W4-U10) -> 0 | W14: =IF(V14=0,0,(V14*((LOG(V14))/LOG(2)))) -> 0 | Y14: =N14 -> 222 | Z14: =COUNTIF(L33:L58,Y14) -> 0 | AA14: =Z14/(AB4-Z10) -> 0 | AB14: =IF(AA14=0,0,(AA14*((LOG(AA14))/LOG(2)))) -> 0 | AD14: =N14 -> 222 | AE14: =COUNTIF(L59:L84,AD14) -> 0 | AF14: =AE14/(AG4-AE10) -> 0 | AG14: =IF(AF14=0,0,(AF14*((LOG(AF14))/LOG(2)))) -> 0 | AI14: =N14 -> 222 | AJ14: =COUNTIF(L85:L110,AI14) -> 0 | AK14: =AJ14/(AL4-AJ10) -> 0 | AL14: =IF(AK14=0,0,(AK14*((LOG(AK14))/LOG(2)))) -> 0 | AN14: =N14 -> 222 | AO14: =COUNTIF(L111:L136,AN14) -> 0 | AP14: =AO14/(AQ4-AO10) -> 0 | AQ14: =IF(AP14=0,0,(AP14*((LOG(AP14))/LOG(2)))) -> 0 | AS14: =N14 -> 222 | AT14: =COUNTIF(L137:L162,AS14) -> 0 | AU14: =AT14/(AV4-AT10) -> 0 | AV14: =IF(AU14=0,0,(AU14*((LOG(AU14))/LOG(2)))) -> 0
A15: 11 | B15: 1299 | C15: 11 | D15: 1316 | E15: 12 | F15: 1330 | K15: 0 | L15: 111 | P15: =SUM(P7:P14) -> 1 | Q15: =-SUM(Q7:Q14) -> 0 | V15: =SUM(V7:V14) -> 1 | W15: =-SUM(W7:W14) -> 0 | AA15: =SUM(AA7:AA14) -> 1 | AB15: =-SUM(AB7:AB14) -> 0 | AF15: =SUM(AF7:AF14) -> 1 | AG15: =-SUM(AG7:AG14) -> 0 | AK15: =SUM(AK7:AK14) -> 1 | AL15: =-SUM(AL7:AL14) -> 0 | AP15: =SUM(AP7:AP14) -> 1 | AQ15: =-SUM(AQ7:AQ14) -> 0 | AU15: =SUM(AU7:AU14) -> 1 | AV15: =-SUM(AV7:AV14) -> 0
A16: 11 | B16: 1422 | C16: 11 | D16: 1443 | E16: 12 | F16: 1451 | K16: 0 | L16: 111 | P16: U= | Q16: =Q15/(LOG(Q4)/LOG(2)) -> 0 | V16: U1= | W16: =W15/(LOG(W4)/LOG(2)) -> 0 | AA16: U2= | AB16: =AB15/(LOG(AB4)/LOG(2)) -> 0 | AF16: U3= | AG16: =AG15/(LOG(AG4)/LOG(2)) -> 0 | AK16: U4= | AL16: =AL15/(LOG(AL4)/LOG(2)) -> 0 | AP16: U5= | AQ16: =AQ15/(LOG(AQ4)/LOG(2)) -> 0 | AU16: U6= | AV16: =AV15/(LOG(AV4)/LOG(2)) -> 0
A17: 11 | B17: 1552 | C17: 11 | D17: 1569 | E17: 12 | F17: 1577 | K17: 0 | L17: 111
A18: 11 | B18: 1678 | C18: 11 | D18: 1687 | E18: 12 | F18: 1703 | K18: 0 | L18: 111
A19: 11 | B19: 1802 | C19: 11 | D19: 1819 | E19: 12 | F19: 1836 | K19: 0 | L19: 111 | N19: Total Target Seq
A20: 11 | B20: 1958 | C20: 11 | D20: 1991 | E20: 12 | F20: 2011 | K20: 0 | L20: 111 | N20: =COUNTIF(L7:L162,G3) -> 0 | P20: 26 | Q20: 26 | R20: 26 | S20: 26 | T20: 26 | U20: 26
A21: 11 | B21: 2155 | C21: 11 | D21: 2162 | E21: 12 | F21: 2171 | K21: 0 | L21: 111 | P21: % of reinforcement given in 6 equal intervals based on number of trials
A22: 11 | B22: 2278 | C22: 11 | D22: 2283 | E22: 12 | F22: 2299 | K22: 0 | L22: 111 | P22: %_1 | Q22: %_2 | R22: %_3 | S22: %_4 | T22: %_5 | U22: %_6
A23: 11 | B23: 2411 | C23: 11 | D23: 2420 | E23: 12 | F23: 2428 | K23: 0 | L23: 111 | O23: target sequence | P23: =$G$3 -> 122 | Q23: =$G$3 -> 122 | R23: =$G$3 -> 122 | S23: =$G$3 -> 122 | T23: =$G$3 -> 122 | U23: =$G$3 -> 122
A24: 11 | B24: 2536 | C24: 11 | D24: 2566 | E24: 12 | F24: 2585 | K24: 0 | L24: 111 | O24: total reinforcement | P24: =U10 -> 0 | Q24: =Z10 -> 0 | R24: =AE10 -> 0 | S24: =AJ10 -> 0 | T24: =AO10 -> 0 | U24: =AT10 -> 0
A25: 11 | B25: 2731 | C25: 11 | D25: 2749 | E25: 12 | F25: 2775 | K25: 0 | L25: 111 | O25: % target
A26: 11 | B26: 2960 | C26: 11 | D26: 2966 | E26: 12 | F26: 2987 | K26: 0 | L26: 111 | O26: CCRF
A27: 11 | B27: 3105 | C27: 11 | D27: 3114 | E27: 12 | F27: 3134 | K27: 0 | L27: 111 | O27: % CCRf
A28: 11 | B28: 3258 | C28: 11 | D28: 3267 | E28: 12 | F28: 3276 | K28: 0 | L28: 111 | O28: average response rate | P28: =F32/P20 -> 149 | Q28: =(F58-F32)/Q20 -> 156.2307692 | R28: =(F84-F58)/R20 -> 154.4615385 | S28: =(F110-F84)/S20 -> 156 | T28: =(F136-F110)/T20 -> 150.9615385 | U28: =(F162-F136)/U20 -> -766.6538462
A29: 11 | B29: 3384 | C29: 11 | D29: 3395 | E29: 12 | F29: 3404 | K29: 0 | L29: 111
A30: 11 | B30: 3514 | C30: 11 | D30: 3523 | E30: 12 | F30: 3539 | K30: 0 | L30: 111
A31: 11 | B31: 3659 | C31: 11 | D31: 3685 | E31: 12 | F31: 3706 | K31: 0 | L31: 111
A32: 11 | B32: 3820 | C32: 11 | D32: 3856 | E32: 12 | F32: 3874 | K32: 0 | L32: 111
A33: 11 | B33: 4020 | C33: 11 | D33: 4028 | E33: 12 | F33: 4058 | K33: 0 | L33: 111
A34: 11 | B34: 4172 | C34: 11 | D34: 4179 | E34: 12 | F34: 4194 | K34: 0 | L34: 111
A35: 11 | B35: 4318 | C35: 11 | D35: 4326 | E35: 12 | F35: 4364 | K35: 0 | L35: 111
A36: 11 | B36: 4475 | C36: 11 | D36: 4494 | E36: 12 | F36: 4511 | K36: 0 | L36: 111
A37: 11 | B37: 4685 | C37: 11 | D37: 4693 | E37: 12 | F37: 4709 | K37: 0 | L37: 111
A38: 11 | B38: 4817 | C38: 11 | D38: 4827 | E38: 12 | F38: 4835 | K38: 0 | L38: 111
A39: 11 | B39: 4950 | C39: 11 | D39: 5005 | E39: 12 | F39: 5028 | K39: 0 | L39: 111
A40: 11 | B40: 5165 | C40: 11 | D40: 5180 | E40: 12 | F40: 5188 | K40: 0 | L40: 111
A41: 11 | B41: 5296 | C41: 11 | D41: 5305 | E41: 12 | F41: 5314 | K41: 0 | L41: 111
A42: 11 | B42: 5423 | C42: 11 | D42: 5437 | E42: 12 | F42: 5453 | K42: 0 | L42: 111
A43: 11 | B43: 5551 | C43: 11 | D43: 5560 | E43: 12 | F43: 5568 | K43: 0 | L43: 111
A44: 11 | B44: 5677 | C44: 11 | D44: 5697 | E44: 12 | F44: 5713 | K44: 0 | L44: 111
A45: 11 | B45: 5845 | C45: 11 | D45: 5854 | E45: 12 | F45: 5870 | K45: 0 | L45: 111
A46: 11 | B46: 5976 | C46: 11 | D46: 5985 | E46: 12 | F46: 6001 | K46: 0 | L46: 111
A47: 11 | B47: 6102 | C47: 11 | D47: 6134 | E47: 12 | F47: 6147 | K47: 0 | L47: 111
A48: 11 | B48: 6262 | C48: 11 | D48: 6271 | E48: 12 | F48: 6328 | K48: 0 | L48: 111
A49: 11 | B49: 6435 | C49: 11 | D49: 6446 | E49: 12 | F49: 6469 | K49: 0 | L49: 111
A50: 11 | B50: 6607 | C50: 11 | D50: 6614 | E50: 12 | F50: 6631 | K50: 0 | L50: 111
A51: 11 | B51: 6728 | C51: 11 | D51: 6758 | E51: 12 | F51: 6776 | K51: 0 | L51: 111
A52: 11 | B52: 6887 | C52: 11 | D52: 6896 | E52: 12 | F52: 6953 | K52: 0 | L52: 111
A53: 11 | B53: 7063 | C53: 11 | D53: 7088 | E53: 12 | F53: 7114 | K53: 0 | L53: 111
A54: 11 | B54: 7225 | C54: 11 | D54: 7241 | E54: 12 | F54: 7266 | K54: 0 | L54: 111
A55: 11 | B55: 7488 | C55: 11 | D55: 7496 | E55: 12 | F55: 7503 | K55: 0 | L55: 111
A56: 11 | B56: 7613 | C56: 11 | D56: 7629 | E56: 12 | F56: 7642 | K56: 0 | L56: 111
A57: 11 | B57: 7754 | C57: 11 | D57: 7767 | E57: 12 | F57: 7792 | K57: 0 | L57: 111
A58: 11 | B58: 7906 | C58: 11 | D58: 7923 | E58: 12 | F58: 7936 | K58: 0 | L58: 111
A59: 11 | B59: 8046 | C59: 11 | D59: 8074 | E59: 12 | F59: 8095 | K59: 0 | L59: 111
A60: 11 | B60: 8253 | C60: 11 | D60: 8260 | E60: 12 | F60: 8267 | K60: 0 | L60: 111
A61: 11 | B61: 8376 | C61: 11 | D61: 8391 | E61: 12 | F61: 8409 | K61: 0 | L61: 111
A62: 11 | B62: 8518 | C62: 11 | D62: 8525 | E62: 12 | F62: 8534 | K62: 0 | L62: 111
A63: 11 | B63: 8649 | C63: 11 | D63: 8663 | E63: 12 | F63: 8672 | K63: 0 | L63: 111
A64: 11 | B64: 8781 | C64: 11 | D64: 8825 | E64: 12 | F64: 8846 | K64: 0 | L64: 111
A65: 11 | B65: 8960 | C65: 11 | D65: 8984 | E65: 12 | F65: 8995 | K65: 0 | L65: 111
A66: 11 | B66: 9166 | C66: 11 | D66: 9174 | E66: 12 | F66: 9183 | K66: 0 | L66: 111
A67: 11 | B67: 9292 | C67: 11 | D67: 9304 | E67: 12 | F67: 9332 | K67: 0 | L67: 111
A68: 11 | B68: 9427 | C68: 11 | D68: 9454 | E68: 12 | F68: 9491 | K68: 0 | L68: 111
A69: 11 | B69: 9610 | C69: 11 | D69: 9619 | E69: 12 | F69: 9636 | K69: 0 | L69: 111
A70: 11 | B70: 9763 | C70: 11 | D70: 9787 | E70: 12 | F70: 9812 | K70: 0 | L70: 111
A71: 11 | B71: 9924 | C71: 11 | D71: 9958 | E71: 12 | F71: 9983 | K71: 0 | L71: 111
A72: 11 | B72: 10095 | C72: 11 | D72: 10119 | E72: 12 | F72: 10127 | K72: 0 | L72: 111
A73: 11 | B73: 10293 | C73: 11 | D73: 10308 | E73: 12 | F73: 10324 | K73: 0 | L73: 111
A74: 11 | B74: 10469 | C74: 11 | D74: 10476 | E74: 12 | F74: 10484 | K74: 0 | L74: 111
A75: 11 | B75: 10593 | C75: 11 | D75: 10600 | E75: 12 | F75: 10609 | K75: 0 | L75: 111
A76: 11 | B76: 10741 | C76: 11 | D76: 10751 | E76: 12 | F76: 10762 | K76: 0 | L76: 111
A77: 11 | B77: 10872 | C77: 11 | D77: 10885 | E77: 12 | F77: 10893 | K77: 0 | L77: 111
A78: 11 | B78: 11054 | C78: 11 | D78: 11067 | E78: 12 | F78: 11089 | K78: 0 | L78: 111
A79: 11 | B79: 11196 | C79: 11 | D79: 11205 | E79: 12 | F79: 11214 | K79: 0 | L79: 111
A80: 11 | B80: 11324 | C80: 11 | D80: 11341 | E80: 12 | F80: 11364 | K80: 0 | L80: 111
A81: 11 | B81: 11540 | C81: 11 | D81: 11548 | E81: 12 | F81: 11556 | K81: 0 | L81: 111
A82: 11 | B82: 11660 | C82: 11 | D82: 11665 | E82: 12 | F82: 11672 | K82: 0 | L82: 111
A83: 11 | B83: 11782 | C83: 11 | D83: 11797 | E83: 12 | F83: 11806 | K83: 0 | L83: 111
A84: 11 | B84: 11911 | C84: 11 | D84: 11931 | E84: 12 | F84: 11952 | K84: 0 | L84: 111
A85: 11 | B85: 12057 | C85: 11 | D85: 12073 | E85: 12 | F85: 12097 | K85: 0 | L85: 111
A86: 11 | B86: 12206 | C86: 11 | D86: 12258 | E86: 12 | F86: 12274 | K86: 0 | L86: 111
A87: 11 | B87: 12382 | C87: 11 | D87: 12395 | E87: 12 | F87: 12403 | K87: 0 | L87: 111
A88: 11 | B88: 12521 | C88: 11 | D88: 12539 | E88: 12 | F88: 12548 | K88: 0 | L88: 111
A89: 11 | B89: 12757 | C89: 11 | D89: 12765 | E89: 12 | F89: 12774 | K89: 0 | L89: 111
A90: 11 | B90: 12889 | C90: 11 | D90: 12908 | E90: 12 | F90: 12916 | K90: 0 | L90: 111
A91: 11 | B91: 13024 | C91: 11 | D91: 13036 | E91: 12 | F91: 13068 | K91: 0 | L91: 111
A92: 11 | B92: 13174 | C92: 11 | D92: 13195 | E92: 12 | F92: 13217 | K92: 0 | L92: 111
A93: 11 | B93: 13328 | C93: 11 | D93: 13343 | E93: 12 | F93: 13352 | K93: 0 | L93: 111
A94: 11 | B94: 13462 | C94: 11 | D94: 13477 | E94: 12 | F94: 13487 | K94: 0 | L94: 111
A95: 11 | B95: 13597 | C95: 11 | D95: 13606 | E95: 12 | F95: 13626 | K95: 0 | L95: 111
A96: 11 | B96: 13735 | C96: 11 | D96: 13748 | E96: 12 | F96: 13765 | K96: 0 | L96: 111
A97: 11 | B97: 13941 | C97: 11 | D97: 13953 | E97: 12 | F97: 13981 | K97: 0 | L97: 111
A98: 11 | B98: 14134 | C98: 11 | D98: 14142 | E98: 12 | F98: 14159 | K98: 0 | L98: 111
A99: 11 | B99: 14301 | C99: 11 | D99: 14306 | E99: 12 | F99: 14322 | K99: 0 | L99: 111
A100: 11 | B100: 14435 | C100: 11 | D100: 14444 | E100: 12 | F100: 14530 | K100: 0 | L100: 111
A101: 11 | B101: 14637 | C101: 11 | D101: 14645 | E101: 12 | F101: 14654 | K101: 0 | L101: 111
A102: 11 | B102: 14767 | C102: 11 | D102: 14790 | E102: 12 | F102: 14806 | K102: 0 | L102: 111
A103: 11 | B103: 14939 | C103: 11 | D103: 14956 | E103: 12 | F103: 14963 | K103: 0 | L103: 111
A104: 11 | B104: 15082 | C104: 11 | D104: 15092 | E104: 12 | F104: 15117 | K104: 0 | L104: 111
A105: 11 | B105: 15222 | C105: 11 | D105: 15229 | E105: 12 | F105: 15238 | K105: 0 | L105: 111
A106: 11 | B106: 15335 | C106: 11 | D106: 15348 | E106: 12 | F106: 15371 | K106: 0 | L106: 111
A107: 11 | B107: 15489 | C107: 11 | D107: 15506 | E107: 12 | F107: 15523 | K107: 0 | L107: 111
A108: 11 | B108: 15617 | C108: 11 | D108: 15623 | E108: 12 | F108: 15653 | K108: 0 | L108: 111
A109: 11 | B109: 15858 | C109: 11 | D109: 15865 | E109: 12 | F109: 15873 | K109: 0 | L109: 111
A110: 11 | B110: 15986 | C110: 11 | D110: 15993 | E110: 12 | F110: 16008 | K110: 0 | L110: 111
A111: 11 | B111: 16133 | C111: 11 | D111: 16146 | E111: 12 | F111: 16154 | K111: 0 | L111: 111
A112: 11 | B112: 16252 | C112: 11 | D112: 16267 | E112: 12 | F112: 16284 | K112: 0 | L112: 111
A113: 11 | B113: 16464 | C113: 11 | D113: 16472 | E113: 12 | F113: 16479 | K113: 0 | L113: 111
A114: 11 | B114: 16586 | C114: 11 | D114: 16594 | E114: 12 | F114: 16602 | K114: 0 | L114: 111
A115: 11 | B115: 16716 | C115: 11 | D115: 16734 | E115: 12 | F115: 16742 | K115: 0 | L115: 111
A116: 11 | B116: 16848 | C116: 11 | D116: 16855 | E116: 12 | F116: 16863 | K116: 0 | L116: 111
A117: 11 | B117: 16960 | C117: 11 | D117: 16981 | E117: 12 | F117: 16989 | K117: 0 | L117: 111
A118: 11 | B118: 17098 | C118: 11 | D118: 17115 | E118: 12 | F118: 17124 | K118: 0 | L118: 111
A119: 11 | B119: 17324 | C119: 11 | D119: 17335 | E119: 12 | F119: 17343 | K119: 0 | L119: 111
A120: 11 | B120: 17457 | C120: 11 | D120: 17479 | E120: 12 | F120: 17532 | K120: 0 | L120: 111
A121: 11 | B121: 17640 | C121: 11 | D121: 17648 | E121: 12 | F121: 17656 | K121: 0 | L121: 111
A122: 11 | B122: 17753 | C122: 11 | D122: 17769 | E122: 12 | F122: 17799 | K122: 0 | L122: 111
A123: 11 | B123: 17908 | C123: 11 | D123: 17916 | E123: 12 | F123: 17924 | K123: 0 | L123: 111
A124: 11 | B124: 18037 | C124: 11 | D124: 18043 | E124: 12 | F124: 18058 | K124: 0 | L124: 111
A125: 11 | B125: 18157 | C125: 11 | D125: 18170 | E125: 12 | F125: 18178 | K125: 0 | L125: 111
A126: 11 | B126: 18288 | C126: 11 | D126: 18296 | E126: 12 | F126: 18304 | K126: 0 | L126: 111
A127: 11 | B127: 18488 | C127: 11 | D127: 18505 | E127: 12 | F127: 18513 | K127: 0 | L127: 111
A128: 11 | B128: 18627 | C128: 11 | D128: 18651 | E128: 12 | F128: 18659 | K128: 0 | L128: 111
A129: 11 | B129: 18774 | C129: 11 | D129: 18812 | E129: 12 | F129: 18844 | K129: 0 | L129: 111
A130: 11 | B130: 18956 | C130: 11 | D130: 18967 | E130: 12 | F130: 18976 | K130: 0 | L130: 111
A131: 11 | B131: 19083 | C131: 11 | D131: 19108 | E131: 12 | F131: 19125 | K131: 0 | L131: 111
A132: 11 | B132: 19254 | C132: 11 | D132: 19262 | E132: 12 | F132: 19271 | K132: 0 | L132: 111
A133: 11 | B133: 19378 | C133: 11 | D133: 19386 | E133: 12 | F133: 19438 | K133: 0 | L133: 111
A134: 11 | B134: 19548 | C134: 11 | D134: 19556 | E134: 12 | F134: 19565 | K134: 0 | L134: 111
A135: 11 | B135: 19740 | C135: 11 | D135: 19757 | E135: 12 | F135: 19797 | K135: 0 | L135: 111
A136: 11 | B136: 19916 | C136: 11 | D136: 19924 | E136: 12 | F136: 19933 | K136: 0 | L136: 111
A137: 11 | B137: 20044 | C137: 11 | D137: 20052 | E137: 12 | F137: 20061 | K137: 0 | L137: 111
A138: 11 | B138: 20158 | C138: 11 | D138: 20171 | E138: 12 | F138: 20180 | K138: 0 | L138: 111
A139: 11 | B139: 20293 | C139: 11 | D139: 20308 | E139: 12 | F139: 20328 | K139: 0 | L139: 111
A140: 11 | B140: 20441 | C140: 11 | D140: 20461 | E140: 12 | F140: 20483 | K140: 0 | L140: 111
A141: 11 | B141: 20670 | C141: 11 | D141: 20678 | E141: 12 | F141: 20687 | K141: 0 | L141: 111
A142: 11 | B142: 20795 | C142: 11 | D142: 20806 | E142: 12 | F142: 20822 | K142: 0 | L142: 111
A143: 11 | B143: 20948 | C143: 11 | D143: 20964 | E143: 12 | F143: 20980 | K143: 0 | L143: 111
A144: 11 | B144: 21104 | C144: 11 | D144: 21126 | E144: 12 | F144: 21135 | K144: 0 | L144: 111
A145: 11 | B145: 21244 | C145: 11 | D145: 21262 | E145: 12 | F145: 21291 | K145: 0 | L145: 111
A146: 11 | B146: 21400 | C146: 11 | D146: 21411 | E146: 12 | F146: 21428 | K146: 0 | L146: 111
A147: 11 | B147: 21534 | C147: 11 | D147: 21552 | E147: 12 | F147: 21560 | K147: 0 | L147: 111
A148: 11 | B148: 21670 | C148: 11 | D148: 21692 | E148: 12 | F148: 21716 | K148: 0 | L148: 111
A149: 11 | B149: 21826 | C149: 11 | D149: 21834 | E149: 12 | F149: 21866 | K149: 0 | L149: 111
A150: 11 | B150: 21971 | C150: 11 | D150: 21998 | E150: 12 | F150: 22013 | K150: 0 | L150: 111
A151: 11 | B151: 22207 | C151: 11 | D151: 22216 | E151: 12 | F151: 22231 | K151: 0 | L151: 111
A152: 11 | B152: 22342 | C152: 11 | D152: 22380 | E152: 12 | F152: 22388 | K152: 0 | L152: 111
A153: 11 | B153: 22495 | C153: 11 | D153: 22502 | E153: 12 | F153: 22511 | K153: 0 | L153: 111
A154: 11 | B154: 22619 | C154: 11 | D154: 22636 | E154: 12 | F154: 22659 | K154: 0 | L154: 111
A155: 11 | B155: 22872 | C155: 11 | D155: 22891 | E155: 12 | F155: 22906 | K155: 0 | L155: 111
A156: 11 | B156: 23007 | C156: 11 | D156: 23011 | E156: 12 | F156: 23028 | K156: 0 | L156: 111
A157: 11 | B157: 23138 | C157: 11 | D157: 23158 | E157: 12 | F157: 23167 | K157: 0 | L157: 111
A158: 11 | B158: 23274 | C158: 11 | D158: 23284 | E158: 12 | F158: 23303 | K158: 0 | L158: 111
A159: 11 | B159: 23409 | C159: 11 | D159: 23424 | E159: 12 | F159: 23441 | K159: 0 | L159: 111
A160: 11 | B160: 23550 | C160: 11 | D160: 23573 | E160: 12 | F160: 23581 | K160: 0 | L160: 111
A161: 11 | B161: 23812 | C161: 11 | D161: 23851 | E161: 12 | F161: 23867 | K161: 0 | L161: 111
A162: 11 | B162: 23979 | C162: 11 | D162: 23995 | L162: 11

Sheet !M731B10.010
A1: Report for:!M731B10.010
A2: Date: | B2: <date>
A3: Hen: | B3: <hen> | F3: Correct Sequence | G3: =Start!J2 -> 122 | P3: Total Sequences in Data | Q3: =4994-COUNTBLANK(L7:L5000) -> 159 | V3: Total Sequences in Block Data | W3: =COUNTA(L7:L33) -> 27 | AA3: Total Sequences in Block Data | AB3: =COUNTA(L34:L59) -> 26 | AF3: Total Sequences in Block Data | AG3: =COUNTA(L60:L86) -> 27 | AK3: Total Sequences in Block Data | AL3: =COUNTA(L87:L112) -> 26 | AP3: Total Sequences in Block Data | AQ3: =COUNTA(L113:L139) -> 27 | AU3: Total Sequences in Block Data | AV3: =COUNTA(L140:L165) -> 26
P4: Total Sequences in Summary | Q4: =SUM(O7:O14) -> 159 | V4: Total Sequences in Block Summary | W4: =SUM(U7:U14) -> 27 | AA4: Total Sequences in Block Summary | AB4: =SUM(Z7:Z14) -> 26 | AF4: Total Sequences in Block Summary | AG4: =SUM(AE7:AE14) -> 27 | AK4: Total Sequences in Block Summary | AL4: =SUM(AJ7:AJ14) -> 26 | AP4: Total Sequences in Block Summary | AQ4: =SUM(AO7:AO14) -> 27 | AU4: Total Sequences in Block Summary | AV4: =SUM(AT7:AT14) -> 26
T5: Block 1 | Y5: Block 2 | AD5: Block 3 | AI5: Block 4 | AN5: Block 5 | AS5: Block 6
A6: Sequence Component 1 | B6: Time 1 | C6: Sequence Component 2 | D6: Time 2 | E6: Sequence Component 3 | F6: Time 3 | G6: Sequence Component 4 | H6: Time 4 | I6: Sequence Component 5 | J6: Time 5 | K6: Correct? 0=No 1=Yes | L6: Sequence | N6: Frequency | P6: Relative Frequency | Q6: Variability | T6: Frequency | V6: Relative Frequency | W6: Variability | Y6: Frequency | AA6: Relative Frequency | AB6: Variability | AD6: Frequency | AF6: Relative Frequency | AG6: Variability | AI6: Frequency | AK6: Relative Frequency | AL6: Variability | AN6: Frequency | AP6: Relative Frequency | AQ6: Variability | AS6: Frequency | AU6: Relative Frequency | AV6: Variability
A7: 11 | B7: 51 | C7: 11 | D7: 86 | E7: 12 | F7: 96 | K7: 0 | L7: 111 | N7: 111 | O7: =COUNTIF($L$7:$L$500,N7) -> 159 | P7: =O7/$Q$4 -> 1 | Q7: =IF(P7=0,0,(P7*((LOG(P7))/LOG(2)))) -> 0 | T7: =N7 -> 111 | U7: =COUNTIF(L7:L33,T7) -> 27 | V7: =U7/(W4-U10) -> 1 | W7: =IF(V7=0,0,(V7*((LOG(V7))/LOG(2)))) -> 0 | Y7: =N7 -> 111 | Z7: =COUNTIF(L34:L59,Y7) -> 26 | AA7: =Z7/(AB4-Z10) -> 1 | AB7: =IF(AA7=0,0,(AA7*((LOG(AA7))/LOG(2)))) -> 0 | AD7: =N7 -> 111 | AE7: =COUNTIF(L60:L86,AD7) -> 27 | AF7: =AE7/(AG4-AE10) -> 1 | AG7: =IF(AF7=0,0,(AF7*((LOG(AF7))/LOG(2)))) -> 0 | AI7: =N7 -> 111 | AJ7: =COUNTIF(L87:L112,AI7) -> 26 | AK7: =AJ7/(AL4-AJ10) -> 1 | AL7: =IF(AK7=0,0,(AK7*((LOG(AK7))/LOG(2)))) -> 0 | AN7: =N7 -> 111 | AO7: =COUNTIF(L113:L139,AN7) -> 27 | AP7: =AO7/(AQ4-AO10) -> 1 | AQ7: =IF(AP7=0,0,(AP7*((LOG(AP7))/LOG(2)))) -> 0 | AS7: =N7 -> 111 | AT7: =COUNTIF(L140:L165,AS7) -> 26 | AU7: =AT7/(AV4-AT10) -> 1 | AV7: =IF(AU7=0,0,(AU7*((LOG(AU7))/LOG(2)))) -> 0
A8: 11 | B8: 207 | C8: 11 | D8: 222 | E8: 12 | F8: 236 | K8: 0 | L8: 111 | N8: 112 | O8: =COUNTIF($L$7:$L$500,N8) -> 0 | P8: =O8/$Q$4 -> 0 | Q8: =IF(P8=0,0,(P8*((LOG(P8))/LOG(2)))) -> 0 | T8: =N8 -> 112 | U8: =COUNTIF(L7:L33,T8) -> 0 | V8: =U8/(W4-U10) -> 0 | W8: =IF(V8=0,0,(V8*((LOG(V8))/LOG(2)))) -> 0 | Y8: =N8 -> 112 | Z8: =COUNTIF(L34:L59,Y8) -> 0 | AA8: =Z8/(AB4-Z10) -> 0 | AB8: =IF(AA8=0,0,(AA8*((LOG(AA8))/LOG(2)))) -> 0 | AD8: =N8 -> 112 | AE8: =COUNTIF(L60:L86,AD8) -> 0 | AF8: =AE8/(AG4-AE10) -> 0 | AG8: =IF(AF8=0,0,(AF8*((LOG(AF8))/LOG(2)))) -> 0 | AI8: =N8 -> 112 | AJ8: =COUNTIF(L87:L112,AI8) -> 0 | AK8: =AJ8/(AL4-AJ10) -> 0 | AL8: =IF(AK8=0,0,(AK8*((LOG(AK8))/LOG(2)))) -> 0 | AN8: =N8 -> 112 | AO8: =COUNTIF(L113:L139,AN8) -> 0 | AP8: =AO8/(AQ4-AO10) -> 0 | AQ8: =IF(AP8=0,0,(AP8*((LOG(AP8))/LOG(2)))) -> 0 | AS8: =N8 -> 112 | AT8: =COUNTIF(L140:L165,AS8) -> 0 | AU8: =AT8/(AV4-AT10) -> 0 | AV8: =IF(AU8=0,0,(AU8*((LOG(AU8))/LOG(2)))) -> 0
A9: 11 | B9: 343 | C9: 11 | D9: 363 | E9: 12 | F9: 381 | K9: 0 | L9: 111 | N9: 121 | O9: =COUNTIF($L$7:$L$500,N9) -> 0 | P9: =O9/$Q$4 -> 0 | Q9: =IF(P9=0,0,(P9*((LOG(P9))/LOG(2)))) -> 0 | T9: =N9 -> 121 | U9: =COUNTIF(L7:L33,T9) -> 0 | V9: =U9/(W4-U10) -> 0 | W9: =IF(V9=0,0,(V9*((LOG(V9))/LOG(2)))) -> 0 | Y9: =N9 -> 121 | Z9: =COUNTIF(L34:L59,Y9) -> 0 | AA9: =Z9/(AB4-Z10) -> 0 | AB9: =IF(AA9=0,0,(AA9*((LOG(AA9))/LOG(2)))) -> 0 | AD9: =N9 -> 121 | AE9: =COUNTIF(L60:L86,AD9) -> 0 | AF9: =AE9/(AG4-AE10) -> 0 | AG9: =IF(AF9=0,0,(AF9*((LOG(AF9))/LOG(2)))) -> 0 | AI9: =N9 -> 121 | AJ9: =COUNTIF(L87:L112,AI9) -> 0 | AK9: =AJ9/(AL4-AJ10) -> 0 | AL9: =IF(AK9=0,0,(AK9*((LOG(AK9))/LOG(2)))) -> 0 | AN9: =N9 -> 121 | AO9: =COUNTIF(L113:L139,AN9) -> 0 | AP9: =AO9/(AQ4-AO10) -> 0 | AQ9: =IF(AP9=0,0,(AP9*((LOG(AP9))/LOG(2)))) -> 0 | AS9: =N9 -> 121 | AT9: =COUNTIF(L140:L165,AS9) -> 0 | AU9: =AT9/(AV4-AT10) -> 0 | AV9: =IF(AU9=0,0,(AU9*((LOG(AU9))/LOG(2)))) -> 0
A10: 11 | B10: 484 | C10: 11 | D10: 532 | E10: 12 | F10: 570 | K10: 0 | L10: 111 | N10: 122 | O10: =COUNTIF($L$7:$L$500,N10) -> 0 | P10: =O10/$Q$4 -> 0 | Q10: =IF(P10=0,0,(P10*((LOG(P10))/LOG(2)))) -> 0 | T10: =N10 -> 122 | U10: =COUNTIF(L7:L33,T10) -> 0 | Y10: =N10 -> 122 | Z10: =COUNTIF(L34:L59,Y10) -> 0 | AD10: =N10 -> 122 | AE10: =COUNTIF(L60:L86,AD10) -> 0 | AI10: =N10 -> 122 | AJ10: =COUNTIF(L87:L112,AI10) -> 0 | AN10: =N10 -> 122 | AO10: =COUNTIF(L113:L139,AN10) -> 0 | AS10: =N10 -> 122 | AT10: =COUNTIF(L140:L165,AS10) -> 0
A11: 11 | B11: 684 | C11: 11 | D11: 690 | E11: 12 | F11: 703 | K11: 0 | L11: 111 | N11: 211 | O11: =COUNTIF($L$7:$L$500,N11) -> 0 | P11: =O11/$Q$4 -> 0 | Q11: =IF(P11=0,0,(P11*((LOG(P11))/LOG(2)))) -> 0 | T11: =N11 -> 211 | U11: =COUNTIF(L7:L33,T11) -> 0 | V11: =U11/(W4-U10) -> 0 | W11: =IF(V11=0,0,(V11*((LOG(V11))/LOG(2)))) -> 0 | Y11: =N11 -> 211 | Z11: =COUNTIF(L34:L59,Y11) -> 0 | AA11: =Z11/(AB4-Z10) -> 0 | AB11: =IF(AA11=0,0,(AA11*((LOG(AA11))/LOG(2)))) -> 0 | AD11: =N11 -> 211 | AE11: =COUNTIF(L60:L86,AD11) -> 0 | AF11: =AE11/(AG4-AE10) -> 0 | AG11: =IF(AF11=0,0,(AF11*((LOG(AF11))/LOG(2)))) -> 0 | AI11: =N11 -> 211 | AJ11: =COUNTIF(L87:L112,AI11) -> 0 | AK11: =AJ11/(AL4-AJ10) -> 0 | AL11: =IF(AK11=0,0,(AK11*((LOG(AK11))/LOG(2)))) -> 0 | AN11: =N11 -> 211 | AO11: =COUNTIF(L113:L139,AN11) -> 0 | AP11: =AO11/(AQ4-AO10) -> 0 | AQ11: =IF(AP11=0,0,(AP11*((LOG(AP11))/LOG(2)))) -> 0 | AS11: =N11 -> 211 | AT11: =COUNTIF(L140:L165,AS11) -> 0 | AU11: =AT11/(AV4-AT10) -> 0 | AV11: =IF(AU11=0,0,(AU11*((LOG(AU11))/LOG(2)))) -> 0
A12: 11 | B12: 877 | C12: 11 | D12: 915 | E12: 12 | F12: 924 | K12: 0 | L12: 111 | N12: 212 | O12: =COUNTIF($L$7:$L$500,N12) -> 0 | P12: =O12/$Q$4 -> 0 | Q12: =IF(P12=0,0,(P12*((LOG(P12))/LOG(2)))) -> 0 | T12: =N12 -> 212 | U12: =COUNTIF(L7:L33,T12) -> 0 | V12: =U12/(W4-U10) -> 0 | W12: =IF(V12=0,0,(V12*((LOG(V12))/LOG(2)))) -> 0 | Y12: =N12 -> 212 | Z12: =COUNTIF(L34:L59,Y12) -> 0 | AA12: =Z12/(AB4-Z10) -> 0 | AB12: =IF(AA12=0,0,(AA12*((LOG(AA12))/LOG(2)))) -> 0 | AD12: =N12 -> 212 | AE12: =COUNTIF(L60:L86,AD12) -> 0 | AF12: =AE12/(AG4-AE10) -> 0 | AG12: =IF(AF12=0,0,(AF12*((LOG(AF12))/LOG(2)))) -> 0 | AI12: =N12 -> 212 | AJ12: =COUNTIF(L87:L112,AI12) -> 0 | AK12: =AJ12/(AL4-AJ10) -> 0 | AL12: =IF(AK12=0,0,(AK12*((LOG(AK12))/LOG(2)))) -> 0 | AN12: =N12 -> 212 | AO12: =COUNTIF(L113:L139,AN12) -> 0 | AP12: =AO12/(AQ4-AO10) -> 0 | AQ12: =IF(AP12=0,0,(AP12*((LOG(AP12))/LOG(2)))) -> 0 | AS12: =N12 -> 212 | AT12: =COUNTIF(L140:L165,AS12) -> 0 | AU12: =AT12/(AV4-AT10) -> 0 | AV12: =IF(AU12=0,0,(AU12*((LOG(AU12))/LOG(2)))) -> 0
A13: 11 | B13: 1094 | C13: 11 | D13: 1119 | E13: 12 | F13: 1128 | K13: 0 | L13: 111 | N13: 221 | O13: =COUNTIF($L$7:$L$500,N13) -> 0 | P13: =O13/$Q$4 -> 0 | Q13: =IF(P13=0,0,(P13*((LOG(P13))/LOG(2)))) -> 0 | T13: =N13 -> 221 | U13: =COUNTIF(L7:L33,T13) -> 0 | V13: =U13/(W4-U10) -> 0 | W13: =IF(V13=0,0,(V13*((LOG(V13))/LOG(2)))) -> 0 | Y13: =N13 -> 221 | Z13: =COUNTIF(L34:L59,Y13) -> 0 | AA13: =Z13/(AB4-Z10) -> 0 | AB13: =IF(AA13=0,0,(AA13*((LOG(AA13))/LOG(2)))) -> 0 | AD13: =N13 -> 221 | AE13: =COUNTIF(L60:L86,AD13) -> 0 | AF13: =AE13/(AG4-AE10) -> 0 | AG13: =IF(AF13=0,0,(AF13*((LOG(AF13))/LOG(2)))) -> 0 | AI13: =N13 -> 221 | AJ13: =COUNTIF(L87:L112,AI13) -> 0 | AK13: =AJ13/(AL4-AJ10) -> 0 | AL13: =IF(AK13=0,0,(AK13*((LOG(AK13))/LOG(2)))) -> 0 | AN13: =N13 -> 221 | AO13: =COUNTIF(L113:L139,AN13) -> 0 | AP13: =AO13/(AQ4-AO10) -> 0 | AQ13: =IF(AP13=0,0,(AP13*((LOG(AP13))/LOG(2)))) -> 0 | AS13: =N13 -> 221 | AT13: =COUNTIF(L140:L165,AS13) -> 0 | AU13: =AT13/(AV4-AT10) -> 0 | AV13: =IF(AU13=0,0,(AU13*((LOG(AU13))/LOG(2)))) -> 0
A14: 11 | B14: 1249 | C14: 11 | D14: 1255 | E14: 12 | F14: 1262 | K14: 0 | L14: 111 | N14: 222 | O14: =COUNTIF($L$7:$L$500,N14) -> 0 | P14: =O14/$Q$4 -> 0 | Q14: =IF(P14=0,0,(P14*((LOG(P14))/LOG(2)))) -> 0 | T14: =N14 -> 222 | U14: =COUNTIF(L7:L33,T14) -> 0 | V14: =U14/(W4-U10) -> 0 | W14: =IF(V14=0,0,(V14*((LOG(V14))/LOG(2)))) -> 0 | Y14: =N14 -> 222 | Z14: =COUNTIF(L34:L59,Y14) -> 0 | AA14: =Z14/(AB4-Z10) -> 0 | AB14: =IF(AA14=0,0,(AA14*((LOG(AA14))/LOG(2)))) -> 0 | AD14: =N14 -> 222 | AE14: =COUNTIF(L60:L86,AD14) -> 0 | AF14: =AE14/(AG4-AE10) -> 0 | AG14: =IF(AF14=0,0,(AF14*((LOG(AF14))/LOG(2)))) -> 0 | AI14: =N14 -> 222 | AJ14: =COUNTIF(L87:L112,AI14) -> 0 | AK14: =AJ14/(AL4-AJ10) -> 0 | AL14: =IF(AK14=0,0,(AK14*((LOG(AK14))/LOG(2)))) -> 0 | AN14: =N14 -> 222 | AO14: =COUNTIF(L113:L139,AN14) -> 0 | AP14: =AO14/(AQ4-AO10) -> 0 | AQ14: =IF(AP14=0,0,(AP14*((LOG(AP14))/LOG(2)))) -> 0 | AS14: =N14 -> 222 | AT14: =COUNTIF(L140:L165,AS14) -> 0 | AU14: =AT14/(AV4-AT10) -> 0 | AV14: =IF(AU14=0,0,(AU14*((LOG(AU14))/LOG(2)))) -> 0
A15: 11 | B15: 1357 | C15: 11 | D15: 1366 | E15: 12 | F15: 1375 | K15: 0 | L15: 111 | P15: =SUM(P7:P14) -> 1 | Q15: =-SUM(Q7:Q14) -> 0 | V15: =SUM(V7:V14) -> 1 | W15: =-SUM(W7:W14) -> 0 | AA15: =SUM(AA7:AA14) -> 1 | AB15: =-SUM(AB7:AB14) -> 0 | AF15: =SUM(AF7:AF14) -> 1 | AG15: =-SUM(AG7:AG14) -> 0 | AK15: =SUM(AK7:AK14) -> 1 | AL15: =-SUM(AL7:AL14) -> 0 | AP15: =SUM(AP7:AP14) -> 1 | AQ15: =-SUM(AQ7:AQ14) -> 0 | AU15: =SUM(AU7:AU14) -> 1 | AV15: =-SUM(AV7:AV14) -> 0
A16: 11 | B16: 1517 | C16: 11 | D16: 1543 | E16: 12 | F16: 1561 | K16: 0 | L16: 111 | P16: U= | Q16: =Q15/(LOG(Q4)/LOG(2)) -> 0 | V16: U1= | W16: =W15/(LOG(W4)/LOG(2)) -> 0 | AA16: U2= | AB16: =AB15/(LOG(AB4)/LOG(2)) -> 0 | AF16: U3= | AG16: =AG15/(LOG(AG4)/LOG(2)) -> 0 | AK16: U4= | AL16: =AL15/(LOG(AL4)/LOG(2)) -> 0 | AP16: U5= | AQ16: =AQ15/(LOG(AQ4)/LOG(2)) -> 0 | AU16: U6= | AV16: =AV15/(LOG(AV4)/LOG(2)) -> 0
A17: 11 | B17: 1681 | C17: 11 | D17: 1698 | E17: 12 | F17: 1708 | K17: 0 | L17: 111
A18: 11 | B18: 1819 | C18: 11 | D18: 1833 | E18: 12 | F18: 1849 | K18: 0 | L18: 111
A19: 11 | B19: 1964 | C19: 11 | D19: 1978 | E19: 12 | F19: 1987 | K19: 0 | L19: 111 | N19: Total Target Seq
A20: 11 | B20: 2161 | C20: 11 | D20: 2170 | E20: 12 | F20: 2197 | K20: 0 | L20: 111 | N20: =COUNTIF(L7:L165,G3) -> 0 | P20: 27 | Q20: 26 | R20: 27 | S20: 26 | T20: 27 | U20: 26
A21: 11 | B21: 2318 | C21: 11 | D21: 2335 | E21: 12 | F21: 2342 | K21: 0 | L21: 111 | P21: % of reinforcement given in 6 equal intervals based on number of trials
A22: 11 | B22: 2452 | C22: 11 | D22: 2457 | E22: 12 | F22: 2465 | K22: 0 | L22: 111 | P22: %_1 | Q22: %_2 | R22: %_3 | S22: %_4 | T22: %_5 | U22: %_6
A23: 11 | B23: 2582 | C23: 11 | D23: 2599 | E23: 12 | F23: 2608 | K23: 0 | L23: 111 | O23: target sequence | P23: =$G$3 -> 122 | Q23: =$G$3 -> 122 | R23: =$G$3 -> 122 | S23: =$G$3 -> 122 | T23: =$G$3 -> 122 | U23: =$G$3 -> 122
A24: 11 | B24: 2720 | C24: 11 | D24: 2734 | E24: 12 | F24: 2742 | K24: 0 | L24: 111 | O24: total reinforcement | P24: =U10 -> 0 | Q24: =Z10 -> 0 | R24: =AE10 -> 0 | S24: =AJ10 -> 0 | T24: =AO10 -> 0 | U24: =AT10 -> 0
A25: 11 | B25: 2906 | C25: 11 | D25: 2933 | E25: 12 | F25: 2946 | K25: 0 | L25: 111 | O25: % target
A26: 11 | B26: 3079 | C26: 11 | D26: 3088 | E26: 12 | F26: 3096 | K26: 0 | L26: 111 | O26: CCRF
A27: 11 | B27: 3222 | C27: 11 | D27: 3232 | E27: 12 | F27: 3240 | K27: 0 | L27: 111 | O27: % CCRf
A28: 11 | B28: 3425 | C28: 11 | D28: 3437 | E28: 12 | F28: 3451 | K28: 0 | L28: 111 | O28: average response rate | P28: =F33/P20 -> 155.4444444 | Q28: =(F59-F33)/Q20 -> 148.9615385 | R28: =(F86-F59)/R20 -> 151.7037037 | S28: =(F112-F86)/S20 -> 149.2307692 | T28: =(F139-F112)/T20 -> 149.5925926 | U28: =(F165-F139)/U20 -> 148.9615385
A29: 11 | B29: 3641 | C29: 11 | D29: 3650 | E29: 12 | F29: 3657 | K29: 0 | L29: 111
A30: 11 | B30: 3778 | C30: 11 | D30: 3787 | E30: 12 | F30: 3794 | K30: 0 | L30: 111
A31: 11 | B31: 3910 | C31: 11 | D31: 3918 | E31: 12 | F31: 3926 | K31: 0 | L31: 111
A32: 11 | B32: 4037 | C32: 11 | D32: 4046 | E32: 12 | F32: 4054 | K32: 0 | L32: 111
A33: 11 | B33: 4164 | C33: 11 | D33: 4180 | E33: 12 | F33: 4197 | K33: 0 | L33: 111
A34: 11 | B34: 4316 | C34: 11 | D34: 4336 | E34: 12 | F34: 4352 | K34: 0 | L34: 111
A35: 11 | B35: 4530 | C35: 11 | D35: 4535 | E35: 12 | F35: 4541 | K35: 0 | L35: 111
A36: 11 | B36: 4648 | C36: 11 | D36: 4653 | E36: 12 | F36: 4661 | K36: 0 | L36: 111
A37: 11 | B37: 4769 | C37: 11 | D37: 4777 | E37: 12 | F37: 4793 | K37: 0 | L37: 111
A38: 11 | B38: 4906 | C38: 11 | D38: 4941 | E38: 12 | F38: 4949 | K38: 0 | L38: 111
A39: 11 | B39: 5200 | C39: 11 | D39: 5208 | E39: 12 | F39: 5216 | K39: 0 | L39: 111
A40: 11 | B40: 5327 | C40: 11 | D40: 5332 | E40: 12 | F40: 5345 | K40: 0 | L40: 111
A41: 11 | B41: 5450 | C41: 11 | D41: 5462 | E41: 12 | F41: 5470 | K41: 0 | L41: 111
A42: 11 | B42: 5585 | C42: 11 | D42: 5602 | E42: 12 | F42: 5632 | K42: 0 | L42: 111
A43: 11 | B43: 5736 | C43: 11 | D43: 5758 | E43: 12 | F43: 5767 | K43: 0 | L43: 111
A44: 11 | B44: 5876 | C44: 11 | D44: 5882 | E44: 12 | F44: 5890 | K44: 0 | L44: 111
A45: 11 | B45: 5998 | C45: 11 | D45: 6003 | E45: 12 | F45: 6011 | K45: 0 | L45: 111
A46: 11 | B46: 6119 | C46: 11 | D46: 6153 | E46: 12 | F46: 6183 | K46: 0 | L46: 111
A47: 11 | B47: 6371 | C47: 11 | D47: 6380 | E47: 12 | F47: 6388 | K47: 0 | L47: 111
A48: 11 | B48: 6498 | C48: 11 | D48: 6507 | E48: 12 | F48: 6514 | K48: 0 | L48: 111
A49: 11 | B49: 6627 | C49: 11 | D49: 6634 | E49: 12 | F49: 6643 | K49: 0 | L49: 111
A50: 11 | B50: 6752 | C50: 11 | D50: 6763 | E50: 12 | F50: 6780 | K50: 0 | L50: 111
A51: 11 | B51: 6890 | C51: 11 | D51: 6896 | E51: 12 | F51: 6911 | K51: 0 | L51: 111
A52: 11 | B52: 7019 | C52: 11 | D52: 7030 | E52: 12 | F52: 7038 | K52: 0 | L52: 111
A53: 11 | B53: 7149 | C53: 11 | D53: 7167 | E53: 12 | F53: 7175 | K53: 0 | L53: 111
A54: 11 | B54: 7354 | C54: 11 | D54: 7368 | E54: 12 | F54: 7376 | K54: 0 | L54: 111
A55: 11 | B55: 7491 | C55: 11 | D55: 7499 | E55: 12 | F55: 7507 | K55: 0 | L55: 111
A56: 11 | B56: 7620 | C56: 11 | D56: 7625 | E56: 12 | F56: 7650 | K56: 0 | L56: 111
A57: 11 | B57: 7769 | C57: 11 | D57: 7792 | E57: 12 | F57: 7804 | K57: 0 | L57: 111
A58: 11 | B58: 7910 | C58: 11 | D58: 7919 | E58: 12 | F58: 7935 | K58: 0 | L58: 111
A59: 11 | B59: 8041 | C59: 11 | D59: 8046 | E59: 12 | F59: 8070 | K59: 0 | L59: 111
A60: 11 | B60: 8179 | C60: 11 | D60: 8187 | E60: 12 | F60: 8209 | K60: 0 | L60: 111
A61: 11 | B61: 8316 | C61: 11 | D61: 8324 | E61: 12 | F61: 8333 | K61: 0 | L61: 111
A62: 11 | B62: 8426 | C62: 11 | D62: 8447 | E62: 12 | F62: 8454 | K62: 0 | L62: 111
A63: 11 | B63: 8566 | C63: 11 | D63: 8582 | E63: 12 | F63: 8654 | K63: 0 | L63: 111
A64: 11 | B64: 8818 | C64: 11 | D64: 8839 | E64: 12 | F64: 8862 | K64: 0 | L64: 111
A65: 11 | B65: 8974 | C65: 11 | D65: 8984 | E65: 12 | F65: 9001 | K65: 0 | L65: 111
A66: 11 | B66: 9113 | C66: 11 | D66: 9127 | E66: 12 | F66: 9139 | K66: 0 | L66: 111
A67: 11 | B67: 9252 | C67: 11 | D67: 9292 | E67: 12 | F67: 9309 | K67: 0 | L67: 111
A68: 11 | B68: 9419 | C68: 11 | D68: 9427 | E68: 12 | F68: 9436 | K68: 0 | L68: 111
A69: 11 | B69: 9538 | C69: 11 | D69: 9556 | E69: 12 | F69: 9563 | K69: 0 | L69: 111
A70: 11 | B70: 9676 | C70: 11 | D70: 9685 | E70: 12 | F70: 9703 | K70: 0 | L70: 111
A71: 11 | B71: 9813 | C71: 11 | D71: 9839 | E71: 12 | F71: 9876 | K71: 0 | L71: 111
A72: 11 | B72: 9991 | C72: 11 | D72: 10001 | E72: 12 | F72: 10017 | K72: 0 | L72: 111
A73: 11 | B73: 10125 | C73: 11 | D73: 10132 | E73: 12 | F73: 10141 | K73: 0 | L73: 111
A74: 11 | B74: 10248 | C74: 11 | D74: 10289 | E74: 12 | F74: 10299 | K74: 0 | L74: 111
A75: 11 | B75: 10411 | C75: 11 | D75: 10428 | E75: 12 | F75: 10446 | K75: 0 | L75: 111
A76: 11 | B76: 10660 | C76: 11 | D76: 10670 | E76: 12 | F76: 10679 | K76: 0 | L76: 111
A77: 11 | B77: 10778 | C77: 11 | D77: 10793 | E77: 12 | F77: 10800 | K77: 0 | L77: 111
A78: 11 | B78: 10907 | C78: 11 | D78: 10916 | E78: 12 | F78: 10924 | K78: 0 | L78: 111
A79: 11 | B79: 11033 | C79: 11 | D79: 11040 | E79: 12 | F79: 11049 | K79: 0 | L79: 111
A80: 11 | B80: 11155 | C80: 11 | D80: 11166 | E80: 12 | F80: 11175 | K80: 0 | L80: 111
A81: 11 | B81: 11369 | C81: 11 | D81: 11381 | E81: 12 | F81: 11406 | K81: 0 | L81: 111
A82: 11 | B82: 11514 | C82: 11 | D82: 11522 | E82: 12 | F82: 11537 | K82: 0 | L82: 111
A83: 11 | B83: 11659 | C83: 11 | D83: 11668 | E83: 12 | F83: 11677 | K83: 0 | L83: 111
A84: 11 | B84: 11856 | C84: 11 | D84: 11869 | E84: 12 | F84: 11884 | K84: 0 | L84: 111
A85: 11 | B85: 11990 | C85: 11 | D85: 12009 | E85: 12 | F85: 12018 | K85: 0 | L85: 111
A86: 11 | B86: 12129 | C86: 11 | D86: 12149 | E86: 12 | F86: 12166 | K86: 0 | L86: 111
A87: 11 | B87: 12352 | C87: 11 | D87: 12364 | E87: 12 | F87: 12373 | K87: 0 | L87: 111
A88: 11 | B88: 12487 | C88: 11 | D88: 12494 | E88: 12 | F88: 12502 | K88: 0 | L88: 111
A89: 11 | B89: 12614 | C89: 11 | D89: 12640 | E89: 12 | F89: 12648 | K89: 0 | L89: 111
A90: 11 | B90: 12754 | C90: 11 | D90: 12759 | E90: 12 | F90: 12791 | K90: 0 | L90: 111
A91: 11 | B91: 12961 | C91: 11 | D91: 12971 | E91: 12 | F91: 12979 | K91: 0 | L91: 111
A92: 11 | B92: 13091 | C92: 11 | D92: 13102 | E92: 12 | F92: 13110 | K92: 0 | L92: 111
A93: 11 | B93: 13208 | C93: 11 | D93: 13216 | E93: 12 | F93: 13230 | K93: 0 | L93: 111
A94: 11 | B94: 13334 | C94: 11 | D94: 13340 | E94: 12 | F94: 13348 | K94: 0 | L94: 111
A95: 11 | B95: 13446 | C95: 11 | D95: 13453 | E95: 12 | F95: 13466 | K95: 0 | L95: 111
A96: 11 | B96: 13572 | C96: 11 | D96: 13580 | E96: 12 | F96: 13597 | K96: 0 | L96: 111
A97: 11 | B97: 13806 | C97: 11 | D97: 13814 | E97: 12 | F97: 13829 | K97: 0 | L97: 111
A98: 11 | B98: 13935 | C98: 11 | D98: 13951 | E98: 12 | F98: 13959 | K98: 0 | L98: 111
A99: 11 | B99: 14067 | C99: 11 | D99: 14074 | E99: 12 | F99: 14079 | K99: 0 | L99: 111
A100: 11 | B100: 14184 | C100: 11 | D100: 14189 | E100: 12 | F100: 14196 | K100: 0 | L100: 111
A101: 11 | B101: 14308 | C101: 11 | D101: 14316 | E101: 12 | F101: 14366 | K101: 0 | L101: 111
A102: 11 | B102: 14476 | C102: 11 | D102: 14481 | E102: 12 | F102: 14489 | K102: 0 | L102: 111
A103: 11 | B103: 14594 | C103: 11 | D103: 14598 | E103: 12 | F103: 14606 | K103: 0 | L103: 111
A104: 11 | B104: 14719 | C104: 11 | D104: 14724 | E104: 12 | F104: 14732 | K104: 0 | L104: 111
A105: 11 | B105: 14929 | C105: 11 | D105: 14942 | E105: 12 | F105: 14963 | K105: 0 | L105: 111
A106: 11 | B106: 15095 | C106: 11 | D106: 15123 | E106: 12 | F106: 15132 | K106: 0 | L106: 111
A107: 11 | B107: 15307 | C107: 11 | D107: 15313 | E107: 12 | F107: 15321 | K107: 0 | L107: 111
A108: 11 | B108: 15443 | C108: 11 | D108: 15450 | E108: 12 | F108: 15459 | K108: 0 | L108: 111
A109: 11 | B109: 15630 | C109: 11 | D109: 15636 | E109: 12 | F109: 15643 | K109: 0 | L109: 111
A110: 11 | B110: 15749 | C110: 11 | D110: 15758 | E110: 12 | F110: 15783 | K110: 0 | L110: 111
A111: 11 | B111: 15909 | C111: 11 | D111: 15916 | E111: 12 | F111: 15925 | K111: 0 | L111: 111
A112: 11 | B112: 16033 | C112: 11 | D112: 16038 | E112: 12 | F112: 16046 | K112: 0 | L112: 111
A113: 11 | B113: 16165 | C113: 11 | D113: 16173 | E113: 12 | F113: 16189 | K113: 0 | L113: 111
A114: 11 | B114: 16329 | C114: 11 | D114: 16352 | E114: 12 | F114: 16360 | K114: 0 | L114: 111
A115: 11 | B115: 16571 | C115: 11 | D115: 16587 | E115: 12 | F115: 16594 | K115: 0 | L115: 111
A116: 11 | B116: 16704 | C116: 11 | D116: 16711 | E116: 12 | F116: 16719 | K116: 0 | L116: 111
A117: 11 | B117: 16836 | C117: 11 | D117: 16843 | E117: 12 | F117: 16854 | K117: 0 | L117: 111
A118: 11 | B118: 16961 | C118: 11 | D118: 16987 | E118: 12 | F118: 16996 | K118: 0 | L118: 111
A119: 11 | B119: 17176 | C119: 11 | D119: 17188 | E119: 12 | F119: 17197 | K119: 0 | L119: 111
A120: 11 | B120: 17307 | C120: 11 | D120: 17315 | E120: 12 | F120: 17329 | K120: 0 | L120: 111
A121: 11 | B121: 17451 | C121: 11 | D121: 17459 | E121: 12 | F121: 17474 | K121: 0 | L121: 111
A122: 11 | B122: 17591 | C122: 11 | D122: 17602 | E122: 12 | F122: 17611 | K122: 0 | L122: 111
A123: 11 | B123: 17718 | C123: 11 | D123: 17727 | E123: 12 | F123: 17742 | K123: 0 | L123: 111
A124: 11 | B124: 17840 | C124: 11 | D124: 17849 | E124: 12 | F124: 17860 | K124: 0 | L124: 111
A125: 11 | B125: 18048 | C125: 11 | D125: 18057 | E125: 12 | F125: 18066 | K125: 0 | L125: 111
A126: 11 | B126: 18179 | C126: 11 | D126: 18186 | E126: 12 | F126: 18194 | K126: 0 | L126: 111
A127: 11 | B127: 18298 | C127: 11 | D127: 18305 | E127: 12 | F127: 18321 | K127: 0 | L127: 111
A128: 11 | B128: 18426 | C128: 11 | D128: 18433 | E128: 12 | F128: 18441 | K128: 0 | L128: 111
A129: 11 | B129: 18551 | C129: 11 | D129: 18559 | E129: 12 | F129: 18575 | K129: 0 | L129: 111
A130: 11 | B130: 18722 | C130: 11 | D130: 18743 | E130: 12 | F130: 18783 | K130: 0 | L130: 111
A131: 11 | B131: 18894 | C131: 11 | D131: 18915 | E131: 12 | F131: 18948 | K131: 0 | L131: 111
A132: 11 | B132: 19072 | C132: 11 | D132: 19080 | E132: 12 | F132: 19096 | K132: 0 | L132: 111
A133: 11 | B133: 19203 | C133: 11 | D133: 19219 | E133: 12 | F133: 19228 | K133: 0 | L133: 111
A134: 11 | B134: 19331 | C134: 11 | D134: 19363 | E134: 12 | F134: 19372 | K134: 0 | L134: 111
A135: 11 | B135: 19573 | C135: 11 | D135: 19581 | E135: 12 | F135: 19589 | K135: 0 | L135: 111
A136: 11 | B136: 19687 | C136: 11 | D136: 19696 | E136: 12 | F136: 19707 | K136: 0 | L136: 111
A137: 11 | B137: 19813 | C137: 11 | D137: 19820 | E137: 12 | F137: 19829 | K137: 0 | L137: 111
A138: 11 | B138: 19933 | C138: 11 | D138: 19939 | E138: 12 | F138: 19962 | K138: 0 | L138: 111
A139: 11 | B139: 20069 | C139: 11 | D139: 20077 | E139: 12 | F139: 20085 | K139: 0 | L139: 111
A140: 11 | B140: 20193 | C140: 11 | D140: 20200 | E140: 12 | F140: 20216 | K140: 0 | L140: 111
A141: 11 | B141: 20322 | C141: 11 | D141: 20329 | E141: 12 | F141: 20357 | K141: 0 | L141: 111
A142: 11 | B142: 20464 | C142: 11 | D142: 20469 | E142: 12 | F142: 20477 | K142: 0 | L142: 111
A143: 11 | B143: 20662 | C143: 11 | D143: 20671 | E143: 12 | F143: 20687 | K143: 0 | L143: 111
A144: 11 | B144: 20794 | C144: 11 | D144: 20799 | E144: 12 | F144: 20806 | K144: 0 | L144: 111
A145: 11 | B145: 20921 | C145: 11 | D145: 20931 | E145: 12 | F145: 20940 | K145: 0 | L145: 111
A146: 11 | B146: 21046 | C146: 11 | D146: 21054 | E146: 12 | F146: 21062 | K146: 0 | L146: 111
A147: 11 | B147: 21171 | C147: 11 | D147: 21195 | E147: 12 | F147: 21210 | K147: 0 | L147: 111
A148: 11 | B148: 21330 | C148: 11 | D148: 21337 | E148: 12 | F148: 21345 | K148: 0 | L148: 111
A149: 11 | B149: 21457 | C149: 11 | D149: 21464 | E149: 12 | F149: 21473 | K149: 0 | L149: 111
A150: 11 | B150: 21581 | C150: 11 | D150: 21586 | E150: 12 | F150: 21609 | K150: 0 | L150: 111
A151: 11 | B151: 21815 | C151: 11 | D151: 21823 | E151: 12 | F151: 21830 | K151: 0 | L151: 111
A152: 11 | B152: 21943 | C152: 11 | D152: 21951 | E152: 12 | F152: 21960 | K152: 0 | L152: 111
A153: 11 | B153: 22075 | C153: 11 | D153: 22083 | E153: 12 | F153: 22110 | K153: 0 | L153: 111
A154: 11 | B154: 22214 | C154: 11 | D154: 22223 | E154: 12 | F154: 22257 | K154: 0 | L154: 111
A155: 11 | B155: 22391 | C155: 11 | D155: 22408 | E155: 12 | F155: 22416 | K155: 0 | L155: 111
A156: 11 | B156: 22525 | C156: 11 | D156: 22533 | E156: 12 | F156: 22541 | K156: 0 | L156: 111
A157: 11 | B157: 22656 | C157: 11 | D157: 22671 | E157: 12 | F157: 22687 | K157: 0 | L157: 111
A158: 11 | B158: 22795 | C158: 11 | D158: 22800 | E158: 12 | F158: 22816 | K158: 0 | L158: 111
A159: 11 | B159: 23018 | C159: 11 | D159: 23026 | E159: 12 | F159: 23047 | K159: 0 | L159: 111
A160: 11 | B160: 23231 | C160: 11 | D160: 23236 | E160: 12 | F160: 23243 | K160: 0 | L160: 111
A161: 11 | B161: 23363 | C161: 11 | D161: 23370 | E161: 12 | F161: 23395 | K161: 0 | L161: 111
A162: 11 | B162: 23508 | C162: 11 | D162: 23516 | E162: 12 | F162: 23525 | K162: 0 | L162: 111
A163: 11 | B163: 23661 | C163: 11 | D163: 23671 | E163: 12 | F163: 23679 | K163: 0 | L163: 111
A164: 11 | B164: 23794 | C164: 11 | D164: 23803 | E164: 12 | F164: 23820 | K164: 0 | L164: 111
A165: 11 | B165: 23931 | C165: 11 | D165: 23942 | E165: 12 | F165: 23958 | L165: 111

Sheet !M801C10.010
A1: Report for:!M801C10.010
A2: Date: | B2: <date>
A3: Hen: | B3: <hen> | F3: Correct Sequence | G3: =Start!J2 -> 122 | P3: Total Sequences in Data | Q3: =4994-COUNTBLANK(L7:L5000) -> 154 | V3: Total Sequences in Block Data | W3: =COUNTA(L7:L32) -> 26 | AA3: Total Sequences in Block Data | AB3: =COUNTA(L33:L57) -> 25 | AF3: Total Sequences in Block Data | AG3: =COUNTA(L58:L83) -> 26 | AK3: Total Sequences in Block Data | AL3: =COUNTA(L84:L109) -> 26 | AP3: Total Sequences in Block Data | AQ3: =COUNTA(L110:L134) -> 25 | AU3: Total Sequences in Block Data | AV3: =COUNTA(L135:L160) -> 26
P4: Total Sequences in Summary | Q4: =SUM(O7:O14) -> 154 | V4: Total Sequences in Block Summary | W4: =SUM(U7:U14) -> 26 | AA4: Total Sequences in Block Summary | AB4: =SUM(Z7:Z14) -> 25 | AF4: Total Sequences in Block Summary | AG4: =SUM(AE7:AE14) -> 26 | AK4: Total Sequences in Block Summary | AL4: =SUM(AJ7:AJ14) -> 26 | AP4: Total Sequences in Block Summary | AQ4: =SUM(AO7:AO14) -> 25 | AU4: Total Sequences in Block Summary | AV4: =SUM(AT7:AT14) -> 26
T5: Block 1 | Y5: Block 2 | AD5: Block 3 | AI5: Block 4 | AN5: Block 5 | AS5: Block 6
A6: Sequence Component 1 | B6: Time 1 | C6: Sequence Component 2 | D6: Time 2 | E6: Sequence Component 3 | F6: Time 3 | G6: Sequence Component 4 | H6: Time 4 | I6: Sequence Component 5 | J6: Time 5 | K6: Correct? 0=No 1=Yes | L6: Sequence | N6: Frequency | P6: Relative Frequency | Q6: Variability | T6: Frequency | V6: Relative Frequency | W6: Variability | Y6: Frequency | AA6: Relative Frequency | AB6: Variability | AD6: Frequency | AF6: Relative Frequency | AG6: Variability | AI6: Frequency | AK6: Relative Frequency | AL6: Variability | AN6: Frequency | AP6: Relative Frequency | AQ6: Variability | AS6: Frequency | AU6: Relative Frequency | AV6: Variability
A7: 11 | B7: 55 | C7: 11 | D7: 62 | E7: 12 | F7: 92 | K7: 0 | L7: 111 | N7: 111 | O7: =COUNTIF($L$7:$L$500,N7) -> 145 | P7: =O7/$Q$4 -> 0.9415584416 | Q7: =IF(P7=0,0,(P7*((LOG(P7))/LOG(2)))) -> -0.08180019707 | T7: =N7 -> 111 | U7: =COUNTIF(L7:L32,T7) -> 26 | V7: =U7/(W4-U10) -> 1 | W7: =IF(V7=0,0,(V7*((LOG(V7))/LOG(2)))) -> 0 | Y7: =N7 -> 111 | Z7: =COUNTIF(L33:L57,Y7) -> 21 | AA7: =Z7/(AB4-Z10) -> 0.84 | AB7: =IF(AA7=0,0,(AA7*((LOG(AA7))/LOG(2)))) -> -0.2112925643 | AD7: =N7 -> 111 | AE7: =COUNTIF(L58:L83,AD7) -> 21 | AF7: =AE7/(AG4-AE10) -> 0.8076923077 | AG7: =IF(AF7=0,0,(AF7*((LOG(AF7))/LOG(2)))) -> -0.2488680078 | AI7: =N7 -> 111 | AJ7: =COUNTIF(L84:L109,AI7) -> 26 | AK7: =AJ7/(AL4-AJ10) -> 1 | AL7: =IF(AK7=0,0,(AK7*((LOG(AK7))/LOG(2)))) -> 0 | AN7: =N7 -> 111 | AO7: =COUNTIF(L110:L134,AN7) -> 25 | AP7: =AO7/(AQ4-AO10) -> 1 | AQ7: =IF(AP7=0,0,(AP7*((LOG(AP7))/LOG(2)))) -> 0 | AS7: =N7 -> 111 | AT7: =COUNTIF(L135:L160,AS7) -> 26 | AU7: =AT7/(AV4-AT10) -> 1 | AV7: =IF(AU7=0,0,(AU7*((LOG(AU7))/LOG(2)))) -> 0
A8: 11 | B8: 202 | C8: 11 | D8: 215 | E8: 12 | F8: 224 | K8: 0 | L8: 111 | N8: 112 | O8: =COUNTIF($L$7:$L$500,N8) -> 0 | P8: =O8/$Q$4 -> 0 | Q8: =IF(P8=0,0,(P8*((LOG(P8))/LOG(2)))) -> 0 | T8: =N8 -> 112 | U8: =COUNTIF(L7:L32,T8) -> 0 | V8: =U8/(W4-U10) -> 0 | W8: =IF(V8=0,0,(V8*((LOG(V8))/LOG(2)))) -> 0 | Y8: =N8 -> 112 | Z8: =COUNTIF(L33:L57,Y8) -> 0 | AA8: =Z8/(AB4-Z10) -> 0 | AB8: =IF(AA8=0,0,(AA8*((LOG(AA8))/LOG(2)))) -> 0 | AD8: =N8 -> 112 | AE8: =COUNTIF(L58:L83,AD8) -> 0 | AF8: =AE8/(AG4-AE10) -> 0 | AG8: =IF(AF8=0,0,(AF8*((LOG(AF8))/LOG(2)))) -> 0 | AI8: =N8 -> 112 | AJ8: =COUNTIF(L84:L109,AI8) -> 0 | AK8: =AJ8/(AL4-AJ10) -> 0 | AL8: =IF(AK8=0,0,(AK8*((LOG(AK8))/LOG(2)))) -> 0 | AN8: =N8 -> 112 | AO8: =COUNTIF(L110:L134,AN8) -> 0 | AP8: =AO8/(AQ4-AO10) -> 0 | AQ8: =IF(AP8=0,0,(AP8*((LOG(AP8))/LOG(2)))) -> 0 | AS8: =N8 -> 112 | AT8: =COUNTIF(L135:L160,AS8) -> 0 | AU8: =AT8/(AV4-AT10) -> 0 | AV8: =IF(AU8=0,0,(AU8*((LOG(AU8))/LOG(2)))) -> 0
A9: 11 | B9: 339 | C9: 11 | D9: 361 | E9: 12 | F9: 367 | K9: 0 | L9: 111 | N9: 121 | O9: =COUNTIF($L$7:$L$500,N9) -> 0 | P9: =O9/$Q$4 -> 0 | Q9: =IF(P9=0,0,(P9*((LOG(P9))/LOG(2)))) -> 0 | T9: =N9 -> 121 | U9: =COUNTIF(L7:L32,T9) -> 0 | V9: =U9/(W4-U10) -> 0 | W9: =IF(V9=0,0,(V9*((LOG(V9))/LOG(2)))) -> 0 | Y9: =N9 -> 121 | Z9: =COUNTIF(L33:L57,Y9) -> 0 | AA9: =Z9/(AB4-Z10) -> 0 | AB9: =IF(AA9=0,0,(AA9*((LOG(AA9))/LOG(2)))) -> 0 | AD9: =N9 -> 121 | AE9: =COUNTIF(L58:L83,AD9) -> 0 | AF9: =AE9/(AG4-AE10) -> 0 | AG9: =IF(AF9=0,0,(AF9*((LOG(AF9))/LOG(2)))) -> 0 | AI9: =N9 -> 121 | AJ9: =COUNTIF(L84:L109,AI9) -> 0 | AK9: =AJ9/(AL4-AJ10) -> 0 | AL9: =IF(AK9=0,0,(AK9*((LOG(AK9))/LOG(2)))) -> 0 | AN9: =N9 -> 121 | AO9: =COUNTIF(L110:L134,AN9) -> 0 | AP9: =AO9/(AQ4-AO10) -> 0 | AQ9: =IF(AP9=0,0,(AP9*((LOG(AP9))/LOG(2)))) -> 0 | AS9: =N9 -> 121 | AT9: =COUNTIF(L135:L160,AS9) -> 0 | AU9: =AT9/(AV4-AT10) -> 0 | AV9: =IF(AU9=0,0,(AU9*((LOG(AU9))/LOG(2)))) -> 0
A10: 11 | B10: 482 | C10: 11 | D10: 497 | E10: 12 | F10: 520 | K10: 0 | L10: 111 | N10: 122 | O10: =COUNTIF($L$7:$L$500,N10) -> 0 | P10: =O10/$Q$4 -> 0 | Q10: =IF(P10=0,0,(P10*((LOG(P10))/LOG(2)))) -> 0 | T10: =N10 -> 122 | U10: =COUNTIF(L7:L32,T10) -> 0 | Y10: =N10 -> 122 | Z10: =COUNTIF(L33:L57,Y10) -> 0 | AD10: =N10 -> 122 | AE10: =COUNTIF(L58:L83,AD10) -> 0 | AI10: =N10 -> 122 | AJ10: =COUNTIF(L84:L109,AI10) -> 0 | AN10: =N10 -> 122 | AO10: =COUNTIF(L110:L134,AN10) -> 0 | AS10: =N10 -> 122 | AT10: =COUNTIF(L135:L160,AS10) -> 0
A11: 11 | B11: 631 | C11: 11 | D11: 637 | E11: 12 | F11: 683 | K11: 0 | L11: 111 | N11: 211 | O11: =COUNTIF($L$7:$L$500,N11) -> 9 | P11: =O11/$Q$4 -> 0.05844155844 | Q11: =IF(P11=0,0,(P11*((LOG(P11))/LOG(2)))) -> -0.2394269731 | T11: =N11 -> 211 | U11: =COUNTIF(L7:L32,T11) -> 0 | V11: =U11/(W4-U10) -> 0 | W11: =IF(V11=0,0,(V11*((LOG(V11))/LOG(2)))) -> 0 | Y11: =N11 -> 211 | Z11: =COUNTIF(L33:L57,Y11) -> 4 | AA11: =Z11/(AB4-Z10) -> 0.16 | AB11: =IF(AA11=0,0,(AA11*((LOG(AA11))/LOG(2)))) -> -0.4230169904 | AD11: =N11 -> 211 | AE11: =COUNTIF(L58:L83,AD11) -> 5 | AF11: =AE11/(AG4-AE10) -> 0.1923076923 | AG11: =IF(AF11=0,0,(AF11*((LOG(AF11))/LOG(2)))) -> -0.4574060814 | AI11: =N11 -> 211 | AJ11: =COUNTIF(L84:L109,AI11) -> 0 | AK11: =AJ11/(AL4-AJ10) -> 0 | AL11: =IF(AK11=0,0,(AK11*((LOG(AK11))/LOG(2)))) -> 0 | AN11: =N11 -> 211 | AO11: =COUNTIF(L110:L134,AN11) -> 0 | AP11: =AO11/(AQ4-AO10) -> 0 | AQ11: =IF(AP11=0,0,(AP11*((LOG(AP11))/LOG(2)))) -> 0 | AS11: =N11 -> 211 | AT11: =COUNTIF(L135:L160,AS11) -> 0 | AU11: =AT11/(AV4-AT10) -> 0 | AV11: =IF(AU11=0,0,(AU11*((LOG(AU11))/LOG(2)))) -> 0
A12: 11 | B12: 810 | C12: 11 | D12: 820 | E12: 12 | F12: 848 | K12: 0 | L12: 111 | N12: 212 | O12: =COUNTIF($L$7:$L$500,N12) -> 0 | P12: =O12/$Q$4 -> 0 | Q12: =IF(P12=0,0,(P12*((LOG(P12))/LOG(2)))) -> 0 | T12: =N12 -> 212 | U12: =COUNTIF(L7:L32,T12) -> 0 | V12: =U12/(W4-U10) -> 0 | W12: =IF(V12=0,0,(V12*((LOG(V12))/LOG(2)))) -> 0 | Y12: =N12 -> 212 | Z12: =COUNTIF(L33:L57,Y12) -> 0 | AA12: =Z12/(AB4-Z10) -> 0 | AB12: =IF(AA12=0,0,(AA12*((LOG(AA12))/LOG(2)))) -> 0 | AD12: =N12 -> 212 | AE12: =COUNTIF(L58:L83,AD12) -> 0 | AF12: =AE12/(AG4-AE10) -> 0 | AG12: =IF(AF12=0,0,(AF12*((LOG(AF12))/LOG(2)))) -> 0 | AI12: =N12 -> 212 | AJ12: =COUNTIF(L84:L109,AI12) -> 0 | AK12: =AJ12/(AL4-AJ10) -> 0 | AL12: =IF(AK12=0,0,(AK12*((LOG(AK12))/LOG(2)))) -> 0 | AN12: =N12 -> 212 | AO12: =COUNTIF(L110:L134,AN12) -> 0 | AP12: =AO12/(AQ4-AO10) -> 0 | AQ12: =IF(AP12=0,0,(AP12*((LOG(AP12))/LOG(2)))) -> 0 | AS12: =N12 -> 212 | AT12: =COUNTIF(L135:L160,AS12) -> 0 | AU12: =AT12/(AV4-AT10) -> 0 | AV12: =IF(AU12=0,0,(AU12*((LOG(AU12))/LOG(2)))) -> 0
A13: 11 | B13: 954 | C13: 11 | D13: 977 | E13: 12 | F13: 986 | K13: 0 | L13: 111 | N13: 221 | O13: =COUNTIF($L$7:$L$500,N13) -> 0 | P13: =O13/$Q$4 -> 0 | Q13: =IF(P13=0,0,(P13*((LOG(P13))/LOG(2)))) -> 0 | T13: =N13 -> 221 | U13: =COUNTIF(L7:L32,T13) -> 0 | V13: =U13/(W4-U10) -> 0 | W13: =IF(V13=0,0,(V13*((LOG(V13))/LOG(2)))) -> 0 | Y13: =N13 -> 221 | Z13: =COUNTIF(L33:L57,Y13) -> 0 | AA13: =Z13/(AB4-Z10) -> 0 | AB13: =IF(AA13=0,0,(AA13*((LOG(AA13))/LOG(2)))) -> 0 | AD13: =N13 -> 221 | AE13: =COUNTIF(L58:L83,AD13) -> 0 | AF13: =AE13/(AG4-AE10) -> 0 | AG13: =IF(AF13=0,0,(AF13*((LOG(AF13))/LOG(2)))) -> 0 | AI13: =N13 -> 221 | AJ13: =COUNTIF(L84:L109,AI13) -> 0 | AK13: =AJ13/(AL4-AJ10) -> 0 | AL13: =IF(AK13=0,0,(AK13*((LOG(AK13))/LOG(2)))) -> 0 | AN13: =N13 -> 221 | AO13: =COUNTIF(L110:L134,AN13) -> 0 | AP13: =AO13/(AQ4-AO10) -> 0 | AQ13: =IF(AP13=0,0,(AP13*((LOG(AP13))/LOG(2)))) -> 0 | AS13: =N13 -> 221 | AT13: =COUNTIF(L135:L160,AS13) -> 0 | AU13: =AT13/(AV4-AT10) -> 0 | AV13: =IF(AU13=0,0,(AU13*((LOG(AU13))/LOG(2)))) -> 0
A14: 11 | B14: 1183 | C14: 11 | D14: 1191 | E14: 12 | F14: 1213 | K14: 0 | L14: 111 | N14: 222 | O14: =COUNTIF($L$7:$L$500,N14) -> 0 | P14: =O14/$Q$4 -> 0 | Q14: =IF(P14=0,0,(P14*((LOG(P14))/LOG(2)))) -> 0 | T14: =N14 -> 222 | U14: =COUNTIF(L7:L32,T14) -> 0 | V14: =U14/(W4-U10) -> 0 | W14: =IF(V14=0,0,(V14*((LOG(V14))/LOG(2)))) -> 0 | Y14: =N14 -> 222 | Z14: =COUNTIF(L33:L57,Y14) -> 0 | AA14: =Z14/(AB4-Z10) -> 0 | AB14: =IF(AA14=0,0,(AA14*((LOG(AA14))/LOG(2)))) -> 0 | AD14: =N14 -> 222 | AE14: =COUNTIF(L58:L83,AD14) -> 0 | AF14: =AE14/(AG4-AE10) -> 0 | AG14: =IF(AF14=0,0,(AF14*((LOG(AF14))/LOG(2)))) -> 0 | AI14: =N14 -> 222 | AJ14: =COUNTIF(L84:L109,AI14) -> 0 | AK14: =AJ14/(AL4-AJ10) -> 0 | AL14: =IF(AK14=0,0,(AK14*((LOG(AK14))/LOG(2)))) -> 0 | AN14: =N14 -> 222 | AO14: =COUNTIF(L110:L134,AN14) -> 0 | AP14: =AO14/(AQ4-AO10) -> 0 | AQ14: =IF(AP14=0,0,(AP14*((LOG(AP14))/LOG(2)))) -> 0 | AS14: =N14 -> 222 | AT14: =COUNTIF(L135:L160,AS14) -> 0 | AU14: =AT14/(AV4-AT10) -> 0 | AV14: =IF(AU14=0,0,(AU14*((LOG(AU14))/LOG(2)))) -> 0
A15: 11 | B15: 1384 | C15: 11 | D15: 1390 | E15: 12 | F15: 1395 | K15: 0 | L15: 111 | P15: =SUM(P7:P14) -> 1 | Q15: =-SUM(Q7:Q14) -> 0.3212271701 | V15: =SUM(V7:V14) -> 1 | W15: =-SUM(W7:W14) -> 0 | AA15: =SUM(AA7:AA14) -> 1 | AB15: =-SUM(AB7:AB14) -> 0.6343095546 | AF15: =SUM(AF7:AF14) -> 1 | AG15: =-SUM(AG7:AG14) -> 0.7062740892 | AK15: =SUM(AK7:AK14) -> 1 | AL15: =-SUM(AL7:AL14) -> 0 | AP15: =SUM(AP7:AP14) -> 1 | AQ15: =-SUM(AQ7:AQ14) -> 0 | AU15: =SUM(AU7:AU14) -> 1 | AV15: =-SUM(AV7:AV14) -> 0
A16: 11 | B16: 1501 | C16: 11 | D16: 1506 | E16: 12 | F16: 1511 | K16: 0 | L16: 111 | P16: U= | Q16: =Q15/(LOG(Q4)/LOG(2)) -> 0.04420484465 | V16: U1= | W16: =W15/(LOG(W4)/LOG(2)) -> 0 | AA16: U2= | AB16: =AB15/(LOG(AB4)/LOG(2)) -> 0.1365911279 | AF16: U3= | AG16: =AG15/(LOG(AG4)/LOG(2)) -> 0.1502570252 | AK16: U4= | AL16: =AL15/(LOG(AL4)/LOG(2)) -> 0 | AP16: U5= | AQ16: =AQ15/(LOG(AQ4)/LOG(2)) -> 0 | AU16: U6= | AV16: =AV15/(LOG(AV4)/LOG(2)) -> 0
A17: 11 | B17: 1625 | C17: 11 | D17: 1631 | E17: 12 | F17: 1649 | K17: 0 | L17: 111
A18: 11 | B18: 1761 | C18: 11 | D18: 1770 | E18: 12 | F18: 1786 | K18: 0 | L18: 111
A19: 11 | B19: 1904 | C19: 11 | D19: 1919 | E19: 12 | F19: 1935 | K19: 0 | L19: 111 | N19: Total Target Seq
A20: 11 | B20: 2143 | C20: 11 | D20: 2153 | E20: 12 | F20: 2160 | K20: 0 | L20: 111 | N20: =COUNTIF(L7:L160,G3) -> 0 | P20: 26 | Q20: 25 | R20: 26 | S20: 26 | T20: 25 | U20: 26
A21: 11 | B21: 2275 | C21: 11 | D21: 2279 | E21: 12 | F21: 2287 | K21: 0 | L21: 111 | P21: % of reinforcement given in 6 equal intervals based on number of trials
A22: 11 | B22: 2392 | C22: 11 | D22: 2396 | E22: 12 | F22: 2403 | K22: 0 | L22: 111 | P22: %_1 | Q22: %_2 | R22: %_3 | S22: %_4 | T22: %_5 | U22: %_6
A23: 11 | B23: 2515 | C23: 11 | D23: 2523 | E23: 12 | F23: 2531 | K23: 0 | L23: 111 | O23: target sequence | P23: =$G$3 -> 122 | Q23: =$G$3 -> 122 | R23: =$G$3 -> 122 | S23: =$G$3 -> 122 | T23: =$G$3 -> 122 | U23: =$G$3 -> 122
A24: 11 | B24: 2639 | C24: 11 | D24: 2644 | E24: 12 | F24: 2648 | K24: 0 | L24: 111 | O24: total reinforcement | P24: =U10 -> 0 | Q24: =Z10 -> 0 | R24: =AE10 -> 0 | S24: =AJ10 -> 0 | T24: =AO10 -> 0 | U24: =AT10 -> 0
A25: 11 | B25: 2775 | C25: 11 | D25: 2821 | E25: 12 | F25: 2829 | K25: 0 | L25: 111 | O25: % target
A26: 11 | B26: 2988 | C26: 11 | D26: 2995 | E26: 12 | F26: 3004 | K26: 0 | L26: 111 | O26: CCRF
A27: 11 | B27: 3113 | C27: 11 | D27: 3146 | E27: 12 | F27: 3153 | K27: 0 | L27: 111 | O27: % CCRf
A28: 11 | B28: 3262 | C28: 11 | D28: 3270 | E28: 12 | F28: 3278 | K28: 0 | L28: 111 | O28: average response rate | P28: =F32/P20 -> 150.2692308 | Q28: =(F57-F32)/Q20 -> 156.2 | R28: =(F83-F57)/R20 -> 170.0384615 | S28: =(F109-F83)/S20 -> 155.0384615 | T28: =(F134-F109)/T20 -> 155 | U28: =(F160-F134)/U20 -> 144.2307692
A29: 11 | B29: 3403 | C29: 11 | D29: 3417 | E29: 12 | F29: 3452 | K29: 0 | L29: 111
A30: 11 | B30: 3626 | C30: 11 | D30: 3630 | E30: 12 | F30: 3652 | K30: 0 | L30: 111
A31: 11 | B31: 3769 | C31: 11 | D31: 3774 | E31: 12 | F31: 3781 | K31: 0 | L31: 111
A32: 11 | B32: 3889 | C32: 11 | D32: 3898 | E32: 12 | F32: 3907 | K32: 0 | L32: 111
A33: 11 | B33: 4016 | C33: 11 | D33: 4020 | E33: 12 | F33: 4027 | K33: 0 | L33: 111
A34: 11 | B34: 4137 | C34: 11 | D34: 4142 | E34: 12 | F34: 4155 | K34: 0 | L34: 111
A35: 11 | B35: 4262 | C35: 11 | D35: 4267 | E35: 12 | F35: 4284 | K35: 0 | L35: 111
A36: 11 | B36: 4396 | C36: 11 | D36: 4401 | E36: 12 | F36: 4417 | K36: 0 | L36: 111
A37: 11 | B37: 4533 | C37: 11 | D37: 4549 | E37: 12 | F37: 4569 | K37: 0 | L37: 111
A38: 11 | B38: 4689 | C38: 11 | D38: 4697 | E38: 12 | F38: 4705 | K38: 0 | L38: 111
A39: 11 | B39: 4922 | C39: 11 | D39: 4928 | E39: 12 | F39: 4937 | K39: 0 | L39: 111
A40: 11 | B40: 5050 | C40: 11 | D40: 5055 | E40: 12 | F40: 5070 | K40: 0 | L40: 111
A41: 11 | B41: 5183 | C41: 11 | D41: 5191 | E41: 12 | F41: 5209 | K41: 0 | L41: 111
A42: 11 | B42: 5333 | C42: 11 | D42: 5344 | E42: 12 | F42: 5352 | K42: 0 | L42: 111
A43: 11 | B43: 5472 | C43: 11 | D43: 5480 | E43: 12 | F43: 5496 | K43: 0 | L43: 111
A44: 11 | B44: 5606 | C44: 11 | D44: 5610 | E44: 12 | F44: 5617 | K44: 0 | L44: 111
A45: 11 | B45: 5724 | C45: 11 | D45: 5733 | E45: 12 | F45: 5741 | K45: 0 | L45: 111
A46: 11 | B46: 5857 | C46: 11 | D46: 5864 | E46: 12 | F46: 5890 | K46: 0 | L46: 111
A47: 11 | B47: 6016 | C47: 11 | D47: 6025 | E47: 12 | F47: 6041 | K47: 0 | L47: 111
A48: 22 | B48: 6171 | C48: 13 | D48: 6185 | E48: 14 | F48: 6211 | K48: 0 | L48: 211
A49: 11 | B49: 6334 | C49: 11 | D49: 6343 | E49: 12 | F49: 6361 | K49: 0 | L49: 111
A50: 11 | B50: 6550 | C50: 11 | D50: 6566 | E50: 12 | F50: 6600 | K50: 0 | L50: 111
A51: 11 | B51: 6784 | C51: 11 | D51: 6817 | E51: 12 | F51: 6836 | K51: 0 | L51: 111
A52: 11 | B52: 7016 | C52: 11 | D52: 7025 | E52: 12 | F52: 7043 | K52: 0 | L52: 111
A53: 22 | B53: 7158 | C53: 13 | D53: 7201 | E53: 14 | F53: 7213 | K53: 0 | L53: 211
A54: 22 | B54: 7328 | C54: 13 | D54: 7341 | E54: 14 | F54: 7347 | K54: 0 | L54: 211
A55: 11 | B55: 7458 | C55: 11 | D55: 7463 | E55: 12 | F55: 7471 | K55: 0 | L55: 111
A56: 22 | B56: 7593 | C56: 13 | D56: 7604 | E56: 14 | F56: 7623 | K56: 0 | L56: 211
A57: 11 | B57: 7786 | C57: 11 | D57: 7804 | E57: 12 | F57: 7812 | K57: 0 | L57: 111
A58: 22 | B58: 8045 | C58: 13 | D58: 8073 | E58: 14 | F58: 8112 | K58: 0 | L58: 211
A59: 11 | B59: 8252 | C59: 11 | D59: 8265 | E59: 12 | F59: 8281 | K59: 0 | L59: 111
A60: 11 | B60: 8393 | C60: 11 | D60: 8403 | E60: 12 | F60: 8418 | K60: 0 | L60: 111
A61: 11 | B61: 8539 | C61: 11 | D61: 8545 | E61: 12 | F61: 8553 | K61: 0 | L61: 111
A62: 11 | B62: 8656 | C62: 11 | D62: 8686 | E62: 12 | F62: 8704 | K62: 0 | L62: 111
A63: 22 | B63: 8878 | C63: 13 | D63: 8892 | E63: 14 | F63: 8911 | K63: 0 | L63: 211
A64: 11 | B64: 9029 | C64: 11 | D64: 9034 | E64: 12 | F64: 9042 | K64: 0 | L64: 111
A65: 11 | B65: 9158 | C65: 11 | D65: 9167 | E65: 12 | F65: 9200 | K65: 0 | L65: 111
A66: 11 | B66: 9320 | C66: 11 | D66: 9328 | E66: 12 | F66: 9338 | K66: 0 | L66: 111
A67: 11 | B67: 9460 | C67: 11 | D67: 9472 | E67: 12 | F67: 9496 | K67: 0 | L67: 111
A68: 22 | B68: 9629 | C68: 13 | D68: 9661 | E68: 14 | F68: 9677 | K68: 0 | L68: 211
A69: 11 | B69: 9796 | C69: 11 | D69: 9810 | E69: 12 | F69: 9820 | K69: 0 | L69: 111
A70: 11 | B70: 10043 | C70: 11 | D70: 10060 | E70: 12 | F70: 10069 | K70: 0 | L70: 111
A71: 22 | B71: 10184 | C71: 13 | D71: 10208 | E71: 14 | F71: 10224 | K71: 0 | L71: 211
A72: 22 | B72: 10352 | C72: 13 | D72: 10364 | E72: 14 | F72: 10384 | K72: 0 | L72: 211
A73: 11 | B73: 10492 | C73: 11 | D73: 10498 | E73: 12 | F73: 10506 | K73: 0 | L73: 111
A74: 11 | B74: 10633 | C74: 11 | D74: 10641 | E74: 12 | F74: 10657 | K74: 0 | L74: 111
A75: 11 | B75: 10779 | C75: 11 | D75: 10894 | E75: 12 | F75: 10915 | K75: 0 | L75: 111
A76: 11 | B76: 11035 | C76: 11 | D76: 11043 | E76: 12 | F76: 11052 | K76: 0 | L76: 111
A77: 11 | B77: 11163 | C77: 11 | D77: 11183 | E77: 12 | F77: 11192 | K77: 0 | L77: 111
A78: 11 | B78: 11320 | C78: 11 | D78: 11331 | E78: 12 | F78: 11351 | K78: 0 | L78: 111
A79: 11 | B79: 11514 | C79: 11 | D79: 11539 | E79: 12 | F79: 11557 | K79: 0 | L79: 111
A80: 11 | B80: 11663 | C80: 11 | D80: 11671 | E80: 12 | F80: 11680 | K80: 0 | L80: 111
A81: 11 | B81: 11818 | C81: 11 | D81: 11828 | E81: 12 | F81: 11840 | K81: 0 | L81: 111
A82: 11 | B82: 12053 | C82: 11 | D82: 12062 | E82: 12 | F82: 12072 | K82: 0 | L82: 111
A83: 11 | B83: 12197 | C83: 11 | D83: 12215 | E83: 12 | F83: 12233 | K83: 0 | L83: 111
A84: 11 | B84: 12354 | C84: 11 | D84: 12362 | E84: 12 | F84: 12371 | K84: 0 | L84: 111
A85: 11 | B85: 12491 | C85: 11 | D85: 12504 | E85: 12 | F85: 12522 | K85: 0 | L85: 111
A86: 11 | B86: 12627 | C86: 11 | D86: 12632 | E86: 12 | F86: 12640 | K86: 0 | L86: 111
A87: 11 | B87: 12853 | C87: 11 | D87: 12861 | E87: 12 | F87: 12881 | K87: 0 | L87: 111
A88: 11 | B88: 13081 | C88: 11 | D88: 13085 | E88: 12 | F88: 13093 | K88: 0 | L88: 111
A89: 11 | B89: 13225 | C89: 11 | D89: 13241 | E89: 12 | F89: 13266 | K89: 0 | L89: 111
A90: 11 | B90: 13389 | C90: 11 | D90: 13397 | E90: 12 | F90: 13402 | K90: 0 | L90: 111
A91: 11 | B91: 13597 | C91: 11 | D91: 13605 | E91: 12 | F91: 13613 | K91: 0 | L91: 111
A92: 11 | B92: 13722 | C92: 11 | D92: 13726 | E92: 12 | F92: 13734 | K92: 0 | L92: 111
A93: 11 | B93: 13843 | C93: 11 | D93: 13850 | E93: 12 | F93: 13859 | K93: 0 | L93: 111
A94: 11 | B94: 13979 | C94: 11 | D94: 13987 | E94: 12 | F94: 13995 | K94: 0 | L94: 111
A95: 11 | B95: 14114 | C95: 11 | D95: 14124 | E95: 12 | F95: 14133 | K95: 0 | L95: 111
A96: 11 | B96: 14336 | C96: 11 | D96: 14344 | E96: 12 | F96: 14352 | K96: 0 | L96: 111
A97: 11 | B97: 14466 | C97: 11 | D97: 14474 | E97: 12 | F97: 14490 | K97: 0 | L97: 111
A98: 11 | B98: 14599 | C98: 11 | D98: 14604 | E98: 12 | F98: 14619 | K98: 0 | L98: 111
A99: 11 | B99: 14730 | C99: 11 | D99: 14737 | E99: 12 | F99: 14752 | K99: 0 | L99: 111
A100: 11 | B100: 14865 | C100: 11 | D100: 14870 | E100: 12 | F100: 14878 | K100: 0 | L100: 111
A101: 11 | B101: 14985 | C101: 11 | D101: 14990 | E101: 12 | F101: 14998 | K101: 0 | L101: 111
A102: 11 | B102: 15163 | C102: 11 | D102: 15171 | E102: 12 | F102: 15180 | K102: 0 | L102: 111
A103: 11 | B103: 15311 | C103: 11 | D103: 15320 | E103: 12 | F103: 15328 | K103: 0 | L103: 111
A104: 11 | B104: 15439 | C104: 11 | D104: 15444 | E104: 12 | F104: 15452 | K104: 0 | L104: 111
A105: 11 | B105: 15565 | C105: 11 | D105: 15569 | E105: 12 | F105: 15577 | K105: 0 | L105: 111
A106: 11 | B106: 15687 | C106: 11 | D106: 15695 | E106: 12 | F106: 15714 | K106: 0 | L106: 111
A107: 11 | B107: 15834 | C107: 11 | D107: 15850 | E107: 12 | F107: 15867 | K107: 0 | L107: 111
A108: 11 | B108: 15981 | C108: 11 | D108: 15988 | E108: 12 | F108: 16030 | K108: 0 | L108: 111
A109: 11 | B109: 16243 | C109: 11 | D109: 16248 | E109: 12 | F109: 16264 | K109: 0 | L109: 111
A110: 11 | B110: 16384 | C110: 11 | D110: 16392 | E110: 12 | F110: 16399 | K110: 0 | L110: 111
A111: 11 | B111: 16505 | C111: 11 | D111: 16510 | E111: 12 | F111: 16523 | K111: 0 | L111: 111
A112: 11 | B112: 16643 | C112: 11 | D112: 16652 | E112: 12 | F112: 16680 | K112: 0 | L112: 111
A113: 11 | B113: 16846 | C113: 11 | D113: 16852 | E113: 12 | F113: 16860 | K113: 0 | L113: 111
A114: 11 | B114: 16982 | C114: 11 | D114: 16991 | E114: 12 | F114: 17000 | K114: 0 | L114: 111
A115: 11 | B115: 17116 | C115: 11 | D115: 17125 | E115: 12 | F115: 17133 | K115: 0 | L115: 111
A116: 11 | B116: 17241 | C116: 11 | D116: 17257 | E116: 12 | F116: 17296 | K116: 0 | L116: 111
A117: 11 | B117: 17410 | C117: 11 | D117: 17424 | E117: 12 | F117: 17433 | K117: 0 | L117: 111
A118: 11 | B118: 17654 | C118: 11 | D118: 17662 | E118: 12 | F118: 17670 | K118: 0 | L118: 111
A119: 11 | B119: 17785 | C119: 11 | D119: 17791 | E119: 12 | F119: 17799 | K119: 0 | L119: 111
A120: 11 | B120: 17916 | C120: 11 | D120: 17923 | E120: 12 | F120: 17932 | K120: 0 | L120: 111
A121: 11 | B121: 18111 | C121: 11 | D121: 18119 | E121: 12 | F121: 18126 | K121: 0 | L121: 111
A122: 11 | B122: 18245 | C122: 11 | D122: 18273 | E122: 12 | F122: 18299 | K122: 0 | L122: 111
A123: 11 | B123: 18416 | C123: 11 | D123: 18435 | E123: 12 | F123: 18445 | K123: 0 | L123: 111
A124: 11 | B124: 18565 | C124: 11 | D124: 18571 | E124: 12 | F124: 18605 | K124: 0 | L124: 111
A125: 11 | B125: 18727 | C125: 11 | D125: 18736 | E125: 12 | F125: 18752 | K125: 0 | L125: 111
A126: 11 | B126: 18897 | C126: 11 | D126: 18906 | E126: 12 | F126: 18916 | K126: 0 | L126: 111
A127: 11 | B127: 19052 | C127: 11 | D127: 19068 | E127: 12 | F127: 19103 | K127: 0 | L127: 111
A128: 11 | B128: 19214 | C128: 11 | D128: 19224 | E128: 12 | F128: 19234 | K128: 0 | L128: 111
A129: 11 | B129: 19342 | C129: 11 | D129: 19357 | E129: 12 | F129: 19366 | K129: 0 | L129: 111
A130: 11 | B130: 19473 | C130: 11 | D130: 19481 | E130: 12 | F130: 19497 | K130: 0 | L130: 111
A131: 11 | B131: 19608 | C131: 11 | D131: 19619 | E131: 12 | F131: 19628 | K131: 0 | L131: 111
A132: 11 | B132: 19830 | C132: 11 | D132: 19839 | E132: 12 | F132: 19849 | K132: 0 | L132: 111
A133: 11 | B133: 19972 | C133: 11 | D133: 19981 | E133: 12 | F133: 19989 | K133: 0 | L133: 111
A134: 11 | B134: 20105 | C134: 11 | D134: 20130 | E134: 12 | F134: 20139 | K134: 0 | L134: 111
A135: 11 | B135: 20253 | C135: 11 | D135: 20261 | E135: 12 | F135: 20282 | K135: 0 | L135: 111
A136: 11 | B136: 20388 | C136: 11 | D136: 20400 | E136: 12 | F136: 20410 | K136: 0 | L136: 111
A137: 11 | B137: 20522 | C137: 11 | D137: 20529 | E137: 12 | F137: 20539 | K137: 0 | L137: 111
A138: 11 | B138: 20658 | C138: 11 | D138: 20669 | E138: 12 | F138: 20679 | K138: 0 | L138: 111
A139: 11 | B139: 20876 | C139: 11 | D139: 20887 | E139: 12 | F139: 20896 | K139: 0 | L139: 111
A140: 11 | B140: 21008 | C140: 11 | D140: 21016 | E140: 12 | F140: 21025 | K140: 0 | L140: 111
A141: 11 | B141: 21140 | C141: 11 | D141: 21145 | E141: 12 | F141: 21153 | K141: 0 | L141: 111
A142: 11 | B142: 21261 | C142: 11 | D142: 21269 | E142: 12 | F142: 21287 | K142: 0 | L142: 111
A143: 11 | B143: 21397 | C143: 11 | D143: 21422 | E143: 12 | F143: 21438 | K143: 0 | L143: 111
A144: 11 | B144: 21549 | C144: 11 | D144: 21556 | E144: 12 | F144: 21577 | K144: 0 | L144: 111
A145: 11 | B145: 21701 | C145: 11 | D145: 21709 | E145: 12 | F145: 21721 | K145: 0 | L145: 111
A146: 11 | B146: 21836 | C146: 11 | D146: 21844 | E146: 12 | F146: 21860 | K146: 0 | L146: 111
A147: 11 | B147: 22003 | C147: 11 | D147: 22008 | E147: 12 | F147: 22024 | K147: 0 | L147: 111
A148: 11 | B148: 22137 | C148: 11 | D148: 22141 | E148: 12 | F148: 22149 | K148: 0 | L148: 111
A149: 11 | B149: 22262 | C149: 11 | D149: 22269 | E149: 12 | F149: 22297 | K149: 0 | L149: 111
A150: 11 | B150: 22408 | C150: 11 | D150: 22416 | E150: 12 | F150: 22458 | K150: 0 | L150: 111
A151: 11 | B151: 22569 | C151: 11 | D151: 22574 | E151: 12 | F151: 22590 | K151: 0 | L151: 111
A152: 11 | B152: 22695 | C152: 11 | D152: 22700 | E152: 12 | F152: 22706 | K152: 0 | L152: 111
A153: 11 | B153: 22818 | C153: 11 | D153: 22824 | E153: 12 | F153: 22833 | K153: 0 | L153: 111
A154: 11 | B154: 22945 | C154: 11 | D154: 22961 | E154: 12 | F154: 22978 | K154: 0 | L154: 111
A155: 11 | B155: 23085 | C155: 11 | D155: 23090 | E155: 12 | F155: 23099 | K155: 0 | L155: 111
A156: 11 | B156: 23209 | C156: 11 | D156: 23213 | E156: 12 | F156: 23238 | K156: 0 | L156: 111
A157: 11 | B157: 23344 | C157: 11 | D157: 23349 | E157: 12 | F157: 23396 | K157: 0 | L157: 111
A158: 11 | B158: 23572 | C158: 11 | D158: 23583 | E158: 12 | F158: 23592 | K158: 0 | L158: 111
A159: 11 | B159: 23713 | C159: 11 | D159: 23723 | E159: 12 | F159: 23732 | K159: 0 | L159: 111
A160: 11 | B160: 23860 | C160: 11 | D160: 23874 | E160: 12 | F160: 23889 | K160: 0 | L160: 111

Sheet !M802A30.010
A1: Report for:!M802A30.010
A2: Date: | B2: <date>
A3: Hen: | B3: <hen> | F3: Correct Sequence | G3: =Start!J2 -> 122 | P3: Total Sequences in Data | Q3: =4994-COUNTBLANK(L7:L5000) -> 170 | V3: Total Sequences in Block Data | W3: =COUNTA(L7:L34) -> 28 | AA3: Total Sequences in Block Data | AB3: =COUNTA(L35:L63) -> 29 | AF3: Total Sequences in Block Data | AG3: =COUNTA(L64:L91) -> 28 | AK3: Total Sequences in Block Data | AL3: =COUNTA(L92:L119) -> 28 | AP3: Total Sequences in Block Data | AQ3: =COUNTA(L120:L148) -> 29 | AU3: Total Sequences in Block Data | AV3: =COUNTA(L149:L176) -> 28
P4: Total Sequences in Summary | Q4: =SUM(O7:O14) -> 169 | V4: Total Sequences in Block Summary | W4: =SUM(U7:U14) -> 28 | AA4: Total Sequences in Block Summary | AB4: =SUM(Z7:Z14) -> 29 | AF4: Total Sequences in Block Summary | AG4: =SUM(AE7:AE14) -> 28 | AK4: Total Sequences in Block Summary | AL4: =SUM(AJ7:AJ14) -> 28 | AP4: Total Sequences in Block Summary | AQ4: =SUM(AO7:AO14) -> 29 | AU4: Total Sequences in Block Summary | AV4: =SUM(AT7:AT14) -> 27
T5: Block 1 | Y5: Block 2 | AD5: Block 3 | AI5: Block 4 | AN5: Block 5 | AS5: Block 6
A6: Sequence Component 1 | B6: Time 1 | C6: Sequence Component 2 | D6: Time 2 | E6: Sequence Component 3 | F6: Time 3 | G6: Sequence Component 4 | H6: Time 4 | I6: Sequence Component 5 | J6: Time 5 | K6: Correct? 0=No 1=Yes | L6: Sequence | N6: Frequency | P6: Relative Frequency | Q6: Variability | T6: Frequency | V6: Relative Frequency | W6: Variability | Y6: Frequency | AA6: Relative Frequency | AB6: Variability | AD6: Frequency | AF6: Relative Frequency | AG6: Variability | AI6: Frequency | AK6: Relative Frequency | AL6: Variability | AN6: Frequency | AP6: Relative Frequency | AQ6: Variability | AS6: Frequency | AU6: Relative Frequency | AV6: Variability
A7: 11 | B7: 91 | C7: 11 | D7: 109 | E7: 12 | F7: 119 | K7: 0 | L7: 111 | N7: 111 | O7: =COUNTIF($L$7:$L$500,N7) -> 106 | P7: =O7/$Q$4 -> 0.6272189349 | Q7: =IF(P7=0,0,(P7*((LOG(P7))/LOG(2)))) -> -0.4220926158 | T7: =N7 -> 111 | U7: =COUNTIF(L7:L34,T7) -> 9 | V7: =U7/(W4-U10) -> 0.3214285714 | W7: =IF(V7=0,0,(V7*((LOG(V7))/LOG(2)))) -> -0.5263167602 | Y7: =N7 -> 111 | Z7: =COUNTIF(L35:L63,Y7) -> 12 | AA7: =Z7/(AB4-Z10) -> 0.4137931034 | AB7: =IF(AA7=0,0,(AA7*((LOG(AA7))/LOG(2)))) -> -0.5267662735 | AD7: =N7 -> 111 | AE7: =COUNTIF(L64:L91,AD7) -> 12 | AF7: =AE7/(AG4-AE10) -> 0.4285714286 | AG7: =IF(AF7=0,0,(AF7*((LOG(AF7))/LOG(2)))) -> -0.5238824663 | AI7: =N7 -> 111 | AJ7: =COUNTIF(L92:L119,AI7) -> 27 | AK7: =AJ7/(AL4-AJ10) -> 0.9642857143 | AL7: =IF(AK7=0,0,(AK7*((LOG(AK7))/LOG(2)))) -> -0.05059358347 | AN7: =N7 -> 111 | AO7: =COUNTIF(L120:L148,AN7) -> 25 | AP7: =AO7/(AQ4-AO10) -> 0.8620689655 | AQ7: =IF(AP7=0,0,(AP7*((LOG(AP7))/LOG(2)))) -> -0.1845903494 | AS7: =N7 -> 111 | AT7: =COUNTIF(L149:L176,AS7) -> 21 | AU7: =AT7/(AV4-AT10) -> 0.7777777778 | AV7: =IF(AU7=0,0,(AU7*((LOG(AU7))/LOG(2)))) -> -0.2819989506
A8: 11 | B8: 229 | C8: 11 | D8: 234 | E8: 12 | F8: 262 | K8: 0 | L8: 111 | N8: 112 | O8: =COUNTIF($L$7:$L$500,N8) -> 3 | P8: =O8/$Q$4 -> 0.01775147929 | Q8: =IF(P8=0,0,(P8*((LOG(P8))/LOG(2)))) -> -0.103241129 | T8: =N8 -> 112 | U8: =COUNTIF(L7:L34,T8) -> 3 | V8: =U8/(W4-U10) -> 0.1071428571 | W8: =IF(V8=0,0,(V8*((LOG(V8))/LOG(2)))) -> -0.3452563309 | Y8: =N8 -> 112 | Z8: =COUNTIF(L35:L63,Y8) -> 0 | AA8: =Z8/(AB4-Z10) -> 0 | AB8: =IF(AA8=0,0,(AA8*((LOG(AA8))/LOG(2)))) -> 0 | AD8: =N8 -> 112 | AE8: =COUNTIF(L64:L91,AD8) -> 0 | AF8: =AE8/(AG4-AE10) -> 0 | AG8: =IF(AF8=0,0,(AF8*((LOG(AF8))/LOG(2)))) -> 0 | AI8: =N8 -> 112 | AJ8: =COUNTIF(L92:L119,AI8) -> 0 | AK8: =AJ8/(AL4-AJ10) -> 0 | AL8: =IF(AK8=0,0,(AK8*((LOG(AK8))/LOG(2)))) -> 0 | AN8: =N8 -> 112 | AO8: =COUNTIF(L120:L148,AN8) -> 0 | AP8: =AO8/(AQ4-AO10) -> 0 | AQ8: =IF(AP8=0,0,(AP8*((LOG(AP8))/LOG(2)))) -> 0 | AS8: =N8 -> 112 | AT8: =COUNTIF(L149:L176,AS8) -> 0 | AU8: =AT8/(AV4-AT10) -> 0 | AV8: =IF(AU8=0,0,(AU8*((LOG(AU8))/LOG(2)))) -> 0
A9: 11 | B9: 376 | C9: 11 | D9: 409 | E9: 12 | F9: 426 | K9: 0 | L9: 111 | N9: 121 | O9: =COUNTIF($L$7:$L$500,N9) -> 0 | P9: =O9/$Q$4 -> 0 | Q9: =IF(P9=0,0,(P9*((LOG(P9))/LOG(2)))) -> 0 | T9: =N9 -> 121 | U9: =COUNTIF(L7:L34,T9) -> 0 | V9: =U9/(W4-U10) -> 0 | W9: =IF(V9=0,0,(V9*((LOG(V9))/LOG(2)))) -> 0 | Y9: =N9 -> 121 | Z9: =COUNTIF(L35:L63,Y9) -> 0 | AA9: =Z9/(AB4-Z10) -> 0 | AB9: =IF(AA9=0,0,(AA9*((LOG(AA9))/LOG(2)))) -> 0 | AD9: =N9 -> 121 | AE9: =COUNTIF(L64:L91,AD9) -> 0 | AF9: =AE9/(AG4-AE10) -> 0 | AG9: =IF(AF9=0,0,(AF9*((LOG(AF9))/LOG(2)))) -> 0 | AI9: =N9 -> 121 | AJ9: =COUNTIF(L92:L119,AI9) -> 0 | AK9: =AJ9/(AL4-AJ10) -> 0 | AL9: =IF(AK9=0,0,(AK9*((LOG(AK9))/LOG(2)))) -> 0 | AN9: =N9 -> 121 | AO9: =COUNTIF(L120:L148,AN9) -> 0 | AP9: =AO9/(AQ4-AO10) -> 0 | AQ9: =IF(AP9=0,0,(AP9*((LOG(AP9))/LOG(2)))) -> 0 | AS9: =N9 -> 121 | AT9: =COUNTIF(L149:L176,AS9) -> 0 | AU9: =AT9/(AV4-AT10) -> 0 | AV9: =IF(AU9=0,0,(AU9*((LOG(AU9))/LOG(2)))) -> 0
A10: 11 | B10: 544 | C10: 11 | D10: 550 | E10: 21 | F10: 567 | K10: 0 | L10: 112 | N10: 122 | O10: =COUNTIF($L$7:$L$500,N10) -> 0 | P10: =O10/$Q$4 -> 0 | Q10: =IF(P10=0,0,(P10*((LOG(P10))/LOG(2)))) -> 0 | T10: =N10 -> 122 | U10: =COUNTIF(L7:L34,T10) -> 0 | Y10: =N10 -> 122 | Z10: =COUNTIF(L35:L63,Y10) -> 0 | AD10: =N10 -> 122 | AE10: =COUNTIF(L64:L91,AD10) -> 0 | AI10: =N10 -> 122 | AJ10: =COUNTIF(L92:L119,AI10) -> 0 | AN10: =N10 -> 122 | AO10: =COUNTIF(L120:L148,AN10) -> 0 | AS10: =N10 -> 122 | AT10: =COUNTIF(L149:L176,AS10) -> 0
A11: 11 | B11: 670 | C11: 11 | D11: 715 | E11: 12 | F11: 749 | K11: 0 | L11: 111 | N11: 211 | O11: =COUNTIF($L$7:$L$500,N11) -> 50 | P11: =O11/$Q$4 -> 0.2958579882 | Q11: =IF(P11=0,0,(P11*((LOG(P11))/LOG(2)))) -> -0.5198293629 | T11: =N11 -> 211 | U11: =COUNTIF(L7:L34,T11) -> 7 | V11: =U11/(W4-U10) -> 0.25 | W11: =IF(V11=0,0,(V11*((LOG(V11))/LOG(2)))) -> -0.5 | Y11: =N11 -> 211 | Z11: =COUNTIF(L35:L63,Y11) -> 17 | AA11: =Z11/(AB4-Z10) -> 0.5862068966 | AB11: =IF(AA11=0,0,(AA11*((LOG(AA11))/LOG(2)))) -> -0.4516830557 | AD11: =N11 -> 211 | AE11: =COUNTIF(L64:L91,AD11) -> 16 | AF11: =AE11/(AG4-AE10) -> 0.5714285714 | AG11: =IF(AF11=0,0,(AF11*((LOG(AF11))/LOG(2)))) -> -0.4613456697 | AI11: =N11 -> 211 | AJ11: =COUNTIF(L92:L119,AI11) -> 1 | AK11: =AJ11/(AL4-AJ10) -> 0.03571428571 | AL11: =IF(AK11=0,0,(AK11*((LOG(AK11))/LOG(2)))) -> -0.1716912472 | AN11: =N11 -> 211 | AO11: =COUNTIF(L120:L148,AN11) -> 3 | AP11: =AO11/(AQ4-AO10) -> 0.1034482759 | AQ11: =IF(AP11=0,0,(AP11*((LOG(AP11))/LOG(2)))) -> -0.3385881201 | AS11: =N11 -> 211 | AT11: =COUNTIF(L149:L176,AS11) -> 6 | AU11: =AT11/(AV4-AT10) -> 0.2222222222 | AV11: =IF(AU11=0,0,(AU11*((LOG(AU11))/LOG(2)))) -> -0.4822055559
A12: 11 | B12: 875 | C12: 11 | D12: 919 | E12: 12 | F12: 946 | K12: 0 | L12: 111 | N12: 212 | O12: =COUNTIF($L$7:$L$500,N12) -> 0 | P12: =O12/$Q$4 -> 0 | Q12: =IF(P12=0,0,(P12*((LOG(P12))/LOG(2)))) -> 0 | T12: =N12 -> 212 | U12: =COUNTIF(L7:L34,T12) -> 0 | V12: =U12/(W4-U10) -> 0 | W12: =IF(V12=0,0,(V12*((LOG(V12))/LOG(2)))) -> 0 | Y12: =N12 -> 212 | Z12: =COUNTIF(L35:L63,Y12) -> 0 | AA12: =Z12/(AB4-Z10) -> 0 | AB12: =IF(AA12=0,0,(AA12*((LOG(AA12))/LOG(2)))) -> 0 | AD12: =N12 -> 212 | AE12: =COUNTIF(L64:L91,AD12) -> 0 | AF12: =AE12/(AG4-AE10) -> 0 | AG12: =IF(AF12=0,0,(AF12*((LOG(AF12))/LOG(2)))) -> 0 | AI12: =N12 -> 212 | AJ12: =COUNTIF(L92:L119,AI12) -> 0 | AK12: =AJ12/(AL4-AJ10) -> 0 | AL12: =IF(AK12=0,0,(AK12*((LOG(AK12))/LOG(2)))) -> 0 | AN12: =N12 -> 212 | AO12: =COUNTIF(L120:L148,AN12) -> 0 | AP12: =AO12/(AQ4-AO10) -> 0 | AQ12: =IF(AP12=0,0,(AP12*((LOG(AP12))/LOG(2)))) -> 0 | AS12: =N12 -> 212 | AT12: =COUNTIF(L149:L176,AS12) -> 0 | AU12: =AT12/(AV4-AT10) -> 0 | AV12: =IF(AU12=0,0,(AU12*((LOG(AU12))/LOG(2)))) -> 0
A13: 11 | B13: 1080 | C13: 11 | D13: 1140 | E13: 12 | F13: 1149 | K13: 0 | L13: 111 | N13: 221 | O13: =COUNTIF($L$7:$L$500,N13) -> 6 | P13: =O13/$Q$4 -> 0.03550295858 | Q13: =IF(P13=0,0,(P13*((LOG(P13))/LOG(2)))) -> -0.1709792995 | T13: =N13 -> 221 | U13: =COUNTIF(L7:L34,T13) -> 5 | V13: =U13/(W4-U10) -> 0.1785714286 | W13: =IF(V13=0,0,(V13*((LOG(V13))/LOG(2)))) -> -0.4438262191 | Y13: =N13 -> 221 | Z13: =COUNTIF(L35:L63,Y13) -> 0 | AA13: =Z13/(AB4-Z10) -> 0 | AB13: =IF(AA13=0,0,(AA13*((LOG(AA13))/LOG(2)))) -> 0 | AD13: =N13 -> 221 | AE13: =COUNTIF(L64:L91,AD13) -> 0 | AF13: =AE13/(AG4-AE10) -> 0 | AG13: =IF(AF13=0,0,(AF13*((LOG(AF13))/LOG(2)))) -> 0 | AI13: =N13 -> 221 | AJ13: =COUNTIF(L92:L119,AI13) -> 0 | AK13: =AJ13/(AL4-AJ10) -> 0 | AL13: =IF(AK13=0,0,(AK13*((LOG(AK13))/LOG(2)))) -> 0 | AN13: =N13 -> 221 | AO13: =COUNTIF(L120:L148,AN13) -> 1 | AP13: =AO13/(AQ4-AO10) -> 0.03448275862 | AQ13: =IF(AP13=0,0,(AP13*((LOG(AP13))/LOG(2)))) -> -0.167516586 | AS13: =N13 -> 221 | AT13: =COUNTIF(L149:L176,AS13) -> 0 | AU13: =AT13/(AV4-AT10) -> 0 | AV13: =IF(AU13=0,0,(AU13*((LOG(AU13))/LOG(2)))) -> 0
A14: 11 | B14: 1294 | C14: 11 | D14: 1318 | E14: 21 | F14: 1399 | K14: 0 | L14: 112 | N14: 222 | O14: =COUNTIF($L$7:$L$500,N14) -> 4 | P14: =O14/$Q$4 -> 0.02366863905 | Q14: =IF(P14=0,0,(P14*((LOG(P14))/LOG(2)))) -> -0.1278314659 | T14: =N14 -> 222 | U14: =COUNTIF(L7:L34,T14) -> 4 | V14: =U14/(W4-U10) -> 0.1428571429 | W14: =IF(V14=0,0,(V14*((LOG(V14))/LOG(2)))) -> -0.4010507032 | Y14: =N14 -> 222 | Z14: =COUNTIF(L35:L63,Y14) -> 0 | AA14: =Z14/(AB4-Z10) -> 0 | AB14: =IF(AA14=0,0,(AA14*((LOG(AA14))/LOG(2)))) -> 0 | AD14: =N14 -> 222 | AE14: =COUNTIF(L64:L91,AD14) -> 0 | AF14: =AE14/(AG4-AE10) -> 0 | AG14: =IF(AF14=0,0,(AF14*((LOG(AF14))/LOG(2)))) -> 0 | AI14: =N14 -> 222 | AJ14: =COUNTIF(L92:L119,AI14) -> 0 | AK14: =AJ14/(AL4-AJ10) -> 0 | AL14: =IF(AK14=0,0,(AK14*((LOG(AK14))/LOG(2)))) -> 0 | AN14: =N14 -> 222 | AO14: =COUNTIF(L120:L148,AN14) -> 0 | AP14: =AO14/(AQ4-AO10) -> 0 | AQ14: =IF(AP14=0,0,(AP14*((LOG(AP14))/LOG(2)))) -> 0 | AS14: =N14 -> 222 | AT14: =COUNTIF(L149:L176,AS14) -> 0 | AU14: =AT14/(AV4-AT10) -> 0 | AV14: =IF(AU14=0,0,(AU14*((LOG(AU14))/LOG(2)))) -> 0
A15: 11 | B15: 1542 | C15: 11 | D15: 1553 | E15: 21 | F15: 1571 | K15: 0 | L15: 112 | P15: =SUM(P7:P14) -> 1 | Q15: =-SUM(Q7:Q14) -> 1.343973873 | V15: =SUM(V7:V14) -> 1 | W15: =-SUM(W7:W14) -> 2.216450013 | AA15: =SUM(AA7:AA14) -> 1 | AB15: =-SUM(AB7:AB14) -> 0.9784493293 | AF15: =SUM(AF7:AF14) -> 1 | AG15: =-SUM(AG7:AG14) -> 0.985228136 | AK15: =SUM(AK7:AK14) -> 1 | AL15: =-SUM(AL7:AL14) -> 0.2222848307 | AP15: =SUM(AP7:AP14) -> 1 | AQ15: =-SUM(AQ7:AQ14) -> 0.6906950556 | AU15: =SUM(AU7:AU14) -> 1 | AV15: =-SUM(AV7:AV14) -> 0.7642045065
A16: 22 | B16: 1689 | C16: 13 | D16: 1782 | E16: 14 | F16: 1791 | K16: 0 | L16: 211 | P16: U= | Q16: =Q15/(LOG(Q4)/LOG(2)) -> 0.1815965095 | V16: U1= | W16: =W15/(LOG(W4)/LOG(2)) -> 0.4610539578 | AA16: U2= | AB16: =AB15/(LOG(AB4)/LOG(2)) -> 0.2014106952 | AF16: U3= | AG16: =AG15/(LOG(AG4)/LOG(2)) -> 0.2049418343 | AK16: U4= | AL16: =AL15/(LOG(AL4)/LOG(2)) -> 0.04623848962 | AP16: U5= | AQ16: =AQ15/(LOG(AQ4)/LOG(2)) -> 0.1421773894 | AU16: U6= | AV16: =AV15/(LOG(AV4)/LOG(2)) -> 0.160719787
A17: 22 | B17: 1918 | C17: 24 | D17: 1942 | E17: 14 | F17: 1972 | K17: 0 | L17: 221
A18: 22 | B18: 2079 | C18: 24 | D18: 2110 | E18: 14 | F18: 2126 | K18: 0 | L18: 221
A19: 22 | B19: 2237 | C19: 24 | D19: 2248 | E19: 23 | F19: 2274 | K19: 0 | L19: 222 | N19: Total Target Seq
A20: 22 | B20: 2391 | C20: 24 | D20: 2401 | E20: 23 | F20: 2414 | K20: 0 | L20: 222 | N20: =COUNTIF(L7:L176,G3) -> 0 | P20: 28 | Q20: 29 | R20: 28 | S20: 28 | T20: 29 | U20: 28
A21: 22 | B21: 2520 | C21: 13 | D21: 2535 | E21: 14 | F21: 2544 | K21: 0 | L21: 211 | P21: % of reinforcement given in 6 equal intervals based on number of trials
A22: 22 | B22: 2654 | C22: 24 | D22: 2665 | E22: 23 | F22: 2675 | K22: 0 | L22: 222 | P22: %_1 | Q22: %_2 | R22: %_3 | S22: %_4 | T22: %_5 | U22: %_6
A23: 22 | B23: 2782 | C23: 24 | D23: 2798 | E23: 23 | F23: 2808 | K23: 0 | L23: 222 | O23: target sequence | P23: =$G$3 -> 122 | Q23: =$G$3 -> 122 | R23: =$G$3 -> 122 | S23: =$G$3 -> 122 | T23: =$G$3 -> 122 | U23: =$G$3 -> 122
A24: 22 | B24: 2918 | C24: 13 | D24: 2941 | E24: 14 | F24: 2969 | K24: 0 | L24: 211 | O24: total reinforcement | P24: =U10 -> 0 | Q24: =Z10 -> 0 | R24: =AE10 -> 0 | S24: =AJ10 -> 0 | T24: =AO10 -> 0 | U24: =AT10 -> 0
A25: 22 | B25: 3082 | C25: 24 | D25: 3091 | E25: 14 | F25: 3108 | K25: 0 | L25: 221 | O25: % target
A26: 11 | B26: 3228 | C26: 11 | D26: 3258 | E26: 12 | F26: 3296 | K26: 0 | L26: 111 | O26: CCRF
A27: 11 | B27: 3421 | C27: 11 | D27: 3430 | E27: 12 | F27: 3455 | K27: 0 | L27: 111 | O27: % CCRf
A28: 22 | B28: 3569 | C28: 24 | D28: 3580 | E28: 14 | F28: 3593 | K28: 0 | L28: 221 | O28: average response rate | P28: =F34/P20 -> 158.1071429 | Q28: =(F63-F34)/Q20 -> 139.7931034 | R28: =(F91-F63)/R20 -> 135.5357143 | S28: =(F119-F91)/S20 -> 134.2857143 | T28: =(F148-F119)/T20 -> 136.4482759 | U28: =(F176-F148)/U20 -> -714.0357143
A29: 22 | B29: 3695 | C29: 13 | D29: 3706 | E29: 14 | F29: 3710 | K29: 0 | L29: 211
A30: 22 | B30: 3813 | C30: 13 | D30: 3837 | E30: 14 | F30: 3863 | K30: 0 | L30: 211
A31: 22 | B31: 3967 | C31: 24 | D31: 3976 | E31: 14 | F31: 3993 | K31: 0 | L31: 221
A32: 11 | B32: 4112 | C32: 11 | D32: 4120 | E32: 12 | F32: 4130 | K32: 0 | L32: 111
A33: 22 | B33: 4247 | C33: 13 | D33: 4262 | E33: 14 | F33: 4280 | K33: 0 | L33: 211
A34: 22 | B34: 4384 | C34: 13 | D34: 4418 | E34: 14 | F34: 4427 | K34: 0 | L34: 211
A35: 22 | B35: 4531 | C35: 13 | D35: 4545 | E35: 14 | F35: 4555 | K35: 0 | L35: 211
A36: 11 | B36: 4661 | C36: 11 | D36: 4671 | E36: 12 | F36: 4683 | K36: 0 | L36: 111
A37: 22 | B37: 4793 | C37: 13 | D37: 4806 | E37: 14 | F37: 4834 | K37: 0 | L37: 211
A38: 11 | B38: 4978 | C38: 11 | D38: 4990 | E38: 12 | F38: 5001 | K38: 0 | L38: 111
A39: 22 | B39: 5107 | C39: 13 | D39: 5131 | E39: 14 | F39: 5140 | K39: 0 | L39: 211
A40: 22 | B40: 5255 | C40: 13 | D40: 5269 | E40: 14 | F40: 5279 | K40: 0 | L40: 211
A41: 22 | B41: 5387 | C41: 13 | D41: 5397 | E41: 14 | F41: 5406 | K41: 0 | L41: 211
A42: 11 | B42: 5512 | C42: 11 | D42: 5524 | E42: 12 | F42: 5543 | K42: 0 | L42: 111
A43: 11 | B43: 5659 | C43: 11 | D43: 5669 | E43: 12 | F43: 5679 | K43: 0 | L43: 111
A44: 22 | B44: 5799 | C44: 13 | D44: 5813 | E44: 14 | F44: 5822 | K44: 0 | L44: 211
A45: 22 | B45: 5938 | C45: 13 | D45: 5950 | E45: 14 | F45: 5959 | K45: 0 | L45: 211
A46: 22 | B46: 6073 | C46: 13 | D46: 6085 | E46: 14 | F46: 6122 | K46: 0 | L46: 211
A47: 22 | B47: 6229 | C47: 13 | D47: 6247 | E47: 14 | F47: 6257 | K47: 0 | L47: 211
A48: 22 | B48: 6367 | C48: 13 | D48: 6380 | E48: 14 | F48: 6398 | K48: 0 | L48: 211
A49: 22 | B49: 6506 | C49: 13 | D49: 6575 | E49: 14 | F49: 6610 | K49: 0 | L49: 211
A50: 11 | B50: 6726 | C50: 11 | D50: 6740 | E50: 12 | F50: 6750 | K50: 0 | L50: 111
A51: 22 | B51: 6855 | C51: 13 | D51: 6869 | E51: 14 | F51: 6879 | K51: 0 | L51: 211
A52: 22 | B52: 6983 | C52: 13 | D52: 7005 | E52: 14 | F52: 7014 | K52: 0 | L52: 211
A53: 11 | B53: 7114 | C53: 11 | D53: 7123 | E53: 12 | F53: 7135 | K53: 0 | L53: 111
A54: 11 | B54: 7250 | C54: 11 | D54: 7259 | E54: 12 | F54: 7269 | K54: 0 | L54: 111
A55: 11 | B55: 7372 | C55: 11 | D55: 7380 | E55: 12 | F55: 7390 | K55: 0 | L55: 111
A56: 11 | B56: 7509 | C56: 11 | D56: 7521 | E56: 12 | F56: 7530 | K56: 0 | L56: 111
A57: 11 | B57: 7643 | C57: 11 | D57: 7704 | E57: 12 | F57: 7726 | K57: 0 | L57: 111
A58: 11 | B58: 7829 | C58: 11 | D58: 7838 | E58: 12 | F58: 7846 | K58: 0 | L58: 111
A59: 22 | B59: 7949 | C59: 13 | D59: 7959 | E59: 14 | F59: 7966 | K59: 0 | L59: 211
A60: 22 | B60: 8070 | C60: 13 | D60: 8084 | E60: 14 | F60: 8100 | K60: 0 | L60: 211
A61: 22 | B61: 8203 | C61: 13 | D61: 8229 | E61: 14 | F61: 8237 | K61: 0 | L61: 211
A62: 11 | B62: 8344 | C62: 11 | D62: 8351 | E62: 12 | F62: 8360 | K62: 0 | L62: 111
A63: 22 | B63: 8461 | C63: 13 | D63: 8471 | E63: 14 | F63: 8481 | K63: 0 | L63: 211
A64: 11 | B64: 8591 | C64: 11 | D64: 8610 | E64: 12 | F64: 8629 | K64: 0 | L64: 111
A65: 11 | B65: 8745 | C65: 11 | D65: 8754 | E65: 12 | F65: 8772 | K65: 0 | L65: 111
A66: 22 | B66: 8879 | C66: 13 | D66: 8892 | E66: 14 | F66: 8900 | K66: 0 | L66: 211
A67: 22 | B67: 9002 | C67: 13 | D67: 9018 | E67: 14 | F67: 9026 | K67: 0 | L67: 211
A68: 11 | B68: 9153 | C68: 11 | D68: 9180 | E68: 12 | F68: 9197 | K68: 0 | L68: 111
A69: 22 | B69: 9298 | C69: 13 | D69: 9311 | E69: 14 | F69: 9327 | K69: 0 | L69: 211
A70: 11 | B70: 9449 | C70: 11 | D70: 9457 | E70: 12 | F70: 9466 | K70: 0 | L70: 111
A71: 22 | B71: 9575 | C71: 13 | D71: 9589 | E71: 14 | F71: 9606 | K71: 0 | L71: 211
A72: 22 | B72: 9706 | C72: 13 | D72: 9720 | E72: 14 | F72: 9728 | K72: 0 | L72: 211
A73: 22 | B73: 9843 | C73: 13 | D73: 9892 | E73: 14 | F73: 9919 | K73: 0 | L73: 211
A74: 22 | B74: 10021 | C74: 13 | D74: 10032 | E74: 14 | F74: 10042 | K74: 0 | L74: 211
A75: 22 | B75: 10155 | C75: 13 | D75: 10171 | E75: 14 | F75: 10180 | K75: 0 | L75: 211
A76: 22 | B76: 10282 | C76: 13 | D76: 10292 | E76: 14 | F76: 10299 | K76: 0 | L76: 211
A77: 11 | B77: 10420 | C77: 11 | D77: 10429 | E77: 12 | F77: 10446 | K77: 0 | L77: 111
A78: 11 | B78: 10563 | C78: 11 | D78: 10614 | E78: 12 | F78: 10624 | K78: 0 | L78: 111
A79: 22 | B79: 10726 | C79: 13 | D79: 10740 | E79: 14 | F79: 10749 | K79: 0 | L79: 211
A80: 22 | B80: 10846 | C80: 13 | D80: 10859 | E80: 14 | F80: 10868 | K80: 0 | L80: 211
A81: 22 | B81: 10969 | C81: 13 | D81: 10979 | E81: 14 | F81: 10987 | K81: 0 | L81: 211
A82: 22 | B82: 11087 | C82: 13 | D82: 11097 | E82: 14 | F82: 11105 | K82: 0 | L82: 211
A83: 11 | B83: 11214 | C83: 11 | D83: 11218 | E83: 12 | F83: 11237 | K83: 0 | L83: 111
A84: 22 | B84: 11339 | C84: 13 | D84: 11351 | E84: 14 | F84: 11359 | K84: 0 | L84: 211
A85: 22 | B85: 11473 | C85: 13 | D85: 11483 | E85: 14 | F85: 11493 | K85: 0 | L85: 211
A86: 11 | B86: 11602 | C86: 11 | D86: 11607 | E86: 12 | F86: 11627 | K86: 0 | L86: 111
A87: 11 | B87: 11739 | C87: 11 | D87: 11748 | E87: 12 | F87: 11757 | K87: 0 | L87: 111
A88: 11 | B88: 11868 | C88: 11 | D88: 11875 | E88: 12 | F88: 11879 | K88: 0 | L88: 111
A89: 11 | B89: 11987 | C89: 11 | D89: 11993 | E89: 12 | F89: 12002 | K89: 0 | L89: 111
A90: 22 | B90: 12113 | C90: 13 | D90: 12123 | E90: 14 | F90: 12131 | K90: 0 | L90: 211
A91: 11 | B91: 12243 | C91: 11 | D91: 12259 | E91: 12 | F91: 12276 | K91: 0 | L91: 111
A92: 11 | B92: 12390 | C92: 11 | D92: 12398 | E92: 12 | F92: 12408 | K92: 0 | L92: 111
A93: 11 | B93: 12527 | C93: 11 | D93: 12544 | E93: 12 | F93: 12562 | K93: 0 | L93: 111
A94: 11 | B94: 12669 | C94: 11 | D94: 12677 | E94: 12 | F94: 12685 | K94: 0 | L94: 111
A95: 11 | B95: 12796 | C95: 11 | D95: 12804 | E95: 12 | F95: 12813 | K95: 0 | L95: 111
A96: 11 | B96: 12929 | C96: 11 | D96: 12938 | E96: 12 | F96: 12947 | K96: 0 | L96: 111
A97: 11 | B97: 13060 | C97: 11 | D97: 13068 | E97: 12 | F97: 13077 | K97: 0 | L97: 111
A98: 11 | B98: 13192 | C98: 11 | D98: 13201 | E98: 12 | F98: 13205 | K98: 0 | L98: 111
A99: 11 | B99: 13306 | C99: 11 | D99: 13315 | E99: 12 | F99: 13329 | K99: 0 | L99: 111
A100: 11 | B100: 13420 | C100: 11 | D100: 13440 | E100: 12 | F100: 13449 | K100: 0 | L100: 111
A101: 11 | B101: 13562 | C101: 11 | D101: 13575 | E101: 12 | F101: 13584 | K101: 0 | L101: 111
A102: 11 | B102: 13701 | C102: 11 | D102: 13710 | E102: 12 | F102: 13729 | K102: 0 | L102: 111
A103: 11 | B103: 13837 | C103: 11 | D103: 13844 | E103: 12 | F103: 13853 | K103: 0 | L103: 111
A104: 11 | B104: 13961 | C104: 11 | D104: 13970 | E104: 12 | F104: 13978 | K104: 0 | L104: 111
A105: 11 | B105: 14089 | C105: 11 | D105: 14098 | E105: 12 | F105: 14123 | K105: 0 | L105: 111
A106: 11 | B106: 14235 | C106: 11 | D106: 14239 | E106: 12 | F106: 14272 | K106: 0 | L106: 111
A107: 11 | B107: 14365 | C107: 11 | D107: 14386 | E107: 12 | F107: 14395 | K107: 0 | L107: 111
A108: 11 | B108: 14509 | C108: 11 | D108: 14514 | E108: 12 | F108: 14536 | K108: 0 | L108: 111
A109: 11 | B109: 14648 | C109: 11 | D109: 14656 | E109: 12 | F109: 14663 | K109: 0 | L109: 111
A110: 11 | B110: 14785 | C110: 11 | D110: 14795 | E110: 12 | F110: 14804 | K110: 0 | L110: 111
A111: 11 | B111: 14915 | C111: 11 | D111: 14936 | E111: 12 | F111: 14948 | K111: 0 | L111: 111
A112: 11 | B112: 15056 | C112: 11 | D112: 15066 | E112: 12 | F112: 15076 | K112: 0 | L112: 111
A113: 11 | B113: 15187 | C113: 11 | D113: 15199 | E113: 12 | F113: 15208 | K113: 0 | L113: 111
A114: 22 | B114: 15327 | C114: 13 | D114: 15337 | E114: 14 | F114: 15345 | K114: 0 | L114: 211
A115: 11 | B115: 15456 | C115: 11 | D115: 15472 | E115: 12 | F115: 15485 | K115: 0 | L115: 111
A116: 11 | B116: 15598 | C116: 11 | D116: 15617 | E116: 12 | F116: 15621 | K116: 0 | L116: 111
A117: 11 | B117: 15741 | C117: 11 | D117: 15749 | E117: 12 | F117: 15759 | K117: 0 | L117: 111
A118: 11 | B118: 15869 | C118: 11 | D118: 15878 | E118: 12 | F118: 15905 | K118: 0 | L118: 111
A119: 11 | B119: 16019 | C119: 11 | D119: 16027 | E119: 12 | F119: 16036 | K119: 0 | L119: 111
A120: 11 | B120: 16152 | C120: 11 | D120: 16162 | E120: 12 | F120: 16177 | K120: 0 | L120: 111
A121: 11 | B121: 16296 | C121: 11 | D121: 16301 | E121: 12 | F121: 16310 | K121: 0 | L121: 111
A122: 11 | B122: 16421 | C122: 11 | D122: 16430 | E122: 12 | F122: 16447 | K122: 0 | L122: 111
A123: 22 | B123: 16549 | C123: 13 | D123: 16558 | E123: 14 | F123: 16567 | K123: 0 | L123: 211
A124: 11 | B124: 16679 | C124: 11 | D124: 16694 | E124: 12 | F124: 16734 | K124: 0 | L124: 111
A125: 11 | B125: 16858 | C125: 11 | D125: 16867 | E125: 12 | F125: 16883 | K125: 0 | L125: 111
A126: 11 | B126: 16999 | C126: 11 | D126: 17008 | E126: 12 | F126: 17018 | K126: 0 | L126: 111
A127: 11 | B127: 17135 | C127: 11 | D127: 17144 | E127: 12 | F127: 17152 | K127: 0 | L127: 111
A128: 11 | B128: 17263 | C128: 11 | D128: 17280 | E128: 12 | F128: 17293 | K128: 0 | L128: 111
A129: 11 | B129: 17416 | C129: 11 | D129: 17425 | E129: 12 | F129: 17443 | K129: 0 | L129: 111
A130: 11 | B130: 17554 | C130: 11 | D130: 17564 | E130: 12 | F130: 17573 | K130: 0 | L130: 111
A131: 11 | B131: 17683 | C131: 11 | D131: 17690 | E131: 12 | F131: 17693 | K131: 0 | L131: 111
A132: 11 | B132: 17804 | C132: 11 | D132: 17812 | E132: 12 | F132: 17821 | K132: 0 | L132: 111
A133: 11 | B133: 17933 | C133: 11 | D133: 17937 | E133: 12 | F133: 17946 | K133: 0 | L133: 111
A134: 11 | B134: 18061 | C134: 11 | D134: 18066 | E134: 12 | F134: 18076 | K134: 0 | L134: 111
A135: 11 | B135: 18172 | C135: 11 | D135: 18180 | E135: 12 | F135: 18189 | K135: 0 | L135: 111
A136: 22 | B136: 18318 | C136: 13 | D136: 18351 | E136: 14 | F136: 18369 | K136: 0 | L136: 211
A137: 22 | B137: 18483 | C137: 13 | D137: 18496 | E137: 14 | F137: 18505 | K137: 0 | L137: 211
A138: 22 | B138: 18606 | C138: 24 | D138: 18622 | E138: 14 | F138: 18635 | K138: 0 | L138: 221
A139: 11 | B139: 18748 | C139: 11 | D139: 18759 | E139: 12 | F139: 18768 | K139: 0 | L139: 111
A140: 11 | B140: 18880 | C140: 11 | D140: 18884 | E140: 12 | F140: 18894 | K140: 0 | L140: 111
A141: 11 | B141: 19009 | C141: 11 | D141: 19018 | E141: 12 | F141: 19028 | K141: 0 | L141: 111
A142: 11 | B142: 19139 | C142: 11 | D142: 19147 | E142: 12 | F142: 19156 | K142: 0 | L142: 111
A143: 11 | B143: 19272 | C143: 11 | D143: 19288 | E143: 12 | F143: 19305 | K143: 0 | L143: 111
A144: 11 | B144: 19422 | C144: 11 | D144: 19429 | E144: 12 | F144: 19437 | K144: 0 | L144: 111
A145: 11 | B145: 19564 | C145: 11 | D145: 19574 | E145: 12 | F145: 19590 | K145: 0 | L145: 111
A146: 11 | B146: 19706 | C146: 11 | D146: 19715 | E146: 12 | F146: 19725 | K146: 0 | L146: 111
A147: 11 | B147: 19839 | C147: 11 | D147: 19847 | E147: 12 | F147: 19864 | K147: 0 | L147: 111
A148: 11 | B148: 19975 | C148: 11 | D148: 19983 | E148: 12 | F148: 19993 | K148: 0 | L148: 111
A149: 11 | B149: 20122 | C149: 11 | D149: 20130 | E149: 12 | F149: 20139 | K149: 0 | L149: 111
A150: 22 | B150: 20260 | C150: 13 | D150: 20274 | E150: 14 | F150: 20284 | K150: 0 | L150: 211
A151: 11 | B151: 20414 | C151: 11 | D151: 20425 | E151: 12 | F151: 20441 | K151: 0 | L151: 111
A152: 11 | B152: 20557 | C152: 11 | D152: 20562 | E152: 12 | F152: 20571 | K152: 0 | L152: 111
A153: 11 | B153: 20680 | C153: 11 | D153: 20685 | E153: 12 | F153: 20693 | K153: 0 | L153: 111
A154: 11 | B154: 20809 | C154: 11 | D154: 20816 | E154: 12 | F154: 20825 | K154: 0 | L154: 111
A155: 11 | B155: 20939 | C155: 11 | D155: 20944 | E155: 12 | F155: 20956 | K155: 0 | L155: 111
A156: 22 | B156: 21078 | C156: 13 | D156: 21097 | E156: 14 | F156: 21107 | K156: 0 | L156: 211
A157: 22 | B157: 21228 | C157: 13 | D157: 21242 | E157: 14 | F157: 21251 | K157: 0 | L157: 211
A158: 22 | B158: 21374 | C158: 13 | D158: 21400 | E158: 14 | F158: 21410 | K158: 0 | L158: 211
A159: 11 | B159: 21526 | C159: 11 | D159: 21535 | E159: 12 | F159: 21547 | K159: 0 | L159: 111
A160: 22 | B160: 21664 | C160: 13 | D160: 21689 | E160: 14 | F160: 21698 | K160: 0 | L160: 211
A161: 11 | B161: 21823 | C161: 11 | D161: 21843 | E161: 12 | F161: 21852 | K161: 0 | L161: 111
A162: 22 | B162: 21956 | C162: 13 | D162: 21982 | E162: 14 | F162: 21990 | K162: 0 | L162: 211
A163: 11 | B163: 22105 | C163: 11 | D163: 22112 | E163: 12 | F163: 22121 | K163: 0 | L163: 111
A164: 11 | B164: 22247 | C164: 11 | D164: 22254 | E164: 12 | F164: 22264 | K164: 0 | L164: 111
A165: 11 | B165: 22378 | C165: 11 | D165: 22392 | E165: 12 | F165: 22406 | K165: 0 | L165: 111
A166: 11 | B166: 22512 | C166: 11 | D166: 22523 | E166: 12 | F166: 22532 | K166: 0 | L166: 111
A167: 11 | B167: 22655 | C167: 11 | D167: 22664 | E167: 12 | F167: 22673 | K167: 0 | L167: 111
A168: 11 | B168: 22797 | C168: 11 | D168: 22813 | E168: 12 | F168: 22821 | K168: 0 | L168: 111
A169: 11 | B169: 22931 | C169: 11 | D169: 22940 | E169: 12 | F169: 22969 | K169: 0 | L169: 111
A170: 11 | B170: 23078 | C170: 11 | D170: 23085 | E170: 12 | F170: 23107 | K170: 0 | L170: 111
A171: 11 | B171: 23212 | C171: 11 | D171: 23221 | E171: 12 | F171: 23230 | K171: 0 | L171: 111
A172: 11 | B172: 23349 | C172: 11 | D172: 23365 | E172: 12 | F172: 23374 | K172: 0 | L172: 111
A173: 11 | B173: 23482 | C173: 11 | D173: 23493 | E173: 12 | F173: 23503 | K173: 0 | L173: 111
A174: 11 | B174: 23620 | C174: 11 | D174: 23627 | E174: 12 | F174: 23637 | K174: 0 | L174: 111
A175: 11 | B175: 23763 | C175: 11 | D175: 23771 | E175: 12 | F175: 23833 | K175: 0 | L175: 111
A176: 11 | B176: 23964 | C176: 11 | D176: 23986 | L176: 11

Sheet !M803A30.010
A1: Report for:!M803A30.010
A2: Date: | B2: <date>
A3: Hen: | B3: <hen> | F3: Correct Sequence | G3: =Start!J2 -> 122 | P3: Total Sequences in Data | Q3: =4994-COUNTBLANK(L7:L5000) -> 165 | V3: Total Sequences in Block Data | W3: =COUNTA(L7:L34) -> 28 | AA3: Total Sequences in Block Data | AB3: =COUNTA(L35:L61) -> 27 | AF3: Total Sequences in Block Data | AG3: =COUNTA(L62:L89) -> 28 | AK3: Total Sequences in Block Data | AL3: =COUNTA(L90:L116) -> 27 | AP3: Total Sequences in Block Data | AQ3: =COUNTA(L117:L144) -> 28 | AU3: Total Sequences in Block Data | AV3: =COUNTA(L145:L171) -> 27
P4: Total Sequences in Summary | Q4: =SUM(O7:O14) -> 165 | V4: Total Sequences in Block Summary | W4: =SUM(U7:U14) -> 28 | AA4: Total Sequences in Block Summary | AB4: =SUM(Z7:Z14) -> 27 | AF4: Total Sequences in Block Summary | AG4: =SUM(AE7:AE14) -> 28 | AK4: Total Sequences in Block Summary | AL4: =SUM(AJ7:AJ14) -> 27 | AP4: Total Sequences in Block Summary | AQ4: =SUM(AO7:AO14) -> 28 | AU4: Total Sequences in Block Summary | AV4: =SUM(AT7:AT14) -> 27
T5: Block 1 | Y5: Block 2 | AD5: Block 3 | AI5: Block 4 | AN5: Block 5 | AS5: Block 6
A6: Sequence Component 1 | B6: Time 1 | C6: Sequence Component 2 | D6: Time 2 | E6: Sequence Component 3 | F6: Time 3 | G6: Sequence Component 4 | H6: Time 4 | I6: Sequence Component 5 | J6: Time 5 | K6: Correct? 0=No 1=Yes | L6: Sequence | N6: Frequency | P6: Relative Frequency | Q6: Variability | T6: Frequency | V6: Relative Frequency | W6: Variability | Y6: Frequency | AA6: Relative Frequency | AB6: Variability | AD6: Frequency | AF6: Relative Frequency | AG6: Variability | AI6: Frequency | AK6: Relative Frequency | AL6: Variability | AN6: Frequency | AP6: Relative Frequency | AQ6: Variability | AS6: Frequency | AU6: Relative Frequency | AV6: Variability
A7: 11 | B7: 12 | C7: 11 | D7: 21 | E7: 12 | F7: 31 | K7: 0 | L7: 111 | N7: 111 | O7: =COUNTIF($L$7:$L$500,N7) -> 128 | P7: =O7/$Q$4 -> 0.7757575758 | Q7: =IF(P7=0,0,(P7*((LOG(P7))/LOG(2)))) -> -0.2841772329 | T7: =N7 -> 111 | U7: =COUNTIF(L7:L34,T7) -> 20 | V7: =U7/(W4-U10) -> 0.7142857143 | W7: =IF(V7=0,0,(V7*((LOG(V7))/LOG(2)))) -> -0.346733448 | Y7: =N7 -> 111 | Z7: =COUNTIF(L35:L61,Y7) -> 19 | AA7: =Z7/(AB4-Z10) -> 0.7037037037 | AB7: =IF(AA7=0,0,(AA7*((LOG(AA7))/LOG(2)))) -> -0.3567496217 | AD7: =N7 -> 111 | AE7: =COUNTIF(L62:L89,AD7) -> 19 | AF7: =AE7/(AG4-AE10) -> 0.6785714286 | AG7: =IF(AF7=0,0,(AF7*((LOG(AF7))/LOG(2)))) -> -0.3796114558 | AI7: =N7 -> 111 | AJ7: =COUNTIF(L90:L116,AI7) -> 24 | AK7: =AJ7/(AL4-AJ10) -> 0.8888888889 | AL7: =IF(AK7=0,0,(AK7*((LOG(AK7))/LOG(2)))) -> -0.1510444457 | AN7: =N7 -> 111 | AO7: =COUNTIF(L117:L144,AN7) -> 24 | AP7: =AO7/(AQ4-AO10) -> 0.8571428571 | AQ7: =IF(AP7=0,0,(AP7*((LOG(AP7))/LOG(2)))) -> -0.1906220754 | AS7: =N7 -> 111 | AT7: =COUNTIF(L145:L171,AS7) -> 22 | AU7: =AT7/(AV4-AT10) -> 0.8148148148 | AV7: =IF(AU7=0,0,(AU7*((LOG(AU7))/LOG(2)))) -> -0.240741831
A8: 11 | B8: 136 | C8: 11 | D8: 144 | E8: 12 | F8: 150 | K8: 0 | L8: 111 | N8: 112 | O8: =COUNTIF($L$7:$L$500,N8) -> 0 | P8: =O8/$Q$4 -> 0 | Q8: =IF(P8=0,0,(P8*((LOG(P8))/LOG(2)))) -> 0 | T8: =N8 -> 112 | U8: =COUNTIF(L7:L34,T8) -> 0 | V8: =U8/(W4-U10) -> 0 | W8: =IF(V8=0,0,(V8*((LOG(V8))/LOG(2)))) -> 0 | Y8: =N8 -> 112 | Z8: =COUNTIF(L35:L61,Y8) -> 0 | AA8: =Z8/(AB4-Z10) -> 0 | AB8: =IF(AA8=0,0,(AA8*((LOG(AA8))/LOG(2)))) -> 0 | AD8: =N8 -> 112 | AE8: =COUNTIF(L62:L89,AD8) -> 0 | AF8: =AE8/(AG4-AE10) -> 0 | AG8: =IF(AF8=0,0,(AF8*((LOG(AF8))/LOG(2)))) -> 0 | AI8: =N8 -> 112 | AJ8: =COUNTIF(L90:L116,AI8) -> 0 | AK8: =AJ8/(AL4-AJ10) -> 0 | AL8: =IF(AK8=0,0,(AK8*((LOG(AK8))/LOG(2)))) -> 0 | AN8: =N8 -> 112 | AO8: =COUNTIF(L117:L144,AN8) -> 0 | AP8: =AO8/(AQ4-AO10) -> 0 | AQ8: =IF(AP8=0,0,(AP8*((LOG(AP8))/LOG(2)))) -> 0 | AS8: =N8 -> 112 | AT8: =COUNTIF(L145:L171,AS8) -> 0 | AU8: =AT8/(AV4-AT10) -> 0 | AV8: =IF(AU8=0,0,(AU8*((LOG(AU8))/LOG(2)))) -> 0
A9: 11 | B9: 255 | C9: 11 | D9: 265 | E9: 12 | F9: 274 | K9: 0 | L9: 111 | N9: 121 | O9: =COUNTIF($L$7:$L$500,N9) -> 6 | P9: =O9/$Q$4 -> 0.03636363636 | Q9: =IF(P9=0,0,(P9*((LOG(P9))/LOG(2)))) -> -0.1738676259 | T9: =N9 -> 121 | U9: =COUNTIF(L7:L34,T9) -> 0 | V9: =U9/(W4-U10) -> 0 | W9: =IF(V9=0,0,(V9*((LOG(V9))/LOG(2)))) -> 0 | Y9: =N9 -> 121 | Z9: =COUNTIF(L35:L61,Y9) -> 1 | AA9: =Z9/(AB4-Z10) -> 0.03703703704 | AB9: =IF(AA9=0,0,(AA9*((LOG(AA9))/LOG(2)))) -> -0.1761069445 | AD9: =N9 -> 121 | AE9: =COUNTIF(L62:L89,AD9) -> 3 | AF9: =AE9/(AG4-AE10) -> 0.1071428571 | AG9: =IF(AF9=0,0,(AF9*((LOG(AF9))/LOG(2)))) -> -0.3452563309 | AI9: =N9 -> 121 | AJ9: =COUNTIF(L90:L116,AI9) -> 0 | AK9: =AJ9/(AL4-AJ10) -> 0 | AL9: =IF(AK9=0,0,(AK9*((LOG(AK9))/LOG(2)))) -> 0 | AN9: =N9 -> 121 | AO9: =COUNTIF(L117:L144,AN9) -> 1 | AP9: =AO9/(AQ4-AO10) -> 0.03571428571 | AQ9: =IF(AP9=0,0,(AP9*((LOG(AP9))/LOG(2)))) -> -0.1716912472 | AS9: =N9 -> 121 | AT9: =COUNTIF(L145:L171,AS9) -> 1 | AU9: =AT9/(AV4-AT10) -> 0.03703703704 | AV9: =IF(AU9=0,0,(AU9*((LOG(AU9))/LOG(2)))) -> -0.1761069445
A10: 11 | B10: 384 | C10: 11 | D10: 389 | E10: 12 | F10: 398 | K10: 0 | L10: 111 | N10: 122 | O10: =COUNTIF($L$7:$L$500,N10) -> 0 | P10: =O10/$Q$4 -> 0 | Q10: =IF(P10=0,0,(P10*((LOG(P10))/LOG(2)))) -> 0 | T10: =N10 -> 122 | U10: =COUNTIF(L7:L34,T10) -> 0 | Y10: =N10 -> 122 | Z10: =COUNTIF(L35:L61,Y10) -> 0 | AD10: =N10 -> 122 | AE10: =COUNTIF(L62:L89,AD10) -> 0 | AI10: =N10 -> 122 | AJ10: =COUNTIF(L90:L116,AI10) -> 0 | AN10: =N10 -> 122 | AO10: =COUNTIF(L117:L144,AN10) -> 0 | AS10: =N10 -> 122 | AT10: =COUNTIF(L145:L171,AS10) -> 0
A11: 11 | B11: 514 | C11: 11 | D11: 521 | E11: 12 | F11: 566 | K11: 0 | L11: 111 | N11: 211 | O11: =COUNTIF($L$7:$L$500,N11) -> 29 | P11: =O11/$Q$4 -> 0.1757575758 | Q11: =IF(P11=0,0,(P11*((LOG(P11))/LOG(2)))) -> -0.4408599718 | T11: =N11 -> 211 | U11: =COUNTIF(L7:L34,T11) -> 8 | V11: =U11/(W4-U10) -> 0.2857142857 | W11: =IF(V11=0,0,(V11*((LOG(V11))/LOG(2)))) -> -0.5163871206 | Y11: =N11 -> 211 | Z11: =COUNTIF(L35:L61,Y11) -> 7 | AA11: =Z11/(AB4-Z10) -> 0.2592592593 | AB11: =IF(AA11=0,0,(AA11*((LOG(AA11))/LOG(2)))) -> -0.5049158541 | AD11: =N11 -> 211 | AE11: =COUNTIF(L62:L89,AD11) -> 4 | AF11: =AE11/(AG4-AE10) -> 0.1428571429 | AG11: =IF(AF11=0,0,(AF11*((LOG(AF11))/LOG(2)))) -> -0.4010507032 | AI11: =N11 -> 211 | AJ11: =COUNTIF(L90:L116,AI11) -> 3 | AK11: =AJ11/(AL4-AJ10) -> 0.1111111111 | AL11: =IF(AK11=0,0,(AK11*((LOG(AK11))/LOG(2)))) -> -0.352213889 | AN11: =N11 -> 211 | AO11: =COUNTIF(L117:L144,AN11) -> 3 | AP11: =AO11/(AQ4-AO10) -> 0.1071428571 | AQ11: =IF(AP11=0,0,(AP11*((LOG(AP11))/LOG(2)))) -> -0.3452563309 | AS11: =N11 -> 211 | AT11: =COUNTIF(L145:L171,AS11) -> 4 | AU11: =AT11/(AV4-AT10) -> 0.1481481481 | AV11: =IF(AU11=0,0,(AU11*((LOG(AU11))/LOG(2)))) -> -0.4081314818
A12: 11 | B12: 672 | C12: 11 | D12: 684 | E12: 12 | F12: 693 | K12: 0 | L12: 111 | N12: 212 | O12: =COUNTIF($L$7:$L$500,N12) -> 0 | P12: =O12/$Q$4 -> 0 | Q12: =IF(P12=0,0,(P12*((LOG(P12))/LOG(2)))) -> 0 | T12: =N12 -> 212 | U12: =COUNTIF(L7:L34,T12) -> 0 | V12: =U12/(W4-U10) -> 0 | W12: =IF(V12=0,0,(V12*((LOG(V12))/LOG(2)))) -> 0 | Y12: =N12 -> 212 | Z12: =COUNTIF(L35:L61,Y12) -> 0 | AA12: =Z12/(AB4-Z10) -> 0 | AB12: =IF(AA12=0,0,(AA12*((LOG(AA12))/LOG(2)))) -> 0 | AD12: =N12 -> 212 | AE12: =COUNTIF(L62:L89,AD12) -> 0 | AF12: =AE12/(AG4-AE10) -> 0 | AG12: =IF(AF12=0,0,(AF12*((LOG(AF12))/LOG(2)))) -> 0 | AI12: =N12 -> 212 | AJ12: =COUNTIF(L90:L116,AI12) -> 0 | AK12: =AJ12/(AL4-AJ10) -> 0 | AL12: =IF(AK12=0,0,(AK12*((LOG(AK12))/LOG(2)))) -> 0 | AN12: =N12 -> 212 | AO12: =COUNTIF(L117:L144,AN12) -> 0 | AP12: =AO12/(AQ4-AO10) -> 0 | AQ12: =IF(AP12=0,0,(AP12*((LOG(AP12))/LOG(2)))) -> 0 | AS12: =N12 -> 212 | AT12: =COUNTIF(L145:L171,AS12) -> 0 | AU12: =AT12/(AV4-AT10) -> 0 | AV12: =IF(AU12=0,0,(AU12*((LOG(AU12))/LOG(2)))) -> 0
A13: 11 | B13: 813 | C13: 11 | D13: 822 | E13: 12 | F13: 830 | K13: 0 | L13: 111 | N13: 221 | O13: =COUNTIF($L$7:$L$500,N13) -> 2 | P13: =O13/$Q$4 -> 0.01212121212 | Q13: =IF(P13=0,0,(P13*((LOG(P13))/LOG(2)))) -> -0.07716754199 | T13: =N13 -> 221 | U13: =COUNTIF(L7:L34,T13) -> 0 | V13: =U13/(W4-U10) -> 0 | W13: =IF(V13=0,0,(V13*((LOG(V13))/LOG(2)))) -> 0 | Y13: =N13 -> 221 | Z13: =COUNTIF(L35:L61,Y13) -> 0 | AA13: =Z13/(AB4-Z10) -> 0 | AB13: =IF(AA13=0,0,(AA13*((LOG(AA13))/LOG(2)))) -> 0 | AD13: =N13 -> 221 | AE13: =COUNTIF(L62:L89,AD13) -> 2 | AF13: =AE13/(AG4-AE10) -> 0.07142857143 | AG13: =IF(AF13=0,0,(AF13*((LOG(AF13))/LOG(2)))) -> -0.271953923 | AI13: =N13 -> 221 | AJ13: =COUNTIF(L90:L116,AI13) -> 0 | AK13: =AJ13/(AL4-AJ10) -> 0 | AL13: =IF(AK13=0,0,(AK13*((LOG(AK13))/LOG(2)))) -> 0 | AN13: =N13 -> 221 | AO13: =COUNTIF(L117:L144,AN13) -> 0 | AP13: =AO13/(AQ4-AO10) -> 0 | AQ13: =IF(AP13=0,0,(AP13*((LOG(AP13))/LOG(2)))) -> 0 | AS13: =N13 -> 221 | AT13: =COUNTIF(L145:L171,AS13) -> 0 | AU13: =AT13/(AV4-AT10) -> 0 | AV13: =IF(AU13=0,0,(AU13*((LOG(AU13))/LOG(2)))) -> 0
A14: 11 | B14: 957 | C14: 11 | D14: 965 | E14: 12 | F14: 974 | K14: 0 | L14: 111 | N14: 222 | O14: =COUNTIF($L$7:$L$500,N14) -> 0 | P14: =O14/$Q$4 -> 0 | Q14: =IF(P14=0,0,(P14*((LOG(P14))/LOG(2)))) -> 0 | T14: =N14 -> 222 | U14: =COUNTIF(L7:L34,T14) -> 0 | V14: =U14/(W4-U10) -> 0 | W14: =IF(V14=0,0,(V14*((LOG(V14))/LOG(2)))) -> 0 | Y14: =N14 -> 222 | Z14: =COUNTIF(L35:L61,Y14) -> 0 | AA14: =Z14/(AB4-Z10) -> 0 | AB14: =IF(AA14=0,0,(AA14*((LOG(AA14))/LOG(2)))) -> 0 | AD14: =N14 -> 222 | AE14: =COUNTIF(L62:L89,AD14) -> 0 | AF14: =AE14/(AG4-AE10) -> 0 | AG14: =IF(AF14=0,0,(AF14*((LOG(AF14))/LOG(2)))) -> 0 | AI14: =N14 -> 222 | AJ14: =COUNTIF(L90:L116,AI14) -> 0 | AK14: =AJ14/(AL4-AJ10) -> 0 | AL14: =IF(AK14=0,0,(AK14*((LOG(AK14))/LOG(2)))) -> 0 | AN14: =N14 -> 222 | AO14: =COUNTIF(L117:L144,AN14) -> 0 | AP14: =AO14/(AQ4-AO10) -> 0 | AQ14: =IF(AP14=0,0,(AP14*((LOG(AP14))/LOG(2)))) -> 0 | AS14: =N14 -> 222 | AT14: =COUNTIF(L145:L171,AS14) -> 0 | AU14: =AT14/(AV4-AT10) -> 0 | AV14: =IF(AU14=0,0,(AU14*((LOG(AU14))/LOG(2)))) -> 0
A15: 11 | B15: 1096 | C15: 11 | D15: 1104 | E15: 12 | F15: 1119 | K15: 0 | L15: 111 | P15: =SUM(P7:P14) -> 1 | Q15: =-SUM(Q7:Q14) -> 0.9760723727 | V15: =SUM(V7:V14) -> 1 | W15: =-SUM(W7:W14) -> 0.8631205686 | AA15: =SUM(AA7:AA14) -> 1 | AB15: =-SUM(AB7:AB14) -> 1.03777242 | AF15: =SUM(AF7:AF14) -> 1 | AG15: =-SUM(AG7:AG14) -> 1.397872413 | AK15: =SUM(AK7:AK14) -> 1 | AL15: =-SUM(AL7:AL14) -> 0.5032583348 | AP15: =SUM(AP7:AP14) -> 1 | AQ15: =-SUM(AQ7:AQ14) -> 0.7075696535 | AU15: =SUM(AU7:AU14) -> 1 | AV15: =-SUM(AV7:AV14) -> 0.8249802573
A16: 11 | B16: 1261 | C16: 11 | D16: 1288 | E16: 12 | F16: 1296 | K16: 0 | L16: 111 | P16: U= | Q16: =Q15/(LOG(Q4)/LOG(2)) -> 0.1325047078 | V16: U1= | W16: =W15/(LOG(W4)/LOG(2)) -> 0.1795416778 | AA16: U2= | AB16: =AB15/(LOG(AB4)/LOG(2)) -> 0.2182538325 | AF16: U3= | AG16: =AG15/(LOG(AG4)/LOG(2)) -> 0.2907778676 | AK16: U4= | AL16: =AL15/(LOG(AL4)/LOG(2)) -> 0.105840219 | AP16: U5= | AQ16: =AQ15/(LOG(AQ4)/LOG(2)) -> 0.1471848168 | AU16: U6= | AV16: =AV15/(LOG(AV4)/LOG(2)) -> 0.1735015302
A17: 11 | B17: 1418 | C17: 11 | D17: 1425 | E17: 12 | F17: 1441 | K17: 0 | L17: 111
A18: 22 | B18: 1585 | C18: 13 | D18: 1618 | E18: 14 | F18: 1635 | K18: 0 | L18: 211
A19: 22 | B19: 1747 | C19: 13 | D19: 1779 | E19: 14 | F19: 1791 | K19: 0 | L19: 211 | N19: Total Target Seq
A20: 22 | B20: 1914 | C20: 13 | D20: 1936 | E20: 14 | F20: 1945 | K20: 0 | L20: 211 | N20: =COUNTIF(L7:L171,G3) -> 0 | P20: 28 | Q20: 27 | R20: 28 | S20: 27 | T20: 28 | U20: 27
A21: 22 | B21: 2079 | C21: 13 | D21: 2093 | E21: 14 | F21: 2103 | K21: 0 | L21: 211 | P21: % of reinforcement given in 6 equal intervals based on number of trials
A22: 22 | B22: 2213 | C22: 13 | D22: 2227 | E22: 14 | F22: 2249 | K22: 0 | L22: 211 | P22: %_1 | Q22: %_2 | R22: %_3 | S22: %_4 | T22: %_5 | U22: %_6
A23: 22 | B23: 2373 | C23: 13 | D23: 2405 | E23: 14 | F23: 2419 | K23: 0 | L23: 211 | O23: target sequence | P23: =$G$3 -> 122 | Q23: =$G$3 -> 122 | R23: =$G$3 -> 122 | S23: =$G$3 -> 122 | T23: =$G$3 -> 122 | U23: =$G$3 -> 122
A24: 11 | B24: 2524 | C24: 11 | D24: 2534 | E24: 12 | F24: 2568 | K24: 0 | L24: 111 | O24: total reinforcement | P24: =U10 -> 0 | Q24: =Z10 -> 0 | R24: =AE10 -> 0 | S24: =AJ10 -> 0 | T24: =AO10 -> 0 | U24: =AT10 -> 0
A25: 11 | B25: 2682 | C25: 11 | D25: 2689 | E25: 12 | F25: 2699 | K25: 0 | L25: 111 | O25: % target
A26: 11 | B26: 2827 | C26: 11 | D26: 2842 | E26: 12 | F26: 2871 | K26: 0 | L26: 111 | O26: CCRF
A27: 11 | B27: 2985 | C27: 11 | D27: 2997 | E27: 12 | F27: 3024 | K27: 0 | L27: 111 | O27: % CCRf
A28: 22 | B28: 3131 | C28: 13 | D28: 3145 | E28: 14 | F28: 3153 | K28: 0 | L28: 211 | O28: average response rate | P28: =F34/P20 -> 143.0357143 | Q28: =(F61-F34)/Q20 -> 145.8518519 | R28: =(F89-F61)/R20 -> 147.7142857 | S28: =(F116-F89)/S20 -> 149.8888889 | T28: =(F144-F116)/T20 -> 141.3214286 | U28: =(F171-F144)/U20 -> 141.2222222
A29: 11 | B29: 3267 | C29: 11 | D29: 3277 | E29: 12 | F29: 3294 | K29: 0 | L29: 111
A30: 11 | B30: 3402 | C30: 11 | D30: 3411 | E30: 12 | F30: 3421 | K30: 0 | L30: 111
A31: 11 | B31: 3558 | C31: 11 | D31: 3582 | E31: 12 | F31: 3590 | K31: 0 | L31: 111
A32: 22 | B32: 3717 | C32: 13 | D32: 3727 | E32: 14 | F32: 3743 | K32: 0 | L32: 211
A33: 11 | B33: 3840 | C33: 11 | D33: 3847 | E33: 12 | F33: 3855 | K33: 0 | L33: 111
A34: 11 | B34: 3971 | C34: 11 | D34: 3996 | E34: 12 | F34: 4005 | K34: 0 | L34: 111
A35: 22 | B35: 4103 | C35: 13 | D35: 4141 | E35: 14 | F35: 4151 | K35: 0 | L35: 211
A36: 22 | B36: 4265 | C36: 13 | D36: 4275 | E36: 14 | F36: 4286 | K36: 0 | L36: 211
A37: 22 | B37: 4392 | C37: 13 | D37: 4405 | E37: 14 | F37: 4413 | K37: 0 | L37: 211
A38: 11 | B38: 4519 | C38: 11 | D38: 4543 | E38: 12 | F38: 4564 | K38: 0 | L38: 111
A39: 11 | B39: 4682 | C39: 11 | D39: 4691 | E39: 12 | F39: 4703 | K39: 0 | L39: 111
A40: 11 | B40: 4813 | C40: 11 | D40: 4821 | E40: 12 | F40: 4830 | K40: 0 | L40: 111
A41: 11 | B41: 4940 | C41: 11 | D41: 4965 | E41: 12 | F41: 4976 | K41: 0 | L41: 111
A42: 11 | B42: 5201 | C42: 11 | D42: 5216 | E42: 12 | F42: 5221 | K42: 0 | L42: 111
A43: 22 | B43: 5330 | C43: 13 | D43: 5344 | E43: 14 | F43: 5352 | K43: 0 | L43: 211
A44: 22 | B44: 5449 | C44: 13 | D44: 5461 | E44: 14 | F44: 5469 | K44: 0 | L44: 211
A45: 11 | B45: 5591 | C45: 11 | D45: 5599 | E45: 12 | F45: 5608 | K45: 0 | L45: 111
A46: 11 | B46: 5724 | C46: 11 | D46: 5732 | E46: 12 | F46: 5740 | K46: 0 | L46: 111
A47: 11 | B47: 5838 | C47: 11 | D47: 5843 | E47: 12 | F47: 5852 | K47: 0 | L47: 111
A48: 11 | B48: 5964 | C48: 11 | D48: 5972 | E48: 12 | F48: 6026 | K48: 0 | L48: 111
A49: 11 | B49: 6136 | C49: 11 | D49: 6144 | E49: 12 | F49: 6152 | K49: 0 | L49: 111
A50: 11 | B50: 6264 | C50: 11 | D50: 6272 | E50: 12 | F50: 6281 | K50: 0 | L50: 111
A51: 11 | B51: 6390 | C51: 11 | D51: 6409 | E51: 12 | F51: 6430 | K51: 0 | L51: 111
A52: 11 | B52: 6551 | C52: 11 | D52: 6561 | E52: 12 | F52: 6580 | K52: 0 | L52: 111
A53: 22 | B53: 6784 | C53: 13 | D53: 6798 | E53: 14 | F53: 6807 | K53: 0 | L53: 211
A54: 11 | B54: 6930 | C54: 11 | D54: 6942 | E54: 12 | F54: 6950 | K54: 0 | L54: 111
A55: 11 | B55: 7072 | C55: 11 | D55: 7085 | E55: 12 | F55: 7094 | K55: 0 | L55: 111
A56: 11 | B56: 7195 | C56: 11 | D56: 7208 | E56: 12 | F56: 7223 | K56: 0 | L56: 111
A57: 11 | B57: 7333 | C57: 11 | D57: 7345 | E57: 12 | F57: 7354 | K57: 0 | L57: 111
A58: 11 | B58: 7454 | C58: 11 | D58: 7467 | E58: 12 | F58: 7475 | K58: 0 | L58: 111
A59: 22 | B59: 7669 | C59: 13 | D59: 7691 | E59: 14 | F59: 7696 | K59: 0 | L59: 211
A60: 11 | B60: 7794 | C60: 11 | D60: 7803 | E60: 12 | F60: 7812 | K60: 0 | L60: 111
A61: 11 | B61: 7912 | C61: 22 | D61: 7931 | E61: 14 | F61: 7943 | K61: 0 | L61: 121
A62: 11 | B62: 8054 | C62: 11 | D62: 8073 | E62: 12 | F62: 8081 | K62: 0 | L62: 111
A63: 22 | B63: 8186 | C63: 13 | D63: 8196 | E63: 14 | F63: 8202 | K63: 0 | L63: 211
A64: 11 | B64: 8303 | C64: 11 | D64: 8311 | E64: 12 | F64: 8321 | K64: 0 | L64: 111
A65: 11 | B65: 8515 | C65: 11 | D65: 8520 | E65: 12 | F65: 8529 | K65: 0 | L65: 111
A66: 11 | B66: 8708 | C66: 11 | D66: 8721 | E66: 12 | F66: 8735 | K66: 0 | L66: 111
A67: 22 | B67: 8853 | C67: 13 | D67: 8871 | E67: 14 | F67: 8883 | K67: 0 | L67: 211
A68: 11 | B68: 8994 | C68: 11 | D68: 9004 | E68: 12 | F68: 9013 | K68: 0 | L68: 111
A69: 11 | B69: 9112 | C69: 11 | D69: 9120 | E69: 12 | F69: 9129 | K69: 0 | L69: 111
A70: 11 | B70: 9244 | C70: 22 | D70: 9259 | E70: 14 | F70: 9272 | K70: 0 | L70: 121
A71: 11 | B71: 9382 | C71: 22 | D71: 9397 | E71: 14 | F71: 9413 | K71: 0 | L71: 121
A72: 11 | B72: 9524 | C72: 11 | D72: 9533 | E72: 12 | F72: 9550 | K72: 0 | L72: 111
A73: 11 | B73: 9663 | C73: 11 | D73: 9674 | E73: 12 | F73: 9682 | K73: 0 | L73: 111
A74: 11 | B74: 9782 | C74: 11 | D74: 9791 | E74: 12 | F74: 9800 | K74: 0 | L74: 111
A75: 11 | B75: 9986 | C75: 22 | D75: 9998 | E75: 14 | F75: 10034 | K75: 0 | L75: 121
A76: 22 | B76: 10136 | C76: 13 | D76: 10148 | E76: 14 | F76: 10157 | K76: 0 | L76: 211
A77: 11 | B77: 10274 | C77: 11 | D77: 10282 | E77: 12 | F77: 10291 | K77: 0 | L77: 111
A78: 11 | B78: 10405 | C78: 11 | D78: 10414 | E78: 12 | F78: 10423 | K78: 0 | L78: 111
A79: 11 | B79: 10534 | C79: 11 | D79: 10539 | E79: 12 | F79: 10549 | K79: 0 | L79: 111
A80: 22 | B80: 10752 | C80: 13 | D80: 10771 | E80: 14 | F80: 10779 | K80: 0 | L80: 211
A81: 11 | B81: 10903 | C81: 11 | D81: 10911 | E81: 12 | F81: 10920 | K81: 0 | L81: 111
A82: 11 | B82: 11033 | C82: 11 | D82: 11044 | E82: 12 | F82: 11055 | K82: 0 | L82: 111
A83: 11 | B83: 11165 | C83: 11 | D83: 11174 | E83: 12 | F83: 11182 | K83: 0 | L83: 111
A84: 11 | B84: 11290 | C84: 11 | D84: 11296 | E84: 12 | F84: 11305 | K84: 0 | L84: 111
A85: 11 | B85: 11406 | C85: 11 | D85: 11414 | E85: 12 | F85: 11424 | K85: 0 | L85: 111
A86: 11 | B86: 11673 | C86: 11 | D86: 11682 | E86: 12 | F86: 11691 | K86: 0 | L86: 111
A87: 22 | B87: 11806 | C87: 24 | D87: 11819 | E87: 14 | F87: 11832 | K87: 0 | L87: 221
A88: 22 | B88: 11930 | C88: 24 | D88: 11942 | E88: 14 | F88: 11959 | K88: 0 | L88: 221
A89: 11 | B89: 12058 | C89: 11 | D89: 12071 | E89: 12 | F89: 12079 | K89: 0 | L89: 111
A90: 22 | B90: 12181 | C90: 13 | D90: 12195 | E90: 14 | F90: 12199 | K90: 0 | L90: 211
A91: 11 | B91: 12309 | C91: 11 | D91: 12317 | E91: 12 | F91: 12326 | K91: 0 | L91: 111
A92: 11 | B92: 12438 | C92: 11 | D92: 12442 | E92: 12 | F92: 12451 | K92: 0 | L92: 111
A93: 11 | B93: 12640 | C93: 11 | D93: 12648 | E93: 12 | F93: 12656 | K93: 0 | L93: 111
A94: 11 | B94: 12774 | C94: 11 | D94: 12779 | E94: 12 | F94: 12797 | K94: 0 | L94: 111
A95: 11 | B95: 12896 | C95: 11 | D95: 12905 | E95: 12 | F95: 12920 | K95: 0 | L95: 111
A96: 11 | B96: 13158 | C96: 11 | D96: 13162 | E96: 12 | F96: 13170 | K96: 0 | L96: 111
A97: 11 | B97: 13290 | C97: 11 | D97: 13298 | E97: 12 | F97: 13306 | K97: 0 | L97: 111
A98: 11 | B98: 13492 | C98: 11 | D98: 13500 | E98: 12 | F98: 13508 | K98: 0 | L98: 111
A99: 11 | B99: 13607 | C99: 11 | D99: 13615 | E99: 12 | F99: 13624 | K99: 0 | L99: 111
A100: 11 | B100: 13732 | C100: 11 | D100: 13737 | E100: 12 | F100: 13746 | K100: 0 | L100: 111
A101: 11 | B101: 13856 | C101: 11 | D101: 13862 | E101: 12 | F101: 13870 | K101: 0 | L101: 111
A102: 11 | B102: 13984 | C102: 11 | D102: 13992 | E102: 12 | F102: 14001 | K102: 0 | L102: 111
A103: 11 | B103: 14236 | C103: 11 | D103: 14244 | E103: 12 | F103: 14252 | K103: 0 | L103: 111
A104: 11 | B104: 14447 | C104: 11 | D104: 14455 | E104: 12 | F104: 14463 | K104: 0 | L104: 111
A105: 11 | B105: 14562 | C105: 11 | D105: 14572 | E105: 12 | F105: 14580 | K105: 0 | L105: 111
A106: 11 | B106: 14688 | C106: 11 | D106: 14694 | E106: 12 | F106: 14702 | K106: 0 | L106: 111
A107: 11 | B107: 14807 | C107: 11 | D107: 14812 | E107: 12 | F107: 14824 | K107: 0 | L107: 111
A108: 11 | B108: 14926 | C108: 11 | D108: 14934 | E108: 12 | F108: 14944 | K108: 0 | L108: 111
A109: 11 | B109: 15043 | C109: 11 | D109: 15051 | E109: 12 | F109: 15059 | K109: 0 | L109: 111
A110: 11 | B110: 15166 | C110: 11 | D110: 15169 | E110: 12 | F110: 15177 | K110: 0 | L110: 111
A111: 11 | B111: 15272 | C111: 11 | D111: 15279 | E111: 12 | F111: 15284 | K111: 0 | L111: 111
A112: 11 | B112: 15390 | C112: 11 | D112: 15399 | E112: 12 | F112: 15413 | K112: 0 | L112: 111
A113: 11 | B113: 15617 | C113: 11 | D113: 15625 | E113: 12 | F113: 15632 | K113: 0 | L113: 111
A114: 11 | B114: 15753 | C114: 11 | D114: 15761 | E114: 12 | F114: 15770 | K114: 0 | L114: 111
A115: 22 | B115: 15977 | C115: 13 | D115: 15991 | E115: 14 | F115: 15996 | K115: 0 | L115: 211
A116: 22 | B116: 16102 | C116: 13 | D116: 16118 | E116: 14 | F116: 16126 | K116: 0 | L116: 211
A117: 11 | B117: 16236 | C117: 11 | D117: 16249 | E117: 12 | F117: 16265 | K117: 0 | L117: 111
A118: 11 | B118: 16465 | C118: 11 | D118: 16473 | E118: 12 | F118: 16481 | K118: 0 | L118: 111
A119: 11 | B119: 16577 | C119: 11 | D119: 16586 | E119: 12 | F119: 16598 | K119: 0 | L119: 111
A120: 11 | B120: 16696 | C120: 11 | D120: 16705 | E120: 12 | F120: 16713 | K120: 0 | L120: 111
A121: 11 | B121: 16825 | C121: 11 | D121: 16835 | E121: 12 | F121: 16845 | K121: 0 | L121: 111
A122: 11 | B122: 16954 | C122: 11 | D122: 16959 | E122: 12 | F122: 16968 | K122: 0 | L122: 111
A123: 22 | B123: 17142 | C123: 13 | D123: 17155 | E123: 14 | F123: 17163 | K123: 0 | L123: 211
A124: 11 | B124: 17278 | C124: 11 | D124: 17286 | E124: 12 | F124: 17294 | K124: 0 | L124: 111
A125: 11 | B125: 17411 | C125: 11 | D125: 17419 | E125: 12 | F125: 17427 | K125: 0 | L125: 111
A126: 22 | B126: 17528 | C126: 13 | D126: 17552 | E126: 14 | F126: 17559 | K126: 0 | L126: 211
A127: 11 | B127: 17667 | C127: 11 | D127: 17671 | E127: 12 | F127: 17679 | K127: 0 | L127: 111
A128: 22 | B128: 17888 | C128: 13 | D128: 17901 | E128: 14 | F128: 17909 | K128: 0 | L128: 211
A129: 11 | B129: 18001 | C129: 22 | D129: 18013 | E129: 14 | F129: 18028 | K129: 0 | L129: 121
A130: 11 | B130: 18120 | C130: 11 | D130: 18132 | E130: 12 | F130: 18143 | K130: 0 | L130: 111
A131: 11 | B131: 18253 | C131: 11 | D131: 18256 | E131: 12 | F131: 18264 | K131: 0 | L131: 111
A132: 11 | B132: 18364 | C132: 11 | D132: 18372 | E132: 12 | F132: 18380 | K132: 0 | L132: 111
A133: 11 | B133: 18610 | C133: 11 | D133: 18618 | E133: 12 | F133: 18626 | K133: 0 | L133: 111
A134: 11 | B134: 18734 | C134: 11 | D134: 18739 | E134: 12 | F134: 18747 | K134: 0 | L134: 111
A135: 11 | B135: 18858 | C135: 11 | D135: 18862 | E135: 12 | F135: 18871 | K135: 0 | L135: 111
A136: 11 | B136: 18976 | C136: 11 | D136: 18980 | E136: 12 | F136: 18987 | K136: 0 | L136: 111
A137: 11 | B137: 19094 | C137: 11 | D137: 19097 | E137: 12 | F137: 19105 | K137: 0 | L137: 111
A138: 11 | B138: 19202 | C138: 11 | D138: 19211 | E138: 12 | F138: 19220 | K138: 0 | L138: 111
A139: 11 | B139: 19339 | C139: 11 | D139: 19351 | E139: 12 | F139: 19359 | K139: 0 | L139: 111
A140: 11 | B140: 19461 | C140: 11 | D140: 19473 | E140: 12 | F140: 19481 | K140: 0 | L140: 111
A141: 11 | B141: 19704 | C141: 11 | D141: 19709 | E141: 12 | F141: 19718 | K141: 0 | L141: 111
A142: 11 | B142: 19828 | C142: 11 | D142: 19837 | E142: 12 | F142: 19845 | K142: 0 | L142: 111
A143: 11 | B143: 19952 | C143: 11 | D143: 19957 | E143: 12 | F143: 19965 | K143: 0 | L143: 111
A144: 11 | B144: 20072 | C144: 11 | D144: 20076 | E144: 12 | F144: 20083 | K144: 0 | L144: 111
A145: 11 | B145: 20182 | C145: 11 | D145: 20191 | E145: 12 | F145: 20211 | K145: 0 | L145: 111
A146: 11 | B146: 20339 | C146: 11 | D146: 20342 | E146: 12 | F146: 20351 | K146: 0 | L146: 111
A147: 22 | B147: 20526 | C147: 13 | D147: 20539 | E147: 14 | F147: 20547 | K147: 0 | L147: 211
A148: 11 | B148: 20659 | C148: 11 | D148: 20662 | E148: 12 | F148: 20671 | K148: 0 | L148: 111
A149: 11 | B149: 20784 | C149: 11 | D149: 20788 | E149: 12 | F149: 20798 | K149: 0 | L149: 111
A150: 11 | B150: 20903 | C150: 11 | D150: 20908 | E150: 12 | F150: 20916 | K150: 0 | L150: 111
A151: 22 | B151: 21017 | C151: 13 | D151: 21027 | E151: 14 | F151: 21035 | K151: 0 | L151: 211
A152: 11 | B152: 21147 | C152: 11 | D152: 21154 | E152: 12 | F152: 21169 | K152: 0 | L152: 111
A153: 11 | B153: 21268 | C153: 11 | D153: 21275 | E153: 12 | F153: 21285 | K153: 0 | L153: 111
A154: 22 | B154: 21384 | C154: 13 | D154: 21393 | E154: 14 | F154: 21397 | K154: 0 | L154: 211
A155: 11 | B155: 21502 | C155: 11 | D155: 21512 | E155: 12 | F155: 21521 | K155: 0 | L155: 111
A156: 11 | B156: 21628 | C156: 11 | D156: 21632 | E156: 12 | F156: 21640 | K156: 0 | L156: 111
A157: 11 | B157: 21863 | C157: 11 | D157: 21872 | E157: 12 | F157: 21881 | K157: 0 | L157: 111
A158: 11 | B158: 22003 | C158: 11 | D158: 22006 | E158: 12 | F158: 22014 | K158: 0 | L158: 111
A159: 11 | B159: 22130 | C159: 11 | D159: 22138 | E159: 12 | F159: 22146 | K159: 0 | L159: 111
A160: 11 | B160: 22255 | C160: 11 | D160: 22259 | E160: 12 | F160: 22269 | K160: 0 | L160: 111
A161: 11 | B161: 22379 | C161: 11 | D161: 22382 | E161: 12 | F161: 22389 | K161: 0 | L161: 111
A162: 11 | B162: 22493 | C162: 11 | D162: 22498 | E162: 12 | F162: 22507 | K162: 0 | L162: 111
A163: 11 | B163: 22739 | C163: 11 | D163: 22758 | E163: 12 | F163: 22774 | K163: 0 | L163: 111
A164: 11 | B164: 22865 | C164: 22 | D164: 22879 | E164: 14 | F164: 22891 | K164: 0 | L164: 121
A165: 11 | B165: 22999 | C165: 11 | D165: 23003 | E165: 12 | F165: 23011 | K165: 0 | L165: 111
A166: 11 | B166: 23232 | C166: 11 | D166: 23240 | E166: 12 | F166: 23249 | K166: 0 | L166: 111
A167: 11 | B167: 23353 | C167: 11 | D167: 23365 | E167: 12 | F167: 23372 | K167: 0 | L167: 111
A168: 11 | B168: 23477 | C168: 11 | D168: 23485 | E168: 12 | F168: 23492 | K168: 0 | L168: 111
A169: 11 | B169: 23620 | C169: 11 | D169: 23627 | E169: 12 | F169: 23636 | K169: 0 | L169: 111
A170: 11 | B170: 23750 | C170: 11 | D170: 23758 | E170: 12 | F170: 23766 | K170: 0 | L170: 111
A171: 22 | B171: 23868 | C171: 13 | D171: 23887 | E171: 14 | F171: 23896 | K171: 0 | L171: 211

Sheet !M804B40.010
A1: Report for:!M804B40.010
A2: Date: | B2: <date>
A3: Hen: | B3: <hen> | F3: Correct Sequence | G3: =Start!J2 -> 122 | P3: Total Sequences in Data | Q3: =4994-COUNTBLANK(L7:L5000) -> 164 | V3: Total Sequences in Block Data | W3: =COUNTA(L7:L33) -> 27 | AA3: Total Sequences in Block Data | AB3: =COUNTA(L34:L61) -> 28 | AF3: Total Sequences in Block Data | AG3: =COUNTA(L62:L88) -> 27 | AK3: Total Sequences in Block Data | AL3: =COUNTA(L89:L115) -> 27 | AP3: Total Sequences in Block Data | AQ3: =COUNTA(L116:L143) -> 28 | AU3: Total Sequences in Block Data | AV3: =COUNTA(L144:L170) -> 27
P4: Total Sequences in Summary | Q4: =SUM(O7:O14) -> 164 | V4: Total Sequences in Block Summary | W4: =SUM(U7:U14) -> 27 | AA4: Total Sequences in Block Summary | AB4: =SUM(Z7:Z14) -> 28 | AF4: Total Sequences in Block Summary | AG4: =SUM(AE7:AE14) -> 27 | AK4: Total Sequences in Block Summary | AL4: =SUM(AJ7:AJ14) -> 27 | AP4: Total Sequences in Block Summary | AQ4: =SUM(AO7:AO14) -> 28 | AU4: Total Sequences in Block Summary | AV4: =SUM(AT7:AT14) -> 27
T5: Block 1 | Y5: Block 2 | AD5: Block 3 | AI5: Block 4 | AN5: Block 5 | AS5: Block 6
A6: Sequence Component 1 | B6: Time 1 | C6: Sequence Component 2 | D6: Time 2 | E6: Sequence Component 3 | F6: Time 3 | G6: Sequence Component 4 | H6: Time 4 | I6: Sequence Component 5 | J6: Time 5 | K6: Correct? 0=No 1=Yes | L6: Sequence | N6: Frequency | P6: Relative Frequency | Q6: Variability | T6: Frequency | V6: Relative Frequency | W6: Variability | Y6: Frequency | AA6: Relative Frequency | AB6: Variability | AD6: Frequency | AF6: Relative Frequency | AG6: Variability | AI6: Frequency | AK6: Relative Frequency | AL6: Variability | AN6: Frequency | AP6: Relative Frequency | AQ6: Variability | AS6: Frequency | AU6: Relative Frequency | AV6: Variability
A7: 11 | B7: 14 | C7: 11 | D7: 25 | E7: 12 | F7: 30 | K7: 0 | L7: 111 | N7: 111 | O7: =COUNTIF($L$7:$L$500,N7) -> 132 | P7: =O7/$Q$4 -> 0.8048780488 | Q7: =IF(P7=0,0,(P7*((LOG(P7))/LOG(2)))) -> -0.2520539076 | T7: =N7 -> 111 | U7: =COUNTIF(L7:L33,T7) -> 13 | V7: =U7/(W4-U10) -> 0.5 | W7: =IF(V7=0,0,(V7*((LOG(V7))/LOG(2)))) -> -0.5 | Y7: =N7 -> 111 | Z7: =COUNTIF(L34:L61,Y7) -> 21 | AA7: =Z7/(AB4-Z10) -> 0.75 | AB7: =IF(AA7=0,0,(AA7*((LOG(AA7))/LOG(2)))) -> -0.3112781245 | AD7: =N7 -> 111 | AE7: =COUNTIF(L62:L88,AD7) -> 22 | AF7: =AE7/(AG4-AE10) -> 0.8148148148 | AG7: =IF(AF7=0,0,(AF7*((LOG(AF7))/LOG(2)))) -> -0.240741831 | AI7: =N7 -> 111 | AJ7: =COUNTIF(L89:L115,AI7) -> 23 | AK7: =AJ7/(AL4-AJ10) -> 0.8518518519 | AL7: =IF(AK7=0,0,(AK7*((LOG(AK7))/LOG(2)))) -> -0.1970550948 | AN7: =N7 -> 111 | AO7: =COUNTIF(L116:L143,AN7) -> 27 | AP7: =AO7/(AQ4-AO10) -> 0.9642857143 | AQ7: =IF(AP7=0,0,(AP7*((LOG(AP7))/LOG(2)))) -> -0.05059358347 | AS7: =N7 -> 111 | AT7: =COUNTIF(L144:L170,AS7) -> 26 | AU7: =AT7/(AV4-AT10) -> 0.962962963 | AV7: =IF(AU7=0,0,(AU7*((LOG(AU7))/LOG(2)))) -> -0.05243119943
A8: 11 | B8: 182 | C8: 11 | D8: 188 | E8: 12 | F8: 198 | K8: 0 | L8: 111 | N8: 112 | O8: =COUNTIF($L$7:$L$500,N8) -> 0 | P8: =O8/$Q$4 -> 0 | Q8: =IF(P8=0,0,(P8*((LOG(P8))/LOG(2)))) -> 0 | T8: =N8 -> 112 | U8: =COUNTIF(L7:L33,T8) -> 0 | V8: =U8/(W4-U10) -> 0 | W8: =IF(V8=0,0,(V8*((LOG(V8))/LOG(2)))) -> 0 | Y8: =N8 -> 112 | Z8: =COUNTIF(L34:L61,Y8) -> 0 | AA8: =Z8/(AB4-Z10) -> 0 | AB8: =IF(AA8=0,0,(AA8*((LOG(AA8))/LOG(2)))) -> 0 | AD8: =N8 -> 112 | AE8: =COUNTIF(L62:L88,AD8) -> 0 | AF8: =AE8/(AG4-AE10) -> 0 | AG8: =IF(AF8=0,0,(AF8*((LOG(AF8))/LOG(2)))) -> 0 | AI8: =N8 -> 112 | AJ8: =COUNTIF(L89:L115,AI8) -> 0 | AK8: =AJ8/(AL4-AJ10) -> 0 | AL8: =IF(AK8=0,0,(AK8*((LOG(AK8))/LOG(2)))) -> 0 | AN8: =N8 -> 112 | AO8: =COUNTIF(L116:L143,AN8) -> 0 | AP8: =AO8/(AQ4-AO10) -> 0 | AQ8: =IF(AP8=0,0,(AP8*((LOG(AP8))/LOG(2)))) -> 0 | AS8: =N8 -> 112 | AT8: =COUNTIF(L144:L170,AS8) -> 0 | AU8: =AT8/(AV4-AT10) -> 0 | AV8: =IF(AU8=0,0,(AU8*((LOG(AU8))/LOG(2)))) -> 0
A9: 11 | B9: 307 | C9: 11 | D9: 312 | E9: 12 | F9: 322 | K9: 0 | L9: 111 | N9: 121 | O9: =COUNTIF($L$7:$L$500,N9) -> 2 | P9: =O9/$Q$4 -> 0.01219512195 | Q9: =IF(P9=0,0,(P9*((LOG(P9))/LOG(2)))) -> -0.07753112201 | T9: =N9 -> 121 | U9: =COUNTIF(L7:L33,T9) -> 0 | V9: =U9/(W4-U10) -> 0 | W9: =IF(V9=0,0,(V9*((LOG(V9))/LOG(2)))) -> 0 | Y9: =N9 -> 121 | Z9: =COUNTIF(L34:L61,Y9) -> 0 | AA9: =Z9/(AB4-Z10) -> 0 | AB9: =IF(AA9=0,0,(AA9*((LOG(AA9))/LOG(2)))) -> 0 | AD9: =N9 -> 121 | AE9: =COUNTIF(L62:L88,AD9) -> 0 | AF9: =AE9/(AG4-AE10) -> 0 | AG9: =IF(AF9=0,0,(AF9*((LOG(AF9))/LOG(2)))) -> 0 | AI9: =N9 -> 121 | AJ9: =COUNTIF(L89:L115,AI9) -> 1 | AK9: =AJ9/(AL4-AJ10) -> 0.03703703704 | AL9: =IF(AK9=0,0,(AK9*((LOG(AK9))/LOG(2)))) -> -0.1761069445 | AN9: =N9 -> 121 | AO9: =COUNTIF(L116:L143,AN9) -> 1 | AP9: =AO9/(AQ4-AO10) -> 0.03571428571 | AQ9: =IF(AP9=0,0,(AP9*((LOG(AP9))/LOG(2)))) -> -0.1716912472 | AS9: =N9 -> 121 | AT9: =COUNTIF(L144:L170,AS9) -> 0 | AU9: =AT9/(AV4-AT10) -> 0 | AV9: =IF(AU9=0,0,(AU9*((LOG(AU9))/LOG(2)))) -> 0
A10: 11 | B10: 438 | C10: 11 | D10: 462 | E10: 12 | F10: 507 | K10: 0 | L10: 111 | N10: 122 | O10: =COUNTIF($L$7:$L$500,N10) -> 1 | P10: =O10/$Q$4 -> 0.006097560976 | Q10: =IF(P10=0,0,(P10*((LOG(P10))/LOG(2)))) -> -0.04486312198 | T10: =N10 -> 122 | U10: =COUNTIF(L7:L33,T10) -> 1 | Y10: =N10 -> 122 | Z10: =COUNTIF(L34:L61,Y10) -> 0 | AD10: =N10 -> 122 | AE10: =COUNTIF(L62:L88,AD10) -> 0 | AI10: =N10 -> 122 | AJ10: =COUNTIF(L89:L115,AI10) -> 0 | AN10: =N10 -> 122 | AO10: =COUNTIF(L116:L143,AN10) -> 0 | AS10: =N10 -> 122 | AT10: =COUNTIF(L144:L170,AS10) -> 0
A11: 11 | B11: 636 | C11: 11 | D11: 640 | E11: 12 | F11: 649 | K11: 0 | L11: 111 | N11: 211 | O11: =COUNTIF($L$7:$L$500,N11) -> 19 | P11: =O11/$Q$4 -> 0.1158536585 | Q11: =IF(P11=0,0,(P11*((LOG(P11))/LOG(2)))) -> -0.360261374 | T11: =N11 -> 211 | U11: =COUNTIF(L7:L33,T11) -> 10 | V11: =U11/(W4-U10) -> 0.3846153846 | W11: =IF(V11=0,0,(V11*((LOG(V11))/LOG(2)))) -> -0.5301967782 | Y11: =N11 -> 211 | Z11: =COUNTIF(L34:L61,Y11) -> 3 | AA11: =Z11/(AB4-Z10) -> 0.1071428571 | AB11: =IF(AA11=0,0,(AA11*((LOG(AA11))/LOG(2)))) -> -0.3452563309 | AD11: =N11 -> 211 | AE11: =COUNTIF(L62:L88,AD11) -> 4 | AF11: =AE11/(AG4-AE10) -> 0.1481481481 | AG11: =IF(AF11=0,0,(AF11*((LOG(AF11))/LOG(2)))) -> -0.4081314818 | AI11: =N11 -> 211 | AJ11: =COUNTIF(L89:L115,AI11) -> 1 | AK11: =AJ11/(AL4-AJ10) -> 0.03703703704 | AL11: =IF(AK11=0,0,(AK11*((LOG(AK11))/LOG(2)))) -> -0.1761069445 | AN11: =N11 -> 211 | AO11: =COUNTIF(L116:L143,AN11) -> 0 | AP11: =AO11/(AQ4-AO10) -> 0 | AQ11: =IF(AP11=0,0,(AP11*((LOG(AP11))/LOG(2)))) -> 0 | AS11: =N11 -> 211 | AT11: =COUNTIF(L144:L170,AS11) -> 1 | AU11: =AT11/(AV4-AT10) -> 0.03703703704 | AV11: =IF(AU11=0,0,(AU11*((LOG(AU11))/LOG(2)))) -> -0.1761069445
A12: 11 | B12: 763 | C12: 11 | D12: 768 | E12: 12 | F12: 775 | K12: 0 | L12: 111 | N12: 212 | O12: =COUNTIF($L$7:$L$500,N12) -> 0 | P12: =O12/$Q$4 -> 0 | Q12: =IF(P12=0,0,(P12*((LOG(P12))/LOG(2)))) -> 0 | T12: =N12 -> 212 | U12: =COUNTIF(L7:L33,T12) -> 0 | V12: =U12/(W4-U10) -> 0 | W12: =IF(V12=0,0,(V12*((LOG(V12))/LOG(2)))) -> 0 | Y12: =N12 -> 212 | Z12: =COUNTIF(L34:L61,Y12) -> 0 | AA12: =Z12/(AB4-Z10) -> 0 | AB12: =IF(AA12=0,0,(AA12*((LOG(AA12))/LOG(2)))) -> 0 | AD12: =N12 -> 212 | AE12: =COUNTIF(L62:L88,AD12) -> 0 | AF12: =AE12/(AG4-AE10) -> 0 | AG12: =IF(AF12=0,0,(AF12*((LOG(AF12))/LOG(2)))) -> 0 | AI12: =N12 -> 212 | AJ12: =COUNTIF(L89:L115,AI12) -> 0 | AK12: =AJ12/(AL4-AJ10) -> 0 | AL12: =IF(AK12=0,0,(AK12*((LOG(AK12))/LOG(2)))) -> 0 | AN12: =N12 -> 212 | AO12: =COUNTIF(L116:L143,AN12) -> 0 | AP12: =AO12/(AQ4-AO10) -> 0 | AQ12: =IF(AP12=0,0,(AP12*((LOG(AP12))/LOG(2)))) -> 0 | AS12: =N12 -> 212 | AT12: =COUNTIF(L144:L170,AS12) -> 0 | AU12: =AT12/(AV4-AT10) -> 0 | AV12: =IF(AU12=0,0,(AU12*((LOG(AU12))/LOG(2)))) -> 0
A13: 11 | B13: 951 | C13: 11 | D13: 959 | E13: 12 | F13: 968 | K13: 0 | L13: 111 | N13: 221 | O13: =COUNTIF($L$7:$L$500,N13) -> 9 | P13: =O13/$Q$4 -> 0.05487804878 | Q13: =IF(P13=0,0,(P13*((LOG(P13))/LOG(2)))) -> -0.229808799 | T13: =N13 -> 221 | U13: =COUNTIF(L7:L33,T13) -> 2 | V13: =U13/(W4-U10) -> 0.07692307692 | W13: =IF(V13=0,0,(V13*((LOG(V13))/LOG(2)))) -> -0.2846492091 | Y13: =N13 -> 221 | Z13: =COUNTIF(L34:L61,Y13) -> 4 | AA13: =Z13/(AB4-Z10) -> 0.1428571429 | AB13: =IF(AA13=0,0,(AA13*((LOG(AA13))/LOG(2)))) -> -0.4010507032 | AD13: =N13 -> 221 | AE13: =COUNTIF(L62:L88,AD13) -> 1 | AF13: =AE13/(AG4-AE10) -> 0.03703703704 | AG13: =IF(AF13=0,0,(AF13*((LOG(AF13))/LOG(2)))) -> -0.1761069445 | AI13: =N13 -> 221 | AJ13: =COUNTIF(L89:L115,AI13) -> 2 | AK13: =AJ13/(AL4-AJ10) -> 0.07407407407 | AL13: =IF(AK13=0,0,(AK13*((LOG(AK13))/LOG(2)))) -> -0.278139815 | AN13: =N13 -> 221 | AO13: =COUNTIF(L116:L143,AN13) -> 0 | AP13: =AO13/(AQ4-AO10) -> 0 | AQ13: =IF(AP13=0,0,(AP13*((LOG(AP13))/LOG(2)))) -> 0 | AS13: =N13 -> 221 | AT13: =COUNTIF(L144:L170,AS13) -> 0 | AU13: =AT13/(AV4-AT10) -> 0 | AV13: =IF(AU13=0,0,(AU13*((LOG(AU13))/LOG(2)))) -> 0
A14: 11 | B14: 1088 | C14: 11 | D14: 1096 | E14: 12 | F14: 1124 | K14: 0 | L14: 111 | N14: 222 | O14: =COUNTIF($L$7:$L$500,N14) -> 1 | P14: =O14/$Q$4 -> 0.006097560976 | Q14: =IF(P14=0,0,(P14*((LOG(P14))/LOG(2)))) -> -0.04486312198 | T14: =N14 -> 222 | U14: =COUNTIF(L7:L33,T14) -> 1 | V14: =U14/(W4-U10) -> 0.03846153846 | W14: =IF(V14=0,0,(V14*((LOG(V14))/LOG(2)))) -> -0.180786143 | Y14: =N14 -> 222 | Z14: =COUNTIF(L34:L61,Y14) -> 0 | AA14: =Z14/(AB4-Z10) -> 0 | AB14: =IF(AA14=0,0,(AA14*((LOG(AA14))/LOG(2)))) -> 0 | AD14: =N14 -> 222 | AE14: =COUNTIF(L62:L88,AD14) -> 0 | AF14: =AE14/(AG4-AE10) -> 0 | AG14: =IF(AF14=0,0,(AF14*((LOG(AF14))/LOG(2)))) -> 0 | AI14: =N14 -> 222 | AJ14: =COUNTIF(L89:L115,AI14) -> 0 | AK14: =AJ14/(AL4-AJ10) -> 0 | AL14: =IF(AK14=0,0,(AK14*((LOG(AK14))/LOG(2)))) -> 0 | AN14: =N14 -> 222 | AO14: =COUNTIF(L116:L143,AN14) -> 0 | AP14: =AO14/(AQ4-AO10) -> 0 | AQ14: =IF(AP14=0,0,(AP14*((LOG(AP14))/LOG(2)))) -> 0 | AS14: =N14 -> 222 | AT14: =COUNTIF(L144:L170,AS14) -> 0 | AU14: =AT14/(AV4-AT10) -> 0 | AV14: =IF(AU14=0,0,(AU14*((LOG(AU14))/LOG(2)))) -> 0
A15: 11 | B15: 1239 | C15: 11 | D15: 1247 | E15: 12 | F15: 1256 | K15: 0 | L15: 111 | P15: =SUM(P7:P14) -> 1 | Q15: =-SUM(Q7:Q14) -> 1.009381447 | V15: =SUM(V7:V14) -> 1 | W15: =-SUM(W7:W14) -> 1.49563213 | AA15: =SUM(AA7:AA14) -> 1 | AB15: =-SUM(AB7:AB14) -> 1.057585158 | AF15: =SUM(AF7:AF14) -> 1 | AG15: =-SUM(AG7:AG14) -> 0.8249802573 | AK15: =SUM(AK7:AK14) -> 1 | AL15: =-SUM(AL7:AL14) -> 0.8274087989 | AP15: =SUM(AP7:AP14) -> 1 | AQ15: =-SUM(AQ7:AQ14) -> 0.2222848307 | AU15: =SUM(AU7:AU14) -> 1 | AV15: =-SUM(AV7:AV14) -> 0.228538144
A16: 11 | B16: 1358 | C16: 11 | D16: 1366 | E16: 12 | F16: 1373 | K16: 0 | L16: 111 | P16: U= | Q16: =Q15/(LOG(Q4)/LOG(2)) -> 0.1371898487 | V16: U1= | W16: =W15/(LOG(W4)/LOG(2)) -> 0.3145462705 | AA16: U2= | AB16: =AB15/(LOG(AB4)/LOG(2)) -> 0.2199931512 | AF16: U3= | AG16: =AG15/(LOG(AG4)/LOG(2)) -> 0.1735015302 | AK16: U4= | AL16: =AL15/(LOG(AL4)/LOG(2)) -> 0.1740122765 | AP16: U5= | AQ16: =AQ15/(LOG(AQ4)/LOG(2)) -> 0.04623848962 | AU16: U6= | AV16: =AV15/(LOG(AV4)/LOG(2)) -> 0.04806383828
A17: 22 | B17: 1466 | C17: 13 | D17: 1479 | E17: 14 | F17: 1486 | K17: 0 | L17: 211
A18: 22 | B18: 1597 | C18: 13 | D18: 1611 | E18: 14 | F18: 1616 | K18: 0 | L18: 211
A19: 11 | B19: 1728 | C19: 11 | D19: 1737 | E19: 12 | F19: 1746 | K19: 0 | L19: 111 | N19: Total Target Seq
A20: 11 | B20: 1864 | C20: 11 | D20: 1874 | E20: 12 | F20: 1883 | K20: 0 | L20: 111 | N20: =COUNTIF(L7:L170,G3) -> 1 | P20: 27 | Q20: 28 | R20: 27 | S20: 27 | T20: 28 | U20: 27
A21: 22 | B21: 1994 | C21: 13 | D21: 2008 | E21: 14 | F21: 2016 | K21: 0 | L21: 211 | P21: % of reinforcement given in 6 equal intervals based on number of trials
A22: 22 | B22: 2124 | C22: 24 | D22: 2139 | E22: 14 | F22: 2152 | K22: 0 | L22: 221 | P22: %_1 | Q22: %_2 | R22: %_3 | S22: %_4 | T22: %_5 | U22: %_6
A23: 11 | B23: 2253 | C23: 22 | D23: 2265 | E23: 23 | F23: 2285 | K23: 0 | L23: 122 | O23: target sequence | P23: =$G$3 -> 122 | Q23: =$G$3 -> 122 | R23: =$G$3 -> 122 | S23: =$G$3 -> 122 | T23: =$G$3 -> 122 | U23: =$G$3 -> 122
A24: 22 | B24: 2395 | C24: 13 | D24: 2427 | E24: 14 | F24: 2435 | K24: 0 | L24: 211 | O24: total reinforcement | P24: =U10 -> 1 | Q24: =Z10 -> 0 | R24: =AE10 -> 0 | S24: =AJ10 -> 0 | T24: =AO10 -> 0 | U24: =AT10 -> 0
A25: 22 | B25: 2533 | C25: 24 | D25: 2555 | E25: 14 | F25: 2568 | K25: 0 | L25: 221 | O25: % target
A26: 22 | B26: 2687 | C26: 13 | D26: 2701 | E26: 14 | F26: 2709 | K26: 0 | L26: 211 | O26: CCRF
A27: 22 | B27: 2814 | C27: 13 | D27: 2827 | E27: 14 | F27: 2832 | K27: 0 | L27: 211 | O27: % CCRf
A28: 22 | B28: 2944 | C28: 13 | D28: 2958 | E28: 14 | F28: 2963 | K28: 0 | L28: 211 | O28: average response rate | P28: =F33/P20 -> 132.4444444 | Q28: =(F61-F33)/Q20 -> 151.6428571 | R28: =(F88-F61)/R20 -> 141.6666667 | S28: =(F115-F88)/S20 -> 144.7407407 | T28: =(F143-F115)/T20 -> 161.3928571 | U28: =(F170-F143)/U20 -> 144.4444444
A29: 22 | B29: 3066 | C29: 24 | D29: 3075 | E29: 23 | F29: 3085 | K29: 0 | L29: 222
A30: 11 | B30: 3182 | C30: 11 | D30: 3190 | E30: 12 | F30: 3198 | K30: 0 | L30: 111
A31: 22 | B31: 3308 | C31: 13 | D31: 3321 | E31: 14 | F31: 3330 | K31: 0 | L31: 211
A32: 22 | B32: 3434 | C32: 13 | D32: 3444 | E32: 14 | F32: 3449 | K32: 0 | L32: 211
A33: 22 | B33: 3556 | C33: 13 | D33: 3568 | E33: 14 | F33: 3576 | K33: 0 | L33: 211
A34: 11 | B34: 3689 | C34: 11 | D34: 3693 | E34: 12 | F34: 3713 | K34: 0 | L34: 111
A35: 11 | B35: 3826 | C35: 11 | D35: 3848 | E35: 12 | F35: 3887 | K35: 0 | L35: 111
A36: 22 | B36: 4042 | C36: 24 | D36: 4052 | E36: 14 | F36: 4065 | K36: 0 | L36: 221
A37: 11 | B37: 4165 | C37: 11 | D37: 4172 | E37: 12 | F37: 4183 | K37: 0 | L37: 111
A38: 22 | B38: 4288 | C38: 24 | D38: 4309 | E38: 14 | F38: 4322 | K38: 0 | L38: 221
A39: 11 | B39: 4421 | C39: 11 | D39: 4429 | E39: 12 | F39: 4438 | K39: 0 | L39: 111
A40: 22 | B40: 4540 | C40: 24 | D40: 4549 | E40: 14 | F40: 4566 | K40: 0 | L40: 221
A41: 11 | B41: 4691 | C41: 11 | D41: 4709 | E41: 12 | F41: 4717 | K41: 0 | L41: 111
A42: 22 | B42: 4926 | C42: 13 | D42: 4939 | E42: 14 | F42: 4948 | K42: 0 | L42: 211
A43: 22 | B43: 5067 | C43: 24 | D43: 5077 | E43: 14 | F43: 5089 | K43: 0 | L43: 221
A44: 11 | B44: 5204 | C44: 11 | D44: 5225 | E44: 12 | F44: 5234 | K44: 0 | L44: 111
A45: 11 | B45: 5354 | C45: 11 | D45: 5377 | E45: 12 | F45: 5388 | K45: 0 | L45: 111
A46: 22 | B46: 5610 | C46: 13 | D46: 5630 | E46: 14 | F46: 5640 | K46: 0 | L46: 211
A47: 11 | B47: 5753 | C47: 11 | D47: 5763 | E47: 12 | F47: 5771 | K47: 0 | L47: 111
A48: 11 | B48: 5881 | C48: 11 | D48: 5888 | E48: 12 | F48: 5897 | K48: 0 | L48: 111
A49: 11 | B49: 6008 | C49: 11 | D49: 6012 | E49: 12 | F49: 6020 | K49: 0 | L49: 111
A50: 11 | B50: 6115 | C50: 11 | D50: 6123 | E50: 12 | F50: 6132 | K50: 0 | L50: 111
A51: 11 | B51: 6239 | C51: 11 | D51: 6243 | E51: 12 | F51: 6251 | K51: 0 | L51: 111
A52: 22 | B52: 6432 | C52: 13 | D52: 6445 | E52: 14 | F52: 6454 | K52: 0 | L52: 211
A53: 11 | B53: 6582 | C53: 11 | D53: 6616 | E53: 12 | F53: 6632 | K53: 0 | L53: 111
A54: 11 | B54: 6749 | C54: 11 | D54: 6757 | E54: 12 | F54: 6769 | K54: 0 | L54: 111
A55: 11 | B55: 6878 | C55: 11 | D55: 6890 | E55: 12 | F55: 6899 | K55: 0 | L55: 111
A56: 11 | B56: 7019 | C56: 11 | D56: 7028 | E56: 12 | F56: 7037 | K56: 0 | L56: 111
A57: 11 | B57: 7150 | C57: 11 | D57: 7154 | E57: 12 | F57: 7163 | K57: 0 | L57: 111
A58: 11 | B58: 7279 | C58: 11 | D58: 7287 | E58: 12 | F58: 7296 | K58: 0 | L58: 111
A59: 11 | B59: 7401 | C59: 11 | D59: 7410 | E59: 12 | F59: 7419 | K59: 0 | L59: 111
A60: 11 | B60: 7537 | C60: 11 | D60: 7546 | E60: 12 | F60: 7573 | K60: 0 | L60: 111
A61: 11 | B61: 7806 | C61: 11 | D61: 7814 | E61: 12 | F61: 7822 | K61: 0 | L61: 111
A62: 11 | B62: 7923 | C62: 11 | D62: 7945 | E62: 12 | F62: 7950 | K62: 0 | L62: 111
A63: 11 | B63: 8061 | C63: 11 | D63: 8066 | E63: 12 | F63: 8074 | K63: 0 | L63: 111
A64: 22 | B64: 8172 | C64: 13 | D64: 8181 | E64: 14 | F64: 8185 | K64: 0 | L64: 211
A65: 11 | B65: 8296 | C65: 11 | D65: 8300 | E65: 12 | F65: 8319 | K65: 0 | L65: 111
A66: 11 | B66: 8425 | C66: 11 | D66: 8429 | E66: 12 | F66: 8439 | K66: 0 | L66: 111
A67: 11 | B67: 8551 | C67: 11 | D67: 8555 | E67: 12 | F67: 8563 | K67: 0 | L67: 111
A68: 11 | B68: 8687 | C68: 11 | D68: 8692 | E68: 12 | F68: 8701 | K68: 0 | L68: 111
A69: 11 | B69: 8812 | C69: 11 | D69: 8817 | E69: 12 | F69: 8825 | K69: 0 | L69: 111
A70: 11 | B70: 8934 | C70: 11 | D70: 8939 | E70: 12 | F70: 8948 | K70: 0 | L70: 111
A71: 11 | B71: 9068 | C71: 11 | D71: 9077 | E71: 12 | F71: 9086 | K71: 0 | L71: 111
A72: 11 | B72: 9272 | C72: 11 | D72: 9282 | E72: 12 | F72: 9290 | K72: 0 | L72: 111
A73: 11 | B73: 9406 | C73: 11 | D73: 9415 | E73: 12 | F73: 9425 | K73: 0 | L73: 111
A74: 11 | B74: 9538 | C74: 11 | D74: 9546 | E74: 12 | F74: 9554 | K74: 0 | L74: 111
A75: 11 | B75: 9667 | C75: 11 | D75: 9672 | E75: 12 | F75: 9681 | K75: 0 | L75: 111
A76: 11 | B76: 9793 | C76: 11 | D76: 9798 | E76: 12 | F76: 9807 | K76: 0 | L76: 111
A77: 11 | B77: 9920 | C77: 11 | D77: 9929 | E77: 12 | F77: 9937 | K77: 0 | L77: 111
A78: 11 | B78: 10039 | C78: 11 | D78: 10046 | E78: 12 | F78: 10054 | K78: 0 | L78: 111
A79: 11 | B79: 10166 | C79: 11 | D79: 10180 | E79: 12 | F79: 10214 | K79: 0 | L79: 111
A80: 11 | B80: 10342 | C80: 11 | D80: 10346 | E80: 12 | F80: 10353 | K80: 0 | L80: 111
A81: 11 | B81: 10474 | C81: 11 | D81: 10478 | E81: 12 | F81: 10487 | K81: 0 | L81: 111
A82: 22 | B82: 10597 | C82: 13 | D82: 10608 | E82: 14 | F82: 10611 | K82: 0 | L82: 211
A83: 11 | B83: 10723 | C83: 11 | D83: 10727 | E83: 12 | F83: 10736 | K83: 0 | L83: 111
A84: 22 | B84: 10940 | C84: 13 | D84: 10962 | E84: 14 | F84: 10971 | K84: 0 | L84: 211
A85: 11 | B85: 11097 | C85: 11 | D85: 11110 | E85: 12 | F85: 11122 | K85: 0 | L85: 111
A86: 11 | B86: 11234 | C86: 11 | D86: 11239 | E86: 12 | F86: 11247 | K86: 0 | L86: 111
A87: 22 | B87: 11467 | C87: 24 | D87: 11485 | E87: 14 | F87: 11500 | K87: 0 | L87: 221
A88: 22 | B88: 11623 | C88: 13 | D88: 11633 | E88: 14 | F88: 11647 | K88: 0 | L88: 211
A89: 11 | B89: 11778 | C89: 11 | D89: 11788 | E89: 12 | F89: 11797 | K89: 0 | L89: 111
A90: 11 | B90: 11909 | C90: 11 | D90: 11930 | E90: 12 | F90: 11947 | K90: 0 | L90: 111
A91: 11 | B91: 12122 | C91: 11 | D91: 12132 | E91: 12 | F91: 12141 | K91: 0 | L91: 111
A92: 22 | B92: 12245 | C92: 24 | D92: 12259 | E92: 14 | F92: 12269 | K92: 0 | L92: 221
A93: 11 | B93: 12383 | C93: 11 | D93: 12388 | E93: 12 | F93: 12396 | K93: 0 | L93: 111
A94: 11 | B94: 12505 | C94: 11 | D94: 12511 | E94: 12 | F94: 12522 | K94: 0 | L94: 111
A95: 11 | B95: 12634 | C95: 11 | D95: 12642 | E95: 12 | F95: 12651 | K95: 0 | L95: 111
A96: 11 | B96: 12865 | C96: 11 | D96: 12874 | E96: 12 | F96: 12883 | K96: 0 | L96: 111
A97: 11 | B97: 12991 | C97: 11 | D97: 12999 | E97: 12 | F97: 13007 | K97: 0 | L97: 111
A98: 11 | B98: 13132 | C98: 11 | D98: 13136 | E98: 12 | F98: 13145 | K98: 0 | L98: 111
A99: 11 | B99: 13271 | C99: 11 | D99: 13276 | E99: 12 | F99: 13285 | K99: 0 | L99: 111
A100: 11 | B100: 13394 | C100: 11 | D100: 13399 | E100: 12 | F100: 13407 | K100: 0 | L100: 111
A101: 11 | B101: 13505 | C101: 22 | D101: 13518 | E101: 14 | F101: 13536 | K101: 0 | L101: 121
A102: 22 | B102: 13638 | C102: 24 | D102: 13648 | E102: 14 | F102: 13663 | K102: 0 | L102: 221
A103: 11 | B103: 13776 | C103: 11 | D103: 13784 | E103: 12 | F103: 13793 | K103: 0 | L103: 111
A104: 11 | B104: 13910 | C104: 11 | D104: 13923 | E104: 12 | F104: 13942 | K104: 0 | L104: 111
A105: 11 | B105: 14062 | C105: 11 | D105: 14066 | E105: 12 | F105: 14075 | K105: 0 | L105: 111
A106: 11 | B106: 14185 | C106: 11 | D106: 14191 | E106: 12 | F106: 14200 | K106: 0 | L106: 111
A107: 11 | B107: 14422 | C107: 11 | D107: 14427 | E107: 12 | F107: 14436 | K107: 0 | L107: 111
A108: 11 | B108: 14547 | C108: 11 | D108: 14560 | E108: 12 | F108: 14568 | K108: 0 | L108: 111
A109: 22 | B109: 14794 | C109: 13 | D109: 14807 | E109: 14 | F109: 14815 | K109: 0 | L109: 211
A110: 11 | B110: 14930 | C110: 11 | D110: 14939 | E110: 12 | F110: 14960 | K110: 0 | L110: 111
A111: 11 | B111: 15069 | C111: 11 | D111: 15073 | E111: 12 | F111: 15081 | K111: 0 | L111: 111
A112: 11 | B112: 15187 | C112: 11 | D112: 15192 | E112: 12 | F112: 15200 | K112: 0 | L112: 111
A113: 11 | B113: 15306 | C113: 11 | D113: 15310 | E113: 12 | F113: 15315 | K113: 0 | L113: 111
A114: 11 | B114: 15424 | C114: 11 | D114: 15429 | E114: 12 | F114: 15437 | K114: 0 | L114: 111
A115: 11 | B115: 15545 | C115: 11 | D115: 15550 | E115: 12 | F115: 15555 | K115: 0 | L115: 111
A116: 11 | B116: 15667 | C116: 11 | D116: 15672 | E116: 12 | F116: 15688 | K116: 0 | L116: 111
A117: 11 | B117: 15919 | C117: 11 | D117: 15928 | E117: 12 | F117: 15945 | K117: 0 | L117: 111
A118: 11 | B118: 16059 | C118: 11 | D118: 16064 | E118: 12 | F118: 16072 | K118: 0 | L118: 111
A119: 11 | B119: 16187 | C119: 11 | D119: 16196 | E119: 12 | F119: 16204 | K119: 0 | L119: 111
A120: 11 | B120: 16313 | C120: 11 | D120: 16316 | E120: 12 | F120: 16325 | K120: 0 | L120: 111
A121: 11 | B121: 16559 | C121: 11 | D121: 16567 | E121: 12 | F121: 16575 | K121: 0 | L121: 111
A122: 11 | B122: 16873 | C122: 11 | D122: 16883 | E122: 12 | F122: 16899 | K122: 0 | L122: 111
A123: 11 | B123: 16999 | C123: 11 | D123: 17008 | E123: 12 | F123: 17021 | K123: 0 | L123: 111
A124: 11 | B124: 17131 | C124: 11 | D124: 17143 | E124: 12 | F124: 17152 | K124: 0 | L124: 111
A125: 11 | B125: 17380 | C125: 11 | D125: 17393 | E125: 12 | F125: 17401 | K125: 0 | L125: 111
A126: 11 | B126: 17512 | C126: 11 | D126: 17517 | E126: 12 | F126: 17566 | K126: 0 | L126: 111
A127: 11 | B127: 17677 | C127: 11 | D127: 17685 | E127: 12 | F127: 17694 | K127: 0 | L127: 111
A128: 11 | B128: 17804 | C128: 11 | D128: 17810 | E128: 12 | F128: 17819 | K128: 0 | L128: 111
A129: 11 | B129: 17937 | C129: 11 | D129: 17946 | E129: 12 | F129: 17960 | K129: 0 | L129: 111
A130: 11 | B130: 18075 | C130: 11 | D130: 18079 | E130: 12 | F130: 18087 | K130: 0 | L130: 111
A131: 11 | B131: 18206 | C131: 11 | D131: 18215 | E131: 12 | F131: 18240 | K131: 0 | L131: 111
A132: 11 | B132: 18474 | C132: 11 | D132: 18490 | E132: 12 | F132: 18500 | K132: 0 | L132: 111
A133: 11 | B133: 18620 | C133: 11 | D133: 18626 | E133: 12 | F133: 18634 | K133: 0 | L133: 111
A134: 11 | B134: 18744 | C134: 11 | D134: 18750 | E134: 12 | F134: 18759 | K134: 0 | L134: 111
A135: 11 | B135: 18870 | C135: 11 | D135: 18874 | E135: 12 | F135: 18892 | K135: 0 | L135: 111
A136: 11 | B136: 18989 | C136: 11 | D136: 19001 | E136: 12 | F136: 19009 | K136: 0 | L136: 111
A137: 11 | B137: 19120 | C137: 11 | D137: 19128 | E137: 12 | F137: 19137 | K137: 0 | L137: 111
A138: 11 | B138: 19249 | C138: 11 | D138: 19254 | E138: 12 | F138: 19262 | K138: 0 | L138: 111
A139: 11 | B139: 19519 | C139: 22 | D139: 19536 | E139: 14 | F139: 19552 | K139: 0 | L139: 121
A140: 11 | B140: 19663 | C140: 11 | D140: 19671 | E140: 12 | F140: 19705 | K140: 0 | L140: 111
A141: 11 | B141: 19815 | C141: 11 | D141: 19820 | E141: 12 | F141: 19828 | K141: 0 | L141: 111
A142: 11 | B142: 19936 | C142: 11 | D142: 19940 | E142: 12 | F142: 19950 | K142: 0 | L142: 111
A143: 11 | B143: 20060 | C143: 11 | D143: 20064 | E143: 12 | F143: 20074 | K143: 0 | L143: 111
A144: 11 | B144: 20182 | C144: 11 | D144: 20186 | E144: 12 | F144: 20195 | K144: 0 | L144: 111
A145: 11 | B145: 20306 | C145: 11 | D145: 20311 | E145: 12 | F145: 20324 | K145: 0 | L145: 111
A146: 11 | B146: 20432 | C146: 11 | D146: 20442 | E146: 12 | F146: 20450 | K146: 0 | L146: 111
A147: 11 | B147: 20739 | C147: 11 | D147: 20751 | E147: 12 | F147: 20764 | K147: 0 | L147: 111
A148: 11 | B148: 20878 | C148: 11 | D148: 20883 | E148: 12 | F148: 20890 | K148: 0 | L148: 111
A149: 11 | B149: 21003 | C149: 11 | D149: 21011 | E149: 12 | F149: 21019 | K149: 0 | L149: 111
A150: 11 | B150: 21134 | C150: 11 | D150: 21142 | E150: 12 | F150: 21157 | K150: 0 | L150: 111
A151: 11 | B151: 21271 | C151: 11 | D151: 21275 | E151: 12 | F151: 21283 | K151: 0 | L151: 111
A152: 22 | B152: 21507 | C152: 13 | D152: 21517 | E152: 14 | F152: 21521 | K152: 0 | L152: 211
A153: 11 | B153: 21636 | C153: 11 | D153: 21645 | E153: 12 | F153: 21671 | K153: 0 | L153: 111
A154: 11 | B154: 21779 | C154: 11 | D154: 21785 | E154: 12 | F154: 21789 | K154: 0 | L154: 111
A155: 11 | B155: 21895 | C155: 11 | D155: 21899 | E155: 12 | F155: 21907 | K155: 0 | L155: 111
A156: 11 | B156: 22016 | C156: 11 | D156: 22021 | E156: 12 | F156: 22030 | K156: 0 | L156: 111
A157: 11 | B157: 22143 | C157: 11 | D157: 22150 | E157: 12 | F157: 22159 | K157: 0 | L157: 111
A158: 11 | B158: 22267 | C158: 11 | D158: 22271 | E158: 12 | F158: 22279 | K158: 0 | L158: 111
A159: 11 | B159: 22392 | C159: 11 | D159: 22399 | E159: 12 | F159: 22417 | K159: 0 | L159: 111
A160: 11 | B160: 22547 | C160: 11 | D160: 22559 | E160: 12 | F160: 22569 | K160: 0 | L160: 111
A161: 11 | B161: 22802 | C161: 11 | D161: 22807 | E161: 12 | F161: 22815 | K161: 0 | L161: 111
A162: 11 | B162: 22927 | C162: 11 | D162: 22932 | E162: 12 | F162: 22938 | K162: 0 | L162: 111
A163: 11 | B163: 23048 | C163: 11 | D163: 23056 | E163: 12 | F163: 23063 | K163: 0 | L163: 111
A164: 11 | B164: 23179 | C164: 11 | D164: 23184 | E164: 12 | F164: 23192 | K164: 0 | L164: 111
A165: 11 | B165: 23306 | C165: 11 | D165: 23311 | E165: 12 | F165: 23321 | K165: 0 | L165: 111
A166: 11 | B166: 23433 | C166: 11 | D166: 23440 | E166: 12 | F166: 23448 | K166: 0 | L166: 111
A167: 11 | B167: 23561 | C167: 11 | D167: 23568 | E167: 12 | F167: 23578 | K167: 0 | L167: 111
A168: 11 | B168: 23691 | C168: 11 | D168: 23694 | E168: 12 | F168: 23710 | K168: 0 | L168: 111
A169: 11 | B169: 23823 | C169: 11 | D169: 23827 | E169: 12 | F169: 23844 | K169: 0 | L169: 111
A170: 11 | B170: 23962 | C170: 11 | D170: 23966 | E170: 12 | F170: 23974 | L170: 111

Sheet !M805A40.010
A1: Report for:!M805A40.010
A2: Date: | B2: <date>
A3: Hen: | B3: <hen> | F3: Correct Sequence | G3: =Start!J2 -> 122 | P3: Total Sequences in Data | Q3: =4994-COUNTBLANK(L7:L5000) -> 157 | V3: Total Sequences in Block Data | W3: =COUNTA(L7:L32) -> 26 | AA3: Total Sequences in Block Data | AB3: =COUNTA(L33:L58) -> 26 | AF3: Total Sequences in Block Data | AG3: =COUNTA(L59:L85) -> 27 | AK3: Total Sequences in Block Data | AL3: =COUNTA(L86:L111) -> 26 | AP3: Total Sequences in Block Data | AQ3: =COUNTA(L112:L137) -> 26 | AU3: Total Sequences in Block Data | AV3: =COUNTA(L138:L163) -> 26
P4: Total Sequences in Summary | Q4: =SUM(O7:O14) -> 156 | V4: Total Sequences in Block Summary | W4: =SUM(U7:U14) -> 26 | AA4: Total Sequences in Block Summary | AB4: =SUM(Z7:Z14) -> 26 | AF4: Total Sequences in Block Summary | AG4: =SUM(AE7:AE14) -> 27 | AK4: Total Sequences in Block Summary | AL4: =SUM(AJ7:AJ14) -> 26 | AP4: Total Sequences in Block Summary | AQ4: =SUM(AO7:AO14) -> 26 | AU4: Total Sequences in Block Summary | AV4: =SUM(AT7:AT14) -> 25
T5: Block 1 | Y5: Block 2 | AD5: Block 3 | AI5: Block 4 | AN5: Block 5 | AS5: Block 6
A6: Sequence Component 1 | B6: Time 1 | C6: Sequence Component 2 | D6: Time 2 | E6: Sequence Component 3 | F6: Time 3 | G6: Sequence Component 4 | H6: Time 4 | I6: Sequence Component 5 | J6: Time 5 | K6: Correct? 0=No 1=Yes | L6: Sequence | N6: Frequency | P6: Relative Frequency | Q6: Variability | T6: Frequency | V6: Relative Frequency | W6: Variability | Y6: Frequency | AA6: Relative Frequency | AB6: Variability | AD6: Frequency | AF6: Relative Frequency | AG6: Variability | AI6: Frequency | AK6: Relative Frequency | AL6: Variability | AN6: Frequency | AP6: Relative Frequency | AQ6: Variability | AS6: Frequency | AU6: Relative Frequency | AV6: Variability
A7: 22 | B7: 31 | C7: 24 | D7: 48 | E7: 23 | F7: 63 | K7: 0 | L7: 222 | N7: 111 | O7: =COUNTIF($L$7:$L$500,N7) -> 123 | P7: =O7/$Q$4 -> 0.7884615385 | Q7: =IF(P7=0,0,(P7*((LOG(P7))/LOG(2)))) -> -0.2703537741 | T7: =N7 -> 111 | U7: =COUNTIF(L7:L32,T7) -> 10 | V7: =U7/(W4-U10) -> 0.3846153846 | W7: =IF(V7=0,0,(V7*((LOG(V7))/LOG(2)))) -> -0.5301967782 | Y7: =N7 -> 111 | Z7: =COUNTIF(L33:L58,Y7) -> 19 | AA7: =Z7/(AB4-Z10) -> 0.7307692308 | AB7: =IF(AA7=0,0,(AA7*((LOG(AA7))/LOG(2)))) -> -0.3306819957 | AD7: =N7 -> 111 | AE7: =COUNTIF(L59:L85,AD7) -> 26 | AF7: =AE7/(AG4-AE10) -> 0.962962963 | AG7: =IF(AF7=0,0,(AF7*((LOG(AF7))/LOG(2)))) -> -0.05243119943 | AI7: =N7 -> 111 | AJ7: =COUNTIF(L86:L111,AI7) -> 21 | AK7: =AJ7/(AL4-AJ10) -> 0.8076923077 | AL7: =IF(AK7=0,0,(AK7*((LOG(AK7))/LOG(2)))) -> -0.2488680078 | AN7: =N7 -> 111 | AO7: =COUNTIF(L112:L137,AN7) -> 23 | AP7: =AO7/(AQ4-AO10) -> 0.8846153846 | AQ7: =IF(AP7=0,0,(AP7*((LOG(AP7))/LOG(2)))) -> -0.1564687895 | AS7: =N7 -> 111 | AT7: =COUNTIF(L138:L163,AS7) -> 24 | AU7: =AT7/(AV4-AT10) -> 0.96 | AV7: =IF(AU7=0,0,(AU7*((LOG(AU7))/LOG(2)))) -> -0.05653794149
A8: 22 | B8: 182 | C8: 13 | D8: 198 | E8: 14 | F8: 207 | K8: 0 | L8: 211 | N8: 112 | O8: =COUNTIF($L$7:$L$500,N8) -> 0 | P8: =O8/$Q$4 -> 0 | Q8: =IF(P8=0,0,(P8*((LOG(P8))/LOG(2)))) -> 0 | T8: =N8 -> 112 | U8: =COUNTIF(L7:L32,T8) -> 0 | V8: =U8/(W4-U10) -> 0 | W8: =IF(V8=0,0,(V8*((LOG(V8))/LOG(2)))) -> 0 | Y8: =N8 -> 112 | Z8: =COUNTIF(L33:L58,Y8) -> 0 | AA8: =Z8/(AB4-Z10) -> 0 | AB8: =IF(AA8=0,0,(AA8*((LOG(AA8))/LOG(2)))) -> 0 | AD8: =N8 -> 112 | AE8: =COUNTIF(L59:L85,AD8) -> 0 | AF8: =AE8/(AG4-AE10) -> 0 | AG8: =IF(AF8=0,0,(AF8*((LOG(AF8))/LOG(2)))) -> 0 | AI8: =N8 -> 112 | AJ8: =COUNTIF(L86:L111,AI8) -> 0 | AK8: =AJ8/(AL4-AJ10) -> 0 | AL8: =IF(AK8=0,0,(AK8*((LOG(AK8))/LOG(2)))) -> 0 | AN8: =N8 -> 112 | AO8: =COUNTIF(L112:L137,AN8) -> 0 | AP8: =AO8/(AQ4-AO10) -> 0 | AQ8: =IF(AP8=0,0,(AP8*((LOG(AP8))/LOG(2)))) -> 0 | AS8: =N8 -> 112 | AT8: =COUNTIF(L138:L163,AS8) -> 0 | AU8: =AT8/(AV4-AT10) -> 0 | AV8: =IF(AU8=0,0,(AU8*((LOG(AU8))/LOG(2)))) -> 0
A9: 22 | B9: 321 | C9: 24 | D9: 332 | E9: 23 | F9: 349 | K9: 0 | L9: 222 | N9: 121 | O9: =COUNTIF($L$7:$L$500,N9) -> 0 | P9: =O9/$Q$4 -> 0 | Q9: =IF(P9=0,0,(P9*((LOG(P9))/LOG(2)))) -> 0 | T9: =N9 -> 121 | U9: =COUNTIF(L7:L32,T9) -> 0 | V9: =U9/(W4-U10) -> 0 | W9: =IF(V9=0,0,(V9*((LOG(V9))/LOG(2)))) -> 0 | Y9: =N9 -> 121 | Z9: =COUNTIF(L33:L58,Y9) -> 0 | AA9: =Z9/(AB4-Z10) -> 0 | AB9: =IF(AA9=0,0,(AA9*((LOG(AA9))/LOG(2)))) -> 0 | AD9: =N9 -> 121 | AE9: =COUNTIF(L59:L85,AD9) -> 0 | AF9: =AE9/(AG4-AE10) -> 0 | AG9: =IF(AF9=0,0,(AF9*((LOG(AF9))/LOG(2)))) -> 0 | AI9: =N9 -> 121 | AJ9: =COUNTIF(L86:L111,AI9) -> 0 | AK9: =AJ9/(AL4-AJ10) -> 0 | AL9: =IF(AK9=0,0,(AK9*((LOG(AK9))/LOG(2)))) -> 0 | AN9: =N9 -> 121 | AO9: =COUNTIF(L112:L137,AN9) -> 0 | AP9: =AO9/(AQ4-AO10) -> 0 | AQ9: =IF(AP9=0,0,(AP9*((LOG(AP9))/LOG(2)))) -> 0 | AS9: =N9 -> 121 | AT9: =COUNTIF(L138:L163,AS9) -> 0 | AU9: =AT9/(AV4-AT10) -> 0 | AV9: =IF(AU9=0,0,(AU9*((LOG(AU9))/LOG(2)))) -> 0
A10: 22 | B10: 453 | C10: 24 | D10: 463 | E10: 23 | F10: 473 | K10: 0 | L10: 222 | N10: 122 | O10: =COUNTIF($L$7:$L$500,N10) -> 0 | P10: =O10/$Q$4 -> 0 | Q10: =IF(P10=0,0,(P10*((LOG(P10))/LOG(2)))) -> 0 | T10: =N10 -> 122 | U10: =COUNTIF(L7:L32,T10) -> 0 | Y10: =N10 -> 122 | Z10: =COUNTIF(L33:L58,Y10) -> 0 | AD10: =N10 -> 122 | AE10: =COUNTIF(L59:L85,AD10) -> 0 | AI10: =N10 -> 122 | AJ10: =COUNTIF(L86:L111,AI10) -> 0 | AN10: =N10 -> 122 | AO10: =COUNTIF(L112:L137,AN10) -> 0 | AS10: =N10 -> 122 | AT10: =COUNTIF(L138:L163,AS10) -> 0
A11: 22 | B11: 577 | C11: 24 | D11: 595 | E11: 23 | F11: 604 | K11: 0 | L11: 222 | N11: 211 | O11: =COUNTIF($L$7:$L$500,N11) -> 17 | P11: =O11/$Q$4 -> 0.108974359 | Q11: =IF(P11=0,0,(P11*((LOG(P11))/LOG(2)))) -> -0.3484933937 | T11: =N11 -> 211 | U11: =COUNTIF(L7:L32,T11) -> 5 | V11: =U11/(W4-U10) -> 0.1923076923 | W11: =IF(V11=0,0,(V11*((LOG(V11))/LOG(2)))) -> -0.4574060814 | Y11: =N11 -> 211 | Z11: =COUNTIF(L33:L58,Y11) -> 4 | AA11: =Z11/(AB4-Z10) -> 0.1538461538 | AB11: =IF(AA11=0,0,(AA11*((LOG(AA11))/LOG(2)))) -> -0.4154522643 | AD11: =N11 -> 211 | AE11: =COUNTIF(L59:L85,AD11) -> 0 | AF11: =AE11/(AG4-AE10) -> 0 | AG11: =IF(AF11=0,0,(AF11*((LOG(AF11))/LOG(2)))) -> 0 | AI11: =N11 -> 211 | AJ11: =COUNTIF(L86:L111,AI11) -> 4 | AK11: =AJ11/(AL4-AJ10) -> 0.1538461538 | AL11: =IF(AK11=0,0,(AK11*((LOG(AK11))/LOG(2)))) -> -0.4154522643 | AN11: =N11 -> 211 | AO11: =COUNTIF(L112:L137,AN11) -> 3 | AP11: =AO11/(AQ4-AO10) -> 0.1153846154 | AQ11: =IF(AP11=0,0,(AP11*((LOG(AP11))/LOG(2)))) -> -0.3594781405 | AS11: =N11 -> 211 | AT11: =COUNTIF(L138:L163,AS11) -> 1 | AU11: =AT11/(AV4-AT10) -> 0.04 | AV11: =IF(AU11=0,0,(AU11*((LOG(AU11))/LOG(2)))) -> -0.1857542476
A12: 22 | B12: 746 | C12: 24 | D12: 759 | E12: 14 | F12: 776 | K12: 0 | L12: 221 | N12: 212 | O12: =COUNTIF($L$7:$L$500,N12) -> 0 | P12: =O12/$Q$4 -> 0 | Q12: =IF(P12=0,0,(P12*((LOG(P12))/LOG(2)))) -> 0 | T12: =N12 -> 212 | U12: =COUNTIF(L7:L32,T12) -> 0 | V12: =U12/(W4-U10) -> 0 | W12: =IF(V12=0,0,(V12*((LOG(V12))/LOG(2)))) -> 0 | Y12: =N12 -> 212 | Z12: =COUNTIF(L33:L58,Y12) -> 0 | AA12: =Z12/(AB4-Z10) -> 0 | AB12: =IF(AA12=0,0,(AA12*((LOG(AA12))/LOG(2)))) -> 0 | AD12: =N12 -> 212 | AE12: =COUNTIF(L59:L85,AD12) -> 0 | AF12: =AE12/(AG4-AE10) -> 0 | AG12: =IF(AF12=0,0,(AF12*((LOG(AF12))/LOG(2)))) -> 0 | AI12: =N12 -> 212 | AJ12: =COUNTIF(L86:L111,AI12) -> 0 | AK12: =AJ12/(AL4-AJ10) -> 0 | AL12: =IF(AK12=0,0,(AK12*((LOG(AK12))/LOG(2)))) -> 0 | AN12: =N12 -> 212 | AO12: =COUNTIF(L112:L137,AN12) -> 0 | AP12: =AO12/(AQ4-AO10) -> 0 | AQ12: =IF(AP12=0,0,(AP12*((LOG(AP12))/LOG(2)))) -> 0 | AS12: =N12 -> 212 | AT12: =COUNTIF(L138:L163,AS12) -> 0 | AU12: =AT12/(AV4-AT10) -> 0 | AV12: =IF(AU12=0,0,(AU12*((LOG(AU12))/LOG(2)))) -> 0
A13: 11 | B13: 951 | C13: 11 | D13: 969 | E13: 12 | F13: 997 | K13: 0 | L13: 111 | N13: 221 | O13: =COUNTIF($L$7:$L$500,N13) -> 9 | P13: =O13/$Q$4 -> 0.05769230769 | Q13: =IF(P13=0,0,(P13*((LOG(P13))/LOG(2)))) -> -0.2374313779 | T13: =N13 -> 221 | U13: =COUNTIF(L7:L32,T13) -> 5 | V13: =U13/(W4-U10) -> 0.1923076923 | W13: =IF(V13=0,0,(V13*((LOG(V13))/LOG(2)))) -> -0.4574060814 | Y13: =N13 -> 221 | Z13: =COUNTIF(L33:L58,Y13) -> 2 | AA13: =Z13/(AB4-Z10) -> 0.07692307692 | AB13: =IF(AA13=0,0,(AA13*((LOG(AA13))/LOG(2)))) -> -0.2846492091 | AD13: =N13 -> 221 | AE13: =COUNTIF(L59:L85,AD13) -> 1 | AF13: =AE13/(AG4-AE10) -> 0.03703703704 | AG13: =IF(AF13=0,0,(AF13*((LOG(AF13))/LOG(2)))) -> -0.1761069445 | AI13: =N13 -> 221 | AJ13: =COUNTIF(L86:L111,AI13) -> 1 | AK13: =AJ13/(AL4-AJ10) -> 0.03846153846 | AL13: =IF(AK13=0,0,(AK13*((LOG(AK13))/LOG(2)))) -> -0.180786143 | AN13: =N13 -> 221 | AO13: =COUNTIF(L112:L137,AN13) -> 0 | AP13: =AO13/(AQ4-AO10) -> 0 | AQ13: =IF(AP13=0,0,(AP13*((LOG(AP13))/LOG(2)))) -> 0 | AS13: =N13 -> 221 | AT13: =COUNTIF(L138:L163,AS13) -> 0 | AU13: =AT13/(AV4-AT10) -> 0 | AV13: =IF(AU13=0,0,(AU13*((LOG(AU13))/LOG(2)))) -> 0
A14: 22 | B14: 1104 | C14: 24 | D14: 1120 | E14: 14 | F14: 1139 | K14: 0 | L14: 221 | N14: 222 | O14: =COUNTIF($L$7:$L$500,N14) -> 7 | P14: =O14/$Q$4 -> 0.04487179487 | Q14: =IF(P14=0,0,(P14*((LOG(P14))/LOG(2)))) -> -0.2009380197 | T14: =N14 -> 222 | U14: =COUNTIF(L7:L32,T14) -> 6 | V14: =U14/(W4-U10) -> 0.2307692308 | W14: =IF(V14=0,0,(V14*((LOG(V14))/LOG(2)))) -> -0.4881870502 | Y14: =N14 -> 222 | Z14: =COUNTIF(L33:L58,Y14) -> 1 | AA14: =Z14/(AB4-Z10) -> 0.03846153846 | AB14: =IF(AA14=0,0,(AA14*((LOG(AA14))/LOG(2)))) -> -0.180786143 | AD14: =N14 -> 222 | AE14: =COUNTIF(L59:L85,AD14) -> 0 | AF14: =AE14/(AG4-AE10) -> 0 | AG14: =IF(AF14=0,0,(AF14*((LOG(AF14))/LOG(2)))) -> 0 | AI14: =N14 -> 222 | AJ14: =COUNTIF(L86:L111,AI14) -> 0 | AK14: =AJ14/(AL4-AJ10) -> 0 | AL14: =IF(AK14=0,0,(AK14*((LOG(AK14))/LOG(2)))) -> 0 | AN14: =N14 -> 222 | AO14: =COUNTIF(L112:L137,AN14) -> 0 | AP14: =AO14/(AQ4-AO10) -> 0 | AQ14: =IF(AP14=0,0,(AP14*((LOG(AP14))/LOG(2)))) -> 0 | AS14: =N14 -> 222 | AT14: =COUNTIF(L138:L163,AS14) -> 0 | AU14: =AT14/(AV4-AT10) -> 0 | AV14: =IF(AU14=0,0,(AU14*((LOG(AU14))/LOG(2)))) -> 0
A15: 11 | B15: 1258 | C15: 11 | D15: 1266 | E15: 12 | F15: 1276 | K15: 0 | L15: 111 | P15: =SUM(P7:P14) -> 1 | Q15: =-SUM(Q7:Q14) -> 1.057216565 | V15: =SUM(V7:V14) -> 1 | W15: =-SUM(W7:W14) -> 1.933195991 | AA15: =SUM(AA7:AA14) -> 1 | AB15: =-SUM(AB7:AB14) -> 1.211569612 | AF15: =SUM(AF7:AF14) -> 1 | AG15: =-SUM(AG7:AG14) -> 0.228538144 | AK15: =SUM(AK7:AK14) -> 1 | AL15: =-SUM(AL7:AL14) -> 0.8451064151 | AP15: =SUM(AP7:AP14) -> 1 | AQ15: =-SUM(AQ7:AQ14) -> 0.51594693 | AU15: =SUM(AU7:AU14) -> 1 | AV15: =-SUM(AV7:AV14) -> 0.2422921891
A16: 22 | B16: 1446 | C16: 24 | D16: 1457 | E16: 14 | F16: 1471 | K16: 0 | L16: 221 | P16: U= | Q16: =Q15/(LOG(Q4)/LOG(2)) -> 0.1451143717 | V16: U1= | W16: =W15/(LOG(W4)/LOG(2)) -> 0.4112798179 | AA16: U2= | AB16: =AB15/(LOG(AB4)/LOG(2)) -> 0.2577566536 | AF16: U3= | AG16: =AG15/(LOG(AG4)/LOG(2)) -> 0.04806383828 | AK16: U4= | AL16: =AL15/(LOG(AL4)/LOG(2)) -> 0.1797930547 | AP16: U5= | AQ16: =AQ15/(LOG(AQ4)/LOG(2)) -> 0.1097656732 | AU16: U6= | AV16: =AV15/(LOG(AV4)/LOG(2)) -> 0.05217478302
A17: 11 | B17: 1590 | C17: 11 | D17: 1599 | E17: 12 | F17: 1628 | K17: 0 | L17: 111
A18: 11 | B18: 1754 | C18: 11 | D18: 1773 | E18: 12 | F18: 1790 | K18: 0 | L18: 111
A19: 11 | B19: 1913 | C19: 11 | D19: 1918 | E19: 12 | F19: 1926 | K19: 0 | L19: 111 | N19: Total Target Seq
A20: 22 | B20: 2036 | C20: 13 | D20: 2050 | E20: 14 | F20: 2058 | K20: 0 | L20: 211 | N20: =COUNTIF(L7:L163,G3) -> 0 | P20: 26 | Q20: 26 | R20: 27 | S20: 26 | T20: 26 | U20: 26
A21: 11 | B21: 2187 | C21: 11 | D21: 2194 | E21: 12 | F21: 2199 | K21: 0 | L21: 111 | P21: % of reinforcement given in 6 equal intervals based on number of trials
A22: 22 | B22: 2305 | C22: 13 | D22: 2317 | E22: 14 | F22: 2325 | K22: 0 | L22: 211 | P22: %_1 | Q22: %_2 | R22: %_3 | S22: %_4 | T22: %_5 | U22: %_6
A23: 11 | B23: 2456 | C23: 11 | D23: 2464 | E23: 12 | F23: 2490 | K23: 0 | L23: 111 | O23: target sequence | P23: =$G$3 -> 122 | Q23: =$G$3 -> 122 | R23: =$G$3 -> 122 | S23: =$G$3 -> 122 | T23: =$G$3 -> 122 | U23: =$G$3 -> 122
A24: 22 | B24: 2721 | C24: 13 | D24: 2743 | E24: 14 | F24: 2762 | K24: 0 | L24: 211 | O24: total reinforcement | P24: =U10 -> 0 | Q24: =Z10 -> 0 | R24: =AE10 -> 0 | S24: =AJ10 -> 0 | T24: =AO10 -> 0 | U24: =AT10 -> 0
A25: 22 | B25: 2864 | C25: 24 | D25: 2879 | E25: 23 | F25: 2889 | K25: 0 | L25: 222 | O25: % target
A26: 11 | B26: 3029 | C26: 11 | D26: 3051 | E26: 12 | F26: 3071 | K26: 0 | L26: 111 | O26: CCRF
A27: 22 | B27: 3262 | C27: 24 | D27: 3289 | E27: 23 | F27: 3299 | K27: 0 | L27: 222 | O27: % CCRf
A28: 22 | B28: 3414 | C28: 13 | D28: 3428 | E28: 14 | F28: 3452 | K28: 0 | L28: 211 | O28: average response rate | P28: =F32/P20 -> 154.6538462 | Q28: =(F58-F32)/Q20 -> 156.8846154 | R28: =(F85-F58)/R20 -> 145.1851852 | S28: =(F111-F85)/S20 -> 160.8076923 | T28: =(F137-F111)/T20 -> 143.9230769 | U28: =(F163-F137)/U20 -> -767.0384615
A29: 11 | B29: 3559 | C29: 11 | D29: 3569 | E29: 12 | F29: 3577 | K29: 0 | L29: 111
A30: 11 | B30: 3695 | C30: 11 | D30: 3708 | E30: 12 | F30: 3744 | K30: 0 | L30: 111
A31: 22 | B31: 3848 | C31: 24 | D31: 3858 | E31: 14 | F31: 3876 | K31: 0 | L31: 221
A32: 22 | B32: 3991 | C32: 24 | D32: 4002 | E32: 14 | F32: 4021 | K32: 0 | L32: 221
A33: 22 | B33: 4126 | C33: 24 | D33: 4138 | E33: 14 | F33: 4176 | K33: 0 | L33: 221
A34: 11 | B34: 4299 | C34: 11 | D34: 4309 | E34: 12 | F34: 4373 | K34: 0 | L34: 111
A35: 11 | B35: 4487 | C35: 11 | D35: 4495 | E35: 12 | F35: 4505 | K35: 0 | L35: 111
A36: 22 | B36: 4709 | C36: 24 | D36: 4717 | E36: 23 | F36: 4727 | K36: 0 | L36: 222
A37: 22 | B37: 4832 | C37: 24 | D37: 4840 | E37: 14 | F37: 4855 | K37: 0 | L37: 221
A38: 22 | B38: 4958 | C38: 13 | D38: 4976 | E38: 14 | F38: 4981 | K38: 0 | L38: 211
A39: 11 | B39: 5093 | C39: 11 | D39: 5103 | E39: 12 | F39: 5112 | K39: 0 | L39: 111
A40: 11 | B40: 5226 | C40: 11 | D40: 5275 | E40: 12 | F40: 5293 | K40: 0 | L40: 111
A41: 22 | B41: 5551 | C41: 13 | D41: 5575 | E41: 14 | F41: 5621 | K41: 0 | L41: 211
A42: 11 | B42: 5739 | C42: 11 | D42: 5754 | E42: 12 | F42: 5764 | K42: 0 | L42: 111
A43: 22 | B43: 5869 | C43: 13 | D43: 5883 | E43: 14 | F43: 5887 | K43: 0 | L43: 211
A44: 11 | B44: 6001 | C44: 11 | D44: 6016 | E44: 12 | F44: 6026 | K44: 0 | L44: 111
A45: 11 | B45: 6143 | C45: 11 | D45: 6152 | E45: 12 | F45: 6171 | K45: 0 | L45: 111
A46: 22 | B46: 6366 | C46: 13 | D46: 6385 | E46: 14 | F46: 6395 | K46: 0 | L46: 211
A47: 11 | B47: 6492 | C47: 11 | D47: 6501 | E47: 12 | F47: 6510 | K47: 0 | L47: 111
A48: 11 | B48: 6619 | C48: 11 | D48: 6627 | E48: 12 | F48: 6652 | K48: 0 | L48: 111
A49: 11 | B49: 6762 | C49: 11 | D49: 6767 | E49: 12 | F49: 6774 | K49: 0 | L49: 111
A50: 11 | B50: 6890 | C50: 11 | D50: 6899 | E50: 12 | F50: 6918 | K50: 0 | L50: 111
A51: 11 | B51: 7028 | C51: 11 | D51: 7033 | E51: 12 | F51: 7042 | K51: 0 | L51: 111
A52: 11 | B52: 7249 | C52: 11 | D52: 7254 | E52: 12 | F52: 7263 | K52: 0 | L52: 111
A53: 11 | B53: 7379 | C53: 11 | D53: 7387 | E53: 12 | F53: 7423 | K53: 0 | L53: 111
A54: 11 | B54: 7537 | C54: 11 | D54: 7545 | E54: 12 | F54: 7602 | K54: 0 | L54: 111
A55: 11 | B55: 7717 | C55: 11 | D55: 7726 | E55: 12 | F55: 7736 | K55: 0 | L55: 111
A56: 11 | B56: 7845 | C56: 11 | D56: 7857 | E56: 12 | F56: 7867 | K56: 0 | L56: 111
A57: 11 | B57: 7966 | C57: 11 | D57: 7974 | E57: 12 | F57: 7982 | K57: 0 | L57: 111
A58: 11 | B58: 8091 | C58: 11 | D58: 8096 | E58: 12 | F58: 8100 | K58: 0 | L58: 111
A59: 11 | B59: 8321 | C59: 11 | D59: 8327 | E59: 12 | F59: 8336 | K59: 0 | L59: 111
A60: 11 | B60: 8448 | C60: 11 | D60: 8456 | E60: 12 | F60: 8476 | K60: 0 | L60: 111
A61: 11 | B61: 8595 | C61: 11 | D61: 8600 | E61: 12 | F61: 8609 | K61: 0 | L61: 111
A62: 11 | B62: 8735 | C62: 11 | D62: 8773 | E62: 12 | F62: 8793 | K62: 0 | L62: 111
A63: 11 | B63: 8909 | C63: 11 | D63: 8918 | E63: 12 | F63: 8929 | K63: 0 | L63: 111
A64: 11 | B64: 9039 | C64: 11 | D64: 9053 | E64: 12 | F64: 9061 | K64: 0 | L64: 111
A65: 11 | B65: 9175 | C65: 11 | D65: 9179 | E65: 12 | F65: 9187 | K65: 0 | L65: 111
A66: 11 | B66: 9305 | C66: 11 | D66: 9314 | E66: 12 | F66: 9327 | K66: 0 | L66: 111
A67: 22 | B67: 9482 | C67: 24 | D67: 9491 | E67: 14 | F67: 9504 | K67: 0 | L67: 221
A68: 11 | B68: 9611 | C68: 11 | D68: 9621 | E68: 12 | F68: 9631 | K68: 0 | L68: 111
A69: 11 | B69: 9746 | C69: 11 | D69: 9759 | E69: 12 | F69: 9776 | K69: 0 | L69: 111
A70: 11 | B70: 9889 | C70: 11 | D70: 9897 | E70: 12 | F70: 9906 | K70: 0 | L70: 111
A71: 11 | B71: 10016 | C71: 11 | D71: 10023 | E71: 12 | F71: 10032 | K71: 0 | L71: 111
A72: 11 | B72: 10144 | C72: 11 | D72: 10152 | E72: 12 | F72: 10161 | K72: 0 | L72: 111
A73: 11 | B73: 10272 | C73: 11 | D73: 10280 | E73: 12 | F73: 10289 | K73: 0 | L73: 111
A74: 11 | B74: 10401 | C74: 11 | D74: 10404 | E74: 12 | F74: 10410 | K74: 0 | L74: 111
A75: 11 | B75: 10526 | C75: 11 | D75: 10536 | E75: 12 | F75: 10545 | K75: 0 | L75: 111
A76: 11 | B76: 10656 | C76: 11 | D76: 10665 | E76: 12 | F76: 10678 | K76: 0 | L76: 111
A77: 11 | B77: 10794 | C77: 11 | D77: 10803 | E77: 12 | F77: 10813 | K77: 0 | L77: 111
A78: 11 | B78: 10923 | C78: 11 | D78: 10928 | E78: 12 | F78: 10938 | K78: 0 | L78: 111
A79: 11 | B79: 11181 | C79: 11 | D79: 11189 | E79: 12 | F79: 11206 | K79: 0 | L79: 111
A80: 11 | B80: 11331 | C80: 11 | D80: 11366 | E80: 12 | F80: 11392 | K80: 0 | L80: 111
A81: 11 | B81: 11503 | C81: 11 | D81: 11506 | E81: 12 | F81: 11516 | K81: 0 | L81: 111
A82: 11 | B82: 11627 | C82: 11 | D82: 11635 | E82: 12 | F82: 11644 | K82: 0 | L82: 111
A83: 11 | B83: 11754 | C83: 11 | D83: 11762 | E83: 12 | F83: 11770 | K83: 0 | L83: 111
A84: 11 | B84: 11879 | C84: 11 | D84: 11884 | E84: 12 | F84: 11893 | K84: 0 | L84: 111
A85: 11 | B85: 12006 | C85: 11 | D85: 12011 | E85: 12 | F85: 12020 | K85: 0 | L85: 111
A86: 11 | B86: 12276 | C86: 11 | D86: 12286 | E86: 12 | F86: 12294 | K86: 0 | L86: 111
A87: 11 | B87: 12412 | C87: 11 | D87: 12421 | E87: 12 | F87: 12436 | K87: 0 | L87: 111
A88: 11 | B88: 12548 | C88: 11 | D88: 12557 | E88: 12 | F88: 12573 | K88: 0 | L88: 111
A89: 11 | B89: 12688 | C89: 11 | D89: 12697 | E89: 12 | F89: 12706 | K89: 0 | L89: 111
A90: 22 | B90: 12881 | C90: 13 | D90: 12891 | E90: 14 | F90: 12898 | K90: 0 | L90: 211
A91: 11 | B91: 13020 | C91: 11 | D91: 13030 | E91: 12 | F91: 13048 | K91: 0 | L91: 111
A92: 11 | B92: 13161 | C92: 11 | D92: 13166 | E92: 12 | F92: 13175 | K92: 0 | L92: 111
A93: 11 | B93: 13287 | C93: 11 | D93: 13294 | E93: 12 | F93: 13304 | K93: 0 | L93: 111
A94: 11 | B94: 13421 | C94: 11 | D94: 13429 | E94: 12 | F94: 13439 | K94: 0 | L94: 111
A95: 11 | B95: 13563 | C95: 11 | D95: 13574 | E95: 12 | F95: 13585 | K95: 0 | L95: 111
A96: 11 | B96: 13695 | C96: 11 | D96: 13703 | E96: 12 | F96: 13723 | K96: 0 | L96: 111
A97: 11 | B97: 13835 | C97: 11 | D97: 13851 | E97: 12 | F97: 13861 | K97: 0 | L97: 111
A98: 11 | B98: 13972 | C98: 11 | D98: 13987 | E98: 12 | F98: 13998 | K98: 0 | L98: 111
A99: 11 | B99: 14120 | C99: 11 | D99: 14128 | E99: 12 | F99: 14138 | K99: 0 | L99: 111
A100: 11 | B100: 14252 | C100: 11 | D100: 14262 | E100: 12 | F100: 14271 | K100: 0 | L100: 111
A101: 11 | B101: 14524 | C101: 11 | D101: 14532 | E101: 12 | F101: 14559 | K101: 0 | L101: 111
A102: 11 | B102: 14840 | C102: 11 | D102: 14850 | E102: 12 | F102: 14857 | K102: 0 | L102: 111
A103: 11 | B103: 14979 | C103: 11 | D103: 14986 | E103: 12 | F103: 14995 | K103: 0 | L103: 111
A104: 22 | B104: 15223 | C104: 13 | D104: 15248 | E104: 14 | F104: 15256 | K104: 0 | L104: 211
A105: 22 | B105: 15358 | C105: 13 | D105: 15377 | E105: 14 | F105: 15385 | K105: 0 | L105: 211
A106: 22 | B106: 15488 | C106: 13 | D106: 15500 | E106: 14 | F106: 15510 | K106: 0 | L106: 211
A107: 11 | B107: 15632 | C107: 11 | D107: 15637 | E107: 12 | F107: 15644 | K107: 0 | L107: 111
A108: 22 | B108: 15755 | C108: 24 | D108: 15765 | E108: 14 | F108: 15784 | K108: 0 | L108: 221
A109: 11 | B109: 15904 | C109: 11 | D109: 15912 | E109: 12 | F109: 15931 | K109: 0 | L109: 111
A110: 11 | B110: 16047 | C110: 11 | D110: 16051 | E110: 12 | F110: 16069 | K110: 0 | L110: 111
A111: 11 | B111: 16183 | C111: 11 | D111: 16191 | E111: 12 | F111: 16201 | K111: 0 | L111: 111
A112: 11 | B112: 16299 | C112: 11 | D112: 16309 | E112: 12 | F112: 16318 | K112: 0 | L112: 111
A113: 11 | B113: 16431 | C113: 11 | D113: 16438 | E113: 12 | F113: 16447 | K113: 0 | L113: 111
A114: 11 | B114: 16564 | C114: 11 | D114: 16572 | E114: 12 | F114: 16582 | K114: 0 | L114: 111
A115: 11 | B115: 16694 | C115: 11 | D115: 16703 | E115: 12 | F115: 16711 | K115: 0 | L115: 111
A116: 11 | B116: 16824 | C116: 11 | D116: 16828 | E116: 12 | F116: 16837 | K116: 0 | L116: 111
A117: 22 | B117: 16938 | C117: 13 | D117: 16951 | E117: 14 | F117: 16959 | K117: 0 | L117: 211
A118: 11 | B118: 17077 | C118: 11 | D118: 17085 | E118: 12 | F118: 17095 | K118: 0 | L118: 111
A119: 11 | B119: 17208 | C119: 11 | D119: 17221 | E119: 12 | F119: 17240 | K119: 0 | L119: 111
A120: 11 | B120: 17349 | C120: 11 | D120: 17354 | E120: 12 | F120: 17362 | K120: 0 | L120: 111
A121: 11 | B121: 17475 | C121: 11 | D121: 17480 | E121: 12 | F121: 17488 | K121: 0 | L121: 111
A122: 11 | B122: 17662 | C122: 11 | D122: 17670 | E122: 12 | F122: 17678 | K122: 0 | L122: 111
A123: 11 | B123: 17784 | C123: 11 | D123: 17792 | E123: 12 | F123: 17801 | K123: 0 | L123: 111
A124: 22 | B124: 17908 | C124: 13 | D124: 17921 | E124: 14 | F124: 17930 | K124: 0 | L124: 211
A125: 11 | B125: 18043 | C125: 11 | D125: 18053 | E125: 12 | F125: 18062 | K125: 0 | L125: 111
A126: 11 | B126: 18174 | C126: 11 | D126: 18179 | E126: 12 | F126: 18188 | K126: 0 | L126: 111
A127: 11 | B127: 18299 | C127: 11 | D127: 18304 | E127: 12 | F127: 18318 | K127: 0 | L127: 111
A128: 11 | B128: 18437 | C128: 11 | D128: 18450 | E128: 12 | F128: 18463 | K128: 0 | L128: 111
A129: 22 | B129: 18570 | C129: 13 | D129: 18590 | E129: 14 | F129: 18599 | K129: 0 | L129: 211
A130: 11 | B130: 18711 | C130: 11 | D130: 18720 | E130: 12 | F130: 18730 | K130: 0 | L130: 111
A131: 11 | B131: 18840 | C131: 11 | D131: 18848 | E131: 12 | F131: 18867 | K131: 0 | L131: 111
A132: 11 | B132: 18977 | C132: 11 | D132: 18986 | E132: 12 | F132: 18994 | K132: 0 | L132: 111
A133: 11 | B133: 19108 | C133: 11 | D133: 19117 | E133: 12 | F133: 19135 | K133: 0 | L133: 111
A134: 11 | B134: 19400 | C134: 11 | D134: 19404 | E134: 12 | F134: 19413 | K134: 0 | L134: 111
A135: 11 | B135: 19633 | C135: 11 | D135: 19641 | E135: 12 | F135: 19659 | K135: 0 | L135: 111
A136: 11 | B136: 19776 | C136: 11 | D136: 19781 | E136: 12 | F136: 19791 | K136: 0 | L136: 111
A137: 11 | B137: 19908 | C137: 11 | D137: 19917 | E137: 12 | F137: 19943 | K137: 0 | L137: 111
A138: 11 | B138: 20058 | C138: 11 | D138: 20064 | E138: 12 | F138: 20072 | K138: 0 | L138: 111
A139: 11 | B139: 20243 | C139: 11 | D139: 20249 | E139: 12 | F139: 20259 | K139: 0 | L139: 111
A140: 11 | B140: 20396 | C140: 11 | D140: 20405 | E140: 12 | F140: 20417 | K140: 0 | L140: 111
A141: 11 | B141: 20530 | C141: 11 | D141: 20539 | E141: 12 | F141: 20547 | K141: 0 | L141: 111
A142: 11 | B142: 20659 | C142: 11 | D142: 20664 | E142: 12 | F142: 20674 | K142: 0 | L142: 111
A143: 11 | B143: 20798 | C143: 11 | D143: 20807 | E143: 12 | F143: 20816 | K143: 0 | L143: 111
A144: 11 | B144: 21029 | C144: 11 | D144: 21038 | E144: 12 | F144: 21056 | K144: 0 | L144: 111
A145: 11 | B145: 21172 | C145: 11 | D145: 21181 | E145: 12 | F145: 21191 | K145: 0 | L145: 111
A146: 11 | B146: 21303 | C146: 11 | D146: 21313 | E146: 12 | F146: 21321 | K146: 0 | L146: 111
A147: 11 | B147: 21431 | C147: 11 | D147: 21435 | E147: 12 | F147: 21448 | K147: 0 | L147: 111
A148: 11 | B148: 21558 | C148: 11 | D148: 21565 | E148: 12 | F148: 21575 | K148: 0 | L148: 111
A149: 11 | B149: 21700 | C149: 11 | D149: 21709 | E149: 12 | F149: 21730 | K149: 0 | L149: 111
A150: 11 | B150: 21923 | C150: 11 | D150: 21928 | E150: 12 | F150: 21938 | K150: 0 | L150: 111
A151: 11 | B151: 22148 | C151: 11 | D151: 22158 | E151: 12 | F151: 22165 | K151: 0 | L151: 111
A152: 22 | B152: 22300 | C152: 13 | D152: 22313 | E152: 14 | F152: 22335 | K152: 0 | L152: 211
A153: 11 | B153: 22459 | C153: 11 | D153: 22478 | E153: 12 | F153: 22488 | K153: 0 | L153: 111
A154: 11 | B154: 22687 | C154: 11 | D154: 22694 | E154: 12 | F154: 22702 | K154: 0 | L154: 111
A155: 11 | B155: 22825 | C155: 11 | D155: 22835 | E155: 12 | F155: 22852 | K155: 0 | L155: 111
A156: 11 | B156: 22969 | C156: 11 | D156: 22979 | E156: 12 | F156: 22986 | K156: 0 | L156: 111
A157: 11 | B157: 23101 | C157: 11 | D157: 23109 | E157: 12 | F157: 23117 | K157: 0 | L157: 111
A158: 11 | B158: 23233 | C158: 11 | D158: 23237 | E158: 12 | F158: 23248 | K158: 0 | L158: 111
A159: 11 | B159: 23358 | C159: 11 | D159: 23363 | E159: 12 | F159: 23372 | K159: 0 | L159: 111
A160: 11 | B160: 23619 | C160: 11 | D160: 23626 | E160: 12 | F160: 23634 | K160: 0 | L160: 111
A161: 11 | B161: 23750 | C161: 11 | D161: 23753 | E161: 12 | F161: 23762 | K161: 0 | L161: 111
A162: 11 | B162: 23872 | C162: 11 | D162: 23876 | E162: 12 | F162: 23889 | K162: 0 | L162: 111
A163: 11 | B163: 23999 | L163: 1

Sheet !M806930.010
A1: Report for:!M806930.010
A2: Date: | B2: <date>
A3: Hen: | B3: <hen> | F3: Correct Sequence | G3: =Start!J2 -> 122 | P3: Total Sequences in Data | Q3: =4994-COUNTBLANK(L7:L5000) -> 158 | V3: Total Sequences in Block Data | W3: =COUNTA(L7:L32) -> 26 | AA3: Total Sequences in Block Data | AB3: =COUNTA(L33:L59) -> 27 | AF3: Total Sequences in Block Data | AG3: =COUNTA(L60:L85) -> 26 | AK3: Total Sequences in Block Data | AL3: =COUNTA(L86:L111) -> 26 | AP3: Total Sequences in Block Data | AQ3: =COUNTA(L112:L138) -> 27 | AU3: Total Sequences in Block Data | AV3: =COUNTA(L139:L164) -> 26
P4: Total Sequences in Summary | Q4: =SUM(O7:O14) -> 158 | V4: Total Sequences in Block Summary | W4: =SUM(U7:U14) -> 26 | AA4: Total Sequences in Block Summary | AB4: =SUM(Z7:Z14) -> 27 | AF4: Total Sequences in Block Summary | AG4: =SUM(AE7:AE14) -> 26 | AK4: Total Sequences in Block Summary | AL4: =SUM(AJ7:AJ14) -> 26 | AP4: Total Sequences in Block Summary | AQ4: =SUM(AO7:AO14) -> 27 | AU4: Total Sequences in Block Summary | AV4: =SUM(AT7:AT14) -> 26
T5: Block 1 | Y5: Block 2 | AD5: Block 3 | AI5: Block 4 | AN5: Block 5 | AS5: Block 6
A6: Sequence Component 1 | B6: Time 1 | C6: Sequence Component 2 | D6: Time 2 | E6: Sequence Component 3 | F6: Time 3 | G6: Sequence Component 4 | H6: Time 4 | I6: Sequence Component 5 | J6: Time 5 | K6: Correct? 0=No 1=Yes | L6: Sequence | N6: Frequency | P6: Relative Frequency | Q6: Variability | T6: Frequency | V6: Relative Frequency | W6: Variability | Y6: Frequency | AA6: Relative Frequency | AB6: Variability | AD6: Frequency | AF6: Relative Frequency | AG6: Variability | AI6: Frequency | AK6: Relative Frequency | AL6: Variability | AN6: Frequency | AP6: Relative Frequency | AQ6: Variability | AS6: Frequency | AU6: Relative Frequency | AV6: Variability
A7: 11 | B7: 42 | C7: 11 | D7: 49 | E7: 12 | F7: 59 | K7: 0 | L7: 111 | N7: 111 | O7: =COUNTIF($L$7:$L$500,N7) -> 146 | P7: =O7/$Q$4 -> 0.9240506329 | Q7: =IF(P7=0,0,(P7*((LOG(P7))/LOG(2)))) -> -0.1053012888 | T7: =N7 -> 111 | U7: =COUNTIF(L7:L32,T7) -> 18 | V7: =U7/(W4-U10) -> 0.6923076923 | W7: =IF(V7=0,0,(V7*((LOG(V7))/LOG(2)))) -> -0.3672794193 | Y7: =N7 -> 111 | Z7: =COUNTIF(L33:L59,Y7) -> 27 | AA7: =Z7/(AB4-Z10) -> 1 | AB7: =IF(AA7=0,0,(AA7*((LOG(AA7))/LOG(2)))) -> 0 | AD7: =N7 -> 111 | AE7: =COUNTIF(L60:L85,AD7) -> 25 | AF7: =AE7/(AG4-AE10) -> 0.9615384615 | AG7: =IF(AF7=0,0,(AF7*((LOG(AF7))/LOG(2)))) -> -0.05440723881 | AI7: =N7 -> 111 | AJ7: =COUNTIF(L86:L111,AI7) -> 25 | AK7: =AJ7/(AL4-AJ10) -> 0.9615384615 | AL7: =IF(AK7=0,0,(AK7*((LOG(AK7))/LOG(2)))) -> -0.05440723881 | AN7: =N7 -> 111 | AO7: =COUNTIF(L112:L138,AN7) -> 25 | AP7: =AO7/(AQ4-AO10) -> 0.9259259259 | AQ7: =IF(AP7=0,0,(AP7*((LOG(AP7))/LOG(2)))) -> -0.1028067707 | AS7: =N7 -> 111 | AT7: =COUNTIF(L139:L164,AS7) -> 26 | AU7: =AT7/(AV4-AT10) -> 1 | AV7: =IF(AU7=0,0,(AU7*((LOG(AU7))/LOG(2)))) -> 0
A8: 11 | B8: 213 | C8: 11 | D8: 223 | E8: 12 | F8: 234 | K8: 0 | L8: 111 | N8: 112 | O8: =COUNTIF($L$7:$L$500,N8) -> 0 | P8: =O8/$Q$4 -> 0 | Q8: =IF(P8=0,0,(P8*((LOG(P8))/LOG(2)))) -> 0 | T8: =N8 -> 112 | U8: =COUNTIF(L7:L32,T8) -> 0 | V8: =U8/(W4-U10) -> 0 | W8: =IF(V8=0,0,(V8*((LOG(V8))/LOG(2)))) -> 0 | Y8: =N8 -> 112 | Z8: =COUNTIF(L33:L59,Y8) -> 0 | AA8: =Z8/(AB4-Z10) -> 0 | AB8: =IF(AA8=0,0,(AA8*((LOG(AA8))/LOG(2)))) -> 0 | AD8: =N8 -> 112 | AE8: =COUNTIF(L60:L85,AD8) -> 0 | AF8: =AE8/(AG4-AE10) -> 0 | AG8: =IF(AF8=0,0,(AF8*((LOG(AF8))/LOG(2)))) -> 0 | AI8: =N8 -> 112 | AJ8: =COUNTIF(L86:L111,AI8) -> 0 | AK8: =AJ8/(AL4-AJ10) -> 0 | AL8: =IF(AK8=0,0,(AK8*((LOG(AK8))/LOG(2)))) -> 0 | AN8: =N8 -> 112 | AO8: =COUNTIF(L112:L138,AN8) -> 0 | AP8: =AO8/(AQ4-AO10) -> 0 | AQ8: =IF(AP8=0,0,(AP8*((LOG(AP8))/LOG(2)))) -> 0 | AS8: =N8 -> 112 | AT8: =COUNTIF(L139:L164,AS8) -> 0 | AU8: =AT8/(AV4-AT10) -> 0 | AV8: =IF(AU8=0,0,(AU8*((LOG(AU8))/LOG(2)))) -> 0
A9: 11 | B9: 357 | C9: 11 | D9: 366 | E9: 12 | F9: 376 | K9: 0 | L9: 111 | N9: 121 | O9: =COUNTIF($L$7:$L$500,N9) -> 0 | P9: =O9/$Q$4 -> 0 | Q9: =IF(P9=0,0,(P9*((LOG(P9))/LOG(2)))) -> 0 | T9: =N9 -> 121 | U9: =COUNTIF(L7:L32,T9) -> 0 | V9: =U9/(W4-U10) -> 0 | W9: =IF(V9=0,0,(V9*((LOG(V9))/LOG(2)))) -> 0 | Y9: =N9 -> 121 | Z9: =COUNTIF(L33:L59,Y9) -> 0 | AA9: =Z9/(AB4-Z10) -> 0 | AB9: =IF(AA9=0,0,(AA9*((LOG(AA9))/LOG(2)))) -> 0 | AD9: =N9 -> 121 | AE9: =COUNTIF(L60:L85,AD9) -> 0 | AF9: =AE9/(AG4-AE10) -> 0 | AG9: =IF(AF9=0,0,(AF9*((LOG(AF9))/LOG(2)))) -> 0 | AI9: =N9 -> 121 | AJ9: =COUNTIF(L86:L111,AI9) -> 0 | AK9: =AJ9/(AL4-AJ10) -> 0 | AL9: =IF(AK9=0,0,(AK9*((LOG(AK9))/LOG(2)))) -> 0 | AN9: =N9 -> 121 | AO9: =COUNTIF(L112:L138,AN9) -> 0 | AP9: =AO9/(AQ4-AO10) -> 0 | AQ9: =IF(AP9=0,0,(AP9*((LOG(AP9))/LOG(2)))) -> 0 | AS9: =N9 -> 121 | AT9: =COUNTIF(L139:L164,AS9) -> 0 | AU9: =AT9/(AV4-AT10) -> 0 | AV9: =IF(AU9=0,0,(AU9*((LOG(AU9))/LOG(2)))) -> 0
A10: 11 | B10: 537 | C10: 11 | D10: 547 | E10: 12 | F10: 557 | K10: 0 | L10: 111 | N10: 122 | O10: =COUNTIF($L$7:$L$500,N10) -> 0 | P10: =O10/$Q$4 -> 0 | Q10: =IF(P10=0,0,(P10*((LOG(P10))/LOG(2)))) -> 0 | T10: =N10 -> 122 | U10: =COUNTIF(L7:L32,T10) -> 0 | Y10: =N10 -> 122 | Z10: =COUNTIF(L33:L59,Y10) -> 0 | AD10: =N10 -> 122 | AE10: =COUNTIF(L60:L85,AD10) -> 0 | AI10: =N10 -> 122 | AJ10: =COUNTIF(L86:L111,AI10) -> 0 | AN10: =N10 -> 122 | AO10: =COUNTIF(L112:L138,AN10) -> 0 | AS10: =N10 -> 122 | AT10: =COUNTIF(L139:L164,AS10) -> 0
A11: 11 | B11: 670 | C11: 11 | D11: 681 | E11: 12 | F11: 692 | K11: 0 | L11: 111 | N11: 211 | O11: =COUNTIF($L$7:$L$500,N11) -> 11 | P11: =O11/$Q$4 -> 0.06962025316 | Q11: =IF(P11=0,0,(P11*((LOG(P11))/LOG(2)))) -> -0.2676445597 | T11: =N11 -> 211 | U11: =COUNTIF(L7:L32,T11) -> 7 | V11: =U11/(W4-U10) -> 0.2692307692 | W11: =IF(V11=0,0,(V11*((LOG(V11))/LOG(2)))) -> -0.5096766759 | Y11: =N11 -> 211 | Z11: =COUNTIF(L33:L59,Y11) -> 0 | AA11: =Z11/(AB4-Z10) -> 0 | AB11: =IF(AA11=0,0,(AA11*((LOG(AA11))/LOG(2)))) -> 0 | AD11: =N11 -> 211 | AE11: =COUNTIF(L60:L85,AD11) -> 1 | AF11: =AE11/(AG4-AE10) -> 0.03846153846 | AG11: =IF(AF11=0,0,(AF11*((LOG(AF11))/LOG(2)))) -> -0.180786143 | AI11: =N11 -> 211 | AJ11: =COUNTIF(L86:L111,AI11) -> 1 | AK11: =AJ11/(AL4-AJ10) -> 0.03846153846 | AL11: =IF(AK11=0,0,(AK11*((LOG(AK11))/LOG(2)))) -> -0.180786143 | AN11: =N11 -> 211 | AO11: =COUNTIF(L112:L138,AN11) -> 2 | AP11: =AO11/(AQ4-AO10) -> 0.07407407407 | AQ11: =IF(AP11=0,0,(AP11*((LOG(AP11))/LOG(2)))) -> -0.278139815 | AS11: =N11 -> 211 | AT11: =COUNTIF(L139:L164,AS11) -> 0 | AU11: =AT11/(AV4-AT10) -> 0 | AV11: =IF(AU11=0,0,(AU11*((LOG(AU11))/LOG(2)))) -> 0
A12: 22 | B12: 803 | C12: 13 | D12: 821 | E12: 14 | F12: 826 | K12: 0 | L12: 211 | N12: 212 | O12: =COUNTIF($L$7:$L$500,N12) -> 0 | P12: =O12/$Q$4 -> 0 | Q12: =IF(P12=0,0,(P12*((LOG(P12))/LOG(2)))) -> 0 | T12: =N12 -> 212 | U12: =COUNTIF(L7:L32,T12) -> 0 | V12: =U12/(W4-U10) -> 0 | W12: =IF(V12=0,0,(V12*((LOG(V12))/LOG(2)))) -> 0 | Y12: =N12 -> 212 | Z12: =COUNTIF(L33:L59,Y12) -> 0 | AA12: =Z12/(AB4-Z10) -> 0 | AB12: =IF(AA12=0,0,(AA12*((LOG(AA12))/LOG(2)))) -> 0 | AD12: =N12 -> 212 | AE12: =COUNTIF(L60:L85,AD12) -> 0 | AF12: =AE12/(AG4-AE10) -> 0 | AG12: =IF(AF12=0,0,(AF12*((LOG(AF12))/LOG(2)))) -> 0 | AI12: =N12 -> 212 | AJ12: =COUNTIF(L86:L111,AI12) -> 0 | AK12: =AJ12/(AL4-AJ10) -> 0 | AL12: =IF(AK12=0,0,(AK12*((LOG(AK12))/LOG(2)))) -> 0 | AN12: =N12 -> 212 | AO12: =COUNTIF(L112:L138,AN12) -> 0 | AP12: =AO12/(AQ4-AO10) -> 0 | AQ12: =IF(AP12=0,0,(AP12*((LOG(AP12))/LOG(2)))) -> 0 | AS12: =N12 -> 212 | AT12: =COUNTIF(L139:L164,AS12) -> 0 | AU12: =AT12/(AV4-AT10) -> 0 | AV12: =IF(AU12=0,0,(AU12*((LOG(AU12))/LOG(2)))) -> 0
A13: 22 | B13: 935 | C13: 13 | D13: 947 | E13: 14 | F13: 952 | K13: 0 | L13: 211 | N13: 221 | O13: =COUNTIF($L$7:$L$500,N13) -> 1 | P13: =O13/$Q$4 -> 0.006329113924 | Q13: =IF(P13=0,0,(P13*((LOG(P13))/LOG(2)))) -> -0.04622646043 | T13: =N13 -> 221 | U13: =COUNTIF(L7:L32,T13) -> 1 | V13: =U13/(W4-U10) -> 0.03846153846 | W13: =IF(V13=0,0,(V13*((LOG(V13))/LOG(2)))) -> -0.180786143 | Y13: =N13 -> 221 | Z13: =COUNTIF(L33:L59,Y13) -> 0 | AA13: =Z13/(AB4-Z10) -> 0 | AB13: =IF(AA13=0,0,(AA13*((LOG(AA13))/LOG(2)))) -> 0 | AD13: =N13 -> 221 | AE13: =COUNTIF(L60:L85,AD13) -> 0 | AF13: =AE13/(AG4-AE10) -> 0 | AG13: =IF(AF13=0,0,(AF13*((LOG(AF13))/LOG(2)))) -> 0 | AI13: =N13 -> 221 | AJ13: =COUNTIF(L86:L111,AI13) -> 0 | AK13: =AJ13/(AL4-AJ10) -> 0 | AL13: =IF(AK13=0,0,(AK13*((LOG(AK13))/LOG(2)))) -> 0 | AN13: =N13 -> 221 | AO13: =COUNTIF(L112:L138,AN13) -> 0 | AP13: =AO13/(AQ4-AO10) -> 0 | AQ13: =IF(AP13=0,0,(AP13*((LOG(AP13))/LOG(2)))) -> 0 | AS13: =N13 -> 221 | AT13: =COUNTIF(L139:L164,AS13) -> 0 | AU13: =AT13/(AV4-AT10) -> 0 | AV13: =IF(AU13=0,0,(AU13*((LOG(AU13))/LOG(2)))) -> 0
A14: 22 | B14: 1082 | C14: 24 | D14: 1093 | E14: 14 | F14: 1108 | K14: 0 | L14: 221 | N14: 222 | O14: =COUNTIF($L$7:$L$500,N14) -> 0 | P14: =O14/$Q$4 -> 0 | Q14: =IF(P14=0,0,(P14*((LOG(P14))/LOG(2)))) -> 0 | T14: =N14 -> 222 | U14: =COUNTIF(L7:L32,T14) -> 0 | V14: =U14/(W4-U10) -> 0 | W14: =IF(V14=0,0,(V14*((LOG(V14))/LOG(2)))) -> 0 | Y14: =N14 -> 222 | Z14: =COUNTIF(L33:L59,Y14) -> 0 | AA14: =Z14/(AB4-Z10) -> 0 | AB14: =IF(AA14=0,0,(AA14*((LOG(AA14))/LOG(2)))) -> 0 | AD14: =N14 -> 222 | AE14: =COUNTIF(L60:L85,AD14) -> 0 | AF14: =AE14/(AG4-AE10) -> 0 | AG14: =IF(AF14=0,0,(AF14*((LOG(AF14))/LOG(2)))) -> 0 | AI14: =N14 -> 222 | AJ14: =COUNTIF(L86:L111,AI14) -> 0 | AK14: =AJ14/(AL4-AJ10) -> 0 | AL14: =IF(AK14=0,0,(AK14*((LOG(AK14))/LOG(2)))) -> 0 | AN14: =N14 -> 222 | AO14: =COUNTIF(L112:L138,AN14) -> 0 | AP14: =AO14/(AQ4-AO10) -> 0 | AQ14: =IF(AP14=0,0,(AP14*((LOG(AP14))/LOG(2)))) -> 0 | AS14: =N14 -> 222 | AT14: =COUNTIF(L139:L164,AS14) -> 0 | AU14: =AT14/(AV4-AT10) -> 0 | AV14: =IF(AU14=0,0,(AU14*((LOG(AU14))/LOG(2)))) -> 0
A15: 11 | B15: 1216 | C15: 11 | D15: 1232 | E15: 12 | F15: 1241 | K15: 0 | L15: 111 | P15: =SUM(P7:P14) -> 1 | Q15: =-SUM(Q7:Q14) -> 0.4191723089 | V15: =SUM(V7:V14) -> 1 | W15: =-SUM(W7:W14) -> 1.057742238 | AA15: =SUM(AA7:AA14) -> 1 | AB15: =-SUM(AB7:AB14) -> 0 | AF15: =SUM(AF7:AF14) -> 1 | AG15: =-SUM(AG7:AG14) -> 0.2351933818 | AK15: =SUM(AK7:AK14) -> 1 | AL15: =-SUM(AL7:AL14) -> 0.2351933818 | AP15: =SUM(AP7:AP14) -> 1 | AQ15: =-SUM(AQ7:AQ14) -> 0.3809465857 | AU15: =SUM(AU7:AU14) -> 1 | AV15: =-SUM(AV7:AV14) -> 0
A16: 22 | B16: 1348 | C16: 13 | D16: 1363 | E16: 14 | F16: 1382 | K16: 0 | L16: 211 | P16: U= | Q16: =Q15/(LOG(Q4)/LOG(2)) -> 0.05739114075 | V16: U1= | W16: =W15/(LOG(W4)/LOG(2)) -> 0.2250304868 | AA16: U2= | AB16: =AB15/(LOG(AB4)/LOG(2)) -> 0 | AF16: U3= | AG16: =AG15/(LOG(AG4)/LOG(2)) -> 0.0500364638 | AK16: U4= | AL16: =AL15/(LOG(AL4)/LOG(2)) -> 0.0500364638 | AP16: U5= | AQ16: =AQ15/(LOG(AQ4)/LOG(2)) -> 0.08011684515 | AU16: U6= | AV16: =AV15/(LOG(AV4)/LOG(2)) -> 0
A17: 11 | B17: 1509 | C17: 11 | D17: 1519 | E17: 12 | F17: 1541 | K17: 0 | L17: 111
A18: 22 | B18: 1652 | C18: 13 | D18: 1668 | E18: 14 | F18: 1678 | K18: 0 | L18: 211
A19: 22 | B19: 1828 | C19: 13 | D19: 1844 | E19: 14 | F19: 1880 | K19: 0 | L19: 211 | N19: Total Target Seq
A20: 22 | B20: 1982 | C20: 13 | D20: 1996 | E20: 14 | F20: 2005 | K20: 0 | L20: 211 | N20: =COUNTIF(L7:L164,G3) -> 0 | P20: 26 | Q20: 27 | R20: 26 | S20: 26 | T20: 27 | U20: 26
A21: 11 | B21: 2122 | C21: 11 | D21: 2132 | E21: 12 | F21: 2142 | K21: 0 | L21: 111 | P21: % of reinforcement given in 6 equal intervals based on number of trials
A22: 11 | B22: 2268 | C22: 11 | D22: 2278 | E22: 12 | F22: 2297 | K22: 0 | L22: 111 | P22: %_1 | Q22: %_2 | R22: %_3 | S22: %_4 | T22: %_5 | U22: %_6
A23: 11 | B23: 2413 | C23: 11 | D23: 2428 | E23: 12 | F23: 2454 | K23: 0 | L23: 111 | O23: target sequence | P23: =$G$3 -> 122 | Q23: =$G$3 -> 122 | R23: =$G$3 -> 122 | S23: =$G$3 -> 122 | T23: =$G$3 -> 122 | U23: =$G$3 -> 122
A24: 11 | B24: 2629 | C24: 11 | D24: 2638 | E24: 12 | F24: 2651 | K24: 0 | L24: 111 | O24: total reinforcement | P24: =U10 -> 0 | Q24: =Z10 -> 0 | R24: =AE10 -> 0 | S24: =AJ10 -> 0 | T24: =AO10 -> 0 | U24: =AT10 -> 0
A25: 11 | B25: 2778 | C25: 11 | D25: 2788 | E25: 12 | F25: 2797 | K25: 0 | L25: 111 | O25: % target
A26: 11 | B26: 2941 | C26: 11 | D26: 2951 | E26: 12 | F26: 2980 | K26: 0 | L26: 111 | O26: CCRF
A27: 11 | B27: 3095 | C27: 11 | D27: 3111 | E27: 12 | F27: 3120 | K27: 0 | L27: 111 | O27: % CCRf
A28: 11 | B28: 3245 | C28: 11 | D28: 3254 | E28: 12 | F28: 3264 | K28: 0 | L28: 111 | O28: average response rate | P28: =F32/P20 -> 148.0769231 | Q28: =(F59-F32)/Q20 -> 163.8148148 | R28: =(F85-F59)/R20 -> 149.7307692 | S28: =(F111-F85)/S20 -> 142.8846154 | T28: =(F138-F111)/T20 -> 151.7037037 | U28: =(F164-F138)/U20 -> 150.3846154
A29: 11 | B29: 3383 | C29: 11 | D29: 3394 | E29: 12 | F29: 3404 | K29: 0 | L29: 111
A30: 11 | B30: 3543 | C30: 11 | D30: 3566 | E30: 12 | F30: 3575 | K30: 0 | L30: 111
A31: 22 | B31: 3695 | C31: 13 | D31: 3710 | E31: 14 | F31: 3718 | K31: 0 | L31: 211
A32: 11 | B32: 3831 | C32: 11 | D32: 3841 | E32: 12 | F32: 3850 | K32: 0 | L32: 111
A33: 11 | B33: 4021 | C33: 11 | D33: 4032 | E33: 12 | F33: 4052 | K33: 0 | L33: 111
A34: 11 | B34: 4167 | C34: 11 | D34: 4177 | E34: 12 | F34: 4185 | K34: 0 | L34: 111
A35: 11 | B35: 4301 | C35: 11 | D35: 4309 | E35: 12 | F35: 4328 | K35: 0 | L35: 111
A36: 11 | B36: 4460 | C36: 11 | D36: 4469 | E36: 12 | F36: 4479 | K36: 0 | L36: 111
A37: 11 | B37: 4681 | C37: 11 | D37: 4691 | E37: 12 | F37: 4740 | K37: 0 | L37: 111
A38: 11 | B38: 4865 | C38: 11 | D38: 4875 | E38: 12 | F38: 4884 | K38: 0 | L38: 111
A39: 11 | B39: 4995 | C39: 11 | D39: 5000 | E39: 12 | F39: 5010 | K39: 0 | L39: 111
A40: 11 | B40: 5119 | C40: 11 | D40: 5125 | E40: 12 | F40: 5144 | K40: 0 | L40: 111
A41: 11 | B41: 5260 | C41: 11 | D41: 5269 | E41: 12 | F41: 5280 | K41: 0 | L41: 111
A42: 11 | B42: 5396 | C42: 11 | D42: 5412 | E42: 12 | F42: 5422 | K42: 0 | L42: 111
A43: 11 | B43: 5647 | C43: 11 | D43: 5655 | E43: 12 | F43: 5664 | K43: 0 | L43: 111
A44: 11 | B44: 5795 | C44: 11 | D44: 5803 | E44: 12 | F44: 5822 | K44: 0 | L44: 111
A45: 11 | B45: 5931 | C45: 11 | D45: 5942 | E45: 12 | F45: 5953 | K45: 0 | L45: 111
A46: 11 | B46: 6067 | C46: 11 | D46: 6071 | E46: 12 | F46: 6081 | K46: 0 | L46: 111
A47: 11 | B47: 6196 | C47: 11 | D47: 6205 | E47: 12 | F47: 6213 | K47: 0 | L47: 111
A48: 11 | B48: 6476 | C48: 11 | D48: 6488 | E48: 12 | F48: 6497 | K48: 0 | L48: 111
A49: 11 | B49: 6712 | C49: 11 | D49: 6722 | E49: 12 | F49: 6731 | K49: 0 | L49: 111
A50: 11 | B50: 6839 | C50: 11 | D50: 6858 | E50: 12 | F50: 6880 | K50: 0 | L50: 111
A51: 11 | B51: 7009 | C51: 11 | D51: 7030 | E51: 12 | F51: 7035 | K51: 0 | L51: 111
A52: 11 | B52: 7148 | C52: 11 | D52: 7158 | E52: 12 | F52: 7166 | K52: 0 | L52: 111
A53: 11 | B53: 7281 | C53: 11 | D53: 7291 | E53: 12 | F53: 7299 | K53: 0 | L53: 111
A54: 11 | B54: 7398 | C54: 11 | D54: 7427 | E54: 12 | F54: 7437 | K54: 0 | L54: 111
A55: 11 | B55: 7547 | C55: 11 | D55: 7555 | E55: 12 | F55: 7568 | K55: 0 | L55: 111
A56: 11 | B56: 7812 | C56: 11 | D56: 7820 | E56: 12 | F56: 7831 | K56: 0 | L56: 111
A57: 11 | B57: 7957 | C57: 11 | D57: 7967 | E57: 12 | F57: 7976 | K57: 0 | L57: 111
A58: 11 | B58: 8096 | C58: 11 | D58: 8108 | E58: 12 | F58: 8118 | K58: 0 | L58: 111
A59: 11 | B59: 8234 | C59: 11 | D59: 8245 | E59: 12 | F59: 8273 | K59: 0 | L59: 111
A60: 11 | B60: 8532 | C60: 11 | D60: 8542 | E60: 12 | F60: 8550 | K60: 0 | L60: 111
A61: 11 | B61: 8665 | C61: 11 | D61: 8674 | E61: 12 | F61: 8683 | K61: 0 | L61: 111
A62: 11 | B62: 8804 | C62: 11 | D62: 8817 | E62: 12 | F62: 8838 | K62: 0 | L62: 111
A63: 11 | B63: 8951 | C63: 11 | D63: 8960 | E63: 12 | F63: 8968 | K63: 0 | L63: 111
A64: 11 | B64: 9099 | C64: 11 | D64: 9108 | E64: 12 | F64: 9118 | K64: 0 | L64: 111
A65: 11 | B65: 9219 | C65: 11 | D65: 9228 | E65: 12 | F65: 9241 | K65: 0 | L65: 111
A66: 11 | B66: 9355 | C66: 11 | D66: 9364 | E66: 12 | F66: 9374 | K66: 0 | L66: 111
A67: 11 | B67: 9504 | C67: 11 | D67: 9514 | E67: 12 | F67: 9522 | K67: 0 | L67: 111
A68: 11 | B68: 9583 | C68: 11 | D68: 9592 | E68: 12 | F68: 9602 | K68: 0 | L68: 111
A69: 11 | B69: 9721 | C69: 11 | D69: 9730 | E69: 12 | F69: 9740 | K69: 0 | L69: 111
A70: 11 | B70: 9871 | C70: 11 | D70: 9881 | E70: 12 | F70: 9893 | K70: 0 | L70: 111
A71: 11 | B71: 10004 | C71: 11 | D71: 10013 | E71: 12 | F71: 10020 | K71: 0 | L71: 111
A72: 11 | B72: 10132 | C72: 11 | D72: 10140 | E72: 12 | F72: 10160 | K72: 0 | L72: 111
A73: 11 | B73: 10275 | C73: 11 | D73: 10290 | E73: 12 | F73: 10299 | K73: 0 | L73: 111
A74: 11 | B74: 10463 | C74: 11 | D74: 10472 | E74: 12 | F74: 10480 | K74: 0 | L74: 111
A75: 11 | B75: 10647 | C75: 11 | D75: 10656 | E75: 12 | F75: 10664 | K75: 0 | L75: 111
A76: 11 | B76: 10763 | C76: 11 | D76: 10773 | E76: 12 | F76: 10783 | K76: 0 | L76: 111
A77: 11 | B77: 10945 | C77: 11 | D77: 10950 | E77: 12 | F77: 10958 | K77: 0 | L77: 111
A78: 11 | B78: 11072 | C78: 11 | D78: 11082 | E78: 12 | F78: 11092 | K78: 0 | L78: 111
A79: 22 | B79: 11193 | C79: 13 | D79: 11211 | E79: 14 | F79: 11221 | K79: 0 | L79: 211
A80: 11 | B80: 11335 | C80: 11 | D80: 11346 | E80: 12 | F80: 11355 | K80: 0 | L80: 111
A81: 11 | B81: 11467 | C81: 11 | D81: 11472 | E81: 12 | F81: 11482 | K81: 0 | L81: 111
A82: 11 | B82: 11611 | C82: 11 | D82: 11664 | E82: 12 | F82: 11700 | K82: 0 | L82: 111
A83: 11 | B83: 11813 | C83: 11 | D83: 11818 | E83: 12 | F83: 11828 | K83: 0 | L83: 111
A84: 11 | B84: 12018 | C84: 11 | D84: 12028 | E84: 12 | F84: 12036 | K84: 0 | L84: 111
A85: 11 | B85: 12147 | C85: 11 | D85: 12157 | E85: 12 | F85: 12166 | K85: 0 | L85: 111
A86: 11 | B86: 12282 | C86: 11 | D86: 12290 | E86: 12 | F86: 12299 | K86: 0 | L86: 111
A87: 11 | B87: 12404 | C87: 11 | D87: 12415 | E87: 12 | F87: 12451 | K87: 0 | L87: 111
A88: 11 | B88: 12567 | C88: 11 | D88: 12576 | E88: 12 | F88: 12585 | K88: 0 | L88: 111
A89: 11 | B89: 12698 | C89: 11 | D89: 12702 | E89: 12 | F89: 12712 | K89: 0 | L89: 111
A90: 11 | B90: 12887 | C90: 11 | D90: 12897 | E90: 12 | F90: 12905 | K90: 0 | L90: 111
A91: 11 | B91: 13024 | C91: 11 | D91: 13038 | E91: 12 | F91: 13060 | K91: 0 | L91: 111
A92: 11 | B92: 13173 | C92: 11 | D92: 13183 | E92: 12 | F92: 13192 | K92: 0 | L92: 111
A93: 11 | B93: 13307 | C93: 11 | D93: 13311 | E93: 12 | F93: 13322 | K93: 0 | L93: 111
A94: 11 | B94: 13433 | C94: 11 | D94: 13440 | E94: 12 | F94: 13449 | K94: 0 | L94: 111
A95: 11 | B95: 13568 | C95: 11 | D95: 13578 | E95: 12 | F95: 13598 | K95: 0 | L95: 111
A96: 11 | B96: 13712 | C96: 11 | D96: 13717 | E96: 12 | F96: 13727 | K96: 0 | L96: 111
A97: 11 | B97: 13841 | C97: 11 | D97: 13850 | E97: 12 | F97: 13859 | K97: 0 | L97: 111
A98: 11 | B98: 14034 | C98: 11 | D98: 14044 | E98: 12 | F98: 14053 | K98: 0 | L98: 111
A99: 11 | B99: 14167 | C99: 11 | D99: 14177 | E99: 12 | F99: 14187 | K99: 0 | L99: 111
A100: 11 | B100: 14299 | C100: 11 | D100: 14308 | E100: 12 | F100: 14321 | K100: 0 | L100: 111
A101: 11 | B101: 14439 | C101: 11 | D101: 14449 | E101: 12 | F101: 14459 | K101: 0 | L101: 111
A102: 11 | B102: 14573 | C102: 11 | D102: 14583 | E102: 12 | F102: 14593 | K102: 0 | L102: 111
A103: 11 | B103: 14711 | C103: 11 | D103: 14721 | E103: 12 | F103: 14731 | K103: 0 | L103: 111
A104: 11 | B104: 14844 | C104: 11 | D104: 14848 | E104: 12 | F104: 14857 | K104: 0 | L104: 111
A105: 11 | B105: 14970 | C105: 11 | D105: 14979 | E105: 12 | F105: 14987 | K105: 0 | L105: 111
A106: 22 | B106: 15093 | C106: 13 | D106: 15108 | E106: 14 | F106: 15118 | K106: 0 | L106: 211
A107: 11 | B107: 15240 | C107: 11 | D107: 15250 | E107: 12 | F107: 15259 | K107: 0 | L107: 111
A108: 11 | B108: 15377 | C108: 11 | D108: 15387 | E108: 12 | F108: 15396 | K108: 0 | L108: 111
A109: 11 | B109: 15599 | C109: 11 | D109: 15608 | E109: 12 | F109: 15616 | K109: 0 | L109: 111
A110: 11 | B110: 15707 | C110: 11 | D110: 15736 | E110: 12 | F110: 15746 | K110: 0 | L110: 111
A111: 11 | B111: 15863 | C111: 11 | D111: 15872 | E111: 12 | F111: 15881 | K111: 0 | L111: 111
A112: 11 | B112: 15992 | C112: 11 | D112: 16004 | E112: 12 | F112: 16013 | K112: 0 | L112: 111
A113: 11 | B113: 16124 | C113: 11 | D113: 16129 | E113: 12 | F113: 16148 | K113: 0 | L113: 111
A114: 11 | B114: 16254 | C114: 11 | D114: 16264 | E114: 12 | F114: 16274 | K114: 0 | L114: 111
A115: 11 | B115: 16507 | C115: 11 | D115: 16515 | E115: 12 | F115: 16522 | K115: 0 | L115: 111
A116: 11 | B116: 16687 | C116: 11 | D116: 16696 | E116: 12 | F116: 16704 | K116: 0 | L116: 111
A117: 11 | B117: 16820 | C117: 11 | D117: 16828 | E117: 12 | F117: 16839 | K117: 0 | L117: 111
A118: 11 | B118: 16958 | C118: 11 | D118: 16967 | E118: 12 | F118: 16977 | K118: 0 | L118: 111
A119: 11 | B119: 17195 | C119: 11 | D119: 17208 | E119: 12 | F119: 17231 | K119: 0 | L119: 111
A120: 11 | B120: 17345 | C120: 11 | D120: 17358 | E120: 12 | F120: 17369 | K120: 0 | L120: 111
A121: 22 | B121: 17475 | C121: 13 | D121: 17495 | E121: 14 | F121: 17505 | K121: 0 | L121: 211
A122: 11 | B122: 17616 | C122: 11 | D122: 17625 | E122: 12 | F122: 17633 | K122: 0 | L122: 111
A123: 11 | B123: 17827 | C123: 11 | D123: 17836 | E123: 12 | F123: 17845 | K123: 0 | L123: 111
A124: 11 | B124: 17967 | C124: 11 | D124: 17977 | E124: 12 | F124: 17995 | K124: 0 | L124: 111
A125: 11 | B125: 18105 | C125: 11 | D125: 18119 | E125: 12 | F125: 18127 | K125: 0 | L125: 111
A126: 11 | B126: 18243 | C126: 11 | D126: 18250 | E126: 12 | F126: 18259 | K126: 0 | L126: 111
A127: 11 | B127: 18314 | C127: 11 | D127: 18323 | E127: 12 | F127: 18332 | K127: 0 | L127: 111
A128: 11 | B128: 18443 | C128: 11 | D128: 18448 | E128: 12 | F128: 18458 | K128: 0 | L128: 111
A129: 11 | B129: 18569 | C129: 11 | D129: 18577 | E129: 12 | F129: 18596 | K129: 0 | L129: 111
A130: 11 | B130: 18711 | C130: 11 | D130: 18717 | E130: 12 | F130: 18728 | K130: 0 | L130: 111
A131: 11 | B131: 18839 | C131: 11 | D131: 18850 | E131: 12 | F131: 18859 | K131: 0 | L131: 111
A132: 22 | B132: 19084 | C132: 13 | D132: 19098 | E132: 14 | F132: 19108 | K132: 0 | L132: 211
A133: 11 | B133: 19223 | C133: 11 | D133: 19233 | E133: 12 | F133: 19252 | K133: 0 | L133: 111
A134: 11 | B134: 19360 | C134: 11 | D134: 19365 | E134: 12 | F134: 19383 | K134: 0 | L134: 111
A135: 11 | B135: 19499 | C135: 11 | D135: 19511 | E135: 12 | F135: 19524 | K135: 0 | L135: 111
A136: 11 | B136: 19633 | C136: 11 | D136: 19637 | E136: 12 | F136: 19648 | K136: 0 | L136: 111
A137: 11 | B137: 19823 | C137: 11 | D137: 19833 | E137: 12 | F137: 19840 | K137: 0 | L137: 111
A138: 11 | B138: 19958 | C138: 11 | D138: 19967 | E138: 12 | F138: 19977 | K138: 0 | L138: 111
A139: 11 | B139: 20079 | C139: 11 | D139: 20087 | E139: 12 | F139: 20095 | K139: 0 | L139: 111
A140: 11 | B140: 20208 | C140: 11 | D140: 20213 | E140: 12 | F140: 20222 | K140: 0 | L140: 111
A141: 11 | B141: 20332 | C141: 11 | D141: 20346 | E141: 12 | F141: 20375 | K141: 0 | L141: 111
A142: 11 | B142: 20489 | C142: 11 | D142: 20502 | E142: 12 | F142: 20513 | K142: 0 | L142: 111
A143: 11 | B143: 20716 | C143: 11 | D143: 20724 | E143: 12 | F143: 20733 | K143: 0 | L143: 111
A144: 11 | B144: 20849 | C144: 11 | D144: 20858 | E144: 12 | F144: 20867 | K144: 0 | L144: 111
A145: 11 | B145: 20990 | C145: 11 | D145: 21016 | E145: 12 | F145: 21035 | K145: 0 | L145: 111
A146: 11 | B146: 21158 | C146: 11 | D146: 21163 | E146: 12 | F146: 21170 | K146: 0 | L146: 111
A147: 11 | B147: 21282 | C147: 11 | D147: 21290 | E147: 12 | F147: 21299 | K147: 0 | L147: 111
A148: 11 | B148: 21406 | C148: 11 | D148: 21412 | E148: 12 | F148: 21422 | K148: 0 | L148: 111
A149: 11 | B149: 21533 | C149: 11 | D149: 21543 | E149: 12 | F149: 21555 | K149: 0 | L149: 111
A150: 11 | B150: 21668 | C150: 11 | D150: 21679 | E150: 12 | F150: 21688 | K150: 0 | L150: 111
A151: 11 | B151: 21798 | C151: 11 | D151: 21803 | E151: 12 | F151: 21812 | K151: 0 | L151: 111
A152: 11 | B152: 22039 | C152: 11 | D152: 22044 | E152: 12 | F152: 22063 | K152: 0 | L152: 111
A153: 11 | B153: 22185 | C153: 11 | D153: 22195 | E153: 12 | F153: 22228 | K153: 0 | L153: 111
A154: 11 | B154: 22336 | C154: 11 | D154: 22340 | E154: 12 | F154: 22353 | K154: 0 | L154: 111
A155: 11 | B155: 22471 | C155: 11 | D155: 22480 | E155: 12 | F155: 22490 | K155: 0 | L155: 111
A156: 11 | B156: 22601 | C156: 11 | D156: 22609 | E156: 12 | F156: 22618 | K156: 0 | L156: 111
A157: 11 | B157: 22727 | C157: 11 | D157: 22740 | E157: 12 | F157: 22756 | K157: 0 | L157: 111
A158: 11 | B158: 22873 | C158: 11 | D158: 22882 | E158: 12 | F158: 22892 | K158: 0 | L158: 111
A159: 11 | B159: 23004 | C159: 11 | D159: 23019 | E159: 12 | F159: 23029 | K159: 0 | L159: 111
A160: 11 | B160: 23147 | C160: 11 | D160: 23157 | E160: 12 | F160: 23167 | K160: 0 | L160: 111
A161: 11 | B161: 23276 | C161: 11 | D161: 23281 | E161: 12 | F161: 23290 | K161: 0 | L161: 111
A162: 11 | B162: 23401 | C162: 11 | D162: 23405 | E162: 12 | F162: 23417 | K162: 0 | L162: 111
A163: 11 | B163: 23615 | C163: 11 | D163: 23634 | E163: 12 | F163: 23646 | K163: 0 | L163: 111
A164: 11 | B164: 23865 | C164: 11 | D164: 23877 | E164: 12 | F164: 23887 | K164: 1 | L164: 111

Sheet !M807A40.010
A1: Report for:!M807A40.010
A2: Date: | B2: <date>
A3: Hen: | B3: <hen> | F3: Correct Sequence | G3: =Start!J2 -> 122 | P3: Total Sequences in Data | Q3: =4994-COUNTBLANK(L7:L5000) -> 164 | V3: Total Sequences in Block Data | W3: =COUNTA(L7:L33) -> 27 | AA3: Total Sequences in Block Data | AB3: =COUNTA(L34:L61) -> 28 | AF3: Total Sequences in Block Data | AG3: =COUNTA(L62:L88) -> 27 | AK3: Total Sequences in Block Data | AL3: =COUNTA(L89:L115) -> 27 | AP3: Total Sequences in Block Data | AQ3: =COUNTA(L116:L143) -> 28 | AU3: Total Sequences in Block Data | AV3: =COUNTA(L144:L170) -> 27
P4: Total Sequences in Summary | Q4: =SUM(O7:O14) -> 164 | V4: Total Sequences in Block Summary | W4: =SUM(U7:U14) -> 27 | AA4: Total Sequences in Block Summary | AB4: =SUM(Z7:Z14) -> 28 | AF4: Total Sequences in Block Summary | AG4: =SUM(AE7:AE14) -> 27 | AK4: Total Sequences in Block Summary | AL4: =SUM(AJ7:AJ14) -> 27 | AP4: Total Sequences in Block Summary | AQ4: =SUM(AO7:AO14) -> 28 | AU4: Total Sequences in Block Summary | AV4: =SUM(AT7:AT14) -> 27
T5: Block 1 | Y5: Block 2 | AD5: Block 3 | AI5: Block 4 | AN5: Block 5 | AS5: Block 6
A6: Sequence Component 1 | B6: Time 1 | C6: Sequence Component 2 | D6: Time 2 | E6: Sequence Component 3 | F6: Time 3 | G6: Sequence Component 4 | H6: Time 4 | I6: Sequence Component 5 | J6: Time 5 | K6: Correct? 0=No 1=Yes | L6: Sequence | N6: Frequency | P6: Relative Frequency | Q6: Variability | T6: Frequency | V6: Relative Frequency | W6: Variability | Y6: Frequency | AA6: Relative Frequency | AB6: Variability | AD6: Frequency | AF6: Relative Frequency | AG6: Variability | AI6: Frequency | AK6: Relative Frequency | AL6: Variability | AN6: Frequency | AP6: Relative Frequency | AQ6: Variability | AS6: Frequency | AU6: Relative Frequency | AV6: Variability
A7: 11 | B7: 31 | C7: 11 | D7: 41 | E7: 12 | F7: 49 | K7: 0 | L7: 111 | N7: 111 | O7: =COUNTIF($L$7:$L$500,N7) -> 152 | P7: =O7/$Q$4 -> 0.9268292683 | Q7: =IF(P7=0,0,(P7*((LOG(P7))/LOG(2)))) -> -0.1016031869 | T7: =N7 -> 111 | U7: =COUNTIF(L7:L33,T7) -> 19 | V7: =U7/(W4-U10) -> 0.7037037037 | W7: =IF(V7=0,0,(V7*((LOG(V7))/LOG(2)))) -> -0.3567496217 | Y7: =N7 -> 111 | Z7: =COUNTIF(L34:L61,Y7) -> 26 | AA7: =Z7/(AB4-Z10) -> 0.9285714286 | AB7: =IF(AA7=0,0,(AA7*((LOG(AA7))/LOG(2)))) -> -0.09927840364 | AD7: =N7 -> 111 | AE7: =COUNTIF(L62:L88,AD7) -> 26 | AF7: =AE7/(AG4-AE10) -> 0.962962963 | AG7: =IF(AF7=0,0,(AF7*((LOG(AF7))/LOG(2)))) -> -0.05243119943 | AI7: =N7 -> 111 | AJ7: =COUNTIF(L89:L115,AI7) -> 26 | AK7: =AJ7/(AL4-AJ10) -> 0.962962963 | AL7: =IF(AK7=0,0,(AK7*((LOG(AK7))/LOG(2)))) -> -0.05243119943 | AN7: =N7 -> 111 | AO7: =COUNTIF(L116:L143,AN7) -> 28 | AP7: =AO7/(AQ4-AO10) -> 1 | AQ7: =IF(AP7=0,0,(AP7*((LOG(AP7))/LOG(2)))) -> 0 | AS7: =N7 -> 111 | AT7: =COUNTIF(L144:L170,AS7) -> 27 | AU7: =AT7/(AV4-AT10) -> 1 | AV7: =IF(AU7=0,0,(AU7*((LOG(AU7))/LOG(2)))) -> 0
A8: 11 | B8: 159 | C8: 11 | D8: 167 | E8: 12 | F8: 176 | K8: 0 | L8: 111 | N8: 112 | O8: =COUNTIF($L$7:$L$500,N8) -> 0 | P8: =O8/$Q$4 -> 0 | Q8: =IF(P8=0,0,(P8*((LOG(P8))/LOG(2)))) -> 0 | T8: =N8 -> 112 | U8: =COUNTIF(L7:L33,T8) -> 0 | V8: =U8/(W4-U10) -> 0 | W8: =IF(V8=0,0,(V8*((LOG(V8))/LOG(2)))) -> 0 | Y8: =N8 -> 112 | Z8: =COUNTIF(L34:L61,Y8) -> 0 | AA8: =Z8/(AB4-Z10) -> 0 | AB8: =IF(AA8=0,0,(AA8*((LOG(AA8))/LOG(2)))) -> 0 | AD8: =N8 -> 112 | AE8: =COUNTIF(L62:L88,AD8) -> 0 | AF8: =AE8/(AG4-AE10) -> 0 | AG8: =IF(AF8=0,0,(AF8*((LOG(AF8))/LOG(2)))) -> 0 | AI8: =N8 -> 112 | AJ8: =COUNTIF(L89:L115,AI8) -> 0 | AK8: =AJ8/(AL4-AJ10) -> 0 | AL8: =IF(AK8=0,0,(AK8*((LOG(AK8))/LOG(2)))) -> 0 | AN8: =N8 -> 112 | AO8: =COUNTIF(L116:L143,AN8) -> 0 | AP8: =AO8/(AQ4-AO10) -> 0 | AQ8: =IF(AP8=0,0,(AP8*((LOG(AP8))/LOG(2)))) -> 0 | AS8: =N8 -> 112 | AT8: =COUNTIF(L144:L170,AS8) -> 0 | AU8: =AT8/(AV4-AT10) -> 0 | AV8: =IF(AU8=0,0,(AU8*((LOG(AU8))/LOG(2)))) -> 0
A9: 11 | B9: 283 | C9: 11 | D9: 292 | E9: 12 | F9: 301 | K9: 0 | L9: 111 | N9: 121 | O9: =COUNTIF($L$7:$L$500,N9) -> 0 | P9: =O9/$Q$4 -> 0 | Q9: =IF(P9=0,0,(P9*((LOG(P9))/LOG(2)))) -> 0 | T9: =N9 -> 121 | U9: =COUNTIF(L7:L33,T9) -> 0 | V9: =U9/(W4-U10) -> 0 | W9: =IF(V9=0,0,(V9*((LOG(V9))/LOG(2)))) -> 0 | Y9: =N9 -> 121 | Z9: =COUNTIF(L34:L61,Y9) -> 0 | AA9: =Z9/(AB4-Z10) -> 0 | AB9: =IF(AA9=0,0,(AA9*((LOG(AA9))/LOG(2)))) -> 0 | AD9: =N9 -> 121 | AE9: =COUNTIF(L62:L88,AD9) -> 0 | AF9: =AE9/(AG4-AE10) -> 0 | AG9: =IF(AF9=0,0,(AF9*((LOG(AF9))/LOG(2)))) -> 0 | AI9: =N9 -> 121 | AJ9: =COUNTIF(L89:L115,AI9) -> 0 | AK9: =AJ9/(AL4-AJ10) -> 0 | AL9: =IF(AK9=0,0,(AK9*((LOG(AK9))/LOG(2)))) -> 0 | AN9: =N9 -> 121 | AO9: =COUNTIF(L116:L143,AN9) -> 0 | AP9: =AO9/(AQ4-AO10) -> 0 | AQ9: =IF(AP9=0,0,(AP9*((LOG(AP9))/LOG(2)))) -> 0 | AS9: =N9 -> 121 | AT9: =COUNTIF(L144:L170,AS9) -> 0 | AU9: =AT9/(AV4-AT10) -> 0 | AV9: =IF(AU9=0,0,(AU9*((LOG(AU9))/LOG(2)))) -> 0
A10: 11 | B10: 414 | C10: 11 | D10: 421 | E10: 12 | F10: 439 | K10: 0 | L10: 111 | N10: 122 | O10: =COUNTIF($L$7:$L$500,N10) -> 0 | P10: =O10/$Q$4 -> 0 | Q10: =IF(P10=0,0,(P10*((LOG(P10))/LOG(2)))) -> 0 | T10: =N10 -> 122 | U10: =COUNTIF(L7:L33,T10) -> 0 | Y10: =N10 -> 122 | Z10: =COUNTIF(L34:L61,Y10) -> 0 | AD10: =N10 -> 122 | AE10: =COUNTIF(L62:L88,AD10) -> 0 | AI10: =N10 -> 122 | AJ10: =COUNTIF(L89:L115,AI10) -> 0 | AN10: =N10 -> 122 | AO10: =COUNTIF(L116:L143,AN10) -> 0 | AS10: =N10 -> 122 | AT10: =COUNTIF(L144:L170,AS10) -> 0
A11: 11 | B11: 545 | C11: 11 | D11: 554 | E11: 12 | F11: 562 | K11: 0 | L11: 111 | N11: 211 | O11: =COUNTIF($L$7:$L$500,N11) -> 11 | P11: =O11/$Q$4 -> 0.06707317073 | Q11: =IF(P11=0,0,(P11*((LOG(P11))/LOG(2)))) -> -0.2614592942 | T11: =N11 -> 211 | U11: =COUNTIF(L7:L33,T11) -> 7 | V11: =U11/(W4-U10) -> 0.2592592593 | W11: =IF(V11=0,0,(V11*((LOG(V11))/LOG(2)))) -> -0.5049158541 | Y11: =N11 -> 211 | Z11: =COUNTIF(L34:L61,Y11) -> 2 | AA11: =Z11/(AB4-Z10) -> 0.07142857143 | AB11: =IF(AA11=0,0,(AA11*((LOG(AA11))/LOG(2)))) -> -0.271953923 | AD11: =N11 -> 211 | AE11: =COUNTIF(L62:L88,AD11) -> 1 | AF11: =AE11/(AG4-AE10) -> 0.03703703704 | AG11: =IF(AF11=0,0,(AF11*((LOG(AF11))/LOG(2)))) -> -0.1761069445 | AI11: =N11 -> 211 | AJ11: =COUNTIF(L89:L115,AI11) -> 1 | AK11: =AJ11/(AL4-AJ10) -> 0.03703703704 | AL11: =IF(AK11=0,0,(AK11*((LOG(AK11))/LOG(2)))) -> -0.1761069445 | AN11: =N11 -> 211 | AO11: =COUNTIF(L116:L143,AN11) -> 0 | AP11: =AO11/(AQ4-AO10) -> 0 | AQ11: =IF(AP11=0,0,(AP11*((LOG(AP11))/LOG(2)))) -> 0 | AS11: =N11 -> 211 | AT11: =COUNTIF(L144:L170,AS11) -> 0 | AU11: =AT11/(AV4-AT10) -> 0 | AV11: =IF(AU11=0,0,(AU11*((LOG(AU11))/LOG(2)))) -> 0
A12: 11 | B12: 684 | C12: 11 | D12: 694 | E12: 12 | F12: 704 | K12: 0 | L12: 111 | N12: 212 | O12: =COUNTIF($L$7:$L$500,N12) -> 0 | P12: =O12/$Q$4 -> 0 | Q12: =IF(P12=0,0,(P12*((LOG(P12))/LOG(2)))) -> 0 | T12: =N12 -> 212 | U12: =COUNTIF(L7:L33,T12) -> 0 | V12: =U12/(W4-U10) -> 0 | W12: =IF(V12=0,0,(V12*((LOG(V12))/LOG(2)))) -> 0 | Y12: =N12 -> 212 | Z12: =COUNTIF(L34:L61,Y12) -> 0 | AA12: =Z12/(AB4-Z10) -> 0 | AB12: =IF(AA12=0,0,(AA12*((LOG(AA12))/LOG(2)))) -> 0 | AD12: =N12 -> 212 | AE12: =COUNTIF(L62:L88,AD12) -> 0 | AF12: =AE12/(AG4-AE10) -> 0 | AG12: =IF(AF12=0,0,(AF12*((LOG(AF12))/LOG(2)))) -> 0 | AI12: =N12 -> 212 | AJ12: =COUNTIF(L89:L115,AI12) -> 0 | AK12: =AJ12/(AL4-AJ10) -> 0 | AL12: =IF(AK12=0,0,(AK12*((LOG(AK12))/LOG(2)))) -> 0 | AN12: =N12 -> 212 | AO12: =COUNTIF(L116:L143,AN12) -> 0 | AP12: =AO12/(AQ4-AO10) -> 0 | AQ12: =IF(AP12=0,0,(AP12*((LOG(AP12))/LOG(2)))) -> 0 | AS12: =N12 -> 212 | AT12: =COUNTIF(L144:L170,AS12) -> 0 | AU12: =AT12/(AV4-AT10) -> 0 | AV12: =IF(AU12=0,0,(AU12*((LOG(AU12))/LOG(2)))) -> 0
A13: 11 | B13: 806 | C13: 11 | D13: 826 | E13: 12 | F13: 835 | K13: 0 | L13: 111 | N13: 221 | O13: =COUNTIF($L$7:$L$500,N13) -> 1 | P13: =O13/$Q$4 -> 0.006097560976 | Q13: =IF(P13=0,0,(P13*((LOG(P13))/LOG(2)))) -> -0.04486312198 | T13: =N13 -> 221 | U13: =COUNTIF(L7:L33,T13) -> 1 | V13: =U13/(W4-U10) -> 0.03703703704 | W13: =IF(V13=0,0,(V13*((LOG(V13))/LOG(2)))) -> -0.1761069445 | Y13: =N13 -> 221 | Z13: =COUNTIF(L34:L61,Y13) -> 0 | AA13: =Z13/(AB4-Z10) -> 0 | AB13: =IF(AA13=0,0,(AA13*((LOG(AA13))/LOG(2)))) -> 0 | AD13: =N13 -> 221 | AE13: =COUNTIF(L62:L88,AD13) -> 0 | AF13: =AE13/(AG4-AE10) -> 0 | AG13: =IF(AF13=0,0,(AF13*((LOG(AF13))/LOG(2)))) -> 0 | AI13: =N13 -> 221 | AJ13: =COUNTIF(L89:L115,AI13) -> 0 | AK13: =AJ13/(AL4-AJ10) -> 0 | AL13: =IF(AK13=0,0,(AK13*((LOG(AK13))/LOG(2)))) -> 0 | AN13: =N13 -> 221 | AO13: =COUNTIF(L116:L143,AN13) -> 0 | AP13: =AO13/(AQ4-AO10) -> 0 | AQ13: =IF(AP13=0,0,(AP13*((LOG(AP13))/LOG(2)))) -> 0 | AS13: =N13 -> 221 | AT13: =COUNTIF(L144:L170,AS13) -> 0 | AU13: =AT13/(AV4-AT10) -> 0 | AV13: =IF(AU13=0,0,(AU13*((LOG(AU13))/LOG(2)))) -> 0
A14: 11 | B14: 951 | C14: 11 | D14: 960 | E14: 12 | F14: 981 | K14: 0 | L14: 111 | N14: 222 | O14: =COUNTIF($L$7:$L$500,N14) -> 0 | P14: =O14/$Q$4 -> 0 | Q14: =IF(P14=0,0,(P14*((LOG(P14))/LOG(2)))) -> 0 | T14: =N14 -> 222 | U14: =COUNTIF(L7:L33,T14) -> 0 | V14: =U14/(W4-U10) -> 0 | W14: =IF(V14=0,0,(V14*((LOG(V14))/LOG(2)))) -> 0 | Y14: =N14 -> 222 | Z14: =COUNTIF(L34:L61,Y14) -> 0 | AA14: =Z14/(AB4-Z10) -> 0 | AB14: =IF(AA14=0,0,(AA14*((LOG(AA14))/LOG(2)))) -> 0 | AD14: =N14 -> 222 | AE14: =COUNTIF(L62:L88,AD14) -> 0 | AF14: =AE14/(AG4-AE10) -> 0 | AG14: =IF(AF14=0,0,(AF14*((LOG(AF14))/LOG(2)))) -> 0 | AI14: =N14 -> 222 | AJ14: =COUNTIF(L89:L115,AI14) -> 0 | AK14: =AJ14/(AL4-AJ10) -> 0 | AL14: =IF(AK14=0,0,(AK14*((LOG(AK14))/LOG(2)))) -> 0 | AN14: =N14 -> 222 | AO14: =COUNTIF(L116:L143,AN14) -> 0 | AP14: =AO14/(AQ4-AO10) -> 0 | AQ14: =IF(AP14=0,0,(AP14*((LOG(AP14))/LOG(2)))) -> 0 | AS14: =N14 -> 222 | AT14: =COUNTIF(L144:L170,AS14) -> 0 | AU14: =AT14/(AV4-AT10) -> 0 | AV14: =IF(AU14=0,0,(AU14*((LOG(AU14))/LOG(2)))) -> 0
A15: 22 | B15: 1180 | C15: 13 | D15: 1194 | E15: 14 | F15: 1199 | K15: 0 | L15: 211 | P15: =SUM(P7:P14) -> 1 | Q15: =-SUM(Q7:Q14) -> 0.4079256031 | V15: =SUM(V7:V14) -> 1 | W15: =-SUM(W7:W14) -> 1.03777242 | AA15: =SUM(AA7:AA14) -> 1 | AB15: =-SUM(AB7:AB14) -> 0.3712323266 | AF15: =SUM(AF7:AF14) -> 1 | AG15: =-SUM(AG7:AG14) -> 0.228538144 | AK15: =SUM(AK7:AK14) -> 1 | AL15: =-SUM(AL7:AL14) -> 0.228538144 | AP15: =SUM(AP7:AP14) -> 1 | AQ15: =-SUM(AQ7:AQ14) -> 0 | AU15: =SUM(AU7:AU14) -> 1 | AV15: =-SUM(AV7:AV14) -> 0
A16: 11 | B16: 1314 | C16: 11 | D16: 1324 | E16: 12 | F16: 1333 | K16: 0 | L16: 111 | P16: U= | Q16: =Q15/(LOG(Q4)/LOG(2)) -> 0.05544311516 | V16: U1= | W16: =W15/(LOG(W4)/LOG(2)) -> 0.2182538325 | AA16: U2= | AB16: =AB15/(LOG(AB4)/LOG(2)) -> 0.07722174307 | AF16: U3= | AG16: =AG15/(LOG(AG4)/LOG(2)) -> 0.04806383828 | AK16: U4= | AL16: =AL15/(LOG(AL4)/LOG(2)) -> 0.04806383828 | AP16: U5= | AQ16: =AQ15/(LOG(AQ4)/LOG(2)) -> 0 | AU16: U6= | AV16: =AV15/(LOG(AV4)/LOG(2)) -> 0
A17: 11 | B17: 1444 | C17: 11 | D17: 1454 | E17: 12 | F17: 1463 | K17: 0 | L17: 111
A18: 22 | B18: 1581 | C18: 13 | D18: 1595 | E18: 14 | F18: 1612 | K18: 0 | L18: 211
A19: 11 | B19: 1727 | C19: 11 | D19: 1737 | E19: 12 | F19: 1746 | K19: 0 | L19: 111 | N19: Total Target Seq
A20: 22 | B20: 1869 | C20: 13 | D20: 1880 | E20: 14 | F20: 1885 | K20: 0 | L20: 211 | N20: =COUNTIF(L7:L170,G3) -> 0 | P20: 27 | Q20: 28 | R20: 27 | S20: 27 | T20: 28 | U20: 27
A21: 11 | B21: 2002 | C21: 11 | D21: 2010 | E21: 12 | F21: 2019 | K21: 0 | L21: 111 | P21: % of reinforcement given in 6 equal intervals based on number of trials
A22: 22 | B22: 2125 | C22: 24 | D22: 2140 | E22: 14 | F22: 2150 | K22: 0 | L22: 221 | P22: %_1 | Q22: %_2 | R22: %_3 | S22: %_4 | T22: %_5 | U22: %_6
A23: 11 | B23: 2258 | C23: 11 | D23: 2267 | E23: 12 | F23: 2275 | K23: 0 | L23: 111 | O23: target sequence | P23: =$G$3 -> 122 | Q23: =$G$3 -> 122 | R23: =$G$3 -> 122 | S23: =$G$3 -> 122 | T23: =$G$3 -> 122 | U23: =$G$3 -> 122
A24: 22 | B24: 2387 | C24: 13 | D24: 2403 | E24: 14 | F24: 2412 | K24: 0 | L24: 211 | O24: total reinforcement | P24: =U10 -> 0 | Q24: =Z10 -> 0 | R24: =AE10 -> 0 | S24: =AJ10 -> 0 | T24: =AO10 -> 0 | U24: =AT10 -> 0
A25: 11 | B25: 2522 | C25: 11 | D25: 2531 | E25: 12 | F25: 2542 | K25: 0 | L25: 111 | O25: % target
A26: 22 | B26: 2767 | C26: 13 | D26: 2787 | E26: 14 | F26: 2798 | K26: 0 | L26: 211 | O26: CCRF
A27: 11 | B27: 2920 | C27: 11 | D27: 2925 | E27: 12 | F27: 2933 | K27: 0 | L27: 111 | O27: % CCRf
A28: 11 | B28: 3061 | C28: 11 | D28: 3067 | E28: 12 | F28: 3075 | K28: 0 | L28: 111 | O28: average response rate | P28: =F33/P20 -> 141.3703704 | Q28: =(F61-F33)/Q20 -> 154.4285714 | R28: =(F88-F61)/R20 -> 143.1111111 | S28: =(F115-F88)/S20 -> 139.5925926 | T28: =(F143-F115)/T20 -> 146.1071429 | U28: =(F170-F143)/U20 -> 152.8888889
A29: 11 | B29: 3186 | C29: 11 | D29: 3191 | E29: 12 | F29: 3199 | K29: 0 | L29: 111
A30: 11 | B30: 3405 | C30: 11 | D30: 3412 | E30: 12 | F30: 3421 | K30: 0 | L30: 111
A31: 22 | B31: 3529 | C31: 13 | D31: 3545 | E31: 14 | F31: 3554 | K31: 0 | L31: 211
A32: 11 | B32: 3667 | C32: 11 | D32: 3671 | E32: 12 | F32: 3677 | K32: 0 | L32: 111
A33: 22 | B33: 3796 | C33: 13 | D33: 3808 | E33: 14 | F33: 3817 | K33: 0 | L33: 211
A34: 22 | B34: 3922 | C34: 13 | D34: 3932 | E34: 14 | F34: 3941 | K34: 0 | L34: 211
A35: 11 | B35: 4047 | C35: 11 | D35: 4054 | E35: 12 | F35: 4063 | K35: 0 | L35: 111
A36: 11 | B36: 4179 | C36: 11 | D36: 4184 | E36: 12 | F36: 4209 | K36: 0 | L36: 111
A37: 22 | B37: 4310 | C37: 13 | D37: 4320 | E37: 14 | F37: 4330 | K37: 0 | L37: 211
A38: 11 | B38: 4442 | C38: 11 | D38: 4447 | E38: 12 | F38: 4455 | K38: 0 | L38: 111
A39: 11 | B39: 4569 | C39: 11 | D39: 4574 | E39: 12 | F39: 4583 | K39: 0 | L39: 111
A40: 11 | B40: 4696 | C40: 11 | D40: 4701 | E40: 12 | F40: 4709 | K40: 0 | L40: 111
A41: 11 | B41: 4944 | C41: 11 | D41: 4952 | E41: 12 | F41: 4989 | K41: 0 | L41: 111
A42: 11 | B42: 5234 | C42: 11 | D42: 5248 | E42: 12 | F42: 5257 | K42: 0 | L42: 111
A43: 11 | B43: 5371 | C43: 11 | D43: 5375 | E43: 12 | F43: 5384 | K43: 0 | L43: 111
A44: 11 | B44: 5497 | C44: 11 | D44: 5503 | E44: 12 | F44: 5510 | K44: 0 | L44: 111
A45: 11 | B45: 5620 | C45: 11 | D45: 5624 | E45: 12 | F45: 5632 | K45: 0 | L45: 111
A46: 11 | B46: 5742 | C46: 11 | D46: 5746 | E46: 12 | F46: 5755 | K46: 0 | L46: 111
A47: 11 | B47: 5865 | C47: 11 | D47: 5871 | E47: 12 | F47: 5879 | K47: 0 | L47: 111
A48: 11 | B48: 6110 | C48: 11 | D48: 6114 | E48: 12 | F48: 6122 | K48: 0 | L48: 111
A49: 11 | B49: 6245 | C49: 11 | D49: 6250 | E49: 12 | F49: 6259 | K49: 0 | L49: 111
A50: 11 | B50: 6369 | C50: 11 | D50: 6374 | E50: 12 | F50: 6382 | K50: 0 | L50: 111
A51: 11 | B51: 6606 | C51: 11 | D51: 6611 | E51: 12 | F51: 6619 | K51: 0 | L51: 111
A52: 11 | B52: 6719 | C52: 11 | D52: 6727 | E52: 12 | F52: 6736 | K52: 0 | L52: 111
A53: 11 | B53: 6847 | C53: 11 | D53: 6861 | E53: 12 | F53: 6874 | K53: 0 | L53: 111
A54: 11 | B54: 6987 | C54: 11 | D54: 6991 | E54: 12 | F54: 7000 | K54: 0 | L54: 111
A55: 11 | B55: 7109 | C55: 11 | D55: 7114 | E55: 12 | F55: 7130 | K55: 0 | L55: 111
A56: 11 | B56: 7240 | C56: 11 | D56: 7245 | E56: 12 | F56: 7253 | K56: 0 | L56: 111
A57: 11 | B57: 7433 | C57: 11 | D57: 7441 | E57: 12 | F57: 7450 | K57: 0 | L57: 111
A58: 11 | B58: 7562 | C58: 11 | D58: 7567 | E58: 12 | F58: 7577 | K58: 0 | L58: 111
A59: 11 | B59: 7685 | C59: 11 | D59: 7690 | E59: 12 | F59: 7699 | K59: 0 | L59: 111
A60: 11 | B60: 7873 | C60: 11 | D60: 7880 | E60: 12 | F60: 7888 | K60: 0 | L60: 111
A61: 11 | B61: 8125 | C61: 11 | D61: 8134 | E61: 12 | F61: 8141 | K61: 0 | L61: 111
A62: 11 | B62: 8258 | C62: 11 | D62: 8263 | E62: 12 | F62: 8272 | K62: 0 | L62: 111
A63: 11 | B63: 8386 | C63: 11 | D63: 8395 | E63: 12 | F63: 8405 | K63: 0 | L63: 111
A64: 11 | B64: 8524 | C64: 11 | D64: 8534 | E64: 12 | F64: 8543 | K64: 0 | L64: 111
A65: 11 | B65: 8660 | C65: 11 | D65: 8664 | E65: 12 | F65: 8674 | K65: 0 | L65: 111
A66: 11 | B66: 8785 | C66: 11 | D66: 8789 | E66: 12 | F66: 8798 | K66: 0 | L66: 111
A67: 11 | B67: 8909 | C67: 11 | D67: 8919 | E67: 12 | F67: 8928 | K67: 0 | L67: 111
A68: 11 | B68: 9038 | C68: 11 | D68: 9043 | E68: 12 | F68: 9079 | K68: 0 | L68: 111
A69: 11 | B69: 9340 | C69: 11 | D69: 9346 | E69: 12 | F69: 9354 | K69: 0 | L69: 111
A70: 11 | B70: 9475 | C70: 11 | D70: 9483 | E70: 12 | F70: 9492 | K70: 0 | L70: 111
A71: 11 | B71: 9605 | C71: 11 | D71: 9610 | E71: 12 | F71: 9619 | K71: 0 | L71: 111
A72: 11 | B72: 9729 | C72: 11 | D72: 9733 | E72: 12 | F72: 9741 | K72: 0 | L72: 111
A73: 11 | B73: 9853 | C73: 11 | D73: 9860 | E73: 12 | F73: 9869 | K73: 0 | L73: 111
A74: 11 | B74: 9977 | C74: 11 | D74: 9981 | E74: 12 | F74: 9990 | K74: 0 | L74: 111
A75: 11 | B75: 10175 | C75: 11 | D75: 10179 | E75: 12 | F75: 10186 | K75: 0 | L75: 111
A76: 11 | B76: 10309 | C76: 11 | D76: 10317 | E76: 12 | F76: 10326 | K76: 0 | L76: 111
A77: 11 | B77: 10529 | C77: 11 | D77: 10536 | E77: 12 | F77: 10548 | K77: 0 | L77: 111
A78: 22 | B78: 10658 | C78: 13 | D78: 10668 | E78: 14 | F78: 10672 | K78: 0 | L78: 211
A79: 11 | B79: 10790 | C79: 11 | D79: 10798 | E79: 12 | F79: 10807 | K79: 0 | L79: 111
A80: 11 | B80: 10919 | C80: 11 | D80: 10924 | E80: 12 | F80: 10932 | K80: 0 | L80: 111
A81: 11 | B81: 11108 | C81: 11 | D81: 11115 | E81: 12 | F81: 11123 | K81: 0 | L81: 111
A82: 11 | B82: 11240 | C82: 11 | D82: 11249 | E82: 12 | F82: 11259 | K82: 0 | L82: 111
A83: 11 | B83: 11368 | C83: 11 | D83: 11372 | E83: 12 | F83: 11382 | K83: 0 | L83: 111
A84: 11 | B84: 11493 | C84: 11 | D84: 11497 | E84: 12 | F84: 11506 | K84: 0 | L84: 111
A85: 11 | B85: 11617 | C85: 11 | D85: 11622 | E85: 12 | F85: 11630 | K85: 0 | L85: 111
A86: 11 | B86: 11742 | C86: 11 | D86: 11746 | E86: 12 | F86: 11756 | K86: 0 | L86: 111
A87: 11 | B87: 11865 | C87: 11 | D87: 11870 | E87: 12 | F87: 11877 | K87: 0 | L87: 111
A88: 11 | B88: 11990 | C88: 11 | D88: 11996 | E88: 12 | F88: 12005 | K88: 0 | L88: 111
A89: 11 | B89: 12117 | C89: 11 | D89: 12123 | E89: 12 | F89: 12131 | K89: 0 | L89: 111
A90: 11 | B90: 12309 | C90: 11 | D90: 12318 | E90: 12 | F90: 12325 | K90: 0 | L90: 111
A91: 11 | B91: 12439 | C91: 11 | D91: 12444 | E91: 12 | F91: 12453 | K91: 0 | L91: 111
A92: 11 | B92: 12566 | C92: 11 | D92: 12575 | E92: 12 | F92: 12583 | K92: 0 | L92: 111
A93: 11 | B93: 12698 | C93: 11 | D93: 12703 | E93: 12 | F93: 12712 | K93: 0 | L93: 111
A94: 11 | B94: 12821 | C94: 11 | D94: 12825 | E94: 12 | F94: 12834 | K94: 0 | L94: 111
A95: 11 | B95: 12949 | C95: 11 | D95: 13000 | E95: 12 | F95: 13017 | K95: 0 | L95: 111
A96: 11 | B96: 13130 | C96: 11 | D96: 13136 | E96: 12 | F96: 13144 | K96: 0 | L96: 111
A97: 11 | B97: 13253 | C97: 11 | D97: 13258 | E97: 12 | F97: 13265 | K97: 0 | L97: 111
A98: 11 | B98: 13495 | C98: 11 | D98: 13503 | E98: 12 | F98: 13512 | K98: 0 | L98: 111
A99: 11 | B99: 13611 | C99: 11 | D99: 13616 | E99: 12 | F99: 13626 | K99: 0 | L99: 111
A100: 11 | B100: 13729 | C100: 11 | D100: 13734 | E100: 12 | F100: 13743 | K100: 0 | L100: 111
A101: 11 | B101: 13855 | C101: 11 | D101: 13860 | E101: 12 | F101: 13870 | K101: 0 | L101: 111
A102: 11 | B102: 13979 | C102: 11 | D102: 13991 | E102: 12 | F102: 14000 | K102: 0 | L102: 111
A103: 11 | B103: 14110 | C103: 11 | D103: 14115 | E103: 12 | F103: 14119 | K103: 0 | L103: 111
A104: 11 | B104: 14229 | C104: 11 | D104: 14234 | E104: 12 | F104: 14251 | K104: 0 | L104: 111
A105: 11 | B105: 14362 | C105: 11 | D105: 14370 | E105: 12 | F105: 14379 | K105: 0 | L105: 111
A106: 11 | B106: 14488 | C106: 11 | D106: 14493 | E106: 12 | F106: 14502 | K106: 0 | L106: 111
A107: 11 | B107: 14615 | C107: 11 | D107: 14620 | E107: 12 | F107: 14630 | K107: 0 | L107: 111
A108: 11 | B108: 14737 | C108: 11 | D108: 14743 | E108: 12 | F108: 14752 | K108: 0 | L108: 111
A109: 11 | B109: 14862 | C109: 11 | D109: 14867 | E109: 12 | F109: 14875 | K109: 0 | L109: 111
A110: 11 | B110: 15055 | C110: 11 | D110: 15065 | E110: 12 | F110: 15083 | K110: 0 | L110: 111
A111: 11 | B111: 15196 | C111: 11 | D111: 15204 | E111: 12 | F111: 15214 | K111: 0 | L111: 111
A112: 22 | B112: 15352 | C112: 13 | D112: 15364 | E112: 14 | F112: 15372 | K112: 0 | L112: 211
A113: 11 | B113: 15491 | C113: 11 | D113: 15500 | E113: 12 | F113: 15510 | K113: 0 | L113: 111
A114: 11 | B114: 15624 | C114: 11 | D114: 15630 | E114: 12 | F114: 15648 | K114: 0 | L114: 111
A115: 11 | B115: 15756 | C115: 11 | D115: 15764 | E115: 12 | F115: 15774 | K115: 0 | L115: 111
A116: 11 | B116: 15886 | C116: 11 | D116: 15896 | E116: 12 | F116: 15906 | K116: 0 | L116: 111
A117: 11 | B117: 16016 | C117: 11 | D117: 16020 | E117: 12 | F117: 16030 | K117: 0 | L117: 111
A118: 11 | B118: 16232 | C118: 11 | D118: 16241 | E118: 12 | F118: 16248 | K118: 0 | L118: 111
A119: 11 | B119: 16348 | C119: 11 | D119: 16357 | E119: 12 | F119: 16367 | K119: 0 | L119: 111
A120: 11 | B120: 16478 | C120: 11 | D120: 16483 | E120: 12 | F120: 16494 | K120: 0 | L120: 111
A121: 11 | B121: 16608 | C121: 11 | D121: 16616 | E121: 12 | F121: 16625 | K121: 0 | L121: 111
A122: 11 | B122: 16735 | C122: 11 | D122: 16744 | E122: 12 | F122: 16752 | K122: 0 | L122: 111
A123: 11 | B123: 16863 | C123: 11 | D123: 16871 | E123: 12 | F123: 16880 | K123: 0 | L123: 111
A124: 11 | B124: 17109 | C124: 11 | D124: 17118 | E124: 12 | F124: 17127 | K124: 0 | L124: 111
A125: 11 | B125: 17247 | C125: 11 | D125: 17253 | E125: 12 | F125: 17263 | K125: 0 | L125: 111
A126: 11 | B126: 17377 | C126: 11 | D126: 17386 | E126: 12 | F126: 17396 | K126: 0 | L126: 111
A127: 11 | B127: 17512 | C127: 11 | D127: 17524 | E127: 12 | F127: 17533 | K127: 0 | L127: 111
A128: 11 | B128: 17642 | C128: 11 | D128: 17647 | E128: 12 | F128: 17651 | K128: 0 | L128: 111
A129: 11 | B129: 17875 | C129: 11 | D129: 17887 | E129: 12 | F129: 17896 | K129: 0 | L129: 111
A130: 11 | B130: 18012 | C130: 11 | D130: 18021 | E130: 12 | F130: 18031 | K130: 0 | L130: 111
A131: 11 | B131: 18138 | C131: 11 | D131: 18146 | E131: 12 | F131: 18157 | K131: 0 | L131: 111
A132: 11 | B132: 18277 | C132: 11 | D132: 18288 | E132: 12 | F132: 18297 | K132: 0 | L132: 111
A133: 11 | B133: 18409 | C133: 11 | D133: 18414 | E133: 12 | F133: 18422 | K133: 0 | L133: 111
A134: 11 | B134: 18521 | C134: 11 | D134: 18530 | E134: 12 | F134: 18539 | K134: 0 | L134: 111
A135: 11 | B135: 18649 | C135: 11 | D135: 18656 | E135: 12 | F135: 18664 | K135: 0 | L135: 111
A136: 11 | B136: 18772 | C136: 11 | D136: 18777 | E136: 12 | F136: 18787 | K136: 0 | L136: 111
A137: 11 | B137: 18997 | C137: 11 | D137: 19005 | E137: 12 | F137: 19015 | K137: 0 | L137: 111
A138: 11 | B138: 19127 | C138: 11 | D138: 19146 | E138: 12 | F138: 19154 | K138: 0 | L138: 111
A139: 11 | B139: 19265 | C139: 11 | D139: 19271 | E139: 12 | F139: 19283 | K139: 0 | L139: 111
A140: 11 | B140: 19424 | C140: 11 | D140: 19437 | E140: 12 | F140: 19449 | K140: 0 | L140: 111
A141: 11 | B141: 19572 | C141: 11 | D141: 19581 | E141: 12 | F141: 19591 | K141: 0 | L141: 111
A142: 11 | B142: 19709 | C142: 11 | D142: 19728 | E142: 12 | F142: 19737 | K142: 0 | L142: 111
A143: 11 | B143: 19844 | C143: 11 | D143: 19850 | E143: 12 | F143: 19865 | K143: 0 | L143: 111
A144: 11 | B144: 19974 | C144: 11 | D144: 19982 | E144: 12 | F144: 19992 | K144: 0 | L144: 111
A145: 11 | B145: 20179 | C145: 11 | D145: 20189 | E145: 12 | F145: 20199 | K145: 0 | L145: 111
A146: 11 | B146: 20314 | C146: 11 | D146: 20321 | E146: 12 | F146: 20332 | K146: 0 | L146: 111
A147: 11 | B147: 20468 | C147: 11 | D147: 20477 | E147: 12 | F147: 20487 | K147: 0 | L147: 111
A148: 11 | B148: 20694 | C148: 11 | D148: 20702 | E148: 12 | F148: 20712 | K148: 0 | L148: 111
A149: 11 | B149: 20820 | C149: 11 | D149: 20828 | E149: 12 | F149: 20854 | K149: 0 | L149: 111
A150: 11 | B150: 20954 | C150: 11 | D150: 20958 | E150: 12 | F150: 20968 | K150: 0 | L150: 111
A151: 11 | B151: 21060 | C151: 11 | D151: 21083 | E151: 12 | F151: 21091 | K151: 0 | L151: 111
A152: 11 | B152: 21208 | C152: 11 | D152: 21222 | E152: 12 | F152: 21237 | K152: 0 | L152: 111
A153: 11 | B153: 21347 | C153: 11 | D153: 21358 | E153: 12 | F153: 21366 | K153: 0 | L153: 111
A154: 11 | B154: 21580 | C154: 11 | D154: 21590 | E154: 12 | F154: 21598 | K154: 0 | L154: 111
A155: 11 | B155: 21724 | C155: 11 | D155: 21731 | E155: 12 | F155: 21739 | K155: 0 | L155: 111
A156: 11 | B156: 21859 | C156: 11 | D156: 21868 | E156: 12 | F156: 21876 | K156: 0 | L156: 111
A157: 11 | B157: 21996 | C157: 11 | D157: 22007 | E157: 12 | F157: 22015 | K157: 0 | L157: 111
A158: 11 | B158: 22127 | C158: 11 | D158: 22137 | E158: 12 | F158: 22144 | K158: 0 | L158: 111
A159: 11 | B159: 22267 | C159: 11 | D159: 22278 | E159: 12 | F159: 22286 | K159: 0 | L159: 111
A160: 11 | B160: 22395 | C160: 11 | D160: 22403 | E160: 12 | F160: 22413 | K160: 0 | L160: 111
A161: 11 | B161: 22639 | C161: 11 | D161: 22647 | E161: 12 | F161: 22656 | K161: 0 | L161: 111
A162: 11 | B162: 22771 | C162: 11 | D162: 22782 | E162: 12 | F162: 22791 | K162: 0 | L162: 111
A163: 11 | B163: 22903 | C163: 11 | D163: 22913 | E163: 12 | F163: 22925 | K163: 0 | L163: 111
A164: 11 | B164: 23037 | C164: 11 | D164: 23041 | E164: 12 | F164: 23091 | K164: 0 | L164: 111
A165: 11 | B165: 23202 | C165: 11 | D165: 23209 | E165: 12 | F165: 23218 | K165: 0 | L165: 111
A166: 11 | B166: 23327 | C166: 11 | D166: 23334 | E166: 12 | F166: 23350 | K166: 0 | L166: 111
A167: 11 | B167: 23465 | C167: 11 | D167: 23474 | E167: 12 | F167: 23484 | K167: 0 | L167: 111
A168: 11 | B168: 23596 | C168: 11 | D168: 23600 | E168: 12 | F168: 23610 | K168: 0 | L168: 111
A169: 11 | B169: 23721 | C169: 11 | D169: 23735 | E169: 12 | F169: 23743 | K169: 0 | L169: 111
A170: 11 | B170: 23954 | C170: 11 | D170: 23963 | E170: 12 | F170: 23993 | L170: 111

Sheet !M808C00.010
A1: Report for:!M808C00.010
A2: Date: | B2: <date>
A3: Hen: | B3: <hen> | F3: Correct Sequence | G3: =Start!J2 -> 122 | P3: Total Sequences in Data | Q3: =4994-COUNTBLANK(L7:L5000) -> 158 | V3: Total Sequences in Block Data | W3: =COUNTA(L7:L32) -> 26 | AA3: Total Sequences in Block Data | AB3: =COUNTA(L33:L59) -> 27 | AF3: Total Sequences in Block Data | AG3: =COUNTA(L60:L85) -> 26 | AK3: Total Sequences in Block Data | AL3: =COUNTA(L86:L111) -> 26 | AP3: Total Sequences in Block Data | AQ3: =COUNTA(L112:L138) -> 27 | AU3: Total Sequences in Block Data | AV3: =COUNTA(L139:L164) -> 26
P4: Total Sequences in Summary | Q4: =SUM(O7:O14) -> 158 | V4: Total Sequences in Block Summary | W4: =SUM(U7:U14) -> 26 | AA4: Total Sequences in Block Summary | AB4: =SUM(Z7:Z14) -> 27 | AF4: Total Sequences in Block Summary | AG4: =SUM(AE7:AE14) -> 26 | AK4: Total Sequences in Block Summary | AL4: =SUM(AJ7:AJ14) -> 26 | AP4: Total Sequences in Block Summary | AQ4: =SUM(AO7:AO14) -> 27 | AU4: Total Sequences in Block Summary | AV4: =SUM(AT7:AT14) -> 26
T5: Block 1 | Y5: Block 2 | AD5: Block 3 | AI5: Block 4 | AN5: Block 5 | AS5: Block 6
A6: Sequence Component 1 | B6: Time 1 | C6: Sequence Component 2 | D6: Time 2 | E6: Sequence Component 3 | F6: Time 3 | G6: Sequence Component 4 | H6: Time 4 | I6: Sequence Component 5 | J6: Time 5 | K6: Correct? 0=No 1=Yes | L6: Sequence | N6: Frequency | P6: Relative Frequency | Q6: Variability | T6: Frequency | V6: Relative Frequency | W6: Variability | Y6: Frequency | AA6: Relative Frequency | AB6: Variability | AD6: Frequency | AF6: Relative Frequency | AG6: Variability | AI6: Frequency | AK6: Relative Frequency | AL6: Variability | AN6: Frequency | AP6: Relative Frequency | AQ6: Variability | AS6: Frequency | AU6: Relative Frequency | AV6: Variability
A7: 11 | B7: 42 | C7: 11 | D7: 52 | E7: 12 | F7: 58 | K7: 0 | L7: 111 | N7: 111 | O7: =COUNTIF($L$7:$L$500,N7) -> 149 | P7: =O7/$Q$4 -> 0.9430379747 | Q7: =IF(P7=0,0,(P7*((LOG(P7))/LOG(2)))) -> -0.07979254386 | T7: =N7 -> 111 | U7: =COUNTIF(L7:L32,T7) -> 20 | V7: =U7/(W4-U10) -> 0.7692307692 | W7: =IF(V7=0,0,(V7*((LOG(V7))/LOG(2)))) -> -0.2911627871 | Y7: =N7 -> 111 | Z7: =COUNTIF(L33:L59,Y7) -> 26 | AA7: =Z7/(AB4-Z10) -> 0.962962963 | AB7: =IF(AA7=0,0,(AA7*((LOG(AA7))/LOG(2)))) -> -0.05243119943 | AD7: =N7 -> 111 | AE7: =COUNTIF(L60:L85,AD7) -> 25 | AF7: =AE7/(AG4-AE10) -> 0.9615384615 | AG7: =IF(AF7=0,0,(AF7*((LOG(AF7))/LOG(2)))) -> -0.05440723881 | AI7: =N7 -> 111 | AJ7: =COUNTIF(L86:L111,AI7) -> 26 | AK7: =AJ7/(AL4-AJ10) -> 1 | AL7: =IF(AK7=0,0,(AK7*((LOG(AK7))/LOG(2)))) -> 0 | AN7: =N7 -> 111 | AO7: =COUNTIF(L112:L138,AN7) -> 26 | AP7: =AO7/(AQ4-AO10) -> 0.962962963 | AQ7: =IF(AP7=0,0,(AP7*((LOG(AP7))/LOG(2)))) -> -0.05243119943 | AS7: =N7 -> 111 | AT7: =COUNTIF(L139:L164,AS7) -> 26 | AU7: =AT7/(AV4-AT10) -> 1 | AV7: =IF(AU7=0,0,(AU7*((LOG(AU7))/LOG(2)))) -> 0
A8: 22 | B8: 176 | C8: 13 | D8: 190 | E8: 14 | F8: 196 | K8: 0 | L8: 211 | N8: 112 | O8: =COUNTIF($L$7:$L$500,N8) -> 0 | P8: =O8/$Q$4 -> 0 | Q8: =IF(P8=0,0,(P8*((LOG(P8))/LOG(2)))) -> 0 | T8: =N8 -> 112 | U8: =COUNTIF(L7:L32,T8) -> 0 | V8: =U8/(W4-U10) -> 0 | W8: =IF(V8=0,0,(V8*((LOG(V8))/LOG(2)))) -> 0 | Y8: =N8 -> 112 | Z8: =COUNTIF(L33:L59,Y8) -> 0 | AA8: =Z8/(AB4-Z10) -> 0 | AB8: =IF(AA8=0,0,(AA8*((LOG(AA8))/LOG(2)))) -> 0 | AD8: =N8 -> 112 | AE8: =COUNTIF(L60:L85,AD8) -> 0 | AF8: =AE8/(AG4-AE10) -> 0 | AG8: =IF(AF8=0,0,(AF8*((LOG(AF8))/LOG(2)))) -> 0 | AI8: =N8 -> 112 | AJ8: =COUNTIF(L86:L111,AI8) -> 0 | AK8: =AJ8/(AL4-AJ10) -> 0 | AL8: =IF(AK8=0,0,(AK8*((LOG(AK8))/LOG(2)))) -> 0 | AN8: =N8 -> 112 | AO8: =COUNTIF(L112:L138,AN8) -> 0 | AP8: =AO8/(AQ4-AO10) -> 0 | AQ8: =IF(AP8=0,0,(AP8*((LOG(AP8))/LOG(2)))) -> 0 | AS8: =N8 -> 112 | AT8: =COUNTIF(L139:L164,AS8) -> 0 | AU8: =AT8/(AV4-AT10) -> 0 | AV8: =IF(AU8=0,0,(AU8*((LOG(AU8))/LOG(2)))) -> 0
A9: 11 | B9: 316 | C9: 11 | D9: 322 | E9: 12 | F9: 330 | K9: 0 | L9: 111 | N9: 121 | O9: =COUNTIF($L$7:$L$500,N9) -> 1 | P9: =O9/$Q$4 -> 0.006329113924 | Q9: =IF(P9=0,0,(P9*((LOG(P9))/LOG(2)))) -> -0.04622646043 | T9: =N9 -> 121 | U9: =COUNTIF(L7:L32,T9) -> 0 | V9: =U9/(W4-U10) -> 0 | W9: =IF(V9=0,0,(V9*((LOG(V9))/LOG(2)))) -> 0 | Y9: =N9 -> 121 | Z9: =COUNTIF(L33:L59,Y9) -> 0 | AA9: =Z9/(AB4-Z10) -> 0 | AB9: =IF(AA9=0,0,(AA9*((LOG(AA9))/LOG(2)))) -> 0 | AD9: =N9 -> 121 | AE9: =COUNTIF(L60:L85,AD9) -> 0 | AF9: =AE9/(AG4-AE10) -> 0 | AG9: =IF(AF9=0,0,(AF9*((LOG(AF9))/LOG(2)))) -> 0 | AI9: =N9 -> 121 | AJ9: =COUNTIF(L86:L111,AI9) -> 0 | AK9: =AJ9/(AL4-AJ10) -> 0 | AL9: =IF(AK9=0,0,(AK9*((LOG(AK9))/LOG(2)))) -> 0 | AN9: =N9 -> 121 | AO9: =COUNTIF(L112:L138,AN9) -> 1 | AP9: =AO9/(AQ4-AO10) -> 0.03703703704 | AQ9: =IF(AP9=0,0,(AP9*((LOG(AP9))/LOG(2)))) -> -0.1761069445 | AS9: =N9 -> 121 | AT9: =COUNTIF(L139:L164,AS9) -> 0 | AU9: =AT9/(AV4-AT10) -> 0 | AV9: =IF(AU9=0,0,(AU9*((LOG(AU9))/LOG(2)))) -> 0
A10: 11 | B10: 446 | C10: 11 | D10: 451 | E10: 12 | F10: 457 | K10: 0 | L10: 111 | N10: 122 | O10: =COUNTIF($L$7:$L$500,N10) -> 0 | P10: =O10/$Q$4 -> 0 | Q10: =IF(P10=0,0,(P10*((LOG(P10))/LOG(2)))) -> 0 | T10: =N10 -> 122 | U10: =COUNTIF(L7:L32,T10) -> 0 | Y10: =N10 -> 122 | Z10: =COUNTIF(L33:L59,Y10) -> 0 | AD10: =N10 -> 122 | AE10: =COUNTIF(L60:L85,AD10) -> 0 | AI10: =N10 -> 122 | AJ10: =COUNTIF(L86:L111,AI10) -> 0 | AN10: =N10 -> 122 | AO10: =COUNTIF(L112:L138,AN10) -> 0 | AS10: =N10 -> 122 | AT10: =COUNTIF(L139:L164,AS10) -> 0
A11: 11 | B11: 573 | C11: 11 | D11: 579 | E11: 12 | F11: 588 | K11: 0 | L11: 111 | N11: 211 | O11: =COUNTIF($L$7:$L$500,N11) -> 8 | P11: =O11/$Q$4 -> 0.05063291139 | Q11: =IF(P11=0,0,(P11*((LOG(P11))/LOG(2)))) -> -0.2179129493 | T11: =N11 -> 211 | U11: =COUNTIF(L7:L32,T11) -> 6 | V11: =U11/(W4-U10) -> 0.2307692308 | W11: =IF(V11=0,0,(V11*((LOG(V11))/LOG(2)))) -> -0.4881870502 | Y11: =N11 -> 211 | Z11: =COUNTIF(L33:L59,Y11) -> 1 | AA11: =Z11/(AB4-Z10) -> 0.03703703704 | AB11: =IF(AA11=0,0,(AA11*((LOG(AA11))/LOG(2)))) -> -0.1761069445 | AD11: =N11 -> 211 | AE11: =COUNTIF(L60:L85,AD11) -> 1 | AF11: =AE11/(AG4-AE10) -> 0.03846153846 | AG11: =IF(AF11=0,0,(AF11*((LOG(AF11))/LOG(2)))) -> -0.180786143 | AI11: =N11 -> 211 | AJ11: =COUNTIF(L86:L111,AI11) -> 0 | AK11: =AJ11/(AL4-AJ10) -> 0 | AL11: =IF(AK11=0,0,(AK11*((LOG(AK11))/LOG(2)))) -> 0 | AN11: =N11 -> 211 | AO11: =COUNTIF(L112:L138,AN11) -> 0 | AP11: =AO11/(AQ4-AO10) -> 0 | AQ11: =IF(AP11=0,0,(AP11*((LOG(AP11))/LOG(2)))) -> 0 | AS11: =N11 -> 211 | AT11: =COUNTIF(L139:L164,AS11) -> 0 | AU11: =AT11/(AV4-AT10) -> 0 | AV11: =IF(AU11=0,0,(AU11*((LOG(AU11))/LOG(2)))) -> 0
A12: 11 | B12: 844 | C12: 11 | D12: 858 | E12: 12 | F12: 867 | K12: 0 | L12: 111 | N12: 212 | O12: =COUNTIF($L$7:$L$500,N12) -> 0 | P12: =O12/$Q$4 -> 0 | Q12: =IF(P12=0,0,(P12*((LOG(P12))/LOG(2)))) -> 0 | T12: =N12 -> 212 | U12: =COUNTIF(L7:L32,T12) -> 0 | V12: =U12/(W4-U10) -> 0 | W12: =IF(V12=0,0,(V12*((LOG(V12))/LOG(2)))) -> 0 | Y12: =N12 -> 212 | Z12: =COUNTIF(L33:L59,Y12) -> 0 | AA12: =Z12/(AB4-Z10) -> 0 | AB12: =IF(AA12=0,0,(AA12*((LOG(AA12))/LOG(2)))) -> 0 | AD12: =N12 -> 212 | AE12: =COUNTIF(L60:L85,AD12) -> 0 | AF12: =AE12/(AG4-AE10) -> 0 | AG12: =IF(AF12=0,0,(AF12*((LOG(AF12))/LOG(2)))) -> 0 | AI12: =N12 -> 212 | AJ12: =COUNTIF(L86:L111,AI12) -> 0 | AK12: =AJ12/(AL4-AJ10) -> 0 | AL12: =IF(AK12=0,0,(AK12*((LOG(AK12))/LOG(2)))) -> 0 | AN12: =N12 -> 212 | AO12: =COUNTIF(L112:L138,AN12) -> 0 | AP12: =AO12/(AQ4-AO10) -> 0 | AQ12: =IF(AP12=0,0,(AP12*((LOG(AP12))/LOG(2)))) -> 0 | AS12: =N12 -> 212 | AT12: =COUNTIF(L139:L164,AS12) -> 0 | AU12: =AT12/(AV4-AT10) -> 0 | AV12: =IF(AU12=0,0,(AU12*((LOG(AU12))/LOG(2)))) -> 0
A13: 22 | B13: 983 | C13: 13 | D13: 997 | E13: 14 | F13: 1006 | K13: 0 | L13: 211 | N13: 221 | O13: =COUNTIF($L$7:$L$500,N13) -> 0 | P13: =O13/$Q$4 -> 0 | Q13: =IF(P13=0,0,(P13*((LOG(P13))/LOG(2)))) -> 0 | T13: =N13 -> 221 | U13: =COUNTIF(L7:L32,T13) -> 0 | V13: =U13/(W4-U10) -> 0 | W13: =IF(V13=0,0,(V13*((LOG(V13))/LOG(2)))) -> 0 | Y13: =N13 -> 221 | Z13: =COUNTIF(L33:L59,Y13) -> 0 | AA13: =Z13/(AB4-Z10) -> 0 | AB13: =IF(AA13=0,0,(AA13*((LOG(AA13))/LOG(2)))) -> 0 | AD13: =N13 -> 221 | AE13: =COUNTIF(L60:L85,AD13) -> 0 | AF13: =AE13/(AG4-AE10) -> 0 | AG13: =IF(AF13=0,0,(AF13*((LOG(AF13))/LOG(2)))) -> 0 | AI13: =N13 -> 221 | AJ13: =COUNTIF(L86:L111,AI13) -> 0 | AK13: =AJ13/(AL4-AJ10) -> 0 | AL13: =IF(AK13=0,0,(AK13*((LOG(AK13))/LOG(2)))) -> 0 | AN13: =N13 -> 221 | AO13: =COUNTIF(L112:L138,AN13) -> 0 | AP13: =AO13/(AQ4-AO10) -> 0 | AQ13: =IF(AP13=0,0,(AP13*((LOG(AP13))/LOG(2)))) -> 0 | AS13: =N13 -> 221 | AT13: =COUNTIF(L139:L164,AS13) -> 0 | AU13: =AT13/(AV4-AT10) -> 0 | AV13: =IF(AU13=0,0,(AU13*((LOG(AU13))/LOG(2)))) -> 0
A14: 11 | B14: 1124 | C14: 11 | D14: 1132 | E14: 12 | F14: 1141 | K14: 0 | L14: 111 | N14: 222 | O14: =COUNTIF($L$7:$L$500,N14) -> 0 | P14: =O14/$Q$4 -> 0 | Q14: =IF(P14=0,0,(P14*((LOG(P14))/LOG(2)))) -> 0 | T14: =N14 -> 222 | U14: =COUNTIF(L7:L32,T14) -> 0 | V14: =U14/(W4-U10) -> 0 | W14: =IF(V14=0,0,(V14*((LOG(V14))/LOG(2)))) -> 0 | Y14: =N14 -> 222 | Z14: =COUNTIF(L33:L59,Y14) -> 0 | AA14: =Z14/(AB4-Z10) -> 0 | AB14: =IF(AA14=0,0,(AA14*((LOG(AA14))/LOG(2)))) -> 0 | AD14: =N14 -> 222 | AE14: =COUNTIF(L60:L85,AD14) -> 0 | AF14: =AE14/(AG4-AE10) -> 0 | AG14: =IF(AF14=0,0,(AF14*((LOG(AF14))/LOG(2)))) -> 0 | AI14: =N14 -> 222 | AJ14: =COUNTIF(L86:L111,AI14) -> 0 | AK14: =AJ14/(AL4-AJ10) -> 0 | AL14: =IF(AK14=0,0,(AK14*((LOG(AK14))/LOG(2)))) -> 0 | AN14: =N14 -> 222 | AO14: =COUNTIF(L112:L138,AN14) -> 0 | AP14: =AO14/(AQ4-AO10) -> 0 | AQ14: =IF(AP14=0,0,(AP14*((LOG(AP14))/LOG(2)))) -> 0 | AS14: =N14 -> 222 | AT14: =COUNTIF(L139:L164,AS14) -> 0 | AU14: =AT14/(AV4-AT10) -> 0 | AV14: =IF(AU14=0,0,(AU14*((LOG(AU14))/LOG(2)))) -> 0
A15: 22 | B15: 1248 | C15: 13 | D15: 1267 | E15: 14 | F15: 1277 | K15: 0 | L15: 211 | P15: =SUM(P7:P14) -> 1 | Q15: =-SUM(Q7:Q14) -> 0.3439319536 | V15: =SUM(V7:V14) -> 1 | W15: =-SUM(W7:W14) -> 0.7793498373 | AA15: =SUM(AA7:AA14) -> 1 | AB15: =-SUM(AB7:AB14) -> 0.228538144 | AF15: =SUM(AF7:AF14) -> 1 | AG15: =-SUM(AG7:AG14) -> 0.2351933818 | AK15: =SUM(AK7:AK14) -> 1 | AL15: =-SUM(AL7:AL14) -> 0 | AP15: =SUM(AP7:AP14) -> 1 | AQ15: =-SUM(AQ7:AQ14) -> 0.228538144 | AU15: =SUM(AU7:AU14) -> 1 | AV15: =-SUM(AV7:AV14) -> 0
A16: 22 | B16: 1399 | C16: 13 | D16: 1413 | E16: 14 | F16: 1422 | K16: 0 | L16: 211 | P16: U= | Q16: =Q15/(LOG(Q4)/LOG(2)) -> 0.04708957804 | V16: U1= | W16: =W15/(LOG(W4)/LOG(2)) -> 0.1658036022 | AA16: U2= | AB16: =AB15/(LOG(AB4)/LOG(2)) -> 0.04806383828 | AF16: U3= | AG16: =AG15/(LOG(AG4)/LOG(2)) -> 0.0500364638 | AK16: U4= | AL16: =AL15/(LOG(AL4)/LOG(2)) -> 0 | AP16: U5= | AQ16: =AQ15/(LOG(AQ4)/LOG(2)) -> 0.04806383828 | AU16: U6= | AV16: =AV15/(LOG(AV4)/LOG(2)) -> 0
A17: 11 | B17: 1534 | C17: 11 | D17: 1539 | E17: 12 | F17: 1547 | K17: 0 | L17: 111
A18: 11 | B18: 1663 | C18: 11 | D18: 1736 | E18: 12 | F18: 1745 | K18: 0 | L18: 111
A19: 22 | B19: 1885 | C19: 13 | D19: 1900 | E19: 14 | F19: 1905 | K19: 0 | L19: 211 | N19: Total Target Seq
A20: 11 | B20: 2002 | C20: 11 | D20: 2008 | E20: 12 | F20: 2014 | K20: 0 | L20: 111 | N20: =COUNTIF(L7:L164,G3) -> 0 | P20: 26 | Q20: 27 | R20: 26 | S20: 26 | T20: 27 | U20: 26
A21: 11 | B21: 2139 | C21: 11 | D21: 2147 | E21: 12 | F21: 2156 | K21: 0 | L21: 111 | P21: % of reinforcement given in 6 equal intervals based on number of trials
A22: 11 | B22: 2396 | C22: 11 | D22: 2406 | E22: 12 | F22: 2415 | K22: 0 | L22: 111 | P22: %_1 | Q22: %_2 | R22: %_3 | S22: %_4 | T22: %_5 | U22: %_6
A23: 11 | B23: 2536 | C23: 11 | D23: 2545 | E23: 12 | F23: 2553 | K23: 0 | L23: 111 | O23: target sequence | P23: =$G$3 -> 122 | Q23: =$G$3 -> 122 | R23: =$G$3 -> 122 | S23: =$G$3 -> 122 | T23: =$G$3 -> 122 | U23: =$G$3 -> 122
A24: 11 | B24: 2667 | C24: 11 | D24: 2674 | E24: 12 | F24: 2685 | K24: 0 | L24: 111 | O24: total reinforcement | P24: =U10 -> 0 | Q24: =Z10 -> 0 | R24: =AE10 -> 0 | S24: =AJ10 -> 0 | T24: =AO10 -> 0 | U24: =AT10 -> 0
A25: 11 | B25: 2800 | C25: 11 | D25: 2813 | E25: 12 | F25: 2823 | K25: 0 | L25: 111 | O25: % target
A26: 11 | B26: 2956 | C26: 11 | D26: 2961 | E26: 12 | F26: 2971 | K26: 0 | L26: 111 | O26: CCRF
A27: 11 | B27: 3126 | C27: 11 | D27: 3133 | E27: 12 | F27: 3141 | K27: 0 | L27: 111 | O27: % CCRf
A28: 11 | B28: 3249 | C28: 11 | D28: 3258 | E28: 12 | F28: 3271 | K28: 0 | L28: 111 | O28: average response rate | P28: =F32/P20 -> 146.6153846 | Q28: =(F59-F32)/Q20 -> 155.4444444 | R28: =(F85-F59)/R20 -> 156.2692308 | S28: =(F111-F85)/S20 -> 150.8846154 | T28: =(F138-F111)/T20 -> 153.037037 | U28: =(F164-F138)/U20 -> 148.0384615
A29: 22 | B29: 3397 | C29: 13 | D29: 3410 | E29: 14 | F29: 3419 | K29: 0 | L29: 211
A30: 11 | B30: 3519 | C30: 11 | D30: 3529 | E30: 12 | F30: 3538 | K30: 0 | L30: 111
A31: 11 | B31: 3655 | C31: 11 | D31: 3664 | E31: 12 | F31: 3674 | K31: 0 | L31: 111
A32: 11 | B32: 3788 | C32: 11 | D32: 3803 | E32: 12 | F32: 3812 | K32: 0 | L32: 111
A33: 11 | B33: 4029 | C33: 11 | D33: 4036 | E33: 12 | F33: 4045 | K33: 0 | L33: 111
A34: 11 | B34: 4166 | C34: 11 | D34: 4175 | E34: 12 | F34: 4186 | K34: 0 | L34: 111
A35: 11 | B35: 4299 | C35: 11 | D35: 4308 | E35: 12 | F35: 4318 | K35: 0 | L35: 111
A36: 11 | B36: 4438 | C36: 11 | D36: 4443 | E36: 12 | F36: 4453 | K36: 0 | L36: 111
A37: 11 | B37: 4653 | C37: 11 | D37: 4663 | E37: 12 | F37: 4670 | K37: 0 | L37: 111
A38: 11 | B38: 4792 | C38: 11 | D38: 4800 | E38: 12 | F38: 4809 | K38: 0 | L38: 111
A39: 11 | B39: 4919 | C39: 11 | D39: 4951 | E39: 12 | F39: 4978 | K39: 0 | L39: 111
A40: 11 | B40: 5091 | C40: 11 | D40: 5105 | E40: 12 | F40: 5115 | K40: 0 | L40: 111
A41: 11 | B41: 5230 | C41: 11 | D41: 5241 | E41: 12 | F41: 5250 | K41: 0 | L41: 111
A42: 11 | B42: 5369 | C42: 11 | D42: 5374 | E42: 12 | F42: 5384 | K42: 0 | L42: 111
A43: 11 | B43: 5501 | C43: 11 | D43: 5510 | E43: 12 | F43: 5520 | K43: 0 | L43: 111
A44: 11 | B44: 5709 | C44: 11 | D44: 5717 | E44: 12 | F44: 5727 | K44: 0 | L44: 111
A45: 11 | B45: 5854 | C45: 11 | D45: 5863 | E45: 12 | F45: 5872 | K45: 0 | L45: 111
A46: 11 | B46: 5984 | C46: 11 | D46: 5997 | E46: 12 | F46: 6016 | K46: 0 | L46: 111
A47: 22 | B47: 6135 | C47: 13 | D47: 6145 | E47: 14 | F47: 6155 | K47: 0 | L47: 211
A48: 11 | B48: 6266 | C48: 11 | D48: 6275 | E48: 12 | F48: 6289 | K48: 0 | L48: 111
A49: 11 | B49: 6399 | C49: 11 | D49: 6407 | E49: 12 | F49: 6416 | K49: 0 | L49: 111
A50: 11 | B50: 6539 | C50: 11 | D50: 6550 | E50: 12 | F50: 6559 | K50: 0 | L50: 111
A51: 11 | B51: 6817 | C51: 11 | D51: 6823 | E51: 12 | F51: 6829 | K51: 0 | L51: 111
A52: 11 | B52: 6943 | C52: 11 | D52: 6951 | E52: 12 | F52: 6960 | K52: 0 | L52: 111
A53: 11 | B53: 7128 | C53: 11 | D53: 7136 | E53: 12 | F53: 7152 | K53: 0 | L53: 111
A54: 11 | B54: 7284 | C54: 11 | D54: 7293 | E54: 12 | F54: 7323 | K54: 0 | L54: 111
A55: 11 | B55: 7444 | C55: 11 | D55: 7454 | E55: 12 | F55: 7481 | K55: 0 | L55: 111
A56: 11 | B56: 7595 | C56: 11 | D56: 7604 | E56: 12 | F56: 7614 | K56: 0 | L56: 111
A57: 11 | B57: 7727 | C57: 11 | D57: 7740 | E57: 12 | F57: 7749 | K57: 0 | L57: 111
A58: 11 | B58: 7862 | C58: 11 | D58: 7870 | E58: 12 | F58: 7880 | K58: 0 | L58: 111
A59: 11 | B59: 7994 | C59: 11 | D59: 7999 | E59: 12 | F59: 8009 | K59: 0 | L59: 111
A60: 11 | B60: 8118 | C60: 11 | D60: 8133 | E60: 12 | F60: 8142 | K60: 0 | L60: 111
A61: 11 | B61: 8257 | C61: 11 | D61: 8262 | E61: 12 | F61: 8281 | K61: 0 | L61: 111
A62: 11 | B62: 8406 | C62: 11 | D62: 8424 | E62: 12 | F62: 8442 | K62: 0 | L62: 111
A63: 11 | B63: 8648 | C63: 11 | D63: 8656 | E63: 12 | F63: 8664 | K63: 0 | L63: 111
A64: 11 | B64: 8779 | C64: 11 | D64: 8784 | E64: 12 | F64: 8794 | K64: 0 | L64: 111
A65: 11 | B65: 8908 | C65: 11 | D65: 8919 | E65: 12 | F65: 8933 | K65: 0 | L65: 111
A66: 11 | B66: 9039 | C66: 11 | D66: 9044 | E66: 12 | F66: 9053 | K66: 0 | L66: 111
A67: 11 | B67: 9159 | C67: 11 | D67: 9164 | E67: 12 | F67: 9174 | K67: 0 | L67: 111
A68: 11 | B68: 9283 | C68: 11 | D68: 9289 | E68: 12 | F68: 9298 | K68: 0 | L68: 111
A69: 11 | B69: 9424 | C69: 11 | D69: 9442 | E69: 12 | F69: 9470 | K69: 0 | L69: 111
A70: 11 | B70: 9590 | C70: 11 | D70: 9599 | E70: 12 | F70: 9617 | K70: 0 | L70: 111
A71: 11 | B71: 9733 | C71: 11 | D71: 9738 | E71: 12 | F71: 9747 | K71: 0 | L71: 111
A72: 11 | B72: 9869 | C72: 11 | D72: 9878 | E72: 12 | F72: 9888 | K72: 0 | L72: 111
A73: 11 | B73: 10000 | C73: 11 | D73: 10006 | E73: 12 | F73: 10016 | K73: 0 | L73: 111
A74: 11 | B74: 10211 | C74: 11 | D74: 10231 | E74: 12 | F74: 10241 | K74: 0 | L74: 111
A75: 11 | B75: 10426 | C75: 11 | D75: 10431 | E75: 12 | F75: 10438 | K75: 0 | L75: 111
A76: 11 | B76: 10638 | C76: 11 | D76: 10647 | E76: 12 | F76: 10665 | K76: 0 | L76: 111
A77: 11 | B77: 10769 | C77: 11 | D77: 10776 | E77: 12 | F77: 10784 | K77: 0 | L77: 111
A78: 11 | B78: 10925 | C78: 11 | D78: 10933 | E78: 12 | F78: 10945 | K78: 0 | L78: 111
A79: 11 | B79: 11165 | C79: 11 | D79: 11170 | E79: 12 | F79: 11179 | K79: 0 | L79: 111
A80: 11 | B80: 11289 | C80: 11 | D80: 11297 | E80: 12 | F80: 11306 | K80: 0 | L80: 111
A81: 11 | B81: 11425 | C81: 11 | D81: 11429 | E81: 12 | F81: 11438 | K81: 0 | L81: 111
A82: 11 | B82: 11550 | C82: 11 | D82: 11555 | E82: 12 | F82: 11564 | K82: 0 | L82: 111
A83: 11 | B83: 11781 | C83: 11 | D83: 11786 | E83: 12 | F83: 11794 | K83: 0 | L83: 111
A84: 22 | B84: 11926 | C84: 13 | D84: 11940 | E84: 14 | F84: 11949 | K84: 0 | L84: 211
A85: 11 | B85: 12058 | C85: 11 | D85: 12062 | E85: 12 | F85: 12072 | K85: 0 | L85: 111
A86: 11 | B86: 12189 | C86: 11 | D86: 12194 | E86: 12 | F86: 12204 | K86: 0 | L86: 111
A87: 11 | B87: 12317 | C87: 11 | D87: 12332 | E87: 12 | F87: 12355 | K87: 0 | L87: 111
A88: 11 | B88: 12493 | C88: 11 | D88: 12501 | E88: 12 | F88: 12510 | K88: 0 | L88: 111
A89: 11 | B89: 12635 | C89: 11 | D89: 12653 | E89: 12 | F89: 12675 | K89: 0 | L89: 111
A90: 11 | B90: 12794 | C90: 11 | D90: 12804 | E90: 12 | F90: 12813 | K90: 0 | L90: 111
A91: 11 | B91: 13049 | C91: 11 | D91: 13057 | E91: 12 | F91: 13066 | K91: 0 | L91: 111
A92: 11 | B92: 13166 | C92: 11 | D92: 13174 | E92: 12 | F92: 13185 | K92: 0 | L92: 111
A93: 11 | B93: 13308 | C93: 11 | D93: 13319 | E93: 12 | F93: 13329 | K93: 0 | L93: 111
A94: 11 | B94: 13436 | C94: 11 | D94: 13445 | E94: 12 | F94: 13454 | K94: 0 | L94: 111
A95: 11 | B95: 13564 | C95: 11 | D95: 13569 | E95: 12 | F95: 13579 | K95: 0 | L95: 111
A96: 11 | B96: 13675 | C96: 11 | D96: 13685 | E96: 12 | F96: 13693 | K96: 0 | L96: 111
A97: 11 | B97: 13897 | C97: 11 | D97: 13905 | E97: 12 | F97: 13914 | K97: 0 | L97: 111
A98: 11 | B98: 14026 | C98: 11 | D98: 14037 | E98: 12 | F98: 14064 | K98: 0 | L98: 111
A99: 11 | B99: 14185 | C99: 11 | D99: 14193 | E99: 12 | F99: 14203 | K99: 0 | L99: 111
A100: 11 | B100: 14311 | C100: 11 | D100: 14317 | E100: 12 | F100: 14326 | K100: 0 | L100: 111
A101: 11 | B101: 14440 | C101: 11 | D101: 14446 | E101: 12 | F101: 14464 | K101: 0 | L101: 111
A102: 11 | B102: 14576 | C102: 11 | D102: 14584 | E102: 12 | F102: 14622 | K102: 0 | L102: 111
A103: 11 | B103: 14734 | C103: 11 | D103: 14743 | E103: 12 | F103: 14751 | K103: 0 | L103: 111
A104: 11 | B104: 14858 | C104: 11 | D104: 14866 | E104: 12 | F104: 14876 | K104: 0 | L104: 111
A105: 11 | B105: 15073 | C105: 11 | D105: 15083 | E105: 12 | F105: 15090 | K105: 0 | L105: 111
A106: 11 | B106: 15201 | C106: 11 | D106: 15205 | E106: 12 | F106: 15233 | K106: 0 | L106: 111
A107: 11 | B107: 15349 | C107: 11 | D107: 15359 | E107: 12 | F107: 15368 | K107: 0 | L107: 111
A108: 11 | B108: 15475 | C108: 11 | D108: 15482 | E108: 12 | F108: 15525 | K108: 0 | L108: 111
A109: 11 | B109: 15639 | C109: 11 | D109: 15648 | E109: 12 | F109: 15667 | K109: 0 | L109: 111
A110: 11 | B110: 15782 | C110: 11 | D110: 15792 | E110: 12 | F110: 15799 | K110: 0 | L110: 111
A111: 11 | B111: 15979 | C111: 11 | D111: 15984 | E111: 12 | F111: 15995 | K111: 0 | L111: 111
A112: 11 | B112: 16107 | C112: 22 | D112: 16120 | E112: 14 | F112: 16142 | K112: 0 | L112: 121
A113: 11 | B113: 16254 | C113: 11 | D113: 16265 | E113: 12 | F113: 16274 | K113: 0 | L113: 111
A114: 11 | B114: 16462 | C114: 11 | D114: 16471 | E114: 12 | F114: 16481 | K114: 0 | L114: 111
A115: 11 | B115: 16597 | C115: 11 | D115: 16608 | E115: 12 | F115: 16616 | K115: 0 | L115: 111
A116: 11 | B116: 16727 | C116: 11 | D116: 16732 | E116: 12 | F116: 16742 | K116: 0 | L116: 111
A117: 11 | B117: 16949 | C117: 11 | D117: 16959 | E117: 12 | F117: 16969 | K117: 0 | L117: 111
A118: 11 | B118: 17090 | C118: 11 | D118: 17098 | E118: 12 | F118: 17108 | K118: 0 | L118: 111
A119: 11 | B119: 17219 | C119: 11 | D119: 17223 | E119: 12 | F119: 17232 | K119: 0 | L119: 111
A120: 11 | B120: 17343 | C120: 11 | D120: 17349 | E120: 12 | F120: 17357 | K120: 0 | L120: 111
A121: 11 | B121: 17467 | C121: 11 | D121: 17472 | E121: 12 | F121: 17480 | K121: 0 | L121: 111
A122: 11 | B122: 17678 | C122: 11 | D122: 17685 | E122: 12 | F122: 17693 | K122: 0 | L122: 111
A123: 11 | B123: 17799 | C123: 11 | D123: 17808 | E123: 12 | F123: 17817 | K123: 0 | L123: 111
A124: 11 | B124: 17932 | C124: 11 | D124: 17940 | E124: 12 | F124: 17960 | K124: 0 | L124: 111
A125: 11 | B125: 18153 | C125: 11 | D125: 18171 | E125: 12 | F125: 18180 | K125: 0 | L125: 111
A126: 11 | B126: 18294 | C126: 11 | D126: 18304 | E126: 12 | F126: 18314 | K126: 0 | L126: 111
A127: 11 | B127: 18432 | C127: 11 | D127: 18441 | E127: 12 | F127: 18451 | K127: 0 | L127: 111
A128: 11 | B128: 18557 | C128: 11 | D128: 18562 | E128: 12 | F128: 18573 | K128: 0 | L128: 111
A129: 11 | B129: 18683 | C129: 11 | D129: 18686 | E129: 12 | F129: 18695 | K129: 0 | L129: 111
A130: 11 | B130: 18805 | C130: 11 | D130: 18808 | E130: 12 | F130: 18819 | K130: 0 | L130: 111
A131: 11 | B131: 19015 | C131: 11 | D131: 19024 | E131: 12 | F131: 19034 | K131: 0 | L131: 111
A132: 11 | B132: 19156 | C132: 11 | D132: 19167 | E132: 12 | F132: 19177 | K132: 0 | L132: 111
A133: 11 | B133: 19323 | C133: 11 | D133: 19332 | E133: 12 | F133: 19342 | K133: 0 | L133: 111
A134: 11 | B134: 19454 | C134: 11 | D134: 19462 | E134: 12 | F134: 19489 | K134: 0 | L134: 111
A135: 11 | B135: 19598 | C135: 11 | D135: 19613 | E135: 12 | F135: 19621 | K135: 0 | L135: 111
A136: 11 | B136: 19818 | C136: 11 | D136: 19841 | E136: 12 | F136: 19849 | K136: 0 | L136: 111
A137: 11 | B137: 19960 | C137: 11 | D137: 19971 | E137: 12 | F137: 19979 | K137: 0 | L137: 111
A138: 11 | B138: 20112 | C138: 11 | D138: 20117 | E138: 12 | F138: 20127 | K138: 0 | L138: 111
A139: 11 | B139: 20256 | C139: 11 | D139: 20264 | E139: 12 | F139: 20272 | K139: 0 | L139: 111
A140: 11 | B140: 20380 | C140: 11 | D140: 20385 | E140: 12 | F140: 20393 | K140: 0 | L140: 111
A141: 11 | B141: 20503 | C141: 11 | D141: 20507 | E141: 12 | F141: 20515 | K141: 0 | L141: 111
A142: 11 | B142: 20729 | C142: 11 | D142: 20738 | E142: 12 | F142: 20746 | K142: 0 | L142: 111
A143: 11 | B143: 20891 | C143: 11 | D143: 20901 | E143: 12 | F143: 20912 | K143: 0 | L143: 111
A144: 11 | B144: 21036 | C144: 11 | D144: 21045 | E144: 12 | F144: 21081 | K144: 0 | L144: 111
A145: 11 | B145: 21206 | C145: 11 | D145: 21219 | E145: 12 | F145: 21227 | K145: 0 | L145: 111
A146: 11 | B146: 21337 | C146: 11 | D146: 21351 | E146: 12 | F146: 21360 | K146: 0 | L146: 111
A147: 11 | B147: 21556 | C147: 11 | D147: 21563 | E147: 12 | F147: 21571 | K147: 0 | L147: 111
A148: 11 | B148: 21676 | C148: 11 | D148: 21683 | E148: 12 | F148: 21693 | K148: 0 | L148: 111
A149: 11 | B149: 21827 | C149: 11 | D149: 21836 | E149: 12 | F149: 21844 | K149: 0 | L149: 111
A150: 11 | B150: 21950 | C150: 11 | D150: 21956 | E150: 12 | F150: 21965 | K150: 0 | L150: 111
A151: 11 | B151: 22084 | C151: 11 | D151: 22090 | E151: 12 | F151: 22098 | K151: 0 | L151: 111
A152: 11 | B152: 22207 | C152: 11 | D152: 22212 | E152: 12 | F152: 22221 | K152: 0 | L152: 111
A153: 11 | B153: 22333 | C153: 11 | D153: 22340 | E153: 12 | F153: 22349 | K153: 0 | L153: 111
A154: 11 | B154: 22460 | C154: 11 | D154: 22469 | E154: 12 | F154: 22481 | K154: 0 | L154: 111
A155: 11 | B155: 22685 | C155: 11 | D155: 22712 | E155: 12 | F155: 22720 | K155: 0 | L155: 111
A156: 11 | B156: 22820 | C156: 11 | D156: 22827 | E156: 12 | F156: 22835 | K156: 0 | L156: 111
A157: 11 | B157: 22957 | C157: 11 | D157: 22967 | E157: 12 | F157: 22978 | K157: 0 | L157: 111
A158: 11 | B158: 23085 | C158: 11 | D158: 23094 | E158: 12 | F158: 23104 | K158: 0 | L158: 111
A159: 11 | B159: 23218 | C159: 11 | D159: 23228 | E159: 12 | F159: 23248 | K159: 0 | L159: 111
A160: 11 | B160: 23353 | C160: 11 | D160: 23358 | E160: 12 | F160: 23368 | K160: 0 | L160: 111
A161: 11 | B161: 23479 | C161: 11 | D161: 23483 | E161: 12 | F161: 23493 | K161: 0 | L161: 111
A162: 11 | B162: 23603 | C162: 11 | D162: 23608 | E162: 12 | F162: 23618 | K162: 0 | L162: 111
A163: 11 | B163: 23827 | C163: 11 | D163: 23835 | E163: 12 | F163: 23845 | K163: 0 | L163: 111
A164: 11 | B164: 23959 | C164: 11 | D164: 23969 | E164: 12 | F164: 23976 | L164: 111

Sheet !M809A50.010
A1: Report for:!M809A50.010
A2: Date: | B2: <date>
A3: Hen: | B3: <hen> | F3: Correct Sequence | G3: =Start!J2 -> 122 | P3: Total Sequences in Data | Q3: =4994-COUNTBLANK(L7:L5000) -> 163 | V3: Total Sequences in Block Data | W3: =COUNTA(L7:L33) -> 27 | AA3: Total Sequences in Block Data | AB3: =COUNTA(L34:L60) -> 27 | AF3: Total Sequences in Block Data | AG3: =COUNTA(L61:L88) -> 28 | AK3: Total Sequences in Block Data | AL3: =COUNTA(L89:L115) -> 27 | AP3: Total Sequences in Block Data | AQ3: =COUNTA(L116:L142) -> 27 | AU3: Total Sequences in Block Data | AV3: =COUNTA(L143:L169) -> 27
P4: Total Sequences in Summary | Q4: =SUM(O7:O14) -> 163 | V4: Total Sequences in Block Summary | W4: =SUM(U7:U14) -> 27 | AA4: Total Sequences in Block Summary | AB4: =SUM(Z7:Z14) -> 27 | AF4: Total Sequences in Block Summary | AG4: =SUM(AE7:AE14) -> 28 | AK4: Total Sequences in Block Summary | AL4: =SUM(AJ7:AJ14) -> 27 | AP4: Total Sequences in Block Summary | AQ4: =SUM(AO7:AO14) -> 27 | AU4: Total Sequences in Block Summary | AV4: =SUM(AT7:AT14) -> 27
T5: Block 1 | Y5: Block 2 | AD5: Block 3 | AI5: Block 4 | AN5: Block 5 | AS5: Block 6
A6: Sequence Component 1 | B6: Time 1 | C6: Sequence Component 2 | D6: Time 2 | E6: Sequence Component 3 | F6: Time 3 | G6: Sequence Component 4 | H6: Time 4 | I6: Sequence Component 5 | J6: Time 5 | K6: Correct? 0=No 1=Yes | L6: Sequence | N6: Frequency | P6: Relative Frequency | Q6: Variability | T6: Frequency | V6: Relative Frequency | W6: Variability | Y6: Frequency | AA6: Relative Frequency | AB6: Variability | AD6: Frequency | AF6: Relative Frequency | AG6: Variability | AI6: Frequency | AK6: Relative Frequency | AL6: Variability | AN6: Frequency | AP6: Relative Frequency | AQ6: Variability | AS6: Frequency | AU6: Relative Frequency | AV6: Variability
A7: 11 | B7: 23 | C7: 11 | D7: 32 | E7: 12 | F7: 41 | K7: 0 | L7: 111 | N7: 111 | O7: =COUNTIF($L$7:$L$500,N7) -> 149 | P7: =O7/$Q$4 -> 0.9141104294 | Q7: =IF(P7=0,0,(P7*((LOG(P7))/LOG(2)))) -> -0.1184318125 | T7: =N7 -> 111 | U7: =COUNTIF(L7:L33,T7) -> 20 | V7: =U7/(W4-U10) -> 0.7407407407 | W7: =IF(V7=0,0,(V7*((LOG(V7))/LOG(2)))) -> -0.3207106721 | Y7: =N7 -> 111 | Z7: =COUNTIF(L34:L60,Y7) -> 26 | AA7: =Z7/(AB4-Z10) -> 0.962962963 | AB7: =IF(AA7=0,0,(AA7*((LOG(AA7))/LOG(2)))) -> -0.05243119943 | AD7: =N7 -> 111 | AE7: =COUNTIF(L61:L88,AD7) -> 26 | AF7: =AE7/(AG4-AE10) -> 0.9285714286 | AG7: =IF(AF7=0,0,(AF7*((LOG(AF7))/LOG(2)))) -> -0.09927840364 | AI7: =N7 -> 111 | AJ7: =COUNTIF(L89:L115,AI7) -> 26 | AK7: =AJ7/(AL4-AJ10) -> 0.962962963 | AL7: =IF(AK7=0,0,(AK7*((LOG(AK7))/LOG(2)))) -> -0.05243119943 | AN7: =N7 -> 111 | AO7: =COUNTIF(L116:L142,AN7) -> 26 | AP7: =AO7/(AQ4-AO10) -> 0.962962963 | AQ7: =IF(AP7=0,0,(AP7*((LOG(AP7))/LOG(2)))) -> -0.05243119943 | AS7: =N7 -> 111 | AT7: =COUNTIF(L143:L169,AS7) -> 25 | AU7: =AT7/(AV4-AT10) -> 0.9259259259 | AV7: =IF(AU7=0,0,(AU7*((LOG(AU7))/LOG(2)))) -> -0.1028067707
A8: 11 | B8: 195 | C8: 11 | D8: 206 | E8: 12 | F8: 214 | K8: 0 | L8: 111 | N8: 112 | O8: =COUNTIF($L$7:$L$500,N8) -> 0 | P8: =O8/$Q$4 -> 0 | Q8: =IF(P8=0,0,(P8*((LOG(P8))/LOG(2)))) -> 0 | T8: =N8 -> 112 | U8: =COUNTIF(L7:L33,T8) -> 0 | V8: =U8/(W4-U10) -> 0 | W8: =IF(V8=0,0,(V8*((LOG(V8))/LOG(2)))) -> 0 | Y8: =N8 -> 112 | Z8: =COUNTIF(L34:L60,Y8) -> 0 | AA8: =Z8/(AB4-Z10) -> 0 | AB8: =IF(AA8=0,0,(AA8*((LOG(AA8))/LOG(2)))) -> 0 | AD8: =N8 -> 112 | AE8: =COUNTIF(L61:L88,AD8) -> 0 | AF8: =AE8/(AG4-AE10) -> 0 | AG8: =IF(AF8=0,0,(AF8*((LOG(AF8))/LOG(2)))) -> 0 | AI8: =N8 -> 112 | AJ8: =COUNTIF(L89:L115,AI8) -> 0 | AK8: =AJ8/(AL4-AJ10) -> 0 | AL8: =IF(AK8=0,0,(AK8*((LOG(AK8))/LOG(2)))) -> 0 | AN8: =N8 -> 112 | AO8: =COUNTIF(L116:L142,AN8) -> 0 | AP8: =AO8/(AQ4-AO10) -> 0 | AQ8: =IF(AP8=0,0,(AP8*((LOG(AP8))/LOG(2)))) -> 0 | AS8: =N8 -> 112 | AT8: =COUNTIF(L143:L169,AS8) -> 0 | AU8: =AT8/(AV4-AT10) -> 0 | AV8: =IF(AU8=0,0,(AU8*((LOG(AU8))/LOG(2)))) -> 0
A9: 22 | B9: 323 | C9: 13 | D9: 338 | E9: 14 | F9: 343 | K9: 0 | L9: 211 | N9: 121 | O9: =COUNTIF($L$7:$L$500,N9) -> 2 | P9: =O9/$Q$4 -> 0.01226993865 | Q9: =IF(P9=0,0,(P9*((LOG(P9))/LOG(2)))) -> -0.07789850496 | T9: =N9 -> 121 | U9: =COUNTIF(L7:L33,T9) -> 1 | V9: =U9/(W4-U10) -> 0.03703703704 | W9: =IF(V9=0,0,(V9*((LOG(V9))/LOG(2)))) -> -0.1761069445 | Y9: =N9 -> 121 | Z9: =COUNTIF(L34:L60,Y9) -> 0 | AA9: =Z9/(AB4-Z10) -> 0 | AB9: =IF(AA9=0,0,(AA9*((LOG(AA9))/LOG(2)))) -> 0 | AD9: =N9 -> 121 | AE9: =COUNTIF(L61:L88,AD9) -> 0 | AF9: =AE9/(AG4-AE10) -> 0 | AG9: =IF(AF9=0,0,(AF9*((LOG(AF9))/LOG(2)))) -> 0 | AI9: =N9 -> 121 | AJ9: =COUNTIF(L89:L115,AI9) -> 0 | AK9: =AJ9/(AL4-AJ10) -> 0 | AL9: =IF(AK9=0,0,(AK9*((LOG(AK9))/LOG(2)))) -> 0 | AN9: =N9 -> 121 | AO9: =COUNTIF(L116:L142,AN9) -> 0 | AP9: =AO9/(AQ4-AO10) -> 0 | AQ9: =IF(AP9=0,0,(AP9*((LOG(AP9))/LOG(2)))) -> 0 | AS9: =N9 -> 121 | AT9: =COUNTIF(L143:L169,AS9) -> 1 | AU9: =AT9/(AV4-AT10) -> 0.03703703704 | AV9: =IF(AU9=0,0,(AU9*((LOG(AU9))/LOG(2)))) -> -0.1761069445
A10: 22 | B10: 465 | C10: 24 | D10: 476 | E10: 23 | F10: 491 | K10: 0 | L10: 222 | N10: 122 | O10: =COUNTIF($L$7:$L$500,N10) -> 0 | P10: =O10/$Q$4 -> 0 | Q10: =IF(P10=0,0,(P10*((LOG(P10))/LOG(2)))) -> 0 | T10: =N10 -> 122 | U10: =COUNTIF(L7:L33,T10) -> 0 | Y10: =N10 -> 122 | Z10: =COUNTIF(L34:L60,Y10) -> 0 | AD10: =N10 -> 122 | AE10: =COUNTIF(L61:L88,AD10) -> 0 | AI10: =N10 -> 122 | AJ10: =COUNTIF(L89:L115,AI10) -> 0 | AN10: =N10 -> 122 | AO10: =COUNTIF(L116:L142,AN10) -> 0 | AS10: =N10 -> 122 | AT10: =COUNTIF(L143:L169,AS10) -> 0
A11: 11 | B11: 599 | C11: 11 | D11: 609 | E11: 12 | F11: 618 | K11: 0 | L11: 111 | N11: 211 | O11: =COUNTIF($L$7:$L$500,N11) -> 10 | P11: =O11/$Q$4 -> 0.06134969325 | Q11: =IF(P11=0,0,(P11*((LOG(P11))/LOG(2)))) -> -0.2470429484 | T11: =N11 -> 211 | U11: =COUNTIF(L7:L33,T11) -> 4 | V11: =U11/(W4-U10) -> 0.1481481481 | W11: =IF(V11=0,0,(V11*((LOG(V11))/LOG(2)))) -> -0.4081314818 | Y11: =N11 -> 211 | Z11: =COUNTIF(L34:L60,Y11) -> 1 | AA11: =Z11/(AB4-Z10) -> 0.03703703704 | AB11: =IF(AA11=0,0,(AA11*((LOG(AA11))/LOG(2)))) -> -0.1761069445 | AD11: =N11 -> 211 | AE11: =COUNTIF(L61:L88,AD11) -> 2 | AF11: =AE11/(AG4-AE10) -> 0.07142857143 | AG11: =IF(AF11=0,0,(AF11*((LOG(AF11))/LOG(2)))) -> -0.271953923 | AI11: =N11 -> 211 | AJ11: =COUNTIF(L89:L115,AI11) -> 1 | AK11: =AJ11/(AL4-AJ10) -> 0.03703703704 | AL11: =IF(AK11=0,0,(AK11*((LOG(AK11))/LOG(2)))) -> -0.1761069445 | AN11: =N11 -> 211 | AO11: =COUNTIF(L116:L142,AN11) -> 1 | AP11: =AO11/(AQ4-AO10) -> 0.03703703704 | AQ11: =IF(AP11=0,0,(AP11*((LOG(AP11))/LOG(2)))) -> -0.1761069445 | AS11: =N11 -> 211 | AT11: =COUNTIF(L143:L169,AS11) -> 1 | AU11: =AT11/(AV4-AT10) -> 0.03703703704 | AV11: =IF(AU11=0,0,(AU11*((LOG(AU11))/LOG(2)))) -> -0.1761069445
A12: 22 | B12: 731 | C12: 13 | D12: 755 | E12: 14 | F12: 764 | K12: 0 | L12: 211 | N12: 212 | O12: =COUNTIF($L$7:$L$500,N12) -> 0 | P12: =O12/$Q$4 -> 0 | Q12: =IF(P12=0,0,(P12*((LOG(P12))/LOG(2)))) -> 0 | T12: =N12 -> 212 | U12: =COUNTIF(L7:L33,T12) -> 0 | V12: =U12/(W4-U10) -> 0 | W12: =IF(V12=0,0,(V12*((LOG(V12))/LOG(2)))) -> 0 | Y12: =N12 -> 212 | Z12: =COUNTIF(L34:L60,Y12) -> 0 | AA12: =Z12/(AB4-Z10) -> 0 | AB12: =IF(AA12=0,0,(AA12*((LOG(AA12))/LOG(2)))) -> 0 | AD12: =N12 -> 212 | AE12: =COUNTIF(L61:L88,AD12) -> 0 | AF12: =AE12/(AG4-AE10) -> 0 | AG12: =IF(AF12=0,0,(AF12*((LOG(AF12))/LOG(2)))) -> 0 | AI12: =N12 -> 212 | AJ12: =COUNTIF(L89:L115,AI12) -> 0 | AK12: =AJ12/(AL4-AJ10) -> 0 | AL12: =IF(AK12=0,0,(AK12*((LOG(AK12))/LOG(2)))) -> 0 | AN12: =N12 -> 212 | AO12: =COUNTIF(L116:L142,AN12) -> 0 | AP12: =AO12/(AQ4-AO10) -> 0 | AQ12: =IF(AP12=0,0,(AP12*((LOG(AP12))/LOG(2)))) -> 0 | AS12: =N12 -> 212 | AT12: =COUNTIF(L143:L169,AS12) -> 0 | AU12: =AT12/(AV4-AT10) -> 0 | AV12: =IF(AU12=0,0,(AU12*((LOG(AU12))/LOG(2)))) -> 0
A13: 22 | B13: 910 | C13: 24 | D13: 919 | E13: 23 | F13: 930 | K13: 0 | L13: 222 | N13: 221 | O13: =COUNTIF($L$7:$L$500,N13) -> 0 | P13: =O13/$Q$4 -> 0 | Q13: =IF(P13=0,0,(P13*((LOG(P13))/LOG(2)))) -> 0 | T13: =N13 -> 221 | U13: =COUNTIF(L7:L33,T13) -> 0 | V13: =U13/(W4-U10) -> 0 | W13: =IF(V13=0,0,(V13*((LOG(V13))/LOG(2)))) -> 0 | Y13: =N13 -> 221 | Z13: =COUNTIF(L34:L60,Y13) -> 0 | AA13: =Z13/(AB4-Z10) -> 0 | AB13: =IF(AA13=0,0,(AA13*((LOG(AA13))/LOG(2)))) -> 0 | AD13: =N13 -> 221 | AE13: =COUNTIF(L61:L88,AD13) -> 0 | AF13: =AE13/(AG4-AE10) -> 0 | AG13: =IF(AF13=0,0,(AF13*((LOG(AF13))/LOG(2)))) -> 0 | AI13: =N13 -> 221 | AJ13: =COUNTIF(L89:L115,AI13) -> 0 | AK13: =AJ13/(AL4-AJ10) -> 0 | AL13: =IF(AK13=0,0,(AK13*((LOG(AK13))/LOG(2)))) -> 0 | AN13: =N13 -> 221 | AO13: =COUNTIF(L116:L142,AN13) -> 0 | AP13: =AO13/(AQ4-AO10) -> 0 | AQ13: =IF(AP13=0,0,(AP13*((LOG(AP13))/LOG(2)))) -> 0 | AS13: =N13 -> 221 | AT13: =COUNTIF(L143:L169,AS13) -> 0 | AU13: =AT13/(AV4-AT10) -> 0 | AV13: =IF(AU13=0,0,(AU13*((LOG(AU13))/LOG(2)))) -> 0
A14: 11 | B14: 1044 | C14: 11 | D14: 1068 | E14: 12 | F14: 1086 | K14: 0 | L14: 111 | N14: 222 | O14: =COUNTIF($L$7:$L$500,N14) -> 2 | P14: =O14/$Q$4 -> 0.01226993865 | Q14: =IF(P14=0,0,(P14*((LOG(P14))/LOG(2)))) -> -0.07789850496 | T14: =N14 -> 222 | U14: =COUNTIF(L7:L33,T14) -> 2 | V14: =U14/(W4-U10) -> 0.07407407407 | W14: =IF(V14=0,0,(V14*((LOG(V14))/LOG(2)))) -> -0.278139815 | Y14: =N14 -> 222 | Z14: =COUNTIF(L34:L60,Y14) -> 0 | AA14: =Z14/(AB4-Z10) -> 0 | AB14: =IF(AA14=0,0,(AA14*((LOG(AA14))/LOG(2)))) -> 0 | AD14: =N14 -> 222 | AE14: =COUNTIF(L61:L88,AD14) -> 0 | AF14: =AE14/(AG4-AE10) -> 0 | AG14: =IF(AF14=0,0,(AF14*((LOG(AF14))/LOG(2)))) -> 0 | AI14: =N14 -> 222 | AJ14: =COUNTIF(L89:L115,AI14) -> 0 | AK14: =AJ14/(AL4-AJ10) -> 0 | AL14: =IF(AK14=0,0,(AK14*((LOG(AK14))/LOG(2)))) -> 0 | AN14: =N14 -> 222 | AO14: =COUNTIF(L116:L142,AN14) -> 0 | AP14: =AO14/(AQ4-AO10) -> 0 | AQ14: =IF(AP14=0,0,(AP14*((LOG(AP14))/LOG(2)))) -> 0 | AS14: =N14 -> 222 | AT14: =COUNTIF(L143:L169,AS14) -> 0 | AU14: =AT14/(AV4-AT10) -> 0 | AV14: =IF(AU14=0,0,(AU14*((LOG(AU14))/LOG(2)))) -> 0
A15: 22 | B15: 1206 | C15: 13 | D15: 1217 | E15: 14 | F15: 1226 | K15: 0 | L15: 211 | P15: =SUM(P7:P14) -> 1 | Q15: =-SUM(Q7:Q14) -> 0.5212717708 | V15: =SUM(V7:V14) -> 1 | W15: =-SUM(W7:W14) -> 1.183088913 | AA15: =SUM(AA7:AA14) -> 1 | AB15: =-SUM(AB7:AB14) -> 0.228538144 | AF15: =SUM(AF7:AF14) -> 1 | AG15: =-SUM(AG7:AG14) -> 0.3712323266 | AK15: =SUM(AK7:AK14) -> 1 | AL15: =-SUM(AL7:AL14) -> 0.228538144 | AP15: =SUM(AP7:AP14) -> 1 | AQ15: =-SUM(AQ7:AQ14) -> 0.228538144 | AU15: =SUM(AU7:AU14) -> 1 | AV15: =-SUM(AV7:AV14) -> 0.4550206598
A16: 11 | B16: 1321 | C16: 11 | D16: 1328 | E16: 12 | F16: 1349 | K16: 0 | L16: 111 | P16: U= | Q16: =Q15/(LOG(Q4)/LOG(2)) -> 0.07093360373 | V16: U1= | W16: =W15/(LOG(W4)/LOG(2)) -> 0.2488153322 | AA16: U2= | AB16: =AB15/(LOG(AB4)/LOG(2)) -> 0.04806383828 | AF16: U3= | AG16: =AG15/(LOG(AG4)/LOG(2)) -> 0.07722174307 | AK16: U4= | AL16: =AL15/(LOG(AL4)/LOG(2)) -> 0.04806383828 | AP16: U5= | AQ16: =AQ15/(LOG(AQ4)/LOG(2)) -> 0.04806383828 | AU16: U6= | AV16: =AV15/(LOG(AV4)/LOG(2)) -> 0.09569535758
A17: 11 | B17: 1476 | C17: 11 | D17: 1482 | E17: 12 | F17: 1492 | K17: 0 | L17: 111
A18: 11 | B18: 1692 | C18: 11 | D18: 1698 | E18: 12 | F18: 1707 | K18: 0 | L18: 111
A19: 11 | B19: 1811 | C19: 11 | D19: 1822 | E19: 12 | F19: 1852 | K19: 0 | L19: 111 | N19: Total Target Seq
A20: 11 | B20: 1969 | C20: 11 | D20: 1974 | E20: 12 | F20: 1983 | K20: 0 | L20: 111 | N20: =COUNTIF(L7:L169,G3) -> 0 | P20: 27 | Q20: 27 | R20: 28 | S20: 27 | T20: 27 | U20: 27
A21: 11 | B21: 2097 | C21: 11 | D21: 2105 | E21: 12 | F21: 2117 | K21: 0 | L21: 111 | P21: % of reinforcement given in 6 equal intervals based on number of trials
A22: 11 | B22: 2226 | C22: 11 | D22: 2233 | E22: 12 | F22: 2244 | K22: 0 | L22: 111 | P22: %_1 | Q22: %_2 | R22: %_3 | S22: %_4 | T22: %_5 | U22: %_6
A23: 11 | B23: 2359 | C23: 11 | D23: 2363 | E23: 12 | F23: 2372 | K23: 0 | L23: 111 | O23: target sequence | P23: =$G$3 -> 122 | Q23: =$G$3 -> 122 | R23: =$G$3 -> 122 | S23: =$G$3 -> 122 | T23: =$G$3 -> 122 | U23: =$G$3 -> 122
A24: 22 | B24: 2476 | C24: 13 | D24: 2494 | E24: 14 | F24: 2501 | K24: 0 | L24: 211 | O24: total reinforcement | P24: =U10 -> 0 | Q24: =Z10 -> 0 | R24: =AE10 -> 0 | S24: =AJ10 -> 0 | T24: =AO10 -> 0 | U24: =AT10 -> 0
A25: 11 | B25: 2609 | C25: 22 | D25: 2622 | E25: 14 | F25: 2637 | K25: 0 | L25: 121 | O25: % target
A26: 11 | B26: 2761 | C26: 11 | D26: 2769 | E26: 12 | F26: 2779 | K26: 0 | L26: 111 | O26: CCRF
A27: 11 | B27: 2920 | C27: 11 | D27: 2926 | E27: 12 | F27: 2932 | K27: 0 | L27: 111 | O27: % CCRf
A28: 11 | B28: 3044 | C28: 11 | D28: 3049 | E28: 12 | F28: 3058 | K28: 0 | L28: 111 | O28: average response rate | P28: =F33/P20 -> 141.6296296 | Q28: =(F60-F33)/Q20 -> 145.2962963 | R28: =(F88-F60)/R20 -> 155.75 | S28: =(F115-F88)/S20 -> 155.1111111 | T28: =(F142-F115)/T20 -> 141.9259259 | U28: =(F169-F142)/U20 -> 142.6296296
A29: 11 | B29: 3173 | C29: 11 | D29: 3179 | E29: 12 | F29: 3189 | K29: 0 | L29: 111
A30: 11 | B30: 3303 | C30: 11 | D30: 3312 | E30: 12 | F30: 3322 | K30: 0 | L30: 111
A31: 11 | B31: 3438 | C31: 11 | D31: 3446 | E31: 12 | F31: 3455 | K31: 0 | L31: 111
A32: 11 | B32: 3656 | C32: 11 | D32: 3664 | E32: 12 | F32: 3677 | K32: 0 | L32: 111
A33: 11 | B33: 3806 | C33: 11 | D33: 3815 | E33: 12 | F33: 3824 | K33: 0 | L33: 111
A34: 11 | B34: 3938 | C34: 11 | D34: 3952 | E34: 12 | F34: 3962 | K34: 0 | L34: 111
A35: 11 | B35: 4076 | C35: 11 | D35: 4081 | E35: 12 | F35: 4091 | K35: 0 | L35: 111
A36: 11 | B36: 4196 | C36: 11 | D36: 4206 | E36: 12 | F36: 4215 | K36: 0 | L36: 111
A37: 11 | B37: 4328 | C37: 11 | D37: 4335 | E37: 12 | F37: 4346 | K37: 0 | L37: 111
A38: 11 | B38: 4455 | C38: 11 | D38: 4469 | E38: 12 | F38: 4480 | K38: 0 | L38: 111
A39: 11 | B39: 4591 | C39: 11 | D39: 4604 | E39: 12 | F39: 4614 | K39: 0 | L39: 111
A40: 11 | B40: 4808 | C40: 11 | D40: 4822 | E40: 12 | F40: 4833 | K40: 0 | L40: 111
A41: 11 | B41: 4938 | C41: 11 | D41: 4946 | E41: 12 | F41: 4957 | K41: 0 | L41: 111
A42: 22 | B42: 5092 | C42: 13 | D42: 5105 | E42: 14 | F42: 5115 | K42: 0 | L42: 211
A43: 11 | B43: 5231 | C43: 11 | D43: 5240 | E43: 12 | F43: 5245 | K43: 0 | L43: 111
A44: 11 | B44: 5356 | C44: 11 | D44: 5363 | E44: 12 | F44: 5377 | K44: 0 | L44: 111
A45: 11 | B45: 5496 | C45: 11 | D45: 5504 | E45: 12 | F45: 5514 | K45: 0 | L45: 111
A46: 11 | B46: 5627 | C46: 11 | D46: 5642 | E46: 12 | F46: 5660 | K46: 0 | L46: 111
A47: 11 | B47: 5772 | C47: 11 | D47: 5777 | E47: 12 | F47: 5787 | K47: 0 | L47: 111
A48: 11 | B48: 5896 | C48: 11 | D48: 5901 | E48: 12 | F48: 5910 | K48: 0 | L48: 111
